Workbook

Sheet Read Me First
A1: Freefincal US Stock Analyzer Version 1 - June 27th 2017
A2: Caution: Please do not use the results from this sheet unless you have read, understood and verified
A3: the formula and methods used in the analysis and valuation sheets
A4: This sheet is not a turn-key solution for stock analysis. It is meant to be academic in nature.
A5: Comment and suggestions are welcome
A6: Contribute: | B6: You can support freefincal.com with a small contribuion (any amount would do)
A7: Paypal users can contribute | B7: via this link(paypal)
A9: Others can pay in Indian Rupees | B9: via this link(instamojo) ( 1USD ~ 65 Rupees) - state purpose as US stock analyzer
A10: Support: You Can contact me in case of any issues: freefincal@gmail.com or pattu@freefincal.com
A11: Disclaimer: Freefincal.com is not responsible for either the profit or loss that you incur on investment decisions based on this sheet
A12: Note that this sheet is free for personal or professional use but no part of it can be used it a commercial product
A13: If you have a short-list of business that you wish to evaluate in detail, this automated stock analyzer could help
A14: Use the sheet from left to right starting with the inputs sheet
A15: Sheets in this anlyzer | B15: Description
A16: Inputs | B16: Use this to obtain financial data from Morning Star and Value Research
A17: Morning Star data | B17: Annual financials from Morning Star. No entry is required in this sheet
A18: Analysis | B18: Data from above sheet is analyzed. IS any metric missing here? Do let me know.
A19: Notes | B19: Some of the measures used in Analysis sheet are explained
A20: Graph | B20: Analysis metrics can be visualized here
A21: GoogleFinance | B21: Get stock price history from GoogleFinance (dividends not included; not all splits may be factored right)
A22: Stock Price | B22: stock price history can be visualised here.
A23: Earnings Power Box | B23: Find out if the company creates value by self-funding
A24: Altman Z-score
A25: Dupont ROE analysis | B25: Five-step ROE deconstuction using Morning Star Financials
A26: Piotroski score | B26: Calculates the Piotroski score using Morning Star financials for the last 9 financial years
A27: Graham Valuation | B27: Value a stock using the Graham number and Graham formula
A28: Valuation -1 | B28: Valuation with price multiple model
A29: Valuation-2 | B29: Valuation using sustainable growth rate
A30: Valuation-3 | B30: Valuation using book value growth rate
A31: Valuation-4 | B31: Valuation using discounted cash flow
A32: Valuation-5 | B32: Valuation using reverse discounted cash flow

Sheet Inputs
A1: Steps | B1: Instructions | J1: freefincal-US-stock-analyzer-June-2017-morningstar-Earnings-power-Box.xlsm | L1: freefincal-US-stock-analyzer-June-2017-morningstar-Earnings-power-Box.xlsm
A2: 1 | B2: Get an account at morningstar.com (US site), login, and choose a stock | L2: TSLA Key Ratios.csv
B3: In the stock page, choose the Key Ratios tab, click on the export button and download the data file. | L3: AAPL Key Ratios.csv
B4: (see screenshot below)
A5: 2 | B5: Open the morningstar data file. This file also should be open!!
A7: 3
A9: 4 | B9: Select the name of morningstar data file file you want to process
B10: AAPL Key Ratios.csv
G11: This copies the data sheet from the morningstar data file
A12: 5 | G12: The relevant items are extracted in the analysissheet
G13: and transmistted to the valuation sheets.
G14: Google Finance stock price data is only needed for finding
G15: max and min stock price each FY.
B17: Note the * in the morning star data Indicates calendar year-end data information

Sheet MorningStar Data
A1: Growth Profitability and Financial Ratios for Apple Inc
A2: Financials
B3: 2007-09 | C3: 2008-09 | D3: 2009-09 | E3: 2010-09 | F3: 2011-09 | G3: 2012-09 | H3: 2013-09 | I3: 2014-09 | J3: 2015-09 | K3: 2016-09 | L3: TTM
A4: Revenue USD Mil | B4: 24578 | C4: 37491 | D4: 42905 | E4: 65225 | F4: 108249 | G4: 156508 | H4: 170910 | I4: 182795 | J4: 233715 | K4: 215639 | L4: 220457
A5: Gross Margin % | B5: 33.2 | C5: 35.2 | D5: 40.1 | E5: 39.4 | F5: 40.5 | G5: 43.9 | H5: 37.6 | I5: 38.6 | J5: 40.1 | K5: 39.1 | L5: 38.4
A6: Operating Income USD Mil | B6: 4407 | C6: 8327 | D6: 11740 | E6: 18385 | F6: 33790 | G6: 55241 | H6: 48999 | I6: 52503 | J6: 71230 | K6: 60024 | L6: 59322
A7: Operating Margin % | B7: 17.9 | C7: 22.2 | D7: 27.4 | E7: 28.2 | F7: 31.2 | G7: 35.3 | H7: 28.7 | I7: 28.7 | J7: 30.5 | K7: 27.8 | L7: 26.9
A8: Net Income USD Mil | B8: 3495 | C8: 6119 | D8: 8235 | E8: 14013 | F8: 25922 | G8: 41733 | H8: 37037 | I8: 39510 | J8: 53394 | K8: 45687 | L8: 45730
A9: Earnings Per Share USD | B9: 0.56 | C9: 0.97 | D9: 1.3 | E9: 2.16 | F9: 3.95 | G9: 6.31 | H9: 5.68 | I9: 6.45 | J9: 9.22 | K9: 8.31 | L9: 8.58
A10: Dividends USD | G10: 0.38 | H10: 1.63 | I10: 1.81 | J10: 1.98 | K10: 2.18 | L10: 2.28
A11: Payout Ratio % * | H11: 27.4 | I11: 28.5 | J11: 22.3 | K11: 24.8 | L11: 26.6
A12: Shares Mil | B12: 6225 | C12: 6315 | D12: 6349 | E12: 6473 | F12: 6557 | G12: 6617 | H12: 6522 | I12: 6123 | J12: 5793 | K12: 5500 | L12: 5364
A13: Book Value Per Share * USD | B13: 2.2 | C13: 3.39 | D13: 5.02 | E13: 7.45 | F13: 11.78 | G13: 16.99 | H13: 19.6 | I13: 20.62 | J13: 22.53 | K13: 23.71 | L13: 25.72
A14: Operating Cash Flow USD Mil | B14: 5470 | C14: 9596 | D14: 10159 | E14: 18595 | F14: 37529 | G14: 50856 | H14: 53666 | I14: 59713 | J14: 81266 | K14: 65824 | L14: 66339
A15: Cap Spending USD Mil | B15: -986 | C15: -1199 | D15: -1213 | E15: -2121 | F15: -7452 | G15: -9402 | H15: -9076 | I15: -9813 | J15: -11488 | K15: -13548 | L15: -13378
A16: Free Cash Flow USD Mil | B16: 4484 | C16: 8397 | D16: 8946 | E16: 16474 | F16: 30077 | G16: 41454 | H16: 44590 | I16: 49900 | J16: 69778 | K16: 52276 | L16: 52961
A17: Free Cash Flow Per Share * USD | B17: 0.63 | C17: 1.33 | D17: 1.41 | E17: 2.54 | F17: 4.59 | G17: 6.31 | H17: 6.46 | I17: 7.73 | J17: 11.82 | K17: 8.97
A18: Working Capital USD Mil | B18: 12657 | C18: 20598 | D18: 20049 | E18: 20956 | F18: 17018 | G18: 19111 | H18: 29628 | I18: 5083 | J18: 8768 | K18: 27863
A20: Key Ratios -> Profitability
A21: Margins % of Sales | B21: 2007-09 | C21: 2008-09 | D21: 2009-09 | E21: 2010-09 | F21: 2011-09 | G21: 2012-09 | H21: 2013-09 | I21: 2014-09 | J21: 2015-09 | K21: 2016-09 | L21: TTM
A22: Revenue | B22: 100 | C22: 100 | D22: 100 | E22: 100 | F22: 100 | G22: 100 | H22: 100 | I22: 100 | J22: 100 | K22: 100 | L22: 100
A23: COGS | B23: 66.83 | C23: 64.8 | D23: 59.86 | E23: 60.62 | F23: 59.52 | G23: 56.13 | H23: 62.38 | I23: 61.41 | J23: 59.94 | K23: 60.92 | L23: 61.59
A24: Gross Margin | B24: 33.17 | C24: 35.2 | D24: 40.14 | E24: 39.38 | F24: 40.48 | G24: 43.87 | H24: 37.62 | I24: 38.59 | J24: 40.06 | K24: 39.08 | L24: 38.41
A25: SG&A | B25: 12.06 | C25: 10.03 | D25: 9.67 | E25: 8.46 | F25: 7.02 | G25: 6.42 | H25: 6.34 | I25: 6.56 | J25: 6.13 | K25: 6.58 | L25: 6.62
A26: R&D | B26: 3.18 | C26: 2.96 | D26: 3.11 | E26: 2.73 | F26: 2.24 | G26: 2.16 | H26: 2.62 | I26: 3.3 | J26: 3.45 | K26: 4.66 | L26: 4.89
A27: Other
A28: Operating Margin | B28: 17.93 | C28: 22.21 | D28: 27.36 | E28: 28.19 | F28: 31.22 | G28: 35.3 | H28: 28.67 | I28: 28.72 | J28: 30.48 | K28: 27.84 | L28: 26.91
A29: Net Int Inc & Other | B29: 2.44 | C29: 1.65 | D29: 0.76 | E29: 0.24 | F29: 0.38 | G29: 0.33 | H29: 0.68 | I29: 0.54 | J29: 0.55 | K29: 0.63 | L29: 1
A30: EBT Margin | B30: 20.37 | C30: 23.86 | D30: 28.12 | E30: 28.42 | F30: 31.6 | G30: 35.63 | H30: 29.35 | I30: 29.26 | J30: 31.03 | K30: 28.46 | L30: 27.91
A32: Profitability | B32: 2007-09 | C32: 2008-09 | D32: 2009-09 | E32: 2010-09 | F32: 2011-09 | G32: 2012-09 | H32: 2013-09 | I32: 2014-09 | J32: 2015-09 | K32: 2016-09 | L32: TTM
A33: Tax Rate % | B33: 30.19 | C33: 29.89 | D33: 31.75 | E33: 24.42 | F33: 24.22 | G33: 25.16 | H33: 26.15 | I33: 26.13 | J33: 26.37 | K33: 25.56 | L33: 25.67
A34: Net Margin % | B34: 14.56 | C34: 14.88 | D34: 19.19 | E34: 21.48 | F34: 23.95 | G34: 26.67 | H34: 21.67 | I34: 21.61 | J34: 22.85 | K34: 21.19 | L34: 20.74
A35: Asset Turnover (Average) | B35: 1.13 | C35: 1 | D35: 0.99 | E35: 1.06 | F35: 1.13 | G35: 1.07 | H35: 0.89 | I35: 0.83 | J35: 0.89 | K35: 0.7 | L35: 0.69
A36: Return on Assets % | B36: 16.43 | C36: 14.89 | D36: 18.92 | E36: 22.84 | F36: 27.07 | G36: 28.54 | H36: 19.34 | I36: 18.01 | J36: 20.45 | K36: 14.93 | L36: 14.29
A37: Financial Leverage (Average) | B37: 1.74 | C37: 1.88 | D37: 1.5 | E37: 1.57 | F37: 1.52 | G37: 1.49 | H37: 1.68 | I37: 2.08 | J37: 2.43 | K37: 2.51 | L37: 2.5
A38: Return on Equity % | B38: 28.52 | C38: 27.19 | D38: 31.27 | E38: 35.28 | F38: 41.67 | G38: 42.84 | H38: 30.64 | I38: 33.61 | J38: 46.25 | K38: 36.9 | L38: 34.57
A39: Return on Invested Capital % | B39: 24.84 | C39: 27.19 | D39: 30.22 | E39: 34.69 | F39: 41.04 | G39: 42.01 | H39: 26.08 | I39: 26.2 | J39: 31.32 | K39: 21.95 | L39: 19.75
A40: Interest Coverage | H40: 369.79 | I40: 140.28 | J40: 99.93 | K40: 43.15 | L40: 33.14
A42: Key Ratios -> Growth
B43: 2007-09 | C43: 2008-09 | D43: 2009-09 | E43: 2010-09 | F43: 2011-09 | G43: 2012-09 | H43: 2013-09 | I43: 2014-09 | J43: 2015-09 | K43: 2016-09 | L43: Latest Qtr
A44: Revenue %
A45: Year over Year | B45: 24.29 | C45: 35.3 | D45: 32.1 | E45: 52.02 | F45: 65.96 | G45: 44.58 | H45: 9.2 | I45: 6.95 | J45: 27.86 | K45: -7.73 | L45: 4.63
A46: 3-Year Average | B46: 42.6 | C46: 32.6 | D46: 30.48 | E46: 39.54 | F46: 49.37 | G46: 53.94 | H46: 37.86 | I46: 19.08 | J46: 14.3 | K46: 8.06
A47: 5-Year Average | B47: 33.12 | C47: 39.23 | D47: 38.97 | E47: 36.17 | F47: 41.16 | G47: 45.49 | H47: 39.39 | I47: 33.63 | J47: 29.08 | K47: 14.78
A48: 10-Year Average | B48: 12.99 | C48: 18.52 | D48: 21.47 | E48: 23.37 | F48: 35.05 | G48: 39.17 | H48: 39.31 | I48: 36.27 | J48: 32.58 | K48: 27.29
A49: Operating Income %
A50: Year over Year | B50: 79.74 | C50: 42.32 | D50: 87.09 | E50: 56.6 | F50: 83.79 | G50: 63.48 | H50: -11.3 | I50: 7.15 | J50: 35.67 | K50: -15.73 | L50: 0.79
A51: 3-Year Average | B51: 138.25 | C51: 56.09 | D51: 68.52 | E51: 60.96 | F51: 75.28 | G51: 67.57 | H51: 38.65 | I51: 15.82 | J51: 8.84 | K51: 7
A52: 5-Year Average | B52: 203.93 | D52: 104.78 | E52: 61.96 | F52: 68.97 | G52: 65.8 | H52: 50.84 | I52: 34.93 | J52: 31.11 | K52: 12.18
A53: 10-Year Average | C53: 37.44 | D53: 41.73 | E53: 42.78 | G53: 124.48 | I53: 66.23 | J53: 45.72 | K53: 37.68
A54: Net Income %
A55: Year over Year | B55: 75.77 | C55: 38.27 | D55: 70.36 | E55: 70.16 | F55: 84.99 | G55: 60.99 | H55: -11.25 | I55: 6.68 | J55: 35.14 | K55: -14.43
A56: 3-Year Average | B56: 133.11 | C56: 53.56 | D56: 60.57 | E56: 58.85 | F56: 75.03 | G56: 71.77 | H56: 38.26 | I56: 15.08 | J56: 8.56 | K56: 7.25
A57: 5-Year Average | B57: 121.89 | C57: 133.93 | D57: 97.22 | E57: 60.03 | F57: 67.11 | G57: 64.2 | H57: 50.27 | I57: 36.84 | J57: 30.67 | K57: 12
A58: 10-Year Average | C58: 31.65 | D58: 29.92 | E58: 33.39 | G58: 90.88 | H58: 87.49 | I58: 64.28 | J58: 44.61 | K58: 36.81
A59: EPS %
A60: Year over Year | B60: 73.13 | C60: 36.39 | D60: 69.4 | E60: 66.85 | F60: 82.71 | G60: 59.5 | H60: -9.97 | I60: 13.58 | J60: 42.95 | K60: -9.87 | L60: 10.53
A61: 3-Year Average | B61: 122.87 | C61: 50.9 | D61: 58.74 | E61: 56.8 | F61: 72.85 | G61: 69.41 | H61: 37.92 | I61: 17.71 | J61: 13.49 | K61: 13.53
A62: 5-Year Average | B62: 112.83 | C62: 124.02 | D62: 91.24 | E62: 57.56 | F62: 64.9 | G62: 62.22 | H62: 49.29 | I62: 37.82 | J62: 33.62 | K62: 16.01
A63: 10-Year Average | C63: 26.15 | D63: 25.97 | E63: 30.11 | G63: 85.81 | H63: 82.88 | I63: 62.35 | J63: 45.1 | K63: 38.31
A65: Key Ratios -> Cash Flow
A66: Cash Flow Ratios | B66: 2007-09 | C66: 2008-09 | D66: 2009-09 | E66: 2010-09 | F66: 2011-09 | G66: 2012-09 | H66: 2013-09 | I66: 2014-09 | J66: 2015-09 | K66: 2016-09 | L66: TTM
A67: Operating Cash Flow Growth % YOY | B67: 146.4 | C67: 75.43 | D67: 5.87 | E67: 83.04 | F67: 101.82 | G67: 35.51 | H67: 5.53 | I67: 11.27 | J67: 36.09 | K67: -19
A68: Free Cash Flow Growth % YOY | B68: 186.88 | C68: 87.27 | D68: 6.54 | E68: 84.15 | F68: 82.57 | G68: 37.83 | H68: 7.57 | I68: 11.91 | J68: 39.84 | K68: -25.08
A69: Cap Ex as a % of Sales | B69: 4.01 | C69: 3.2 | D69: 2.83 | E69: 3.25 | F69: 6.88 | G69: 6.01 | H69: 5.31 | I69: 5.37 | J69: 4.92 | K69: 6.28 | L69: 6.07
A70: Free Cash Flow/Sales % | B70: 18.24 | C70: 22.4 | D70: 20.85 | E70: 25.26 | F70: 27.79 | G70: 26.49 | H70: 26.09 | I70: 27.3 | J70: 29.86 | K70: 24.24 | L70: 24.02
A71: Free Cash Flow/Net Income | B71: 1.28 | C71: 1.37 | D71: 1.09 | E71: 1.18 | F71: 1.16 | G71: 0.99 | H71: 1.2 | I71: 1.26 | J71: 1.31 | K71: 1.14 | L71: 1.16
A73: Key Ratios -> Financial Health
A74: Balance Sheet Items (in %) | B74: 2007-09 | C74: 2008-09 | D74: 2009-09 | E74: 2010-09 | F74: 2011-09 | G74: 2012-09 | H74: 2013-09 | I74: 2014-09 | J74: 2015-09 | K74: 2016-09 | L74: Latest Qtr
A75: Cash & Short-Term Investments | B75: 60.7 | C75: 61.89 | D75: 49.4 | E75: 34.08 | F75: 22.3 | G75: 16.54 | H75: 19.59 | I75: 10.82 | J75: 14.32 | K75: 20.88 | L75: 20.06
A76: Accounts Receivable | B76: 15.9 | C76: 11.89 | D76: 10.65 | E76: 13.2 | F76: 10.07 | G76: 10.62 | H76: 9.97 | I76: 11.74 | J76: 10.45 | K76: 9.11 | L76: 6.16
A77: Inventory | B77: 1.37 | C77: 1.29 | D77: 0.96 | E77: 1.4 | F77: 0.67 | G77: 0.45 | H77: 0.85 | I77: 0.91 | J77: 0.81 | K77: 0.66 | L77: 0.87
A78: Other Current Assets | B78: 8.66 | C78: 12.6 | D78: 5.43 | E78: 6.76 | F78: 5.62 | G78: 5.14 | H78: 4.99 | I78: 6.09 | J78: 5.19 | K78: 2.57 | L78: 3.4
A79: Total Current Assets | B79: 86.62 | C79: 87.66 | D79: 66.43 | E79: 55.44 | F79: 38.66 | G79: 32.75 | H79: 35.4 | I79: 29.56 | J79: 30.77 | K79: 33.22 | L79: 30.49
A80: Net PP&E | B80: 7.23 | C80: 6.2 | D80: 6.22 | E80: 6.34 | F80: 6.68 | G80: 8.78 | H80: 8.02 | I80: 8.9 | J80: 7.74 | K80: 8.4 | L80: 8.12
A81: Intangibles | B81: 1.66 | C81: 1.24 | D81: 1.18 | E81: 1.44 | F81: 3.81 | G81: 3.04 | H81: 2.78 | I81: 3.78 | J81: 3.1 | K81: 2.68 | L81: 2.42
A82: Other Long-Term Assets | B82: 4.49 | C82: 4.89 | D82: 26.17 | E82: 36.78 | F82: 50.85 | G82: 55.43 | H82: 53.8 | I82: 57.77 | J82: 58.39 | K82: 55.7 | L82: 58.97
A83: Total Assets | B83: 100 | C83: 100 | D83: 100 | E83: 100 | F83: 100 | G83: 100 | H83: 100 | I83: 100 | J83: 100 | K83: 100 | L83: 100
A84: Accounts Payable | B84: 19.61 | C84: 13.95 | D84: 11.79 | E84: 15.98 | F84: 12.57 | G84: 12.03 | H84: 10.81 | I84: 13.02 | J84: 12.22 | K84: 11.59 | L84: 8.54
A85: Short-Term Debt | I85: 2.72 | J85: 3.79 | K85: 3.61 | L85: 4.18
A86: Taxes Payable | D86: 0.91 | E86: 0.28 | F86: 0.98 | G86: 0.87 | H86: 0.58 | I86: 0.52
A87: Accrued Liabilities | B87: 4.97 | C87: 9.4 | D87: 7.2 | E87: 6.45 | F87: 6.97 | G87: 4.76 | H87: 2.52 | I87: 3.32 | J87: 8.67 | K87: 6.85 | L87: 6.9
A88: Other Short-Term Liabilities | B88: 12.11 | C88: 12.26 | D88: 4.32 | E88: 4.85 | F88: 3.52 | G88: 4.23 | H88: 7.19 | I88: 7.78 | J88: 3.08 | K88: 2.51 | L88: 2.3
A89: Total Current Liabilities | B89: 36.69 | C89: 35.61 | D89: 24.22 | E89: 27.56 | F89: 24.04 | G89: 21.89 | H89: 21.09 | I89: 27.37 | J89: 27.75 | K89: 24.56 | L89: 21.92
A90: Long-Term Debt | H90: 8.19 | I90: 12.5 | J90: 18.41 | K90: 23.45 | L90: 25.27
A91: Other Long-Term Liabilities | B91: 5.98 | C91: 11.25 | D91: 9.17 | E91: 8.87 | F91: 10.13 | G91: 10.97 | H91: 11.03 | I91: 12.02 | J91: 12.76 | K91: 12.12 | L91: 12.73
A92: Total Liabilities | B92: 42.67 | C92: 46.86 | D92: 33.39 | E92: 36.43 | F92: 34.16 | G92: 32.86 | H92: 40.31 | I92: 51.89 | J92: 58.91 | K92: 60.13 | L92: 59.92
A93: Total Stockholders' Equity | B93: 57.33 | C93: 53.14 | D93: 66.61 | E93: 63.57 | F93: 65.84 | G93: 67.14 | H93: 59.69 | I93: 48.11 | J93: 41.09 | K93: 39.87 | L93: 40.08
A94: Total Liabilities & Equity | B94: 100 | C94: 100 | D94: 100 | E94: 100 | F94: 100 | G94: 100 | H94: 100 | I94: 100 | J94: 100 | K94: 100 | L94: 100
A96: Liquidity/Financial Health | B96: 2007-09 | C96: 2008-09 | D96: 2009-09 | E96: 2010-09 | F96: 2011-09 | G96: 2012-09 | H96: 2013-09 | I96: 2014-09 | J96: 2015-09 | K96: 2016-09 | L96: Latest Qtr
A97: Current Ratio | B97: 2.36 | C97: 2.46 | D97: 2.74 | E97: 2.01 | F97: 1.61 | G97: 1.5 | H97: 1.68 | I97: 1.08 | J97: 1.11 | K97: 1.35 | L97: 1.39
A98: Quick Ratio | B98: 2.09 | C98: 2.07 | D98: 2.48 | E98: 1.72 | F98: 1.35 | G98: 1.24 | H98: 1.4 | I98: 0.82 | J98: 0.89 | K98: 1.22 | L98: 1.2
A99: Financial Leverage | B99: 1.74 | C99: 1.88 | D99: 1.5 | E99: 1.57 | F99: 1.52 | G99: 1.49 | H99: 1.68 | I99: 2.08 | J99: 2.43 | K99: 2.51 | L99: 2.5
A100: Debt/Equity | H100: 0.14 | I100: 0.26 | J100: 0.45 | K100: 0.59 | L100: 0.63
A102: Key Ratios -> Efficiency Ratios
A103: Efficiency | B103: 2007-09 | C103: 2008-09 | D103: 2009-09 | E103: 2010-09 | F103: 2011-09 | G103: 2012-09 | H103: 2013-09 | I103: 2014-09 | J103: 2015-09 | K103: 2016-09 | L103: TTM
A104: Days Sales Outstanding | B104: 21.96 | C104: 22.81 | D104: 24.6 | E104: 24.82 | F104: 18.34 | G104: 19.01 | H104: 25.66 | I104: 30.51 | J104: 26.79 | K104: 27.59 | L104: 19.71
A105: Days Inventory | B105: 7.09 | C105: 7.31 | D105: 6.85 | E105: 6.95 | F105: 5.17 | G105: 3.26 | H105: 4.37 | I105: 6.3 | J105: 5.81 | K105: 6.22 | L105: 6.98
A106: Payables Period | B106: 96.25 | C106: 89.74 | D106: 79.02 | E106: 81.3 | F106: 75.48 | G106: 74.38 | H106: 74.54 | I106: 85.45 | J106: 85.57 | K106: 101.11 | L106: 72.14
A107: Cash Conversion Cycle | B107: -67.19 | C107: -59.61 | D107: -47.58 | E107: -49.53 | F107: -51.96 | G107: -52.13 | H107: -44.5 | I107: -48.64 | J107: -52.97 | K107: -67.29 | L107: -45.46
A108: Receivables Turnover | B108: 16.62 | C108: 16 | D108: 14.84 | E108: 14.71 | F108: 19.9 | G108: 19.2 | H108: 14.22 | I108: 11.96 | J108: 13.62 | K108: 13.23 | L108: 18.52
A109: Inventory Turnover | B109: 51.47 | C109: 49.9 | D109: 53.28 | E109: 52.51 | F109: 70.53 | G109: 112.12 | H109: 83.45 | I109: 57.94 | J109: 62.82 | K109: 58.64 | L109: 52.31
A110: Fixed Assets Turnover | B110: 15.42 | C110: 15.15 | D110: 15.86 | E110: 16.89 | F110: 17.26 | G110: 13.48 | H110: 10.67 | I110: 9.82 | J110: 10.85 | K110: 8.71 | L110: 8.75
A111: Asset Turnover | B111: 1.13 | C111: 1 | D111: 0.99 | E111: 1.06 | F111: 1.13 | G111: 1.07 | H111: 0.89 | I111: 0.83 | J111: 0.89 | K111: 0.7 | L111: 0.69

Sheet Analysis
B1: =L1+1 -> 11 | C1: 1 | D1: =C1+1 -> 2 | E1: =D1+1 -> 3 | F1: 4 | G1: 5 | H1: 6 | I1: 7 | J1: 8 | K1: 9 | L1: 10
A2: Analysis of morning star data | B2: =LEFT('MorningStar Data'!L3,4) -> TTM | C2: =LEFT('MorningStar Data'!B3,4) -> 2007 | D2: =LEFT('MorningStar Data'!C3,4) -> 2008 | E2: =LEFT('MorningStar Data'!D3,4) -> 2009 | F2: =LEFT('MorningStar Data'!E3,4) -> 2010 | G2: =LEFT('MorningStar Data'!F3,4) -> 2011 | H2: =LEFT('MorningStar Data'!G3,4) -> 2012 | I2: =LEFT('MorningStar Data'!H3,4) -> 2013 | J2: =LEFT('MorningStar Data'!I3,4) -> 2014 | K2: =LEFT('MorningStar Data'!J3,4) -> 2015 | L2: =LEFT('MorningStar Data'!K3,4) -> 2016 | M2: Average | N2: Std Dev | O2: Inconsistency measure* | P2: Geometric average*
A3: Tax Rate % | B3: =IF(INDEX('MorningStar Data'!$A$1:$M$150,MATCH(Analysis!$A$3,'MorningStar Data'!$A$1:$A$150,0),B1+1)/100=0,"",INDEX('MorningStar Data'!$A$1:$M$150,MATCH(Analysis!$A$3,'MorningStar Data'!$A$1:$A$150,0),B1+1)/100) -> 0.2567 | C3: =IF(INDEX('MorningStar Data'!$A$1:$M$150,MATCH(Analysis!$A$3,'MorningStar Data'!$A$1:$A$150,0),C1+1)/100=0,"",INDEX('MorningStar Data'!$A$1:$M$150,MATCH(Analysis!$A$3,'MorningStar Data'!$A$1:$A$150,0),C1+1)/100) -> 0.3019 | D3: =IF(INDEX('MorningStar Data'!$A$1:$M$150,MATCH(Analysis!$A$3,'MorningStar Data'!$A$1:$A$150,0),D1+1)/100=0,"",INDEX('MorningStar Data'!$A$1:$M$150,MATCH(Analysis!$A$3,'MorningStar Data'!$A$1:$A$150,0),D1+1)/100) -> 0.2989 | E3: =IF(INDEX('MorningStar Data'!$A$1:$M$150,MATCH(Analysis!$A$3,'MorningStar Data'!$A$1:$A$150,0),E1+1)/100=0,"",INDEX('MorningStar Data'!$A$1:$M$150,MATCH(Analysis!$A$3,'MorningStar Data'!$A$1:$A$150,0),E1+1)/100) -> 0.3175 | F3: =IF(INDEX('MorningStar Data'!$A$1:$M$150,MATCH(Analysis!$A$3,'MorningStar Data'!$A$1:$A$150,0),F1+1)/100=0,"",INDEX('MorningStar Data'!$A$1:$M$150,MATCH(Analysis!$A$3,'MorningStar Data'!$A$1:$A$150,0),F1+1)/100) -> 0.2442 | G3: =IF(INDEX('MorningStar Data'!$A$1:$M$150,MATCH(Analysis!$A$3,'MorningStar Data'!$A$1:$A$150,0),G1+1)/100=0,"",INDEX('MorningStar Data'!$A$1:$M$150,MATCH(Analysis!$A$3,'MorningStar Data'!$A$1:$A$150,0),G1+1)/100) -> 0.2422 | H3: =IF(INDEX('MorningStar Data'!$A$1:$M$150,MATCH(Analysis!$A$3,'MorningStar Data'!$A$1:$A$150,0),H1+1)/100=0,"",INDEX('MorningStar Data'!$A$1:$M$150,MATCH(Analysis!$A$3,'MorningStar Data'!$A$1:$A$150,0),H1+1)/100) -> 0.2516 | I3: =IF(INDEX('MorningStar Data'!$A$1:$M$150,MATCH(Analysis!$A$3,'MorningStar Data'!$A$1:$A$150,0),I1+1)/100=0,"",INDEX('MorningStar Data'!$A$1:$M$150,MATCH(Analysis!$A$3,'MorningStar Data'!$A$1:$A$150,0),I1+1)/100) -> 0.2615 | J3: =IF(INDEX('MorningStar Data'!$A$1:$M$150,MATCH(Analysis!$A$3,'MorningStar Data'!$A$1:$A$150,0),J1+1)/100=0,"",INDEX('MorningStar Data'!$A$1:$M$150,MATCH(Analysis!$A$3,'MorningStar Data'!$A$1:$A$150,0),J1+1)/100) -> 0.2613 | K3: =IF(INDEX('MorningStar Data'!$A$1:$M$150,MATCH(Analysis!$A$3,'MorningStar Data'!$A$1:$A$150,0),K1+1)/100=0,"",INDEX('MorningStar Data'!$A$1:$M$150,MATCH(Analysis!$A$3,'MorningStar Data'!$A$1:$A$150,0),K1+1)/100) -> 0.2637 | L3: =IF(INDEX('MorningStar Data'!$A$1:$M$150,MATCH(Analysis!$A$3,'MorningStar Data'!$A$1:$A$150,0),L1+1)/100=0,"",INDEX('MorningStar Data'!$A$1:$M$150,MATCH(Analysis!$A$3,'MorningStar Data'!$A$1:$A$150,0),L1+1)/100) -> 0.2556 | M3: =AVERAGE(C3:L3) -> 0.26984 | N3: =STDEV(C3:L3) -> 0.02641725867 | O3: =(M3-P3)/M3 -> 0.0009077793263 | P3: =((1+IF(C3="",0,C3))*(1+IF(D3="",0,D3))*(1+IF(E3="",0,E3))*(1+IF(F3="",0,F3))*(1+IF(G3="",0,G3))*(1+IF(H3="",0,H3))*(1+IF(I3="",0,I3))*(1+IF(J3="",0,J3))*(1+IF(K3="",0,K3))*(1+IF(L3="",0,L3)))^(1/10)-1 -> 0.2695950448
A4: Gross Margin % | B4: =IF(INDEX('MorningStar Data'!$A$1:$M$150,MATCH(Analysis!$A$4,'MorningStar Data'!$A$1:$A$150,0),B1+1)/100=0,"",INDEX('MorningStar Data'!$A$1:$M$150,MATCH(Analysis!$A$4,'MorningStar Data'!$A$1:$A$150,0),B1+1)/100) -> 0.384 | C4: =IF(INDEX('MorningStar Data'!$A$1:$M$150,MATCH(Analysis!$A$4,'MorningStar Data'!$A$1:$A$150,0),C1+1)/100=0,"",INDEX('MorningStar Data'!$A$1:$M$150,MATCH(Analysis!$A$4,'MorningStar Data'!$A$1:$A$150,0),C1+1)/100) -> 0.332 | D4: =IF(INDEX('MorningStar Data'!$A$1:$M$150,MATCH(Analysis!$A$4,'MorningStar Data'!$A$1:$A$150,0),D1+1)/100=0,"",INDEX('MorningStar Data'!$A$1:$M$150,MATCH(Analysis!$A$4,'MorningStar Data'!$A$1:$A$150,0),D1+1)/100) -> 0.352 | E4: =IF(INDEX('MorningStar Data'!$A$1:$M$150,MATCH(Analysis!$A$4,'MorningStar Data'!$A$1:$A$150,0),E1+1)/100=0,"",INDEX('MorningStar Data'!$A$1:$M$150,MATCH(Analysis!$A$4,'MorningStar Data'!$A$1:$A$150,0),E1+1)/100) -> 0.401 | F4: =IF(INDEX('MorningStar Data'!$A$1:$M$150,MATCH(Analysis!$A$4,'MorningStar Data'!$A$1:$A$150,0),F1+1)/100=0,"",INDEX('MorningStar Data'!$A$1:$M$150,MATCH(Analysis!$A$4,'MorningStar Data'!$A$1:$A$150,0),F1+1)/100) -> 0.394 | G4: =IF(INDEX('MorningStar Data'!$A$1:$M$150,MATCH(Analysis!$A$4,'MorningStar Data'!$A$1:$A$150,0),G1+1)/100=0,"",INDEX('MorningStar Data'!$A$1:$M$150,MATCH(Analysis!$A$4,'MorningStar Data'!$A$1:$A$150,0),G1+1)/100) -> 0.405 | H4: =IF(INDEX('MorningStar Data'!$A$1:$M$150,MATCH(Analysis!$A$4,'MorningStar Data'!$A$1:$A$150,0),H1+1)/100=0,"",INDEX('MorningStar Data'!$A$1:$M$150,MATCH(Analysis!$A$4,'MorningStar Data'!$A$1:$A$150,0),H1+1)/100) -> 0.439 | I4: =IF(INDEX('MorningStar Data'!$A$1:$M$150,MATCH(Analysis!$A$4,'MorningStar Data'!$A$1:$A$150,0),I1+1)/100=0,"",INDEX('MorningStar Data'!$A$1:$M$150,MATCH(Analysis!$A$4,'MorningStar Data'!$A$1:$A$150,0),I1+1)/100) -> 0.376 | J4: =IF(INDEX('MorningStar Data'!$A$1:$M$150,MATCH(Analysis!$A$4,'MorningStar Data'!$A$1:$A$150,0),J1+1)/100=0,"",INDEX('MorningStar Data'!$A$1:$M$150,MATCH(Analysis!$A$4,'MorningStar Data'!$A$1:$A$150,0),J1+1)/100) -> 0.386 | K4: =IF(INDEX('MorningStar Data'!$A$1:$M$150,MATCH(Analysis!$A$4,'MorningStar Data'!$A$1:$A$150,0),K1+1)/100=0,"",INDEX('MorningStar Data'!$A$1:$M$150,MATCH(Analysis!$A$4,'MorningStar Data'!$A$1:$A$150,0),K1+1)/100) -> 0.401 | L4: =IF(INDEX('MorningStar Data'!$A$1:$M$150,MATCH(Analysis!$A$4,'MorningStar Data'!$A$1:$A$150,0),L1+1)/100=0,"",INDEX('MorningStar Data'!$A$1:$M$150,MATCH(Analysis!$A$4,'MorningStar Data'!$A$1:$A$150,0),L1+1)/100) -> 0.391 | M4: =AVERAGE(C4:L4) -> 0.3877 | N4: =STDEV(C4:L4) -> 0.02953735864 | O4: =(M4-P4)/M4 -> 0.0007334419644 | P4: =((1+IF(C4="",0,C4))*(1+IF(D4="",0,D4))*(1+IF(E4="",0,E4))*(1+IF(F4="",0,F4))*(1+IF(G4="",0,G4))*(1+IF(H4="",0,H4))*(1+IF(I4="",0,I4))*(1+IF(J4="",0,J4))*(1+IF(K4="",0,K4))*(1+IF(L4="",0,L4)))^(1/10)-1 -> 0.3874156446
A5: EBT Margin | B5: =IF(INDEX('MorningStar Data'!$A$1:$M$150,MATCH(Analysis!$A$5,'MorningStar Data'!$A$1:$A$150,0),B1+1)/100=0,"",INDEX('MorningStar Data'!$A$1:$M$150,MATCH(Analysis!$A$5,'MorningStar Data'!$A$1:$A$150,0),B1+1)/100) -> 0.2791 | C5: =IF(INDEX('MorningStar Data'!$A$1:$M$150,MATCH(Analysis!$A$5,'MorningStar Data'!$A$1:$A$150,0),C1+1)/100=0,"",INDEX('MorningStar Data'!$A$1:$M$150,MATCH(Analysis!$A$5,'MorningStar Data'!$A$1:$A$150,0),C1+1)/100) -> 0.2037 | D5: =IF(INDEX('MorningStar Data'!$A$1:$M$150,MATCH(Analysis!$A$5,'MorningStar Data'!$A$1:$A$150,0),D1+1)/100=0,"",INDEX('MorningStar Data'!$A$1:$M$150,MATCH(Analysis!$A$5,'MorningStar Data'!$A$1:$A$150,0),D1+1)/100) -> 0.2386 | E5: =IF(INDEX('MorningStar Data'!$A$1:$M$150,MATCH(Analysis!$A$5,'MorningStar Data'!$A$1:$A$150,0),E1+1)/100=0,"",INDEX('MorningStar Data'!$A$1:$M$150,MATCH(Analysis!$A$5,'MorningStar Data'!$A$1:$A$150,0),E1+1)/100) -> 0.2812 | F5: =IF(INDEX('MorningStar Data'!$A$1:$M$150,MATCH(Analysis!$A$5,'MorningStar Data'!$A$1:$A$150,0),F1+1)/100=0,"",INDEX('MorningStar Data'!$A$1:$M$150,MATCH(Analysis!$A$5,'MorningStar Data'!$A$1:$A$150,0),F1+1)/100) -> 0.2842 | G5: =IF(INDEX('MorningStar Data'!$A$1:$M$150,MATCH(Analysis!$A$5,'MorningStar Data'!$A$1:$A$150,0),G1+1)/100=0,"",INDEX('MorningStar Data'!$A$1:$M$150,MATCH(Analysis!$A$5,'MorningStar Data'!$A$1:$A$150,0),G1+1)/100) -> 0.316 | H5: =IF(INDEX('MorningStar Data'!$A$1:$M$150,MATCH(Analysis!$A$5,'MorningStar Data'!$A$1:$A$150,0),H1+1)/100=0,"",INDEX('MorningStar Data'!$A$1:$M$150,MATCH(Analysis!$A$5,'MorningStar Data'!$A$1:$A$150,0),H1+1)/100) -> 0.3563 | I5: =IF(INDEX('MorningStar Data'!$A$1:$M$150,MATCH(Analysis!$A$5,'MorningStar Data'!$A$1:$A$150,0),I1+1)/100=0,"",INDEX('MorningStar Data'!$A$1:$M$150,MATCH(Analysis!$A$5,'MorningStar Data'!$A$1:$A$150,0),I1+1)/100) -> 0.2935 | J5: =IF(INDEX('MorningStar Data'!$A$1:$M$150,MATCH(Analysis!$A$5,'MorningStar Data'!$A$1:$A$150,0),J1+1)/100=0,"",INDEX('MorningStar Data'!$A$1:$M$150,MATCH(Analysis!$A$5,'MorningStar Data'!$A$1:$A$150,0),J1+1)/100) -> 0.2926 | K5: =IF(INDEX('MorningStar Data'!$A$1:$M$150,MATCH(Analysis!$A$5,'MorningStar Data'!$A$1:$A$150,0),K1+1)/100=0,"",INDEX('MorningStar Data'!$A$1:$M$150,MATCH(Analysis!$A$5,'MorningStar Data'!$A$1:$A$150,0),K1+1)/100) -> 0.3103 | L5: =IF(INDEX('MorningStar Data'!$A$1:$M$150,MATCH(Analysis!$A$5,'MorningStar Data'!$A$1:$A$150,0),L1+1)/100=0,"",INDEX('MorningStar Data'!$A$1:$M$150,MATCH(Analysis!$A$5,'MorningStar Data'!$A$1:$A$150,0),L1+1)/100) -> 0.2846 | M5: =AVERAGE(C5:L5) -> 0.2861 | N5: =STDEV(C5:L5) -> 0.04160739785 | O5: =(M5-P5)/M5 -> 0.002139570052 | P5: =((1+IF(C5="",0,C5))*(1+IF(D5="",0,D5))*(1+IF(E5="",0,E5))*(1+IF(F5="",0,F5))*(1+IF(G5="",0,G5))*(1+IF(H5="",0,H5))*(1+IF(I5="",0,I5))*(1+IF(J5="",0,J5))*(1+IF(K5="",0,K5))*(1+IF(L5="",0,L5)))^(1/10)-1 -> 0.285487869
A6: Operating Margin % | B6: =IF(INDEX('MorningStar Data'!$A$1:$M$150,MATCH(Analysis!$A$6,'MorningStar Data'!$A$1:$A$150,0),B1+1)/100=0,"",INDEX('MorningStar Data'!$A$1:$M$150,MATCH(Analysis!$A$6,'MorningStar Data'!$A$1:$A$150,0),B1+1)/100) -> 0.269 | C6: =IF(INDEX('MorningStar Data'!$A$1:$M$150,MATCH(Analysis!$A$6,'MorningStar Data'!$A$1:$A$150,0),C1+1)/100=0,"",INDEX('MorningStar Data'!$A$1:$M$150,MATCH(Analysis!$A$6,'MorningStar Data'!$A$1:$A$150,0),C1+1)/100) -> 0.179 | D6: =IF(INDEX('MorningStar Data'!$A$1:$M$150,MATCH(Analysis!$A$6,'MorningStar Data'!$A$1:$A$150,0),D1+1)/100=0,"",INDEX('MorningStar Data'!$A$1:$M$150,MATCH(Analysis!$A$6,'MorningStar Data'!$A$1:$A$150,0),D1+1)/100) -> 0.222 | E6: =IF(INDEX('MorningStar Data'!$A$1:$M$150,MATCH(Analysis!$A$6,'MorningStar Data'!$A$1:$A$150,0),E1+1)/100=0,"",INDEX('MorningStar Data'!$A$1:$M$150,MATCH(Analysis!$A$6,'MorningStar Data'!$A$1:$A$150,0),E1+1)/100) -> 0.274 | F6: =IF(INDEX('MorningStar Data'!$A$1:$M$150,MATCH(Analysis!$A$6,'MorningStar Data'!$A$1:$A$150,0),F1+1)/100=0,"",INDEX('MorningStar Data'!$A$1:$M$150,MATCH(Analysis!$A$6,'MorningStar Data'!$A$1:$A$150,0),F1+1)/100) -> 0.282 | G6: =IF(INDEX('MorningStar Data'!$A$1:$M$150,MATCH(Analysis!$A$6,'MorningStar Data'!$A$1:$A$150,0),G1+1)/100=0,"",INDEX('MorningStar Data'!$A$1:$M$150,MATCH(Analysis!$A$6,'MorningStar Data'!$A$1:$A$150,0),G1+1)/100) -> 0.312 | H6: =IF(INDEX('MorningStar Data'!$A$1:$M$150,MATCH(Analysis!$A$6,'MorningStar Data'!$A$1:$A$150,0),H1+1)/100=0,"",INDEX('MorningStar Data'!$A$1:$M$150,MATCH(Analysis!$A$6,'MorningStar Data'!$A$1:$A$150,0),H1+1)/100) -> 0.353 | I6: =IF(INDEX('MorningStar Data'!$A$1:$M$150,MATCH(Analysis!$A$6,'MorningStar Data'!$A$1:$A$150,0),I1+1)/100=0,"",INDEX('MorningStar Data'!$A$1:$M$150,MATCH(Analysis!$A$6,'MorningStar Data'!$A$1:$A$150,0),I1+1)/100) -> 0.287 | J6: =IF(INDEX('MorningStar Data'!$A$1:$M$150,MATCH(Analysis!$A$6,'MorningStar Data'!$A$1:$A$150,0),J1+1)/100=0,"",INDEX('MorningStar Data'!$A$1:$M$150,MATCH(Analysis!$A$6,'MorningStar Data'!$A$1:$A$150,0),J1+1)/100) -> 0.287 | K6: =IF(INDEX('MorningStar Data'!$A$1:$M$150,MATCH(Analysis!$A$6,'MorningStar Data'!$A$1:$A$150,0),K1+1)/100=0,"",INDEX('MorningStar Data'!$A$1:$M$150,MATCH(Analysis!$A$6,'MorningStar Data'!$A$1:$A$150,0),K1+1)/100) -> 0.305 | L6: =IF(INDEX('MorningStar Data'!$A$1:$M$150,MATCH(Analysis!$A$6,'MorningStar Data'!$A$1:$A$150,0),L1+1)/100=0,"",INDEX('MorningStar Data'!$A$1:$M$150,MATCH(Analysis!$A$6,'MorningStar Data'!$A$1:$A$150,0),L1+1)/100) -> 0.278 | M6: 0.2779 | N6: 0.04788980406 | O6: =(M6-P6)/M6 -> 0.002959675499 | P6: =((1+IF(C6="",0,C6))*(1+IF(D6="",0,D6))*(1+IF(E6="",0,E6))*(1+IF(F6="",0,F6))*(1+IF(G6="",0,G6))*(1+IF(H6="",0,H6))*(1+IF(I6="",0,I6))*(1+IF(J6="",0,J6))*(1+IF(K6="",0,K6))*(1+IF(L6="",0,L6)))^(1/10)-1 -> 0.2770775062
A7: 1Y rolling growth growth in op margin | D7: =IF(ISERROR((D6/C6)-1),"",(D6/C6)-1) -> 0.2402234637 | E7: =IF(ISERROR((E6/D6)-1),"",(E6/D6)-1) -> 0.2342342342 | F7: =IF(ISERROR((F6/E6)-1),"",(F6/E6)-1) -> 0.02919708029 | G7: =IF(ISERROR((G6/F6)-1),"",(G6/F6)-1) -> 0.1063829787 | H7: =IF(ISERROR((H6/G6)-1),"",(H6/G6)-1) -> 0.1314102564 | I7: =IF(ISERROR((I6/H6)-1),"",(I6/H6)-1) -> -0.1869688385 | J7: =IF(ISERROR((J6/I6)-1),"",(J6/I6)-1) -> 0 | K7: =IF(ISERROR((K6/J6)-1),"",(K6/J6)-1) -> 0.06271777003 | L7: =IF(ISERROR((L6/K6)-1),"",(L6/K6)-1) -> -0.08852459016
A8: 3Y rolling growth op margin | F8: =IF(ISERROR((F6/C6)^(1/3)-1),"",(F6/C6)^(1/3)-1) -> 0.1635865497 | G8: =IF(ISERROR((G6/D6)^(1/3)-1),"",(G6/D6)^(1/3)-1) -> 0.1201268472 | H8: 0.08811479196 | I8: 0.005875575484 | J8: -0.02745635373 | K8: -0.04755104132 | L8: =IF(ISERROR((L6/I6)^(1/3)-1),"",(L6/I6)^(1/3)-1) -> -0.01056417038
A9: 5Y rolling growth op margin | H9: =IF(ISERROR((H6/C6)^(1/5)-1),"",(H6/C6)^(1/5)-1) -> 0.1454716232 | I9: =IF(ISERROR((I6/D6)^(1/5)-1),"",(I6/D6)^(1/5)-1) -> 0.05270281545 | J9: 0.009313929053 | K9: 0.01580453225 | L9: -0.02281219071
A10: 7Y rolling growth op margin | J10: =IF(ISERROR((J6/C6)^(1/7)-1),"",(J6/C6)^(1/7)-1) -> 0.06976857954 | K10: =IF(ISERROR((K6/D6)^(1/7)-1),"",(K6/D6)^(1/7)-1) -> 0.04642159832 | L10: =IF(ISERROR((L6/E6)^(1/7)-1),"",(L6/E6)^(1/7)-1) -> 0.002072574434
A11: Return on Equity % | B11: =IF(INDEX('MorningStar Data'!$A$1:$M$150,MATCH(Analysis!$A$11,'MorningStar Data'!$A$1:$A$150,0),B1+1)/100=0,"",INDEX('MorningStar Data'!$A$1:$M$150,MATCH(Analysis!$A$11,'MorningStar Data'!$A$1:$A$150,0),B1+1)/100) -> 0.3457 | C11: =IF(INDEX('MorningStar Data'!$A$1:$M$150,MATCH(Analysis!$A$11,'MorningStar Data'!$A$1:$A$150,0),C1+1)/100=0,"",INDEX('MorningStar Data'!$A$1:$M$150,MATCH(Analysis!$A$11,'MorningStar Data'!$A$1:$A$150,0),C1+1)/100) -> 0.2852 | D11: =IF(INDEX('MorningStar Data'!$A$1:$M$150,MATCH(Analysis!$A$11,'MorningStar Data'!$A$1:$A$150,0),D1+1)/100=0,"",INDEX('MorningStar Data'!$A$1:$M$150,MATCH(Analysis!$A$11,'MorningStar Data'!$A$1:$A$150,0),D1+1)/100) -> 0.2719 | E11: =IF(INDEX('MorningStar Data'!$A$1:$M$150,MATCH(Analysis!$A$11,'MorningStar Data'!$A$1:$A$150,0),E1+1)/100=0,"",INDEX('MorningStar Data'!$A$1:$M$150,MATCH(Analysis!$A$11,'MorningStar Data'!$A$1:$A$150,0),E1+1)/100) -> 0.3127 | F11: =IF(INDEX('MorningStar Data'!$A$1:$M$150,MATCH(Analysis!$A$11,'MorningStar Data'!$A$1:$A$150,0),F1+1)/100=0,"",INDEX('MorningStar Data'!$A$1:$M$150,MATCH(Analysis!$A$11,'MorningStar Data'!$A$1:$A$150,0),F1+1)/100) -> 0.3528 | G11: =IF(INDEX('MorningStar Data'!$A$1:$M$150,MATCH(Analysis!$A$11,'MorningStar Data'!$A$1:$A$150,0),G1+1)/100=0,"",INDEX('MorningStar Data'!$A$1:$M$150,MATCH(Analysis!$A$11,'MorningStar Data'!$A$1:$A$150,0),G1+1)/100) -> 0.4167 | H11: =IF(INDEX('MorningStar Data'!$A$1:$M$150,MATCH(Analysis!$A$11,'MorningStar Data'!$A$1:$A$150,0),H1+1)/100=0,"",INDEX('MorningStar Data'!$A$1:$M$150,MATCH(Analysis!$A$11,'MorningStar Data'!$A$1:$A$150,0),H1+1)/100) -> 0.4284 | I11: =IF(INDEX('MorningStar Data'!$A$1:$M$150,MATCH(Analysis!$A$11,'MorningStar Data'!$A$1:$A$150,0),I1+1)/100=0,"",INDEX('MorningStar Data'!$A$1:$M$150,MATCH(Analysis!$A$11,'MorningStar Data'!$A$1:$A$150,0),I1+1)/100) -> 0.3064 | J11: =IF(INDEX('MorningStar Data'!$A$1:$M$150,MATCH(Analysis!$A$11,'MorningStar Data'!$A$1:$A$150,0),J1+1)/100=0,"",INDEX('MorningStar Data'!$A$1:$M$150,MATCH(Analysis!$A$11,'MorningStar Data'!$A$1:$A$150,0),J1+1)/100) -> 0.3361 | K11: =IF(INDEX('MorningStar Data'!$A$1:$M$150,MATCH(Analysis!$A$11,'MorningStar Data'!$A$1:$A$150,0),K1+1)/100=0,"",INDEX('MorningStar Data'!$A$1:$M$150,MATCH(Analysis!$A$11,'MorningStar Data'!$A$1:$A$150,0),K1+1)/100) -> 0.4625 | L11: =IF(INDEX('MorningStar Data'!$A$1:$M$150,MATCH(Analysis!$A$11,'MorningStar Data'!$A$1:$A$150,0),L1+1)/100=0,"",INDEX('MorningStar Data'!$A$1:$M$150,MATCH(Analysis!$A$11,'MorningStar Data'!$A$1:$A$150,0),L1+1)/100) -> 0.369 | M11: 0.35417 | N11: 0.06431758097 | O11: =(M11-P11)/M11 -> 0.003842682497 | P11: =((1+IF(C11="",0,C11))*(1+IF(D11="",0,D11))*(1+IF(E11="",0,E11))*(1+IF(F11="",0,F11))*(1+IF(G11="",0,G11))*(1+IF(H11="",0,H11))*(1+IF(I11="",0,I11))*(1+IF(J11="",0,J11))*(1+IF(K11="",0,K11))*(1+IF(L11="",0,L11)))^(1/10)-1 -> 0.3528090371
A12: 1Y rolling growth growth in RoE | D12: =IF(ISERROR((D11/C11)-1),"",(D11/C11)-1) -> -0.04663394109 | E12: =IF(ISERROR((E11/D11)-1),"",(E11/D11)-1) -> 0.1500551673 | F12: =IF(ISERROR((F11/E11)-1),"",(F11/E11)-1) -> 0.1282379277 | G12: =IF(ISERROR((G11/F11)-1),"",(G11/F11)-1) -> 0.181122449 | H12: =IF(ISERROR((H11/G11)-1),"",(H11/G11)-1) -> 0.02807775378 | I12: =IF(ISERROR((I11/H11)-1),"",(I11/H11)-1) -> -0.2847805789 | J12: =IF(ISERROR((J11/I11)-1),"",(J11/I11)-1) -> 0.09693211488 | K12: =IF(ISERROR((K11/J11)-1),"",(K11/J11)-1) -> 0.3760785481 | L12: =IF(ISERROR((L11/K11)-1),"",(L11/K11)-1) -> -0.2021621622
A13: 3Y rolling growth RoE | F13: =IF(ISERROR((F11/C11)^(1/3)-1),"",(F11/C11)^(1/3)-1) -> 0.0734776788 | G13: =IF(ISERROR((G11/D11)^(1/3)-1),"",(G11/D11)^(1/3)-1) -> 0.1529348431 | H13: =IF(ISERROR((H11/E11)^(1/3)-1),"",(H11/E11)^(1/3)-1) -> 0.1106414057 | I13: =IF(ISERROR((I11/F11)^(1/3)-1),"",(I11/F11)^(1/3)-1) -> -0.04591574653 | J13: =IF(ISERROR((J11/G11)^(1/3)-1),"",(J11/G11)^(1/3)-1) -> -0.06914578274 | K13: =IF(ISERROR((K11/H11)^(1/3)-1),"",(K11/H11)^(1/3)-1) -> 0.02585841429 | L13: =IF(ISERROR((L11/I11)^(1/3)-1),"",(L11/I11)^(1/3)-1) -> 0.06392872624
A14: 5Y rolling growth RoE | H14: =IF(ISERROR((H11/C11)^(1/5)-1),"",(H11/C11)^(1/5)-1) -> 0.08477580034 | I14: =IF(ISERROR((I11/D11)^(1/5)-1),"",(I11/D11)^(1/5)-1) -> 0.02417910366 | J14: =IF(ISERROR((J11/E11)^(1/5)-1),"",(J11/E11)^(1/5)-1) -> 0.01453755116 | K14: =IF(ISERROR((K11/F11)^(1/5)-1),"",(K11/F11)^(1/5)-1) -> 0.05564193023 | L14: =IF(ISERROR((L11/G11)^(1/5)-1),"",(L11/G11)^(1/5)-1) -> -0.02402077522
A15: 7Y rolling growth RoE | J15: =IF(ISERROR((J11/C11)^(1/7)-1),"",(J11/C11)^(1/7)-1) -> 0.02373706469 | K15: =IF(ISERROR((K11/D11)^(1/7)-1),"",(K11/D11)^(1/7)-1) -> 0.07884115228 | L15: =IF(ISERROR((L11/E11)^(1/7)-1),"",(L11/E11)^(1/7)-1) -> 0.02393222708
A16: Return on Invested Capital % | B16: =IF(INDEX('MorningStar Data'!$A$1:$M$150,MATCH(Analysis!$A$16,'MorningStar Data'!$A$1:$A$150,0),B1+1)/100=0,"",INDEX('MorningStar Data'!$A$1:$M$150,MATCH(Analysis!$A$16,'MorningStar Data'!$A$1:$A$150,0),B1+1)/100) -> 0.1975 | C16: =IF(INDEX('MorningStar Data'!$A$1:$M$150,MATCH(Analysis!$A$16,'MorningStar Data'!$A$1:$A$150,0),C1+1)/100=0,"",INDEX('MorningStar Data'!$A$1:$M$150,MATCH(Analysis!$A$16,'MorningStar Data'!$A$1:$A$150,0),C1+1)/100) -> 0.2484 | D16: =IF(INDEX('MorningStar Data'!$A$1:$M$150,MATCH(Analysis!$A$16,'MorningStar Data'!$A$1:$A$150,0),D1+1)/100=0,"",INDEX('MorningStar Data'!$A$1:$M$150,MATCH(Analysis!$A$16,'MorningStar Data'!$A$1:$A$150,0),D1+1)/100) -> 0.2719 | E16: =IF(INDEX('MorningStar Data'!$A$1:$M$150,MATCH(Analysis!$A$16,'MorningStar Data'!$A$1:$A$150,0),E1+1)/100=0,"",INDEX('MorningStar Data'!$A$1:$M$150,MATCH(Analysis!$A$16,'MorningStar Data'!$A$1:$A$150,0),E1+1)/100) -> 0.3022 | F16: =IF(INDEX('MorningStar Data'!$A$1:$M$150,MATCH(Analysis!$A$16,'MorningStar Data'!$A$1:$A$150,0),F1+1)/100=0,"",INDEX('MorningStar Data'!$A$1:$M$150,MATCH(Analysis!$A$16,'MorningStar Data'!$A$1:$A$150,0),F1+1)/100) -> 0.3469 | G16: =IF(INDEX('MorningStar Data'!$A$1:$M$150,MATCH(Analysis!$A$16,'MorningStar Data'!$A$1:$A$150,0),G1+1)/100=0,"",INDEX('MorningStar Data'!$A$1:$M$150,MATCH(Analysis!$A$16,'MorningStar Data'!$A$1:$A$150,0),G1+1)/100) -> 0.4104 | H16: =IF(INDEX('MorningStar Data'!$A$1:$M$150,MATCH(Analysis!$A$16,'MorningStar Data'!$A$1:$A$150,0),H1+1)/100=0,"",INDEX('MorningStar Data'!$A$1:$M$150,MATCH(Analysis!$A$16,'MorningStar Data'!$A$1:$A$150,0),H1+1)/100) -> 0.4201 | I16: =IF(INDEX('MorningStar Data'!$A$1:$M$150,MATCH(Analysis!$A$16,'MorningStar Data'!$A$1:$A$150,0),I1+1)/100=0,"",INDEX('MorningStar Data'!$A$1:$M$150,MATCH(Analysis!$A$16,'MorningStar Data'!$A$1:$A$150,0),I1+1)/100) -> 0.2608 | J16: =IF(INDEX('MorningStar Data'!$A$1:$M$150,MATCH(Analysis!$A$16,'MorningStar Data'!$A$1:$A$150,0),J1+1)/100=0,"",INDEX('MorningStar Data'!$A$1:$M$150,MATCH(Analysis!$A$16,'MorningStar Data'!$A$1:$A$150,0),J1+1)/100) -> 0.262 | K16: =IF(INDEX('MorningStar Data'!$A$1:$M$150,MATCH(Analysis!$A$16,'MorningStar Data'!$A$1:$A$150,0),K1+1)/100=0,"",INDEX('MorningStar Data'!$A$1:$M$150,MATCH(Analysis!$A$16,'MorningStar Data'!$A$1:$A$150,0),K1+1)/100) -> 0.3132 | L16: =IF(INDEX('MorningStar Data'!$A$1:$M$150,MATCH(Analysis!$A$16,'MorningStar Data'!$A$1:$A$150,0),L1+1)/100=0,"",INDEX('MorningStar Data'!$A$1:$M$150,MATCH(Analysis!$A$16,'MorningStar Data'!$A$1:$A$150,0),L1+1)/100) -> 0.2195 | M16: =AVERAGE(C16:L16) -> 0.30554 | N16: =STDEV(C16:L16) -> 0.06798447862 | O16: =(M16-P16)/M16 -> 0.005115612304 | P16: =((1+IF(C16="",0,C16))*(1+IF(D16="",0,D16))*(1+IF(E16="",0,E16))*(1+IF(F16="",0,F16))*(1+IF(G16="",0,G16))*(1+IF(H16="",0,H16))*(1+IF(I16="",0,I16))*(1+IF(J16="",0,J16))*(1+IF(K16="",0,K16))*(1+IF(L16="",0,L16)))^(1/10)-1 -> 0.3039769758
A17: 1Y rolling growth growth in RoIC | D17: =IF(ISERROR((D16/C16)-1),"",(D16/C16)-1) -> 0.09460547504 | E17: =IF(ISERROR((E16/D16)-1),"",(E16/D16)-1) -> 0.1114380287 | F17: =IF(ISERROR((F16/E16)-1),"",(F16/E16)-1) -> 0.1479152879 | G17: =IF(ISERROR((G16/F16)-1),"",(G16/F16)-1) -> 0.1830498703 | H17: =IF(ISERROR((H16/G16)-1),"",(H16/G16)-1) -> 0.02363547758 | I17: =IF(ISERROR((I16/H16)-1),"",(I16/H16)-1) -> -0.3791954297 | J17: =IF(ISERROR((J16/I16)-1),"",(J16/I16)-1) -> 0.004601226994 | K17: =IF(ISERROR((K16/J16)-1),"",(K16/J16)-1) -> 0.1954198473 | L17: =IF(ISERROR((L16/K16)-1),"",(L16/K16)-1) -> -0.2991698595
A18: 3Y rolling growth ROIC | F18: =IF(ISERROR((F16/C16)^(1/3)-1),"",(F16/C16)^(1/3)-1) -> 0.1177660195 | G18: =IF(ISERROR((G16/D16)^(1/3)-1),"",(G16/D16)^(1/3)-1) -> 0.1470949862 | H18: =IF(ISERROR((H16/E16)^(1/3)-1),"",(H16/E16)^(1/3)-1) -> 0.1160562242 | I18: =IF(ISERROR((I16/F16)^(1/3)-1),"",(I16/F16)^(1/3)-1) -> -0.09071276199 | J18: =IF(ISERROR((J16/G16)^(1/3)-1),"",(J16/G16)^(1/3)-1) -> -0.1389441671 | K18: =IF(ISERROR((K16/H16)^(1/3)-1),"",(K16/H16)^(1/3)-1) -> -0.09324556042 | L18: =IF(ISERROR((L16/I16)^(1/3)-1),"",(L16/I16)^(1/3)-1) -> -0.05584714113
A19: 5Y rolling growth ROIC | H19: =IF(ISERROR((H16/C16)^(1/5)-1),"",(H16/C16)^(1/5)-1) -> 0.1108111182 | I19: =IF(ISERROR((I16/D16)^(1/5)-1),"",(I16/D16)^(1/5)-1) -> -0.008301455346 | J19: =IF(ISERROR((J16/E16)^(1/5)-1),"",(J16/E16)^(1/5)-1) -> -0.02814523967 | K19: =IF(ISERROR((K16/F16)^(1/5)-1),"",(K16/F16)^(1/5)-1) -> -0.0202314591 | L19: =IF(ISERROR((L16/G16)^(1/5)-1),"",(L16/G16)^(1/5)-1) -> -0.117640767
A20: 7Y rolling growth ROIC | J20: =IF(ISERROR((J16/C16)^(1/7)-1),"",(J16/C16)^(1/7)-1) -> 0.007643946026 | K20: =IF(ISERROR((K16/D16)^(1/7)-1),"",(K16/D16)^(1/7)-1) -> 0.02040651039 | L20: =IF(ISERROR((L16/E16)^(1/7)-1),"",(L16/E16)^(1/7)-1) -> -0.04464921154
A21: Return on Assets % | B21: =IF(INDEX('MorningStar Data'!$A$1:$M$150,MATCH(Analysis!$A$21,'MorningStar Data'!$A$1:$A$150,0),B1+1)/100=0,"",INDEX('MorningStar Data'!$A$1:$M$150,MATCH(Analysis!$A$21,'MorningStar Data'!$A$1:$A$150,0),B1+1)/100) -> 0.1429 | C21: =IF(INDEX('MorningStar Data'!$A$1:$M$150,MATCH(Analysis!$A$21,'MorningStar Data'!$A$1:$A$150,0),C1+1)/100=0,"",INDEX('MorningStar Data'!$A$1:$M$150,MATCH(Analysis!$A$21,'MorningStar Data'!$A$1:$A$150,0),C1+1)/100) -> 0.1643 | D21: =IF(INDEX('MorningStar Data'!$A$1:$M$150,MATCH(Analysis!$A$21,'MorningStar Data'!$A$1:$A$150,0),D1+1)/100=0,"",INDEX('MorningStar Data'!$A$1:$M$150,MATCH(Analysis!$A$21,'MorningStar Data'!$A$1:$A$150,0),D1+1)/100) -> 0.1489 | E21: =IF(INDEX('MorningStar Data'!$A$1:$M$150,MATCH(Analysis!$A$21,'MorningStar Data'!$A$1:$A$150,0),E1+1)/100=0,"",INDEX('MorningStar Data'!$A$1:$M$150,MATCH(Analysis!$A$21,'MorningStar Data'!$A$1:$A$150,0),E1+1)/100) -> 0.1892 | F21: =IF(INDEX('MorningStar Data'!$A$1:$M$150,MATCH(Analysis!$A$21,'MorningStar Data'!$A$1:$A$150,0),F1+1)/100=0,"",INDEX('MorningStar Data'!$A$1:$M$150,MATCH(Analysis!$A$21,'MorningStar Data'!$A$1:$A$150,0),F1+1)/100) -> 0.2284 | G21: =IF(INDEX('MorningStar Data'!$A$1:$M$150,MATCH(Analysis!$A$21,'MorningStar Data'!$A$1:$A$150,0),G1+1)/100=0,"",INDEX('MorningStar Data'!$A$1:$M$150,MATCH(Analysis!$A$21,'MorningStar Data'!$A$1:$A$150,0),G1+1)/100) -> 0.2707 | H21: =IF(INDEX('MorningStar Data'!$A$1:$M$150,MATCH(Analysis!$A$21,'MorningStar Data'!$A$1:$A$150,0),H1+1)/100=0,"",INDEX('MorningStar Data'!$A$1:$M$150,MATCH(Analysis!$A$21,'MorningStar Data'!$A$1:$A$150,0),H1+1)/100) -> 0.2854 | I21: =IF(INDEX('MorningStar Data'!$A$1:$M$150,MATCH(Analysis!$A$21,'MorningStar Data'!$A$1:$A$150,0),I1+1)/100=0,"",INDEX('MorningStar Data'!$A$1:$M$150,MATCH(Analysis!$A$21,'MorningStar Data'!$A$1:$A$150,0),I1+1)/100) -> 0.1934 | J21: =IF(INDEX('MorningStar Data'!$A$1:$M$150,MATCH(Analysis!$A$21,'MorningStar Data'!$A$1:$A$150,0),J1+1)/100=0,"",INDEX('MorningStar Data'!$A$1:$M$150,MATCH(Analysis!$A$21,'MorningStar Data'!$A$1:$A$150,0),J1+1)/100) -> 0.1801 | K21: =IF(INDEX('MorningStar Data'!$A$1:$M$150,MATCH(Analysis!$A$21,'MorningStar Data'!$A$1:$A$150,0),K1+1)/100=0,"",INDEX('MorningStar Data'!$A$1:$M$150,MATCH(Analysis!$A$21,'MorningStar Data'!$A$1:$A$150,0),K1+1)/100) -> 0.2045 | L21: =IF(INDEX('MorningStar Data'!$A$1:$M$150,MATCH(Analysis!$A$21,'MorningStar Data'!$A$1:$A$150,0),L1+1)/100=0,"",INDEX('MorningStar Data'!$A$1:$M$150,MATCH(Analysis!$A$21,'MorningStar Data'!$A$1:$A$150,0),L1+1)/100) -> 0.1493 | M21: =AVERAGE(C21:L21) -> 0.20142 | N21: =STDEV(C21:L21) -> 0.04727072855 | O21: =(M21-P21)/M21 -> 0.00409192227 | P21: =((1+IF(C21="",0,C21))*(1+IF(D21="",0,D21))*(1+IF(E21="",0,E21))*(1+IF(F21="",0,F21))*(1+IF(G21="",0,G21))*(1+IF(H21="",0,H21))*(1+IF(I21="",0,I21))*(1+IF(J21="",0,J21))*(1+IF(K21="",0,K21))*(1+IF(L21="",0,L21)))^(1/10)-1 -> 0.200595805
B22: =B2 -> TTM | C22: =C2 -> 2007 | D22: 2008 | E22: 2009 | F22: 2010 | G22: 2011 | H22: 2012 | I22: 2013 | J22: 2014 | K22: 2015 | L22: 2016 | M22: Average | N22: Std Dev | O22: Inconsistency measure* | P22: Geometric average*
A23: Shares Mil | B23: =IF(INDEX('MorningStar Data'!$A$1:$M$150,MATCH(Analysis!$A$23,'MorningStar Data'!$A$1:$A$150,0),B1+1)=0,"",INDEX('MorningStar Data'!$A$1:$M$150,MATCH(Analysis!$A$23,'MorningStar Data'!$A$1:$A$150,0),B1+1)) -> 5364 | C23: =IF(INDEX('MorningStar Data'!$A$1:$M$150,MATCH(Analysis!$A$23,'MorningStar Data'!$A$1:$A$150,0),C1+1)=0,"",INDEX('MorningStar Data'!$A$1:$M$150,MATCH(Analysis!$A$23,'MorningStar Data'!$A$1:$A$150,0),C1+1)) -> 6225 | D23: =IF(INDEX('MorningStar Data'!$A$1:$M$150,MATCH(Analysis!$A$23,'MorningStar Data'!$A$1:$A$150,0),D1+1)=0,"",INDEX('MorningStar Data'!$A$1:$M$150,MATCH(Analysis!$A$23,'MorningStar Data'!$A$1:$A$150,0),D1+1)) -> 6315 | E23: =IF(INDEX('MorningStar Data'!$A$1:$M$150,MATCH(Analysis!$A$23,'MorningStar Data'!$A$1:$A$150,0),E1+1)=0,"",INDEX('MorningStar Data'!$A$1:$M$150,MATCH(Analysis!$A$23,'MorningStar Data'!$A$1:$A$150,0),E1+1)) -> 6349 | F23: =IF(INDEX('MorningStar Data'!$A$1:$M$150,MATCH(Analysis!$A$23,'MorningStar Data'!$A$1:$A$150,0),F1+1)=0,"",INDEX('MorningStar Data'!$A$1:$M$150,MATCH(Analysis!$A$23,'MorningStar Data'!$A$1:$A$150,0),F1+1)) -> 6473 | G23: =IF(INDEX('MorningStar Data'!$A$1:$M$150,MATCH(Analysis!$A$23,'MorningStar Data'!$A$1:$A$150,0),G1+1)=0,"",INDEX('MorningStar Data'!$A$1:$M$150,MATCH(Analysis!$A$23,'MorningStar Data'!$A$1:$A$150,0),G1+1)) -> 6557 | H23: =IF(INDEX('MorningStar Data'!$A$1:$M$150,MATCH(Analysis!$A$23,'MorningStar Data'!$A$1:$A$150,0),H1+1)=0,"",INDEX('MorningStar Data'!$A$1:$M$150,MATCH(Analysis!$A$23,'MorningStar Data'!$A$1:$A$150,0),H1+1)) -> 6617 | I23: =IF(INDEX('MorningStar Data'!$A$1:$M$150,MATCH(Analysis!$A$23,'MorningStar Data'!$A$1:$A$150,0),I1+1)=0,"",INDEX('MorningStar Data'!$A$1:$M$150,MATCH(Analysis!$A$23,'MorningStar Data'!$A$1:$A$150,0),I1+1)) -> 6522 | J23: =IF(INDEX('MorningStar Data'!$A$1:$M$150,MATCH(Analysis!$A$23,'MorningStar Data'!$A$1:$A$150,0),J1+1)=0,"",INDEX('MorningStar Data'!$A$1:$M$150,MATCH(Analysis!$A$23,'MorningStar Data'!$A$1:$A$150,0),J1+1)) -> 6123 | K23: =IF(INDEX('MorningStar Data'!$A$1:$M$150,MATCH(Analysis!$A$23,'MorningStar Data'!$A$1:$A$150,0),K1+1)=0,"",INDEX('MorningStar Data'!$A$1:$M$150,MATCH(Analysis!$A$23,'MorningStar Data'!$A$1:$A$150,0),K1+1)) -> 5793 | L23: =IF(INDEX('MorningStar Data'!$A$1:$M$150,MATCH(Analysis!$A$23,'MorningStar Data'!$A$1:$A$150,0),L1+1)=0,"",INDEX('MorningStar Data'!$A$1:$M$150,MATCH(Analysis!$A$23,'MorningStar Data'!$A$1:$A$150,0),L1+1)) -> 5500
A24: Net Income USD Mil | B24: =IF(INDEX('MorningStar Data'!$A$1:$M$150,MATCH(Analysis!$A$24,'MorningStar Data'!$A$1:$A$150,0),B1+1)=0,"",INDEX('MorningStar Data'!$A$1:$M$150,MATCH(Analysis!$A$24,'MorningStar Data'!$A$1:$A$150,0),B1+1)) -> 45730 | C24: =IF(INDEX('MorningStar Data'!$A$1:$M$150,MATCH(Analysis!$A$24,'MorningStar Data'!$A$1:$A$150,0),C1+1)=0,"",INDEX('MorningStar Data'!$A$1:$M$150,MATCH(Analysis!$A$24,'MorningStar Data'!$A$1:$A$150,0),C1+1)) -> 3495 | D24: =IF(INDEX('MorningStar Data'!$A$1:$M$150,MATCH(Analysis!$A$24,'MorningStar Data'!$A$1:$A$150,0),D1+1)=0,"",INDEX('MorningStar Data'!$A$1:$M$150,MATCH(Analysis!$A$24,'MorningStar Data'!$A$1:$A$150,0),D1+1)) -> 6119 | E24: =IF(INDEX('MorningStar Data'!$A$1:$M$150,MATCH(Analysis!$A$24,'MorningStar Data'!$A$1:$A$150,0),E1+1)=0,"",INDEX('MorningStar Data'!$A$1:$M$150,MATCH(Analysis!$A$24,'MorningStar Data'!$A$1:$A$150,0),E1+1)) -> 8235 | F24: =IF(INDEX('MorningStar Data'!$A$1:$M$150,MATCH(Analysis!$A$24,'MorningStar Data'!$A$1:$A$150,0),F1+1)=0,"",INDEX('MorningStar Data'!$A$1:$M$150,MATCH(Analysis!$A$24,'MorningStar Data'!$A$1:$A$150,0),F1+1)) -> 14013 | G24: =IF(INDEX('MorningStar Data'!$A$1:$M$150,MATCH(Analysis!$A$24,'MorningStar Data'!$A$1:$A$150,0),G1+1)=0,"",INDEX('MorningStar Data'!$A$1:$M$150,MATCH(Analysis!$A$24,'MorningStar Data'!$A$1:$A$150,0),G1+1)) -> 25922 | H24: =IF(INDEX('MorningStar Data'!$A$1:$M$150,MATCH(Analysis!$A$24,'MorningStar Data'!$A$1:$A$150,0),H1+1)=0,"",INDEX('MorningStar Data'!$A$1:$M$150,MATCH(Analysis!$A$24,'MorningStar Data'!$A$1:$A$150,0),H1+1)) -> 41733 | I24: =IF(INDEX('MorningStar Data'!$A$1:$M$150,MATCH(Analysis!$A$24,'MorningStar Data'!$A$1:$A$150,0),I1+1)=0,"",INDEX('MorningStar Data'!$A$1:$M$150,MATCH(Analysis!$A$24,'MorningStar Data'!$A$1:$A$150,0),I1+1)) -> 37037 | J24: =IF(INDEX('MorningStar Data'!$A$1:$M$150,MATCH(Analysis!$A$24,'MorningStar Data'!$A$1:$A$150,0),J1+1)=0,"",INDEX('MorningStar Data'!$A$1:$M$150,MATCH(Analysis!$A$24,'MorningStar Data'!$A$1:$A$150,0),J1+1)) -> 39510 | K24: =IF(INDEX('MorningStar Data'!$A$1:$M$150,MATCH(Analysis!$A$24,'MorningStar Data'!$A$1:$A$150,0),K1+1)=0,"",INDEX('MorningStar Data'!$A$1:$M$150,MATCH(Analysis!$A$24,'MorningStar Data'!$A$1:$A$150,0),K1+1)) -> 53394 | L24: =IF(INDEX('MorningStar Data'!$A$1:$M$150,MATCH(Analysis!$A$24,'MorningStar Data'!$A$1:$A$150,0),L1+1)=0,"",INDEX('MorningStar Data'!$A$1:$M$150,MATCH(Analysis!$A$24,'MorningStar Data'!$A$1:$A$150,0),L1+1)) -> 45687 | M24: 27514.5 | N24: 18342.28122 | O24: =(M24-P24)/M24 -> 0.2782928792 | P24: =((1+IF(C24="",0,C24))*(1+IF(D24="",0,D24))*(1+IF(E24="",0,E24))*(1+IF(F24="",0,F24))*(1+IF(G24="",0,G24))*(1+IF(H24="",0,H24))*(1+IF(I24="",0,I24))*(1+IF(J24="",0,J24))*(1+IF(K24="",0,K24))*(1+IF(L24="",0,L24)))^(1/10)-1 -> 19857.41058
A25: Earnings Per Share USD | B25: =IF(INDEX('MorningStar Data'!$A$1:$M$150,MATCH(Analysis!$A$25,'MorningStar Data'!$A$1:$A$150,0),B1+1)=0,"",INDEX('MorningStar Data'!$A$1:$M$150,MATCH(Analysis!$A$25,'MorningStar Data'!$A$1:$A$150,0),B1+1)) -> 8.58 | C25: =IF(INDEX('MorningStar Data'!$A$1:$M$150,MATCH(Analysis!$A$25,'MorningStar Data'!$A$1:$A$150,0),C1+1)=0,"",INDEX('MorningStar Data'!$A$1:$M$150,MATCH(Analysis!$A$25,'MorningStar Data'!$A$1:$A$150,0),C1+1)) -> 0.56 | D25: =IF(INDEX('MorningStar Data'!$A$1:$M$150,MATCH(Analysis!$A$25,'MorningStar Data'!$A$1:$A$150,0),D1+1)=0,"",INDEX('MorningStar Data'!$A$1:$M$150,MATCH(Analysis!$A$25,'MorningStar Data'!$A$1:$A$150,0),D1+1)) -> 0.97 | E25: =IF(INDEX('MorningStar Data'!$A$1:$M$150,MATCH(Analysis!$A$25,'MorningStar Data'!$A$1:$A$150,0),E1+1)=0,"",INDEX('MorningStar Data'!$A$1:$M$150,MATCH(Analysis!$A$25,'MorningStar Data'!$A$1:$A$150,0),E1+1)) -> 1.3 | F25: =IF(INDEX('MorningStar Data'!$A$1:$M$150,MATCH(Analysis!$A$25,'MorningStar Data'!$A$1:$A$150,0),F1+1)=0,"",INDEX('MorningStar Data'!$A$1:$M$150,MATCH(Analysis!$A$25,'MorningStar Data'!$A$1:$A$150,0),F1+1)) -> 2.16 | G25: =IF(INDEX('MorningStar Data'!$A$1:$M$150,MATCH(Analysis!$A$25,'MorningStar Data'!$A$1:$A$150,0),G1+1)=0,"",INDEX('MorningStar Data'!$A$1:$M$150,MATCH(Analysis!$A$25,'MorningStar Data'!$A$1:$A$150,0),G1+1)) -> 3.95 | H25: =IF(INDEX('MorningStar Data'!$A$1:$M$150,MATCH(Analysis!$A$25,'MorningStar Data'!$A$1:$A$150,0),H1+1)=0,"",INDEX('MorningStar Data'!$A$1:$M$150,MATCH(Analysis!$A$25,'MorningStar Data'!$A$1:$A$150,0),H1+1)) -> 6.31 | I25: =IF(INDEX('MorningStar Data'!$A$1:$M$150,MATCH(Analysis!$A$25,'MorningStar Data'!$A$1:$A$150,0),I1+1)=0,"",INDEX('MorningStar Data'!$A$1:$M$150,MATCH(Analysis!$A$25,'MorningStar Data'!$A$1:$A$150,0),I1+1)) -> 5.68 | J25: =IF(INDEX('MorningStar Data'!$A$1:$M$150,MATCH(Analysis!$A$25,'MorningStar Data'!$A$1:$A$150,0),J1+1)=0,"",INDEX('MorningStar Data'!$A$1:$M$150,MATCH(Analysis!$A$25,'MorningStar Data'!$A$1:$A$150,0),J1+1)) -> 6.45 | K25: =IF(INDEX('MorningStar Data'!$A$1:$M$150,MATCH(Analysis!$A$25,'MorningStar Data'!$A$1:$A$150,0),K1+1)=0,"",INDEX('MorningStar Data'!$A$1:$M$150,MATCH(Analysis!$A$25,'MorningStar Data'!$A$1:$A$150,0),K1+1)) -> 9.22 | L25: =IF(INDEX('MorningStar Data'!$A$1:$M$150,MATCH(Analysis!$A$25,'MorningStar Data'!$A$1:$A$150,0),L1+1)=0,"",INDEX('MorningStar Data'!$A$1:$M$150,MATCH(Analysis!$A$25,'MorningStar Data'!$A$1:$A$150,0),L1+1)) -> 8.31 | M25: =AVERAGE(C25:L25) -> 4.491 | N25: =STDEV(C25:L25) -> 3.149378951 | O25: 0.2088889838 | P25: 3.552879574
A26: Dividends USD | B26: =IF(INDEX('MorningStar Data'!$A$1:$M$150,MATCH(Analysis!$A$26,'MorningStar Data'!$A$1:$A$150,0),B1+1)=0,"",INDEX('MorningStar Data'!$A$1:$M$150,MATCH(Analysis!$A$26,'MorningStar Data'!$A$1:$A$150,0),B1+1)) -> 2.28 | C26: =IF(INDEX('MorningStar Data'!$A$1:$M$150,MATCH(Analysis!$A$26,'MorningStar Data'!$A$1:$A$150,0),C1+1)=0,"",INDEX('MorningStar Data'!$A$1:$M$150,MATCH(Analysis!$A$26,'MorningStar Data'!$A$1:$A$150,0),C1+1)) ->  | D26: =IF(INDEX('MorningStar Data'!$A$1:$M$150,MATCH(Analysis!$A$26,'MorningStar Data'!$A$1:$A$150,0),D1+1)=0,"",INDEX('MorningStar Data'!$A$1:$M$150,MATCH(Analysis!$A$26,'MorningStar Data'!$A$1:$A$150,0),D1+1)) ->  | E26: =IF(INDEX('MorningStar Data'!$A$1:$M$150,MATCH(Analysis!$A$26,'MorningStar Data'!$A$1:$A$150,0),E1+1)=0,"",INDEX('MorningStar Data'!$A$1:$M$150,MATCH(Analysis!$A$26,'MorningStar Data'!$A$1:$A$150,0),E1+1)) ->  | F26: =IF(INDEX('MorningStar Data'!$A$1:$M$150,MATCH(Analysis!$A$26,'MorningStar Data'!$A$1:$A$150,0),F1+1)=0,"",INDEX('MorningStar Data'!$A$1:$M$150,MATCH(Analysis!$A$26,'MorningStar Data'!$A$1:$A$150,0),F1+1)) ->  | G26: =IF(INDEX('MorningStar Data'!$A$1:$M$150,MATCH(Analysis!$A$26,'MorningStar Data'!$A$1:$A$150,0),G1+1)=0,"",INDEX('MorningStar Data'!$A$1:$M$150,MATCH(Analysis!$A$26,'MorningStar Data'!$A$1:$A$150,0),G1+1)) ->  | H26: =IF(INDEX('MorningStar Data'!$A$1:$M$150,MATCH(Analysis!$A$26,'MorningStar Data'!$A$1:$A$150,0),H1+1)=0,"",INDEX('MorningStar Data'!$A$1:$M$150,MATCH(Analysis!$A$26,'MorningStar Data'!$A$1:$A$150,0),H1+1)) -> 0.38 | I26: =IF(INDEX('MorningStar Data'!$A$1:$M$150,MATCH(Analysis!$A$26,'MorningStar Data'!$A$1:$A$150,0),I1+1)=0,"",INDEX('MorningStar Data'!$A$1:$M$150,MATCH(Analysis!$A$26,'MorningStar Data'!$A$1:$A$150,0),I1+1)) -> 1.63 | J26: =IF(INDEX('MorningStar Data'!$A$1:$M$150,MATCH(Analysis!$A$26,'MorningStar Data'!$A$1:$A$150,0),J1+1)=0,"",INDEX('MorningStar Data'!$A$1:$M$150,MATCH(Analysis!$A$26,'MorningStar Data'!$A$1:$A$150,0),J1+1)) -> 1.81 | K26: =IF(INDEX('MorningStar Data'!$A$1:$M$150,MATCH(Analysis!$A$26,'MorningStar Data'!$A$1:$A$150,0),K1+1)=0,"",INDEX('MorningStar Data'!$A$1:$M$150,MATCH(Analysis!$A$26,'MorningStar Data'!$A$1:$A$150,0),K1+1)) -> 1.98 | L26: =IF(INDEX('MorningStar Data'!$A$1:$M$150,MATCH(Analysis!$A$26,'MorningStar Data'!$A$1:$A$150,0),L1+1)=0,"",INDEX('MorningStar Data'!$A$1:$M$150,MATCH(Analysis!$A$26,'MorningStar Data'!$A$1:$A$150,0),L1+1)) -> 2.18 | M26: 1.596 | N26: 0.709598478 | O26: 0.6369074426 | P26: 0.5794957217
A27: 1Y rolling growth growth in Div per share | D27: =IF(ISERROR((D26/C26)-1),"",(D26/C26)-1) ->  | E27: =IF(ISERROR((E26/D26)-1),"",(E26/D26)-1) ->  | F27: =IF(ISERROR((F26/E26)-1),"",(F26/E26)-1) ->  | G27: =IF(ISERROR((G26/F26)-1),"",(G26/F26)-1) ->  | H27: =IF(ISERROR((H26/G26)-1),"",(H26/G26)-1) ->  | I27: =IF(ISERROR((I26/H26)-1),"",(I26/H26)-1) -> 3.289473684 | J27: =IF(ISERROR((J26/I26)-1),"",(J26/I26)-1) -> 0.1104294479 | K27: =IF(ISERROR((K26/J26)-1),"",(K26/J26)-1) -> 0.09392265193 | L27: =IF(ISERROR((L26/K26)-1),"",(L26/K26)-1) -> 0.101010101 | M27: 0.8987089713 | N27: 1.593857483 | O27: 0.7876086098 | P27: 0.1908780478
A28: 3Y rolling growth in Div per share | F28: =IF(ISERROR((F26/C26)^(1/3)-1),"",(F26/C26)^(1/3)-1) ->  | G28: =IF(ISERROR((G26/D26)^(1/3)-1),"",(G26/D26)^(1/3)-1) ->  | H28: =IF(ISERROR((H26/E26)^(1/3)-1),"",(H26/E26)^(1/3)-1) ->  | I28: =IF(ISERROR((I26/F26)^(1/3)-1),"",(I26/F26)^(1/3)-1) ->  | J28: =IF(ISERROR((J26/G26)^(1/3)-1),"",(J26/G26)^(1/3)-1) ->  | K28: =IF(ISERROR((K26/H26)^(1/3)-1),"",(K26/H26)^(1/3)-1) -> 0.7336464364 | L28: =IF(ISERROR((L26/I26)^(1/3)-1),"",(L26/I26)^(1/3)-1) -> 0.1017666688 | M28: 0.4177065526 | N28: 0.4468064686 | O28: 0.8399496872 | P28: 0.06685406442
A29: 5Y rolling growth in Div per share | H29: =IF(ISERROR((H26/C26)^(1/5)-1),"",(H26/C26)^(1/5)-1) ->  | I29: =IF(ISERROR((I26/D26)^(1/5)-1),"",(I26/D26)^(1/5)-1) ->  | J29: =IF(ISERROR((J26/E26)^(1/5)-1),"",(J26/E26)^(1/5)-1) ->  | K29: =IF(ISERROR((K26/F26)^(1/5)-1),"",(K26/F26)^(1/5)-1) ->  | L29: =IF(ISERROR((L26/G26)^(1/5)-1),"",(L26/G26)^(1/5)-1) ->  | P29: 0
A30: 7Y rolling growth in Div per share | J30: =IF(ISERROR((J26/C26)^(1/7)-1),"",(J26/C26)^(1/7)-1) ->  | K30: =IF(ISERROR((K26/D26)^(1/7)-1),"",(K26/D26)^(1/7)-1) ->  | L30: =IF(ISERROR((L26/E26)^(1/7)-1),"",(L26/E26)^(1/7)-1) ->  | P30: 0
A31: Payout Ratio % * | B31: =IF(INDEX('MorningStar Data'!$A$1:$M$150,MATCH(Analysis!$A$31,'MorningStar Data'!$A$1:$A$150,0),B1+1)=0,"",INDEX('MorningStar Data'!$A$1:$M$150,MATCH(Analysis!$A$31,'MorningStar Data'!$A$1:$A$150,0),B1+1)/100) -> 0.266 | C31: =IF(INDEX('MorningStar Data'!$A$1:$M$150,MATCH(Analysis!$A$31,'MorningStar Data'!$A$1:$A$150,0),C1+1)=0,"",INDEX('MorningStar Data'!$A$1:$M$150,MATCH(Analysis!$A$31,'MorningStar Data'!$A$1:$A$150,0),C1+1)/100) ->  | D31: =IF(INDEX('MorningStar Data'!$A$1:$M$150,MATCH(Analysis!$A$31,'MorningStar Data'!$A$1:$A$150,0),D1+1)=0,"",INDEX('MorningStar Data'!$A$1:$M$150,MATCH(Analysis!$A$31,'MorningStar Data'!$A$1:$A$150,0),D1+1)/100) ->  | E31: =IF(INDEX('MorningStar Data'!$A$1:$M$150,MATCH(Analysis!$A$31,'MorningStar Data'!$A$1:$A$150,0),E1+1)=0,"",INDEX('MorningStar Data'!$A$1:$M$150,MATCH(Analysis!$A$31,'MorningStar Data'!$A$1:$A$150,0),E1+1)/100) ->  | F31: =IF(INDEX('MorningStar Data'!$A$1:$M$150,MATCH(Analysis!$A$31,'MorningStar Data'!$A$1:$A$150,0),F1+1)=0,"",INDEX('MorningStar Data'!$A$1:$M$150,MATCH(Analysis!$A$31,'MorningStar Data'!$A$1:$A$150,0),F1+1)/100) ->  | G31: =IF(INDEX('MorningStar Data'!$A$1:$M$150,MATCH(Analysis!$A$31,'MorningStar Data'!$A$1:$A$150,0),G1+1)=0,"",INDEX('MorningStar Data'!$A$1:$M$150,MATCH(Analysis!$A$31,'MorningStar Data'!$A$1:$A$150,0),G1+1)/100) ->  | H31: =IF(INDEX('MorningStar Data'!$A$1:$M$150,MATCH(Analysis!$A$31,'MorningStar Data'!$A$1:$A$150,0),H1+1)=0,"",INDEX('MorningStar Data'!$A$1:$M$150,MATCH(Analysis!$A$31,'MorningStar Data'!$A$1:$A$150,0),H1+1)/100) ->  | I31: =IF(INDEX('MorningStar Data'!$A$1:$M$150,MATCH(Analysis!$A$31,'MorningStar Data'!$A$1:$A$150,0),I1+1)=0,"",INDEX('MorningStar Data'!$A$1:$M$150,MATCH(Analysis!$A$31,'MorningStar Data'!$A$1:$A$150,0),I1+1)/100) -> 0.274 | J31: =IF(INDEX('MorningStar Data'!$A$1:$M$150,MATCH(Analysis!$A$31,'MorningStar Data'!$A$1:$A$150,0),J1+1)=0,"",INDEX('MorningStar Data'!$A$1:$M$150,MATCH(Analysis!$A$31,'MorningStar Data'!$A$1:$A$150,0),J1+1)/100) -> 0.285 | K31: =IF(INDEX('MorningStar Data'!$A$1:$M$150,MATCH(Analysis!$A$31,'MorningStar Data'!$A$1:$A$150,0),K1+1)=0,"",INDEX('MorningStar Data'!$A$1:$M$150,MATCH(Analysis!$A$31,'MorningStar Data'!$A$1:$A$150,0),K1+1)/100) -> 0.223 | L31: =IF(INDEX('MorningStar Data'!$A$1:$M$150,MATCH(Analysis!$A$31,'MorningStar Data'!$A$1:$A$150,0),L1+1)=0,"",INDEX('MorningStar Data'!$A$1:$M$150,MATCH(Analysis!$A$31,'MorningStar Data'!$A$1:$A$150,0),L1+1)/100) -> 0.248 | M31: =AVERAGE(C31:L31) -> 0.2575 | N31: =STDEV(C31:L31) -> 0.02774286695 | O31: 0.6275685735 | P31: 0.09590109231
A32: Diluted Earnings Per Share* | C32: =IF(ISERROR(C24/C23),"",IF(C24/C23=0,"",C24/C23)) -> 0.5614457831 | D32: =IF(ISERROR(D24/D23),"",IF(D24/D23=0,"",D24/D23)) -> 0.968962787 | E32: 1.297054654 | F32: 2.16483856 | G32: 3.953332317 | H32: 6.306936678 | I32: 5.678779515 | J32: 6.452719255 | K32: 9.216986018 | L32: 8.306727273 | M32: 4.490778284 | N32: 3.148174948 | O32: 0.2088055378 | P32: 3.553078909
A33: 1Y rolling growth growth in Diluted EPS | D33: =IF(ISERROR((D32/C32)-1),"",(D32/C32)-1) -> 0.7258350069 | E33: =IF(ISERROR((E32/D32)-1),"",(E32/D32)-1) -> 0.3386011018 | F33: =IF(ISERROR((F32/E32)-1),"",(F32/E32)-1) -> 0.6690418966 | G33: =IF(ISERROR((G32/F32)-1),"",(G32/F32)-1) -> 0.8261557186 | H33: =IF(ISERROR((H32/G32)-1),"",(H32/G32)-1) -> 0.5953469562 | I33: =IF(ISERROR((I32/H32)-1),"",(I32/H32)-1) -> -0.09959782297 | J33: =IF(ISERROR((J32/I32)-1),"",(J32/I32)-1) -> 0.1362862808 | K33: =IF(ISERROR((K32/J32)-1),"",(K32/J32)-1) -> 0.4283878863 | L33: =IF(ISERROR((L32/K32)-1),"",(L32/K32)-1) -> -0.09875882888 | M33: =AVERAGE(C33:L33) -> 0.391255355 | N33: =STDEV(C33:L33) -> 0.3482297878 | O33: 0.2096753823 | P33: 0.3092187389
A34: 3Y rolling growth diluted EPS | F34: =IF(ISERROR((F32/C32)^(1/3)-1),"",(F32/C32)^(1/3)-1) -> 0.5680956987 | G34: =IF(ISERROR((G32/D32)^(1/3)-1),"",(G32/D32)^(1/3)-1) -> 0.5979091174 | H34: =IF(ISERROR((H32/E32)^(1/3)-1),"",(H32/E32)^(1/3)-1) -> 0.6941559995 | I34: =IF(ISERROR((I32/F32)^(1/3)-1),"",(I32/F32)^(1/3)-1) -> 0.379144687 | J34: =IF(ISERROR((J32/G32)^(1/3)-1),"",(J32/G32)^(1/3)-1) -> 0.177406645 | K34: =IF(ISERROR((K32/H32)^(1/3)-1),"",(K32/H32)^(1/3)-1) -> 0.1348108671 | L34: =IF(ISERROR((L32/I32)^(1/3)-1),"",(L32/I32)^(1/3)-1) -> 0.1351632296
A35: 5Y rolling growth diluted EPS | H35: =IF(ISERROR((H32/C32)^(1/5)-1),"",(H32/C32)^(1/5)-1) -> 0.6221915293 | I35: =IF(ISERROR((I32/D32)^(1/5)-1),"",(I32/D32)^(1/5)-1) -> 0.4242609981 | J35: =IF(ISERROR((J32/E32)^(1/5)-1),"",(J32/E32)^(1/5)-1) -> 0.3783417107 | K35: =IF(ISERROR((K32/F32)^(1/5)-1),"",(K32/F32)^(1/5)-1) -> 0.3360806759 | L35: =IF(ISERROR((L32/G32)^(1/5)-1),"",(L32/G32)^(1/5)-1) -> 0.1600943879
A36: 7Y rolling growth diluted EPS | J36: =IF(ISERROR((J32/C32)^(1/7)-1),"",(J32/C32)^(1/7)-1) -> 0.4173943804 | K36: =IF(ISERROR((K32/D32)^(1/7)-1),"",(K32/D32)^(1/7)-1) -> 0.379604325 | L36: =IF(ISERROR((L32/E32)^(1/7)-1),"",(L32/E32)^(1/7)-1) -> 0.3037977864
A37: Book Value Per Share * USD | B37: =IF(INDEX('MorningStar Data'!$A$1:$M$150,MATCH(Analysis!$A$37,'MorningStar Data'!$A$1:$A$150,0),B1+1)=0,"",INDEX('MorningStar Data'!$A$1:$M$150,MATCH(Analysis!$A$37,'MorningStar Data'!$A$1:$A$150,0),B1+1)) -> 25.72 | C37: =IF(INDEX('MorningStar Data'!$A$1:$M$150,MATCH(Analysis!$A$37,'MorningStar Data'!$A$1:$A$150,0),C1+1)=0,"",INDEX('MorningStar Data'!$A$1:$M$150,MATCH(Analysis!$A$37,'MorningStar Data'!$A$1:$A$150,0),C1+1)) -> 2.2 | D37: =IF(INDEX('MorningStar Data'!$A$1:$M$150,MATCH(Analysis!$A$37,'MorningStar Data'!$A$1:$A$150,0),D1+1)=0,"",INDEX('MorningStar Data'!$A$1:$M$150,MATCH(Analysis!$A$37,'MorningStar Data'!$A$1:$A$150,0),D1+1)) -> 3.39 | E37: =IF(INDEX('MorningStar Data'!$A$1:$M$150,MATCH(Analysis!$A$37,'MorningStar Data'!$A$1:$A$150,0),E1+1)=0,"",INDEX('MorningStar Data'!$A$1:$M$150,MATCH(Analysis!$A$37,'MorningStar Data'!$A$1:$A$150,0),E1+1)) -> 5.02 | F37: =IF(INDEX('MorningStar Data'!$A$1:$M$150,MATCH(Analysis!$A$37,'MorningStar Data'!$A$1:$A$150,0),F1+1)=0,"",INDEX('MorningStar Data'!$A$1:$M$150,MATCH(Analysis!$A$37,'MorningStar Data'!$A$1:$A$150,0),F1+1)) -> 7.45 | G37: =IF(INDEX('MorningStar Data'!$A$1:$M$150,MATCH(Analysis!$A$37,'MorningStar Data'!$A$1:$A$150,0),G1+1)=0,"",INDEX('MorningStar Data'!$A$1:$M$150,MATCH(Analysis!$A$37,'MorningStar Data'!$A$1:$A$150,0),G1+1)) -> 11.78 | H37: =IF(INDEX('MorningStar Data'!$A$1:$M$150,MATCH(Analysis!$A$37,'MorningStar Data'!$A$1:$A$150,0),H1+1)=0,"",INDEX('MorningStar Data'!$A$1:$M$150,MATCH(Analysis!$A$37,'MorningStar Data'!$A$1:$A$150,0),H1+1)) -> 16.99 | I37: =IF(INDEX('MorningStar Data'!$A$1:$M$150,MATCH(Analysis!$A$37,'MorningStar Data'!$A$1:$A$150,0),I1+1)=0,"",INDEX('MorningStar Data'!$A$1:$M$150,MATCH(Analysis!$A$37,'MorningStar Data'!$A$1:$A$150,0),I1+1)) -> 19.6 | J37: =IF(INDEX('MorningStar Data'!$A$1:$M$150,MATCH(Analysis!$A$37,'MorningStar Data'!$A$1:$A$150,0),J1+1)=0,"",INDEX('MorningStar Data'!$A$1:$M$150,MATCH(Analysis!$A$37,'MorningStar Data'!$A$1:$A$150,0),J1+1)) -> 20.62 | K37: =IF(INDEX('MorningStar Data'!$A$1:$M$150,MATCH(Analysis!$A$37,'MorningStar Data'!$A$1:$A$150,0),K1+1)=0,"",INDEX('MorningStar Data'!$A$1:$M$150,MATCH(Analysis!$A$37,'MorningStar Data'!$A$1:$A$150,0),K1+1)) -> 22.53 | L37: =IF(INDEX('MorningStar Data'!$A$1:$M$150,MATCH(Analysis!$A$37,'MorningStar Data'!$A$1:$A$150,0),L1+1)=0,"",INDEX('MorningStar Data'!$A$1:$M$150,MATCH(Analysis!$A$37,'MorningStar Data'!$A$1:$A$150,0),L1+1)) -> 23.71 | M37: 13.329 | N37: 8.346326471 | O37: =(M37-P37)/M37 -> 0.2078884925 | P37: =((1+IF(C37="",0,C37))*(1+IF(D37="",0,D37))*(1+IF(E37="",0,E37))*(1+IF(F37="",0,F37))*(1+IF(G37="",0,G37))*(1+IF(H37="",0,H37))*(1+IF(I37="",0,I37))*(1+IF(J37="",0,J37))*(1+IF(K37="",0,K37))*(1+IF(L37="",0,L37)))^(1/10)-1 -> 10.55805428
A38: 1Y rolling growth growth in BV per share | D38: =IF(ISERROR((D37/C37)-1),"",(D37/C37)-1) -> 0.5409090909 | E38: =IF(ISERROR((E37/D37)-1),"",(E37/D37)-1) -> 0.4808259587 | F38: =IF(ISERROR((F37/E37)-1),"",(F37/E37)-1) -> 0.484063745 | G38: =IF(ISERROR((G37/F37)-1),"",(G37/F37)-1) -> 0.5812080537 | H38: =IF(ISERROR((H37/G37)-1),"",(H37/G37)-1) -> 0.4422750424 | I38: =IF(ISERROR((I37/H37)-1),"",(I37/H37)-1) -> 0.1536197763 | J38: =IF(ISERROR((J37/I37)-1),"",(J37/I37)-1) -> 0.05204081633 | K38: =IF(ISERROR((K37/J37)-1),"",(K37/J37)-1) -> 0.092628516 | L38: =IF(ISERROR((L37/K37)-1),"",(L37/K37)-1) -> 0.05237461163 | M38: =AVERAGE(C38:L38) -> 0.3199939568 | N38: =STDEV(C38:L38) -> 0.2257125395 | O38: =(M38-P38)/M38 -> 0.1612829531 | P38: =((1+IF(C38="",0,C38))*(1+IF(D38="",0,D38))*(1+IF(E38="",0,E38))*(1+IF(F38="",0,F38))*(1+IF(G38="",0,G38))*(1+IF(H38="",0,H38))*(1+IF(I38="",0,I38))*(1+IF(J38="",0,J38))*(1+IF(K38="",0,K38))*(1+IF(L38="",0,L38)))^(1/10)-1 -> 0.2683843865
A39: 3Y rolling growth BV per share | F39: =IF(ISERROR((F37/C37)^(1/3)-1),"",(F37/C37)^(1/3)-1) -> 0.5016816158 | G39: =IF(ISERROR((G37/D37)^(1/3)-1),"",(G37/D37)^(1/3)-1) -> 0.5146601428 | H39: =IF(ISERROR((H37/E37)^(1/3)-1),"",(H37/E37)^(1/3)-1) -> 0.5014004922 | I39: =IF(ISERROR((I37/F37)^(1/3)-1),"",(I37/F37)^(1/3)-1) -> 0.3804900037 | J39: =IF(ISERROR((J37/G37)^(1/3)-1),"",(J37/G37)^(1/3)-1) -> 0.2051685509 | K39: =IF(ISERROR((K37/H37)^(1/3)-1),"",(K37/H37)^(1/3)-1) -> 0.09864134219 | L39: =IF(ISERROR((L37/I37)^(1/3)-1),"",(L37/I37)^(1/3)-1) -> 0.06551236562
A40: 5Y rolling growth BV per share | H40: =IF(ISERROR((H37/C37)^(1/5)-1),"",(H37/C37)^(1/5)-1) -> 0.5050611296 | I40: =IF(ISERROR((I37/D37)^(1/5)-1),"",(I37/D37)^(1/5)-1) -> 0.4204019983 | J40: =IF(ISERROR((J37/E37)^(1/5)-1),"",(J37/E37)^(1/5)-1) -> 0.326529733 | K40: =IF(ISERROR((K37/F37)^(1/5)-1),"",(K37/F37)^(1/5)-1) -> 0.2477310531 | L40: =IF(ISERROR((L37/G37)^(1/5)-1),"",(L37/G37)^(1/5)-1) -> 0.1501573331
A41: 7Y rolling growth BV per share | J41: =IF(ISERROR((J37/C37)^(1/7)-1),"",(J37/C37)^(1/7)-1) -> 0.3766958307 | K41: =IF(ISERROR((K37/D37)^(1/7)-1),"",(K37/D37)^(1/7)-1) -> 0.3107165549 | L41: =IF(ISERROR((L37/E37)^(1/7)-1),"",(L37/E37)^(1/7)-1) -> 0.2482979647
B42: =B22 -> TTM | C42: 2007 | D42: 2008 | E42: 2009 | F42: 2010 | G42: 2011 | H42: 2012 | I42: 2013 | J42: 2014 | K42: 2015 | L42: 2016 | M42: Average | N42: Std Dev | O42: Inconsistency measure* | P42: =P22 -> Geometric average*
A43: EBT Margin | B43: =IF(INDEX('MorningStar Data'!$A$1:$M$150,MATCH(Analysis!$A$43,'MorningStar Data'!$A$1:$A$150,0),B1+1)=0,"",INDEX('MorningStar Data'!$A$1:$M$150,MATCH(Analysis!$A$43,'MorningStar Data'!$A$1:$A$150,0),B1+1)) -> 27.91 | C43: =IF(INDEX('MorningStar Data'!$A$1:$M$150,MATCH(Analysis!$A$43,'MorningStar Data'!$A$1:$A$150,0),C1+1)=0,"",INDEX('MorningStar Data'!$A$1:$M$150,MATCH(Analysis!$A$43,'MorningStar Data'!$A$1:$A$150,0),C1+1)) -> 20.37 | D43: =IF(INDEX('MorningStar Data'!$A$1:$M$150,MATCH(Analysis!$A$43,'MorningStar Data'!$A$1:$A$150,0),D1+1)=0,"",INDEX('MorningStar Data'!$A$1:$M$150,MATCH(Analysis!$A$43,'MorningStar Data'!$A$1:$A$150,0),D1+1)) -> 23.86 | E43: =IF(INDEX('MorningStar Data'!$A$1:$M$150,MATCH(Analysis!$A$43,'MorningStar Data'!$A$1:$A$150,0),E1+1)=0,"",INDEX('MorningStar Data'!$A$1:$M$150,MATCH(Analysis!$A$43,'MorningStar Data'!$A$1:$A$150,0),E1+1)) -> 28.12 | F43: =IF(INDEX('MorningStar Data'!$A$1:$M$150,MATCH(Analysis!$A$43,'MorningStar Data'!$A$1:$A$150,0),F1+1)=0,"",INDEX('MorningStar Data'!$A$1:$M$150,MATCH(Analysis!$A$43,'MorningStar Data'!$A$1:$A$150,0),F1+1)) -> 28.42 | G43: =IF(INDEX('MorningStar Data'!$A$1:$M$150,MATCH(Analysis!$A$43,'MorningStar Data'!$A$1:$A$150,0),G1+1)=0,"",INDEX('MorningStar Data'!$A$1:$M$150,MATCH(Analysis!$A$43,'MorningStar Data'!$A$1:$A$150,0),G1+1)) -> 31.6 | H43: =IF(INDEX('MorningStar Data'!$A$1:$M$150,MATCH(Analysis!$A$43,'MorningStar Data'!$A$1:$A$150,0),H1+1)=0,"",INDEX('MorningStar Data'!$A$1:$M$150,MATCH(Analysis!$A$43,'MorningStar Data'!$A$1:$A$150,0),H1+1)) -> 35.63 | I43: =IF(INDEX('MorningStar Data'!$A$1:$M$150,MATCH(Analysis!$A$43,'MorningStar Data'!$A$1:$A$150,0),I1+1)=0,"",INDEX('MorningStar Data'!$A$1:$M$150,MATCH(Analysis!$A$43,'MorningStar Data'!$A$1:$A$150,0),I1+1)) -> 29.35 | J43: =IF(INDEX('MorningStar Data'!$A$1:$M$150,MATCH(Analysis!$A$43,'MorningStar Data'!$A$1:$A$150,0),J1+1)=0,"",INDEX('MorningStar Data'!$A$1:$M$150,MATCH(Analysis!$A$43,'MorningStar Data'!$A$1:$A$150,0),J1+1)) -> 29.26 | K43: =IF(INDEX('MorningStar Data'!$A$1:$M$150,MATCH(Analysis!$A$43,'MorningStar Data'!$A$1:$A$150,0),K1+1)=0,"",INDEX('MorningStar Data'!$A$1:$M$150,MATCH(Analysis!$A$43,'MorningStar Data'!$A$1:$A$150,0),K1+1)) -> 31.03 | L43: =IF(INDEX('MorningStar Data'!$A$1:$M$150,MATCH(Analysis!$A$43,'MorningStar Data'!$A$1:$A$150,0),L1+1)=0,"",INDEX('MorningStar Data'!$A$1:$M$150,MATCH(Analysis!$A$43,'MorningStar Data'!$A$1:$A$150,0),L1+1)) -> 28.46 | M43: =AVERAGE(C43:L43) -> 28.61 | N43: =STDEV(C43:L43) -> 4.160739785 | O43: =(M43-P43)/M43 -> 0.00981254689 | P43: =((1+IF(C43="",0,C43))*(1+IF(D43="",0,D43))*(1+IF(E43="",0,E43))*(1+IF(F43="",0,F43))*(1+IF(G43="",0,G43))*(1+IF(H43="",0,H43))*(1+IF(I43="",0,I43))*(1+IF(J43="",0,J43))*(1+IF(K43="",0,K43))*(1+IF(L43="",0,L43)))^(1/10)-1 -> 28.32926303
A44: 1Y rolling growth growth in EBT margin | D44: =IF(ISERROR((D43/C43)-1),"",(D43/C43)-1) -> 0.1713303878 | E44: =IF(ISERROR((E43/D43)-1),"",(E43/D43)-1) -> 0.178541492 | F44: =IF(ISERROR((F43/E43)-1),"",(F43/E43)-1) -> 0.0106685633 | G44: =IF(ISERROR((G43/F43)-1),"",(G43/F43)-1) -> 0.1118930331 | H44: =IF(ISERROR((H43/G43)-1),"",(H43/G43)-1) -> 0.1275316456 | I44: =IF(ISERROR((I43/H43)-1),"",(I43/H43)-1) -> -0.1762559641 | J44: =IF(ISERROR((J43/I43)-1),"",(J43/I43)-1) -> -0.003066439523 | K44: =IF(ISERROR((K43/J43)-1),"",(K43/J43)-1) -> 0.06049213944 | L44: =IF(ISERROR((L43/K43)-1),"",(L43/K43)-1) -> -0.08282307444
A45: 3Y rolling growth EBT margin | F45: =IF(ISERROR((F43/C43)^(1/3)-1),"",(F43/C43)^(1/3)-1) -> 0.1174060408 | G45: =IF(ISERROR((G43/D43)^(1/3)-1),"",(G43/D43)^(1/3)-1) -> 0.09817667314 | H45: =IF(ISERROR((H43/E43)^(1/3)-1),"",(H43/E43)^(1/3)-1) -> 0.08209860044 | I45: =IF(ISERROR((I43/F43)^(1/3)-1),"",(I43/F43)^(1/3)-1) -> 0.01079094799 | J45: =IF(ISERROR((J43/G43)^(1/3)-1),"",(J43/G43)^(1/3)-1) -> -0.02531919558 | K45: =IF(ISERROR((K43/H43)^(1/3)-1),"",(K43/H43)^(1/3)-1) -> -0.04503236938 | L45: =IF(ISERROR((L43/I43)^(1/3)-1),"",(L43/I43)^(1/3)-1) -> -0.01021181953
A46: 5Y rolling growth EBT margin | H46: =IF(ISERROR((H43/C43)^(1/5)-1),"",(H43/C43)^(1/5)-1) -> 0.118317082 | I46: =IF(ISERROR((I43/D43)^(1/5)-1),"",(I43/D43)^(1/5)-1) -> 0.04228750932 | J46: =IF(ISERROR((J43/E43)^(1/5)-1),"",(J43/E43)^(1/5)-1) -> 0.007979735453 | K46: =IF(ISERROR((K43/F43)^(1/5)-1),"",(K43/F43)^(1/5)-1) -> 0.01772757184 | L46: =IF(ISERROR((L43/G43)^(1/5)-1),"",(L43/G43)^(1/5)-1) -> -0.0207139621
A47: 7Y rolling growth EBT margin | J47: =IF(ISERROR((J43/C43)^(1/7)-1),"",(J43/C43)^(1/7)-1) -> 0.05309861555 | K47: =IF(ISERROR((K43/D43)^(1/7)-1),"",(K43/D43)^(1/7)-1) -> 0.03824923423 | L47: =IF(ISERROR((L43/E43)^(1/7)-1),"",(L43/E43)^(1/7)-1) -> 0.001718407018
A48: Debt/Equity | B48: =IF(INDEX('MorningStar Data'!$A$1:$M$150,MATCH(Analysis!$A$48,'MorningStar Data'!$A$1:$A$150,0),B1+1)=0,"",INDEX('MorningStar Data'!$A$1:$M$150,MATCH(Analysis!$A$48,'MorningStar Data'!$A$1:$A$150,0),B1+1)) -> 0.63 | C48: =IF(INDEX('MorningStar Data'!$A$1:$M$150,MATCH(Analysis!$A$48,'MorningStar Data'!$A$1:$A$150,0),C1+1)=0,"",INDEX('MorningStar Data'!$A$1:$M$150,MATCH(Analysis!$A$48,'MorningStar Data'!$A$1:$A$150,0),C1+1)) ->  | D48: =IF(INDEX('MorningStar Data'!$A$1:$M$150,MATCH(Analysis!$A$48,'MorningStar Data'!$A$1:$A$150,0),D1+1)=0,"",INDEX('MorningStar Data'!$A$1:$M$150,MATCH(Analysis!$A$48,'MorningStar Data'!$A$1:$A$150,0),D1+1)) ->  | E48: =IF(INDEX('MorningStar Data'!$A$1:$M$150,MATCH(Analysis!$A$48,'MorningStar Data'!$A$1:$A$150,0),E1+1)=0,"",INDEX('MorningStar Data'!$A$1:$M$150,MATCH(Analysis!$A$48,'MorningStar Data'!$A$1:$A$150,0),E1+1)) ->  | F48: =IF(INDEX('MorningStar Data'!$A$1:$M$150,MATCH(Analysis!$A$48,'MorningStar Data'!$A$1:$A$150,0),F1+1)=0,"",INDEX('MorningStar Data'!$A$1:$M$150,MATCH(Analysis!$A$48,'MorningStar Data'!$A$1:$A$150,0),F1+1)) ->  | G48: =IF(INDEX('MorningStar Data'!$A$1:$M$150,MATCH(Analysis!$A$48,'MorningStar Data'!$A$1:$A$150,0),G1+1)=0,"",INDEX('MorningStar Data'!$A$1:$M$150,MATCH(Analysis!$A$48,'MorningStar Data'!$A$1:$A$150,0),G1+1)) ->  | H48: =IF(INDEX('MorningStar Data'!$A$1:$M$150,MATCH(Analysis!$A$48,'MorningStar Data'!$A$1:$A$150,0),H1+1)=0,"",INDEX('MorningStar Data'!$A$1:$M$150,MATCH(Analysis!$A$48,'MorningStar Data'!$A$1:$A$150,0),H1+1)) ->  | I48: =IF(INDEX('MorningStar Data'!$A$1:$M$150,MATCH(Analysis!$A$48,'MorningStar Data'!$A$1:$A$150,0),I1+1)=0,"",INDEX('MorningStar Data'!$A$1:$M$150,MATCH(Analysis!$A$48,'MorningStar Data'!$A$1:$A$150,0),I1+1)) -> 0.14 | J48: =IF(INDEX('MorningStar Data'!$A$1:$M$150,MATCH(Analysis!$A$48,'MorningStar Data'!$A$1:$A$150,0),J1+1)=0,"",INDEX('MorningStar Data'!$A$1:$M$150,MATCH(Analysis!$A$48,'MorningStar Data'!$A$1:$A$150,0),J1+1)) -> 0.26 | K48: =IF(INDEX('MorningStar Data'!$A$1:$M$150,MATCH(Analysis!$A$48,'MorningStar Data'!$A$1:$A$150,0),K1+1)=0,"",INDEX('MorningStar Data'!$A$1:$M$150,MATCH(Analysis!$A$48,'MorningStar Data'!$A$1:$A$150,0),K1+1)) -> 0.45 | L48: =IF(INDEX('MorningStar Data'!$A$1:$M$150,MATCH(Analysis!$A$48,'MorningStar Data'!$A$1:$A$150,0),L1+1)=0,"",INDEX('MorningStar Data'!$A$1:$M$150,MATCH(Analysis!$A$48,'MorningStar Data'!$A$1:$A$150,0),L1+1)) -> 0.59 | M48: 0.36 | N48: 0.1994993734 | O48: =(M48-P48)/M48 -> 0.6466445171 | P48: =((1+IF(C48="",0,C48))*(1+IF(D48="",0,D48))*(1+IF(E48="",0,E48))*(1+IF(F48="",0,F48))*(1+IF(G48="",0,G48))*(1+IF(H48="",0,H48))*(1+IF(I48="",0,I48))*(1+IF(J48="",0,J48))*(1+IF(K48="",0,K48))*(1+IF(L48="",0,L48)))^(1/10)-1 -> 0.1272079738
A49: =INDEX('MorningStar Data'!A1:A250,MATCH("Free Cash Flow"& "*",'MorningStar Data'!A1:A250,0),1) -> Free Cash Flow USD Mil | B49: =IF(INDEX('MorningStar Data'!$A$1:$M$150,MATCH(Analysis!$A$49,'MorningStar Data'!$A$1:$A$150,0),B1+1)=0,"",INDEX('MorningStar Data'!$A$1:$M$150,MATCH(Analysis!$A$49,'MorningStar Data'!$A$1:$A$150,0),B1+1)) -> 52961 | C49: =IF(INDEX('MorningStar Data'!$A$1:$M$150,MATCH(Analysis!$A$49,'MorningStar Data'!$A$1:$A$150,0),C1+1)=0,"",INDEX('MorningStar Data'!$A$1:$M$150,MATCH(Analysis!$A$49,'MorningStar Data'!$A$1:$A$150,0),C1+1)) -> 4484 | D49: =IF(INDEX('MorningStar Data'!$A$1:$M$150,MATCH(Analysis!$A$49,'MorningStar Data'!$A$1:$A$150,0),D1+1)=0,"",INDEX('MorningStar Data'!$A$1:$M$150,MATCH(Analysis!$A$49,'MorningStar Data'!$A$1:$A$150,0),D1+1)) -> 8397 | E49: =IF(INDEX('MorningStar Data'!$A$1:$M$150,MATCH(Analysis!$A$49,'MorningStar Data'!$A$1:$A$150,0),E1+1)=0,"",INDEX('MorningStar Data'!$A$1:$M$150,MATCH(Analysis!$A$49,'MorningStar Data'!$A$1:$A$150,0),E1+1)) -> 8946 | F49: =IF(INDEX('MorningStar Data'!$A$1:$M$150,MATCH(Analysis!$A$49,'MorningStar Data'!$A$1:$A$150,0),F1+1)=0,"",INDEX('MorningStar Data'!$A$1:$M$150,MATCH(Analysis!$A$49,'MorningStar Data'!$A$1:$A$150,0),F1+1)) -> 16474 | G49: =IF(INDEX('MorningStar Data'!$A$1:$M$150,MATCH(Analysis!$A$49,'MorningStar Data'!$A$1:$A$150,0),G1+1)=0,"",INDEX('MorningStar Data'!$A$1:$M$150,MATCH(Analysis!$A$49,'MorningStar Data'!$A$1:$A$150,0),G1+1)) -> 30077 | H49: =IF(INDEX('MorningStar Data'!$A$1:$M$150,MATCH(Analysis!$A$49,'MorningStar Data'!$A$1:$A$150,0),H1+1)=0,"",INDEX('MorningStar Data'!$A$1:$M$150,MATCH(Analysis!$A$49,'MorningStar Data'!$A$1:$A$150,0),H1+1)) -> 41454 | I49: =IF(INDEX('MorningStar Data'!$A$1:$M$150,MATCH(Analysis!$A$49,'MorningStar Data'!$A$1:$A$150,0),I1+1)=0,"",INDEX('MorningStar Data'!$A$1:$M$150,MATCH(Analysis!$A$49,'MorningStar Data'!$A$1:$A$150,0),I1+1)) -> 44590 | J49: =IF(INDEX('MorningStar Data'!$A$1:$M$150,MATCH(Analysis!$A$49,'MorningStar Data'!$A$1:$A$150,0),J1+1)=0,"",INDEX('MorningStar Data'!$A$1:$M$150,MATCH(Analysis!$A$49,'MorningStar Data'!$A$1:$A$150,0),J1+1)) -> 49900 | K49: =IF(INDEX('MorningStar Data'!$A$1:$M$150,MATCH(Analysis!$A$49,'MorningStar Data'!$A$1:$A$150,0),K1+1)=0,"",INDEX('MorningStar Data'!$A$1:$M$150,MATCH(Analysis!$A$49,'MorningStar Data'!$A$1:$A$150,0),K1+1)) -> 69778 | L49: =IF(INDEX('MorningStar Data'!$A$1:$M$150,MATCH(Analysis!$A$49,'MorningStar Data'!$A$1:$A$150,0),L1+1)=0,"",INDEX('MorningStar Data'!$A$1:$M$150,MATCH(Analysis!$A$49,'MorningStar Data'!$A$1:$A$150,0),L1+1)) -> 52276 | M49: 32637.6 | N49: 22343.27571
A50: 1Y rolling growth growth in cash flow | D50: =IF(ISERROR((D49/C49)-1),"",(D49/C49)-1) -> 0.8726583408 | E50: =IF(ISERROR((E49/D49)-1),"",(E49/D49)-1) -> 0.06538049303 | F50: =IF(ISERROR((F49/E49)-1),"",(F49/E49)-1) -> 0.8414934049 | G50: =IF(ISERROR((G49/F49)-1),"",(G49/F49)-1) -> 0.8257253855 | H50: =IF(ISERROR((H49/G49)-1),"",(H49/G49)-1) -> 0.3782624597 | I50: =IF(ISERROR((I49/H49)-1),"",(I49/H49)-1) -> 0.0756501182 | J50: =IF(ISERROR((J49/I49)-1),"",(J49/I49)-1) -> 0.1190849966 | K50: =IF(ISERROR((K49/J49)-1),"",(K49/J49)-1) -> 0.3983567134 | L50: =IF(ISERROR((L49/K49)-1),"",(L49/K49)-1) -> -0.250824042 | M50: =AVERAGE(C50:L50) -> 0.3695319856
A51: 3Y rolling growth free cash flow | F51: =IF(ISERROR((F49/C49)^(1/3)-1),"",(F49/C49)^(1/3)-1) -> 0.5430422557 | G51: =IF(ISERROR((G49/D49)^(1/3)-1),"",(G49/D49)^(1/3)-1) -> 0.5300423585 | H51: =IF(ISERROR((H49/E49)^(1/3)-1),"",(H49/E49)^(1/3)-1) -> 0.6671672987 | I51: =IF(ISERROR((I49/F49)^(1/3)-1),"",(I49/F49)^(1/3)-1) -> 0.3936256688 | J51: =IF(ISERROR((J49/G49)^(1/3)-1),"",(J49/G49)^(1/3)-1) -> 0.1838281877 | K51: =IF(ISERROR((K49/H49)^(1/3)-1),"",(K49/H49)^(1/3)-1) -> 0.189553625 | L51: =IF(ISERROR((L49/I49)^(1/3)-1),"",(L49/I49)^(1/3)-1) -> 0.05443940078 | M51: =AVERAGE(C51:L51) -> 0.3659569708
A52: 5Y rolling growth free cash flow | H52: =IF(ISERROR((H49/C49)^(1/5)-1),"",(H49/C49)^(1/5)-1) -> 0.5601996201 | I52: =IF(ISERROR((I49/D49)^(1/5)-1),"",(I49/D49)^(1/5)-1) -> 0.396441233 | J52: =IF(ISERROR((J49/E49)^(1/5)-1),"",(J49/E49)^(1/5)-1) -> 0.4102442263 | K52: =IF(ISERROR((K49/F49)^(1/5)-1),"",(K49/F49)^(1/5)-1) -> 0.3347007089 | L52: =IF(ISERROR((L49/G49)^(1/5)-1),"",(L49/G49)^(1/5)-1) -> 0.1168981374 | M52: =AVERAGE(C52:L52) -> 0.3636967852
A53: 7Y rolling growth free cash flow | J53: =IF(ISERROR((J49/C49)^(1/7)-1),"",(J49/C49)^(1/7)-1) -> 0.4108820428 | K53: =IF(ISERROR((K49/D49)^(1/7)-1),"",(K49/D49)^(1/7)-1) -> 0.3532269037 | L53: =IF(ISERROR((L49/E49)^(1/7)-1),"",(L49/E49)^(1/7)-1) -> 0.2868406736 | M53: =AVERAGE(C53:L53) -> 0.35031654
A54: Return on Assets % | B54: =IF(INDEX('MorningStar Data'!$A$1:$M$150,MATCH(Analysis!$A$54,'MorningStar Data'!$A$1:$A$150,0),B1+1)/100=0,"",INDEX('MorningStar Data'!$A$1:$M$150,MATCH(Analysis!$A$54,'MorningStar Data'!$A$1:$A$150,0),B1+1)/100) -> 0.1429 | C54: =IF(INDEX('MorningStar Data'!$A$1:$M$150,MATCH(Analysis!$A$54,'MorningStar Data'!$A$1:$A$150,0),C1+1)/100=0,"",INDEX('MorningStar Data'!$A$1:$M$150,MATCH(Analysis!$A$54,'MorningStar Data'!$A$1:$A$150,0),C1+1)/100) -> 0.1643 | D54: =IF(INDEX('MorningStar Data'!$A$1:$M$150,MATCH(Analysis!$A$54,'MorningStar Data'!$A$1:$A$150,0),D1+1)/100=0,"",INDEX('MorningStar Data'!$A$1:$M$150,MATCH(Analysis!$A$54,'MorningStar Data'!$A$1:$A$150,0),D1+1)/100) -> 0.1489 | E54: =IF(INDEX('MorningStar Data'!$A$1:$M$150,MATCH(Analysis!$A$54,'MorningStar Data'!$A$1:$A$150,0),E1+1)/100=0,"",INDEX('MorningStar Data'!$A$1:$M$150,MATCH(Analysis!$A$54,'MorningStar Data'!$A$1:$A$150,0),E1+1)/100) -> 0.1892 | F54: =IF(INDEX('MorningStar Data'!$A$1:$M$150,MATCH(Analysis!$A$54,'MorningStar Data'!$A$1:$A$150,0),F1+1)/100=0,"",INDEX('MorningStar Data'!$A$1:$M$150,MATCH(Analysis!$A$54,'MorningStar Data'!$A$1:$A$150,0),F1+1)/100) -> 0.2284 | G54: =IF(INDEX('MorningStar Data'!$A$1:$M$150,MATCH(Analysis!$A$54,'MorningStar Data'!$A$1:$A$150,0),G1+1)/100=0,"",INDEX('MorningStar Data'!$A$1:$M$150,MATCH(Analysis!$A$54,'MorningStar Data'!$A$1:$A$150,0),G1+1)/100) -> 0.2707 | H54: =IF(INDEX('MorningStar Data'!$A$1:$M$150,MATCH(Analysis!$A$54,'MorningStar Data'!$A$1:$A$150,0),H1+1)/100=0,"",INDEX('MorningStar Data'!$A$1:$M$150,MATCH(Analysis!$A$54,'MorningStar Data'!$A$1:$A$150,0),H1+1)/100) -> 0.2854 | I54: =IF(INDEX('MorningStar Data'!$A$1:$M$150,MATCH(Analysis!$A$54,'MorningStar Data'!$A$1:$A$150,0),I1+1)/100=0,"",INDEX('MorningStar Data'!$A$1:$M$150,MATCH(Analysis!$A$54,'MorningStar Data'!$A$1:$A$150,0),I1+1)/100) -> 0.1934 | J54: =IF(INDEX('MorningStar Data'!$A$1:$M$150,MATCH(Analysis!$A$54,'MorningStar Data'!$A$1:$A$150,0),J1+1)/100=0,"",INDEX('MorningStar Data'!$A$1:$M$150,MATCH(Analysis!$A$54,'MorningStar Data'!$A$1:$A$150,0),J1+1)/100) -> 0.1801 | K54: =IF(INDEX('MorningStar Data'!$A$1:$M$150,MATCH(Analysis!$A$54,'MorningStar Data'!$A$1:$A$150,0),K1+1)/100=0,"",INDEX('MorningStar Data'!$A$1:$M$150,MATCH(Analysis!$A$54,'MorningStar Data'!$A$1:$A$150,0),K1+1)/100) -> 0.2045 | L54: =IF(INDEX('MorningStar Data'!$A$1:$M$150,MATCH(Analysis!$A$54,'MorningStar Data'!$A$1:$A$150,0),L1+1)/100=0,"",INDEX('MorningStar Data'!$A$1:$M$150,MATCH(Analysis!$A$54,'MorningStar Data'!$A$1:$A$150,0),L1+1)/100) -> 0.1493
A55: 1Y rolling growth growth in RoA | D55: =IF(ISERROR((D54/C54)-1),"",(D54/C54)-1) -> -0.09373097991 | E55: =IF(ISERROR((E54/D54)-1),"",(E54/D54)-1) -> 0.2706514439 | F55: =IF(ISERROR((F54/E54)-1),"",(F54/E54)-1) -> 0.2071881607 | G55: =IF(ISERROR((G54/F54)-1),"",(G54/F54)-1) -> 0.1852014011 | H55: =IF(ISERROR((H54/G54)-1),"",(H54/G54)-1) -> 0.05430365719 | I55: =IF(ISERROR((I54/H54)-1),"",(I54/H54)-1) -> -0.32235459 | J55: =IF(ISERROR((J54/I54)-1),"",(J54/I54)-1) -> -0.06876938987 | K55: =IF(ISERROR((K54/J54)-1),"",(K54/J54)-1) -> 0.1354802887 | L55: =IF(ISERROR((L54/K54)-1),"",(L54/K54)-1) -> -0.2699266504
A56: 3Y rolling growth RoA | F56: =IF(ISERROR((F54/C54)^(1/3)-1),"",(F54/C54)^(1/3)-1) -> 0.1160564937 | G56: =IF(ISERROR((G54/D54)^(1/3)-1),"",(G54/D54)^(1/3)-1) -> 0.2204814585 | H56: =IF(ISERROR((H54/E54)^(1/3)-1),"",(H54/E54)^(1/3)-1) -> 0.1468614255 | I56: =IF(ISERROR((I54/F54)^(1/3)-1),"",(I54/F54)^(1/3)-1) -> -0.05393685711 | J56: =IF(ISERROR((J54/G54)^(1/3)-1),"",(J54/G54)^(1/3)-1) -> -0.1270115745 | K56: =IF(ISERROR((K54/H54)^(1/3)-1),"",(K54/H54)^(1/3)-1) -> -0.1051578186 | L56: =IF(ISERROR((L54/I54)^(1/3)-1),"",(L54/I54)^(1/3)-1) -> -0.08265130814
A57: 5Y rolling growth RoA | H57: =IF(ISERROR((H54/C54)^(1/5)-1),"",(H54/C54)^(1/5)-1) -> 0.1167688227 | I57: =IF(ISERROR((I54/D54)^(1/5)-1),"",(I54/D54)^(1/5)-1) -> 0.05368877715 | J57: =IF(ISERROR((J54/E54)^(1/5)-1),"",(J54/E54)^(1/5)-1) -> -0.009810045362 | K57: =IF(ISERROR((K54/F54)^(1/5)-1),"",(K54/F54)^(1/5)-1) -> -0.02186355118 | L57: =IF(ISERROR((L54/G54)^(1/5)-1),"",(L54/G54)^(1/5)-1) -> -0.1122016973
A58: 7Y rolling growth RoA | J58: =IF(ISERROR((J54/C54)^(1/7)-1),"",(J54/C54)^(1/7)-1) -> 0.01320329336 | K58: =IF(ISERROR((K54/D54)^(1/7)-1),"",(K54/D54)^(1/7)-1) -> 0.04637057023 | L58: =IF(ISERROR((L54/E54)^(1/7)-1),"",(L54/E54)^(1/7)-1) -> -0.0332692675
B59: =B42 -> TTM | C59: 2007 | D59: 2008 | E59: 2009 | F59: 2010 | G59: 2011 | H59: 2012 | I59: 2013 | J59: 2014 | K59: 2015 | L59: 2016 | M59: Average | N59: Std Dev | O59: Inconsistency measure* | P59: =P42 -> Geometric average*
A60: Operating Cash Flow Growth % YOY | B60: =IF(INDEX('MorningStar Data'!$A$1:$M$150,MATCH(Analysis!$A$60,'MorningStar Data'!$A$1:$A$150,0),B1+1)/100=0,"",INDEX('MorningStar Data'!$A$1:$M$150,MATCH(Analysis!$A$60,'MorningStar Data'!$A$1:$A$150,0),B1+1)/100) ->  | C60: =IF(INDEX('MorningStar Data'!$A$1:$M$150,MATCH(Analysis!$A$60,'MorningStar Data'!$A$1:$A$150,0),C1+1)/100=0,"",INDEX('MorningStar Data'!$A$1:$M$150,MATCH(Analysis!$A$60,'MorningStar Data'!$A$1:$A$150,0),C1+1)/100) -> 1.464 | D60: =IF(INDEX('MorningStar Data'!$A$1:$M$150,MATCH(Analysis!$A$60,'MorningStar Data'!$A$1:$A$150,0),D1+1)/100=0,"",INDEX('MorningStar Data'!$A$1:$M$150,MATCH(Analysis!$A$60,'MorningStar Data'!$A$1:$A$150,0),D1+1)/100) -> 0.7543 | E60: =IF(INDEX('MorningStar Data'!$A$1:$M$150,MATCH(Analysis!$A$60,'MorningStar Data'!$A$1:$A$150,0),E1+1)/100=0,"",INDEX('MorningStar Data'!$A$1:$M$150,MATCH(Analysis!$A$60,'MorningStar Data'!$A$1:$A$150,0),E1+1)/100) -> 0.0587 | F60: =IF(INDEX('MorningStar Data'!$A$1:$M$150,MATCH(Analysis!$A$60,'MorningStar Data'!$A$1:$A$150,0),F1+1)/100=0,"",INDEX('MorningStar Data'!$A$1:$M$150,MATCH(Analysis!$A$60,'MorningStar Data'!$A$1:$A$150,0),F1+1)/100) -> 0.8304 | G60: =IF(INDEX('MorningStar Data'!$A$1:$M$150,MATCH(Analysis!$A$60,'MorningStar Data'!$A$1:$A$150,0),G1+1)/100=0,"",INDEX('MorningStar Data'!$A$1:$M$150,MATCH(Analysis!$A$60,'MorningStar Data'!$A$1:$A$150,0),G1+1)/100) -> 1.0182 | H60: =IF(INDEX('MorningStar Data'!$A$1:$M$150,MATCH(Analysis!$A$60,'MorningStar Data'!$A$1:$A$150,0),H1+1)/100=0,"",INDEX('MorningStar Data'!$A$1:$M$150,MATCH(Analysis!$A$60,'MorningStar Data'!$A$1:$A$150,0),H1+1)/100) -> 0.3551 | I60: =IF(INDEX('MorningStar Data'!$A$1:$M$150,MATCH(Analysis!$A$60,'MorningStar Data'!$A$1:$A$150,0),I1+1)/100=0,"",INDEX('MorningStar Data'!$A$1:$M$150,MATCH(Analysis!$A$60,'MorningStar Data'!$A$1:$A$150,0),I1+1)/100) -> 0.0553 | J60: =IF(INDEX('MorningStar Data'!$A$1:$M$150,MATCH(Analysis!$A$60,'MorningStar Data'!$A$1:$A$150,0),J1+1)/100=0,"",INDEX('MorningStar Data'!$A$1:$M$150,MATCH(Analysis!$A$60,'MorningStar Data'!$A$1:$A$150,0),J1+1)/100) -> 0.1127 | K60: =IF(INDEX('MorningStar Data'!$A$1:$M$150,MATCH(Analysis!$A$60,'MorningStar Data'!$A$1:$A$150,0),K1+1)/100=0,"",INDEX('MorningStar Data'!$A$1:$M$150,MATCH(Analysis!$A$60,'MorningStar Data'!$A$1:$A$150,0),K1+1)/100) -> 0.3609 | L60: =IF(INDEX('MorningStar Data'!$A$1:$M$150,MATCH(Analysis!$A$60,'MorningStar Data'!$A$1:$A$150,0),L1+1)/100=0,"",INDEX('MorningStar Data'!$A$1:$M$150,MATCH(Analysis!$A$60,'MorningStar Data'!$A$1:$A$150,0),L1+1)/100) -> -0.19 | M60: =AVERAGE(C54:L54) -> 0.20142 | N60: =STDEV(C54:L54) -> 0.04727072855 | O60: =(M60-P60)/M60 -> 0.00409192227 | P60: =((1+IF(C54="",0,C54))*(1+IF(D54="",0,D54))*(1+IF(E54="",0,E54))*(1+IF(F54="",0,F54))*(1+IF(G54="",0,G54))*(1+IF(H54="",0,H54))*(1+IF(I54="",0,I54))*(1+IF(J54="",0,J54))*(1+IF(K54="",0,K54))*(1+IF(L54="",0,L54)))^(1/10)-1 -> 0.200595805
A61: 3Y rolling growth OCF | E61: =IF(ISERROR(((1+C60)*(1+D60)*(1+E60))^(1/3)-1),"",((1+C60)*(1+D60)*(1+E60))^(1/3)-1) -> 0.660246194 | F61: =IF(ISERROR(((1+D60)*(1+E60)*(1+F60))^(1/3)-1),"",((1+D60)*(1+E60)*(1+F60))^(1/3)-1) -> 0.5036298124 | G61: 0.5755337376 | H61: 0.7106474647 | I61: 0.4237612271 | J61: 0.1674594112 | K61: 0.1691226653 | L61: 0.07044191671
A62: 5Y rolling growth OCF | G62: =IF(ISERROR(((1+C60)*(1+D60)*(1+E60)*(1+F60)*(1+G60))^(1/7)-1),"",((1+C60)*(1+D60)*(1+E60)*(1+F60)*(1+G60))^(1/7)-1) -> 0.4977265446 | H62: =IF(ISERROR(((1+D60)*(1+E60)*(1+F60)*(1+G60)*(1+H60))^(1/7)-1),"",((1+D60)*(1+E60)*(1+F60)*(1+G60)*(1+H60))^(1/7)-1) -> 0.375108303 | I62: 0.278805053 | J62: 0.2879256637 | K62: 0.2345317262 | L62: 0.08358347196
A63: 7Y rolling growth OCF | I63: =IF(ISERROR(((1+C60)*(1+D60)*(1+E60)*(1+F60)*(1+G60)*(1+H60)*(1+I60))^(1/7)-1),"",((1+C60)*(1+D60)*(1+E60)*(1+F60)*(1+G60)*(1+H60)*(1+I60))^(1/7)-1) -> 0.5762496242 | J63: =IF(ISERROR(((1+D60)*(1+E60)*(1+F60)*(1+G60)*(1+H60)*(1+I60)*(1+J60))^(1/7)-1),"",((1+D60)*(1+E60)*(1+F60)*(1+G60)*(1+H60)*(1+I60)*(1+J60))^(1/7)-1) -> 0.407024842 | K63: =IF(ISERROR(((1+E60)*(1+F60)*(1+G60)*(1+H60)*(1+I60)*(1+J60)*(1+K60))^(1/7)-1),"",((1+E60)*(1+F60)*(1+G60)*(1+H60)*(1+I60)*(1+J60)*(1+K60))^(1/7)-1) -> 0.3568999153 | L63: =IF(ISERROR(((1+F60)*(1+G60)*(1+H60)*(1+I60)*(1+J60)*(1+K60)*(1+L60))^(1/7)-1),"",((1+F60)*(1+G60)*(1+H60)*(1+I60)*(1+J60)*(1+K60)*(1+L60))^(1/7)-1) -> 0.3059761897
A64: Free Cash Flow/Sales % | B64: =IF(INDEX('MorningStar Data'!$A$1:$M$150,MATCH(Analysis!$A$64,'MorningStar Data'!$A$1:$A$150,0),B1+1)/100=0,"",INDEX('MorningStar Data'!$A$1:$M$150,MATCH(Analysis!$A$64,'MorningStar Data'!$A$1:$A$150,0),B1+1)/100) -> 0.2402 | C64: =IF(INDEX('MorningStar Data'!$A$1:$M$150,MATCH(Analysis!$A$64,'MorningStar Data'!$A$1:$A$150,0),C1+1)/100=0,"",INDEX('MorningStar Data'!$A$1:$M$150,MATCH(Analysis!$A$64,'MorningStar Data'!$A$1:$A$150,0),C1+1)/100) -> 0.1824 | D64: =IF(INDEX('MorningStar Data'!$A$1:$M$150,MATCH(Analysis!$A$64,'MorningStar Data'!$A$1:$A$150,0),D1+1)/100=0,"",INDEX('MorningStar Data'!$A$1:$M$150,MATCH(Analysis!$A$64,'MorningStar Data'!$A$1:$A$150,0),D1+1)/100) -> 0.224 | E64: =IF(INDEX('MorningStar Data'!$A$1:$M$150,MATCH(Analysis!$A$64,'MorningStar Data'!$A$1:$A$150,0),E1+1)/100=0,"",INDEX('MorningStar Data'!$A$1:$M$150,MATCH(Analysis!$A$64,'MorningStar Data'!$A$1:$A$150,0),E1+1)/100) -> 0.2085 | F64: =IF(INDEX('MorningStar Data'!$A$1:$M$150,MATCH(Analysis!$A$64,'MorningStar Data'!$A$1:$A$150,0),F1+1)/100=0,"",INDEX('MorningStar Data'!$A$1:$M$150,MATCH(Analysis!$A$64,'MorningStar Data'!$A$1:$A$150,0),F1+1)/100) -> 0.2526 | G64: =IF(INDEX('MorningStar Data'!$A$1:$M$150,MATCH(Analysis!$A$64,'MorningStar Data'!$A$1:$A$150,0),G1+1)/100=0,"",INDEX('MorningStar Data'!$A$1:$M$150,MATCH(Analysis!$A$64,'MorningStar Data'!$A$1:$A$150,0),G1+1)/100) -> 0.2779 | H64: =IF(INDEX('MorningStar Data'!$A$1:$M$150,MATCH(Analysis!$A$64,'MorningStar Data'!$A$1:$A$150,0),H1+1)/100=0,"",INDEX('MorningStar Data'!$A$1:$M$150,MATCH(Analysis!$A$64,'MorningStar Data'!$A$1:$A$150,0),H1+1)/100) -> 0.2649 | I64: =IF(INDEX('MorningStar Data'!$A$1:$M$150,MATCH(Analysis!$A$64,'MorningStar Data'!$A$1:$A$150,0),I1+1)/100=0,"",INDEX('MorningStar Data'!$A$1:$M$150,MATCH(Analysis!$A$64,'MorningStar Data'!$A$1:$A$150,0),I1+1)/100) -> 0.2609 | J64: =IF(INDEX('MorningStar Data'!$A$1:$M$150,MATCH(Analysis!$A$64,'MorningStar Data'!$A$1:$A$150,0),J1+1)/100=0,"",INDEX('MorningStar Data'!$A$1:$M$150,MATCH(Analysis!$A$64,'MorningStar Data'!$A$1:$A$150,0),J1+1)/100) -> 0.273 | K64: =IF(INDEX('MorningStar Data'!$A$1:$M$150,MATCH(Analysis!$A$64,'MorningStar Data'!$A$1:$A$150,0),K1+1)/100=0,"",INDEX('MorningStar Data'!$A$1:$M$150,MATCH(Analysis!$A$64,'MorningStar Data'!$A$1:$A$150,0),K1+1)/100) -> 0.2986 | L64: =IF(INDEX('MorningStar Data'!$A$1:$M$150,MATCH(Analysis!$A$64,'MorningStar Data'!$A$1:$A$150,0),L1+1)/100=0,"",INDEX('MorningStar Data'!$A$1:$M$150,MATCH(Analysis!$A$64,'MorningStar Data'!$A$1:$A$150,0),L1+1)/100) -> 0.2424 | M64: =AVERAGE(C58:L58) -> 0.008768198696 | N64: =STDEV(C58:L58) -> 0.0400047308 | O64: =(M64-P64)/M64 -> 0.7189902558 | P64: =((1+IF(C58="",0,C58))*(1+IF(D58="",0,D58))*(1+IF(E58="",0,E58))*(1+IF(F58="",0,F58))*(1+IF(G58="",0,G58))*(1+IF(H58="",0,H58))*(1+IF(I58="",0,I58))*(1+IF(J58="",0,J58))*(1+IF(K58="",0,K58))*(1+IF(L58="",0,L58)))^(1/10)-1 -> 0.002463949273
A65: 1Y rolling growth growth in FCF/Sales | D65: =IF(ISERROR((D64/C64)-1),"",(D64/C64)-1) -> 0.2280701754 | E65: =IF(ISERROR((E64/D64)-1),"",(E64/D64)-1) -> -0.06919642857 | F65: =IF(ISERROR((F64/E64)-1),"",(F64/E64)-1) -> 0.2115107914 | G65: =IF(ISERROR((G64/F64)-1),"",(G64/F64)-1) -> 0.1001583531 | H65: =IF(ISERROR((H64/G64)-1),"",(H64/G64)-1) -> -0.04677941706 | I65: =IF(ISERROR((I64/H64)-1),"",(I64/H64)-1) -> -0.01510003775 | J65: =IF(ISERROR((J64/I64)-1),"",(J64/I64)-1) -> 0.04637792258 | K65: =IF(ISERROR((K64/J64)-1),"",(K64/J64)-1) -> 0.09377289377 | L65: =IF(ISERROR((L64/K64)-1),"",(L64/K64)-1) -> -0.1882116544
A66: 3Y rolling growth FCF/Sales | F66: =IF(ISERROR((F64/C64)^(1/3)-1),"",(F64/C64)^(1/3)-1) -> 0.1146439695 | G66: =IF(ISERROR((G64/D64)^(1/3)-1),"",(G64/D64)^(1/3)-1) -> 0.07451754085 | H66: =IF(ISERROR((H64/E64)^(1/3)-1),"",(H64/E64)^(1/3)-1) -> 0.08307525342 | I66: =IF(ISERROR((I64/F64)^(1/3)-1),"",(I64/F64)^(1/3)-1) -> 0.01083493811 | J66: =IF(ISERROR((J64/G64)^(1/3)-1),"",(J64/G64)^(1/3)-1) -> -0.005912300344 | K66: =IF(ISERROR((K64/H64)^(1/3)-1),"",(K64/H64)^(1/3)-1) -> 0.04072490697 | L66: =IF(ISERROR((L64/I64)^(1/3)-1),"",(L64/I64)^(1/3)-1) -> -0.02421790354
A67: 5Y rolling growth FCF/Sales | H67: =IF(ISERROR((H64/C64)^(1/5)-1),"",(H64/C64)^(1/5)-1) -> 0.07748547619 | I67: =IF(ISERROR((I64/D64)^(1/5)-1),"",(I64/D64)^(1/5)-1) -> 0.03096806323 | J67: =IF(ISERROR((J64/E64)^(1/5)-1),"",(J64/E64)^(1/5)-1) -> 0.05538597256 | K67: =IF(ISERROR((K64/F64)^(1/5)-1),"",(K64/F64)^(1/5)-1) -> 0.03402560107 | L67: =IF(ISERROR((L64/G64)^(1/5)-1),"",(L64/G64)^(1/5)-1) -> -0.02696421212
A68: 7Y rolling growth FCF/Sales | J68: =IF(ISERROR((J64/C64)^(1/7)-1),"",(J64/C64)^(1/7)-1) -> 0.0593017447 | K68: =IF(ISERROR((K64/D64)^(1/7)-1),"",(K64/D64)^(1/7)-1) -> 0.0419203987 | L68: =IF(ISERROR((L64/E64)^(1/7)-1),"",(L64/E64)^(1/7)-1) -> 0.02175471593
A69: =INDEX('MorningStar Data'!A1:A250,MATCH("Revenue"& "*",'MorningStar Data'!A1:A250,0),1) -> Revenue USD Mil | B69: =IF(INDEX('MorningStar Data'!$A$1:$M$150,MATCH(Analysis!$A$69,'MorningStar Data'!$A$1:$A$150,0),B1+1)=0,"",INDEX('MorningStar Data'!$A$1:$M$150,MATCH(Analysis!$A$69,'MorningStar Data'!$A$1:$A$150,0),B1+1)) -> 220457 | C69: =IF(INDEX('MorningStar Data'!$A$1:$M$150,MATCH(Analysis!$A$69,'MorningStar Data'!$A$1:$A$150,0),C1+1)=0,"",INDEX('MorningStar Data'!$A$1:$M$150,MATCH(Analysis!$A$69,'MorningStar Data'!$A$1:$A$150,0),C1+1)) -> 24578 | D69: =IF(INDEX('MorningStar Data'!$A$1:$M$150,MATCH(Analysis!$A$69,'MorningStar Data'!$A$1:$A$150,0),D1+1)=0,"",INDEX('MorningStar Data'!$A$1:$M$150,MATCH(Analysis!$A$69,'MorningStar Data'!$A$1:$A$150,0),D1+1)) -> 37491 | E69: =IF(INDEX('MorningStar Data'!$A$1:$M$150,MATCH(Analysis!$A$69,'MorningStar Data'!$A$1:$A$150,0),E1+1)=0,"",INDEX('MorningStar Data'!$A$1:$M$150,MATCH(Analysis!$A$69,'MorningStar Data'!$A$1:$A$150,0),E1+1)) -> 42905 | F69: =IF(INDEX('MorningStar Data'!$A$1:$M$150,MATCH(Analysis!$A$69,'MorningStar Data'!$A$1:$A$150,0),F1+1)=0,"",INDEX('MorningStar Data'!$A$1:$M$150,MATCH(Analysis!$A$69,'MorningStar Data'!$A$1:$A$150,0),F1+1)) -> 65225 | G69: =IF(INDEX('MorningStar Data'!$A$1:$M$150,MATCH(Analysis!$A$69,'MorningStar Data'!$A$1:$A$150,0),G1+1)=0,"",INDEX('MorningStar Data'!$A$1:$M$150,MATCH(Analysis!$A$69,'MorningStar Data'!$A$1:$A$150,0),G1+1)) -> 108249 | H69: =IF(INDEX('MorningStar Data'!$A$1:$M$150,MATCH(Analysis!$A$69,'MorningStar Data'!$A$1:$A$150,0),H1+1)=0,"",INDEX('MorningStar Data'!$A$1:$M$150,MATCH(Analysis!$A$69,'MorningStar Data'!$A$1:$A$150,0),H1+1)) -> 156508 | I69: =IF(INDEX('MorningStar Data'!$A$1:$M$150,MATCH(Analysis!$A$69,'MorningStar Data'!$A$1:$A$150,0),I1+1)=0,"",INDEX('MorningStar Data'!$A$1:$M$150,MATCH(Analysis!$A$69,'MorningStar Data'!$A$1:$A$150,0),I1+1)) -> 170910 | J69: =IF(INDEX('MorningStar Data'!$A$1:$M$150,MATCH(Analysis!$A$69,'MorningStar Data'!$A$1:$A$150,0),J1+1)=0,"",INDEX('MorningStar Data'!$A$1:$M$150,MATCH(Analysis!$A$69,'MorningStar Data'!$A$1:$A$150,0),J1+1)) -> 182795 | K69: =IF(INDEX('MorningStar Data'!$A$1:$M$150,MATCH(Analysis!$A$69,'MorningStar Data'!$A$1:$A$150,0),K1+1)=0,"",INDEX('MorningStar Data'!$A$1:$M$150,MATCH(Analysis!$A$69,'MorningStar Data'!$A$1:$A$150,0),K1+1)) -> 233715 | L69: =IF(INDEX('MorningStar Data'!$A$1:$M$150,MATCH(Analysis!$A$69,'MorningStar Data'!$A$1:$A$150,0),L1+1)=0,"",INDEX('MorningStar Data'!$A$1:$M$150,MATCH(Analysis!$A$69,'MorningStar Data'!$A$1:$A$150,0),L1+1)) -> 215639
A70: 1Y rolling growth growth in Revenue | D70: =IF(ISERROR((D69/C69)-1),"",(D69/C69)-1) -> 0.5253885589 | E70: =IF(ISERROR((E69/D69)-1),"",(E69/D69)-1) -> 0.1444079913 | F70: =IF(ISERROR((F69/E69)-1),"",(F69/E69)-1) -> 0.5202190887 | G70: =IF(ISERROR((G69/F69)-1),"",(G69/F69)-1) -> 0.6596243772 | H70: =IF(ISERROR((H69/G69)-1),"",(H69/G69)-1) -> 0.4458147419 | I70: =IF(ISERROR((I69/H69)-1),"",(I69/H69)-1) -> 0.09202085516 | J70: =IF(ISERROR((J69/I69)-1),"",(J69/I69)-1) -> 0.06953952373 | K70: =IF(ISERROR((K69/J69)-1),"",(K69/J69)-1) -> 0.278563418 | L70: =IF(ISERROR((L69/K69)-1),"",(L69/K69)-1) -> -0.07734206191
A71: 3Y rolling growth in revenue | F71: =IF(ISERROR((F69/C69)^(1/3)-1),"",(F69/C69)^(1/3)-1) -> 0.3844879578 | G71: =IF(ISERROR((G69/D69)^(1/3)-1),"",(G69/D69)^(1/3)-1) -> 0.4239638241 | H71: =IF(ISERROR((H69/E69)^(1/3)-1),"",(H69/E69)^(1/3)-1) -> 0.5393695034 | I71: =IF(ISERROR((I69/F69)^(1/3)-1),"",(I69/F69)^(1/3)-1) -> 0.3786408057 | J71: =IF(ISERROR((J69/G69)^(1/3)-1),"",(J69/G69)^(1/3)-1) -> 0.1908218819 | K71: =IF(ISERROR((K69/H69)^(1/3)-1),"",(K69/H69)^(1/3)-1) -> 0.1430099605 | L71: =IF(ISERROR((L69/I69)^(1/3)-1),"",(L69/I69)^(1/3)-1) -> 0.08057092641
A72: 5Y rolling growth in revenue | H72: =IF(ISERROR((H69/C69)^(1/5)-1),"",(H69/C69)^(1/5)-1) -> 0.4480981555 | I72: =IF(ISERROR((I69/D69)^(1/5)-1),"",(I69/D69)^(1/5)-1) -> 0.3544659443 | J72: =IF(ISERROR((J69/E69)^(1/5)-1),"",(J69/E69)^(1/5)-1) -> 0.3362609627 | K72: =IF(ISERROR((K69/F69)^(1/5)-1),"",(K69/F69)^(1/5)-1) -> 0.2907867532 | L72: =IF(ISERROR((L69/G69)^(1/5)-1),"",(L69/G69)^(1/5)-1) -> 0.1477853658
A73: 7Y rolling growth in revenue | J73: =IF(ISERROR((J69/C69)^(1/7)-1),"",(J69/C69)^(1/7)-1) -> 0.3319510152 | K73: =IF(ISERROR((K69/D69)^(1/7)-1),"",(K69/D69)^(1/7)-1) -> 0.29878445 | L73: =IF(ISERROR((L69/E69)^(1/7)-1),"",(L69/E69)^(1/7)-1) -> 0.2594304822
A74: Total Stockholders' Equity | B74: =IF(INDEX('MorningStar Data'!$A$1:$M$150,MATCH(Analysis!$A$74,'MorningStar Data'!$A$1:$A$150,0),B1+1)=0,"",INDEX('MorningStar Data'!$A$1:$M$150,MATCH(Analysis!$A$74,'MorningStar Data'!$A$1:$A$150,0),B1+1)) -> 40.08 | C74: =IF(INDEX('MorningStar Data'!$A$1:$M$150,MATCH(Analysis!$A$74,'MorningStar Data'!$A$1:$A$150,0),C1+1)=0,"",INDEX('MorningStar Data'!$A$1:$M$150,MATCH(Analysis!$A$74,'MorningStar Data'!$A$1:$A$150,0),C1+1)) -> 57.33 | D74: =IF(INDEX('MorningStar Data'!$A$1:$M$150,MATCH(Analysis!$A$74,'MorningStar Data'!$A$1:$A$150,0),D1+1)=0,"",INDEX('MorningStar Data'!$A$1:$M$150,MATCH(Analysis!$A$74,'MorningStar Data'!$A$1:$A$150,0),D1+1)) -> 53.14 | E74: =IF(INDEX('MorningStar Data'!$A$1:$M$150,MATCH(Analysis!$A$74,'MorningStar Data'!$A$1:$A$150,0),E1+1)=0,"",INDEX('MorningStar Data'!$A$1:$M$150,MATCH(Analysis!$A$74,'MorningStar Data'!$A$1:$A$150,0),E1+1)) -> 66.61 | F74: =IF(INDEX('MorningStar Data'!$A$1:$M$150,MATCH(Analysis!$A$74,'MorningStar Data'!$A$1:$A$150,0),F1+1)=0,"",INDEX('MorningStar Data'!$A$1:$M$150,MATCH(Analysis!$A$74,'MorningStar Data'!$A$1:$A$150,0),F1+1)) -> 63.57 | G74: =IF(INDEX('MorningStar Data'!$A$1:$M$150,MATCH(Analysis!$A$74,'MorningStar Data'!$A$1:$A$150,0),G1+1)=0,"",INDEX('MorningStar Data'!$A$1:$M$150,MATCH(Analysis!$A$74,'MorningStar Data'!$A$1:$A$150,0),G1+1)) -> 65.84 | H74: =IF(INDEX('MorningStar Data'!$A$1:$M$150,MATCH(Analysis!$A$74,'MorningStar Data'!$A$1:$A$150,0),H1+1)=0,"",INDEX('MorningStar Data'!$A$1:$M$150,MATCH(Analysis!$A$74,'MorningStar Data'!$A$1:$A$150,0),H1+1)) -> 67.14 | I74: =IF(INDEX('MorningStar Data'!$A$1:$M$150,MATCH(Analysis!$A$74,'MorningStar Data'!$A$1:$A$150,0),I1+1)=0,"",INDEX('MorningStar Data'!$A$1:$M$150,MATCH(Analysis!$A$74,'MorningStar Data'!$A$1:$A$150,0),I1+1)) -> 59.69 | J74: =IF(INDEX('MorningStar Data'!$A$1:$M$150,MATCH(Analysis!$A$74,'MorningStar Data'!$A$1:$A$150,0),J1+1)=0,"",INDEX('MorningStar Data'!$A$1:$M$150,MATCH(Analysis!$A$74,'MorningStar Data'!$A$1:$A$150,0),J1+1)) -> 48.11 | K74: =IF(INDEX('MorningStar Data'!$A$1:$M$150,MATCH(Analysis!$A$74,'MorningStar Data'!$A$1:$A$150,0),K1+1)=0,"",INDEX('MorningStar Data'!$A$1:$M$150,MATCH(Analysis!$A$74,'MorningStar Data'!$A$1:$A$150,0),K1+1)) -> 41.09 | L74: =IF(INDEX('MorningStar Data'!$A$1:$M$150,MATCH(Analysis!$A$74,'MorningStar Data'!$A$1:$A$150,0),L1+1)=0,"",INDEX('MorningStar Data'!$A$1:$M$150,MATCH(Analysis!$A$74,'MorningStar Data'!$A$1:$A$150,0),L1+1)) -> 39.87
A75: =INDEX('MorningStar Data'!A1:A250,MATCH("Working Capital"& "*",'MorningStar Data'!A1:A250,0),1) -> Working Capital USD Mil | B75: =IF(INDEX('MorningStar Data'!$A$1:$M$150,MATCH(Analysis!$A$75,'MorningStar Data'!$A$1:$A$150,0),B1+1)=0,"",INDEX('MorningStar Data'!$A$1:$M$150,MATCH(Analysis!$A$75,'MorningStar Data'!$A$1:$A$150,0),B1+1)) ->  | C75: =IF(INDEX('MorningStar Data'!$A$1:$M$150,MATCH(Analysis!$A$75,'MorningStar Data'!$A$1:$A$150,0),C1+1)=0,"",INDEX('MorningStar Data'!$A$1:$M$150,MATCH(Analysis!$A$75,'MorningStar Data'!$A$1:$A$150,0),C1+1)) -> 12657 | D75: =IF(INDEX('MorningStar Data'!$A$1:$M$150,MATCH(Analysis!$A$75,'MorningStar Data'!$A$1:$A$150,0),D1+1)=0,"",INDEX('MorningStar Data'!$A$1:$M$150,MATCH(Analysis!$A$75,'MorningStar Data'!$A$1:$A$150,0),D1+1)) -> 20598 | E75: =IF(INDEX('MorningStar Data'!$A$1:$M$150,MATCH(Analysis!$A$75,'MorningStar Data'!$A$1:$A$150,0),E1+1)=0,"",INDEX('MorningStar Data'!$A$1:$M$150,MATCH(Analysis!$A$75,'MorningStar Data'!$A$1:$A$150,0),E1+1)) -> 20049 | F75: =IF(INDEX('MorningStar Data'!$A$1:$M$150,MATCH(Analysis!$A$75,'MorningStar Data'!$A$1:$A$150,0),F1+1)=0,"",INDEX('MorningStar Data'!$A$1:$M$150,MATCH(Analysis!$A$75,'MorningStar Data'!$A$1:$A$150,0),F1+1)) -> 20956 | G75: =IF(INDEX('MorningStar Data'!$A$1:$M$150,MATCH(Analysis!$A$75,'MorningStar Data'!$A$1:$A$150,0),G1+1)=0,"",INDEX('MorningStar Data'!$A$1:$M$150,MATCH(Analysis!$A$75,'MorningStar Data'!$A$1:$A$150,0),G1+1)) -> 17018 | H75: =IF(INDEX('MorningStar Data'!$A$1:$M$150,MATCH(Analysis!$A$75,'MorningStar Data'!$A$1:$A$150,0),H1+1)=0,"",INDEX('MorningStar Data'!$A$1:$M$150,MATCH(Analysis!$A$75,'MorningStar Data'!$A$1:$A$150,0),H1+1)) -> 19111 | I75: =IF(INDEX('MorningStar Data'!$A$1:$M$150,MATCH(Analysis!$A$75,'MorningStar Data'!$A$1:$A$150,0),I1+1)=0,"",INDEX('MorningStar Data'!$A$1:$M$150,MATCH(Analysis!$A$75,'MorningStar Data'!$A$1:$A$150,0),I1+1)) -> 29628 | J75: =IF(INDEX('MorningStar Data'!$A$1:$M$150,MATCH(Analysis!$A$75,'MorningStar Data'!$A$1:$A$150,0),J1+1)=0,"",INDEX('MorningStar Data'!$A$1:$M$150,MATCH(Analysis!$A$75,'MorningStar Data'!$A$1:$A$150,0),J1+1)) -> 5083 | K75: =IF(INDEX('MorningStar Data'!$A$1:$M$150,MATCH(Analysis!$A$75,'MorningStar Data'!$A$1:$A$150,0),K1+1)=0,"",INDEX('MorningStar Data'!$A$1:$M$150,MATCH(Analysis!$A$75,'MorningStar Data'!$A$1:$A$150,0),K1+1)) -> 8768 | L75: =IF(INDEX('MorningStar Data'!$A$1:$M$150,MATCH(Analysis!$A$75,'MorningStar Data'!$A$1:$A$150,0),L1+1)=0,"",INDEX('MorningStar Data'!$A$1:$M$150,MATCH(Analysis!$A$75,'MorningStar Data'!$A$1:$A$150,0),L1+1)) -> 27863 | M75: =AVERAGE(C75:L75) -> 18173.1 | N75: =STDEV(C69:L69) -> 78028.76858
A76: 1Y rolling growth growth in Work. Cap. | D76: =IF(ISERROR((D75/C75)-1),"",(D75/C75)-1) -> 0.6273998578 | E76: =IF(ISERROR((E75/D75)-1),"",(E75/D75)-1) -> -0.02665307311 | F76: =IF(ISERROR((F75/E75)-1),"",(F75/E75)-1) -> 0.04523916405 | G76: =IF(ISERROR((G75/F75)-1),"",(G75/F75)-1) -> -0.1879175415 | H76: =IF(ISERROR((H75/G75)-1),"",(H75/G75)-1) -> 0.1229874251 | I76: =IF(ISERROR((I75/H75)-1),"",(I75/H75)-1) -> 0.550311339 | J76: =IF(ISERROR((J75/I75)-1),"",(J75/I75)-1) -> -0.8284393142 | K76: =IF(ISERROR((K75/J75)-1),"",(K75/J75)-1) -> 0.7249655715 | L76: =IF(ISERROR((L75/K75)-1),"",(L75/K75)-1) -> 2.177805657
A77: 3Y rolling growth in Work. Cap. | F77: =IF(ISERROR((F75/C75)^(1/3)-1),"",(F75/C75)^(1/3)-1) -> 0.1830212251 | G77: =IF(ISERROR((G75/D75)^(1/3)-1),"",(G75/D75)^(1/3)-1) -> -0.06165800113 | H77: =IF(ISERROR((H75/E75)^(1/3)-1),"",(H75/E75)^(1/3)-1) -> -0.01584485883 | I77: =IF(ISERROR((I75/F75)^(1/3)-1),"",(I75/F75)^(1/3)-1) -> 0.1223577646 | J77: =IF(ISERROR((J75/G75)^(1/3)-1),"",(J75/G75)^(1/3)-1) -> -0.3315475335 | K77: =IF(ISERROR((K75/H75)^(1/3)-1),"",(K75/H75)^(1/3)-1) -> -0.2287312954 | L77: =IF(ISERROR((L75/I75)^(1/3)-1),"",(L75/I75)^(1/3)-1) -> -0.02026524826
A78: 5Y rolling growth in Work. Cap. | H78: =IF(ISERROR((H75/C75)^(1/5)-1),"",(H75/C75)^(1/5)-1) -> 0.08590173364 | I78: =IF(ISERROR((I75/D75)^(1/5)-1),"",(I75/D75)^(1/5)-1) -> 0.07541343172 | J78: =IF(ISERROR((J75/E75)^(1/5)-1),"",(J75/E75)^(1/5)-1) -> -0.2400141982 | K78: =IF(ISERROR((K75/F75)^(1/5)-1),"",(K75/F75)^(1/5)-1) -> -0.159924285 | L78: =IF(ISERROR((L75/G75)^(1/5)-1),"",(L75/G75)^(1/5)-1) -> 0.1036309497
A79: 7Y rolling growth in Work. Cap. | J79: =IF(ISERROR((J75/C75)^(1/7)-1),"",(J75/C75)^(1/7)-1) -> -0.1221941402 | K79: =IF(ISERROR((K75/D75)^(1/7)-1),"",(K75/D75)^(1/7)-1) -> -0.1148624117 | L79: =IF(ISERROR((L75/E75)^(1/7)-1),"",(L75/E75)^(1/7)-1) -> 0.04814003194
A80: =INDEX('MorningStar Data'!A1:A250,MATCH("Operating Income"& "*",'MorningStar Data'!A1:A250,0),1) -> Operating Income USD Mil | B80: =IF(INDEX('MorningStar Data'!$A$1:$M$150,MATCH(Analysis!$A$80,'MorningStar Data'!$A$1:$A$150,0),B1+1)=0,"",INDEX('MorningStar Data'!$A$1:$M$150,MATCH(Analysis!$A$80,'MorningStar Data'!$A$1:$A$150,0),B1+1)) -> 59322 | C80: =IF(INDEX('MorningStar Data'!$A$1:$M$150,MATCH(Analysis!$A$80,'MorningStar Data'!$A$1:$A$150,0),C1+1)=0,"",INDEX('MorningStar Data'!$A$1:$M$150,MATCH(Analysis!$A$80,'MorningStar Data'!$A$1:$A$150,0),C1+1)) -> 4407 | D80: =IF(INDEX('MorningStar Data'!$A$1:$M$150,MATCH(Analysis!$A$80,'MorningStar Data'!$A$1:$A$150,0),D1+1)=0,"",INDEX('MorningStar Data'!$A$1:$M$150,MATCH(Analysis!$A$80,'MorningStar Data'!$A$1:$A$150,0),D1+1)) -> 8327 | E80: =IF(INDEX('MorningStar Data'!$A$1:$M$150,MATCH(Analysis!$A$80,'MorningStar Data'!$A$1:$A$150,0),E1+1)=0,"",INDEX('MorningStar Data'!$A$1:$M$150,MATCH(Analysis!$A$80,'MorningStar Data'!$A$1:$A$150,0),E1+1)) -> 11740 | F80: =IF(INDEX('MorningStar Data'!$A$1:$M$150,MATCH(Analysis!$A$80,'MorningStar Data'!$A$1:$A$150,0),F1+1)=0,"",INDEX('MorningStar Data'!$A$1:$M$150,MATCH(Analysis!$A$80,'MorningStar Data'!$A$1:$A$150,0),F1+1)) -> 18385 | G80: =IF(INDEX('MorningStar Data'!$A$1:$M$150,MATCH(Analysis!$A$80,'MorningStar Data'!$A$1:$A$150,0),G1+1)=0,"",INDEX('MorningStar Data'!$A$1:$M$150,MATCH(Analysis!$A$80,'MorningStar Data'!$A$1:$A$150,0),G1+1)) -> 33790 | H80: =IF(INDEX('MorningStar Data'!$A$1:$M$150,MATCH(Analysis!$A$80,'MorningStar Data'!$A$1:$A$150,0),H1+1)=0,"",INDEX('MorningStar Data'!$A$1:$M$150,MATCH(Analysis!$A$80,'MorningStar Data'!$A$1:$A$150,0),H1+1)) -> 55241 | I80: =IF(INDEX('MorningStar Data'!$A$1:$M$150,MATCH(Analysis!$A$80,'MorningStar Data'!$A$1:$A$150,0),I1+1)=0,"",INDEX('MorningStar Data'!$A$1:$M$150,MATCH(Analysis!$A$80,'MorningStar Data'!$A$1:$A$150,0),I1+1)) -> 48999 | J80: =IF(INDEX('MorningStar Data'!$A$1:$M$150,MATCH(Analysis!$A$80,'MorningStar Data'!$A$1:$A$150,0),J1+1)=0,"",INDEX('MorningStar Data'!$A$1:$M$150,MATCH(Analysis!$A$80,'MorningStar Data'!$A$1:$A$150,0),J1+1)) -> 52503 | K80: =IF(INDEX('MorningStar Data'!$A$1:$M$150,MATCH(Analysis!$A$80,'MorningStar Data'!$A$1:$A$150,0),K1+1)=0,"",INDEX('MorningStar Data'!$A$1:$M$150,MATCH(Analysis!$A$80,'MorningStar Data'!$A$1:$A$150,0),K1+1)) -> 71230 | L80: =IF(INDEX('MorningStar Data'!$A$1:$M$150,MATCH(Analysis!$A$80,'MorningStar Data'!$A$1:$A$150,0),L1+1)=0,"",INDEX('MorningStar Data'!$A$1:$M$150,MATCH(Analysis!$A$80,'MorningStar Data'!$A$1:$A$150,0),L1+1)) -> 60024
A81: =INDEX('MorningStar Data'!A1:A250,MATCH("Operating Margin",'MorningStar Data'!A1:A250,0),1) -> Operating Margin | B81: =IF(INDEX('MorningStar Data'!$A$1:$M$150,MATCH(Analysis!$A$81,'MorningStar Data'!$A$1:$A$150,0),B1+1)=0,"",INDEX('MorningStar Data'!$A$1:$M$150,MATCH(Analysis!$A$81,'MorningStar Data'!$A$1:$A$150,0),B1+1)) -> 26.91 | C81: =IF(INDEX('MorningStar Data'!$A$1:$M$150,MATCH(Analysis!$A$81,'MorningStar Data'!$A$1:$A$150,0),C1+1)=0,"",INDEX('MorningStar Data'!$A$1:$M$150,MATCH(Analysis!$A$81,'MorningStar Data'!$A$1:$A$150,0),C1+1)) -> 17.93 | D81: =IF(INDEX('MorningStar Data'!$A$1:$M$150,MATCH(Analysis!$A$81,'MorningStar Data'!$A$1:$A$150,0),D1+1)=0,"",INDEX('MorningStar Data'!$A$1:$M$150,MATCH(Analysis!$A$81,'MorningStar Data'!$A$1:$A$150,0),D1+1)) -> 22.21 | E81: =IF(INDEX('MorningStar Data'!$A$1:$M$150,MATCH(Analysis!$A$81,'MorningStar Data'!$A$1:$A$150,0),E1+1)=0,"",INDEX('MorningStar Data'!$A$1:$M$150,MATCH(Analysis!$A$81,'MorningStar Data'!$A$1:$A$150,0),E1+1)) -> 27.36 | F81: =IF(INDEX('MorningStar Data'!$A$1:$M$150,MATCH(Analysis!$A$81,'MorningStar Data'!$A$1:$A$150,0),F1+1)=0,"",INDEX('MorningStar Data'!$A$1:$M$150,MATCH(Analysis!$A$81,'MorningStar Data'!$A$1:$A$150,0),F1+1)) -> 28.19 | G81: =IF(INDEX('MorningStar Data'!$A$1:$M$150,MATCH(Analysis!$A$81,'MorningStar Data'!$A$1:$A$150,0),G1+1)=0,"",INDEX('MorningStar Data'!$A$1:$M$150,MATCH(Analysis!$A$81,'MorningStar Data'!$A$1:$A$150,0),G1+1)) -> 31.22 | H81: =IF(INDEX('MorningStar Data'!$A$1:$M$150,MATCH(Analysis!$A$81,'MorningStar Data'!$A$1:$A$150,0),H1+1)=0,"",INDEX('MorningStar Data'!$A$1:$M$150,MATCH(Analysis!$A$81,'MorningStar Data'!$A$1:$A$150,0),H1+1)) -> 35.3 | I81: =IF(INDEX('MorningStar Data'!$A$1:$M$150,MATCH(Analysis!$A$81,'MorningStar Data'!$A$1:$A$150,0),I1+1)=0,"",INDEX('MorningStar Data'!$A$1:$M$150,MATCH(Analysis!$A$81,'MorningStar Data'!$A$1:$A$150,0),I1+1)) -> 28.67 | J81: =IF(INDEX('MorningStar Data'!$A$1:$M$150,MATCH(Analysis!$A$81,'MorningStar Data'!$A$1:$A$150,0),J1+1)=0,"",INDEX('MorningStar Data'!$A$1:$M$150,MATCH(Analysis!$A$81,'MorningStar Data'!$A$1:$A$150,0),J1+1)) -> 28.72 | K81: =IF(INDEX('MorningStar Data'!$A$1:$M$150,MATCH(Analysis!$A$81,'MorningStar Data'!$A$1:$A$150,0),K1+1)=0,"",INDEX('MorningStar Data'!$A$1:$M$150,MATCH(Analysis!$A$81,'MorningStar Data'!$A$1:$A$150,0),K1+1)) -> 30.48 | L81: =IF(INDEX('MorningStar Data'!$A$1:$M$150,MATCH(Analysis!$A$81,'MorningStar Data'!$A$1:$A$150,0),L1+1)=0,"",INDEX('MorningStar Data'!$A$1:$M$150,MATCH(Analysis!$A$81,'MorningStar Data'!$A$1:$A$150,0),L1+1)) -> 27.84
A82: EBT Margin | B82: =IF(INDEX('MorningStar Data'!$A$1:$M$150,MATCH(Analysis!$A$82,'MorningStar Data'!$A$1:$A$150,0),B1+1)=0,"",INDEX('MorningStar Data'!$A$1:$M$150,MATCH(Analysis!$A$82,'MorningStar Data'!$A$1:$A$150,0),B1+1)) -> 27.91 | C82: =IF(INDEX('MorningStar Data'!$A$1:$M$150,MATCH(Analysis!$A$82,'MorningStar Data'!$A$1:$A$150,0),C1+1)=0,"",INDEX('MorningStar Data'!$A$1:$M$150,MATCH(Analysis!$A$82,'MorningStar Data'!$A$1:$A$150,0),C1+1)) -> 20.37 | D82: =IF(INDEX('MorningStar Data'!$A$1:$M$150,MATCH(Analysis!$A$82,'MorningStar Data'!$A$1:$A$150,0),D1+1)=0,"",INDEX('MorningStar Data'!$A$1:$M$150,MATCH(Analysis!$A$82,'MorningStar Data'!$A$1:$A$150,0),D1+1)) -> 23.86 | E82: =IF(INDEX('MorningStar Data'!$A$1:$M$150,MATCH(Analysis!$A$82,'MorningStar Data'!$A$1:$A$150,0),E1+1)=0,"",INDEX('MorningStar Data'!$A$1:$M$150,MATCH(Analysis!$A$82,'MorningStar Data'!$A$1:$A$150,0),E1+1)) -> 28.12 | F82: =IF(INDEX('MorningStar Data'!$A$1:$M$150,MATCH(Analysis!$A$82,'MorningStar Data'!$A$1:$A$150,0),F1+1)=0,"",INDEX('MorningStar Data'!$A$1:$M$150,MATCH(Analysis!$A$82,'MorningStar Data'!$A$1:$A$150,0),F1+1)) -> 28.42 | G82: =IF(INDEX('MorningStar Data'!$A$1:$M$150,MATCH(Analysis!$A$82,'MorningStar Data'!$A$1:$A$150,0),G1+1)=0,"",INDEX('MorningStar Data'!$A$1:$M$150,MATCH(Analysis!$A$82,'MorningStar Data'!$A$1:$A$150,0),G1+1)) -> 31.6 | H82: =IF(INDEX('MorningStar Data'!$A$1:$M$150,MATCH(Analysis!$A$82,'MorningStar Data'!$A$1:$A$150,0),H1+1)=0,"",INDEX('MorningStar Data'!$A$1:$M$150,MATCH(Analysis!$A$82,'MorningStar Data'!$A$1:$A$150,0),H1+1)) -> 35.63 | I82: =IF(INDEX('MorningStar Data'!$A$1:$M$150,MATCH(Analysis!$A$82,'MorningStar Data'!$A$1:$A$150,0),I1+1)=0,"",INDEX('MorningStar Data'!$A$1:$M$150,MATCH(Analysis!$A$82,'MorningStar Data'!$A$1:$A$150,0),I1+1)) -> 29.35 | J82: =IF(INDEX('MorningStar Data'!$A$1:$M$150,MATCH(Analysis!$A$82,'MorningStar Data'!$A$1:$A$150,0),J1+1)=0,"",INDEX('MorningStar Data'!$A$1:$M$150,MATCH(Analysis!$A$82,'MorningStar Data'!$A$1:$A$150,0),J1+1)) -> 29.26 | K82: =IF(INDEX('MorningStar Data'!$A$1:$M$150,MATCH(Analysis!$A$82,'MorningStar Data'!$A$1:$A$150,0),K1+1)=0,"",INDEX('MorningStar Data'!$A$1:$M$150,MATCH(Analysis!$A$82,'MorningStar Data'!$A$1:$A$150,0),K1+1)) -> 31.03 | L82: =IF(INDEX('MorningStar Data'!$A$1:$M$150,MATCH(Analysis!$A$82,'MorningStar Data'!$A$1:$A$150,0),L1+1)=0,"",INDEX('MorningStar Data'!$A$1:$M$150,MATCH(Analysis!$A$82,'MorningStar Data'!$A$1:$A$150,0),L1+1)) -> 28.46
A83: Net Sales (same currency as op. income) | B83: =IF(ISERROR(B80/B81),"",B80/B81) -> 2204.459309 | C83: =IF(ISERROR(C80/C81),"",C80/C81) -> 245.7891801 | D83: 374.9212067 | E83: 429.0935673 | F83: 652.1816247 | G83: 1082.319026 | H83: 1564.90085 | I83: 1709.068713 | J83: 1828.098886 | K83: 2336.942257 | L83: 2156.034483
A84: Earnings before taxes | B84: =IF(ISERROR(B83*B82),"",B83*B82) -> 61526.45931 | C84: =IF(ISERROR(C83*C82),"",C83*C82) -> 5006.7256 | D84: 8945.619991 | E84: 12066.11111 | F84: 18535.00177 | G84: 34201.28123 | H84: 55757.41728 | I84: 50161.16672 | J84: 53490.1734 | K84: 72515.31824 | L84: 61360.74138
A85: Debt/Equity | C85: =IF(INDEX('MorningStar Data'!$A$1:$M$150,MATCH(Analysis!$A$85,'MorningStar Data'!$A$1:$A$150,0),C1+1)=0,"",INDEX('MorningStar Data'!$A$1:$M$150,MATCH(Analysis!$A$85,'MorningStar Data'!$A$1:$A$150,0),C1+1)) ->  | D85: =IF(INDEX('MorningStar Data'!$A$1:$M$150,MATCH(Analysis!$A$85,'MorningStar Data'!$A$1:$A$150,0),D1+1)=0,"",INDEX('MorningStar Data'!$A$1:$M$150,MATCH(Analysis!$A$85,'MorningStar Data'!$A$1:$A$150,0),D1+1)) ->  | E85: =IF(INDEX('MorningStar Data'!$A$1:$M$150,MATCH(Analysis!$A$85,'MorningStar Data'!$A$1:$A$150,0),E1+1)=0,"",INDEX('MorningStar Data'!$A$1:$M$150,MATCH(Analysis!$A$85,'MorningStar Data'!$A$1:$A$150,0),E1+1)) ->  | F85: =IF(INDEX('MorningStar Data'!$A$1:$M$150,MATCH(Analysis!$A$85,'MorningStar Data'!$A$1:$A$150,0),F1+1)=0,"",INDEX('MorningStar Data'!$A$1:$M$150,MATCH(Analysis!$A$85,'MorningStar Data'!$A$1:$A$150,0),F1+1)) ->  | G85: =IF(INDEX('MorningStar Data'!$A$1:$M$150,MATCH(Analysis!$A$85,'MorningStar Data'!$A$1:$A$150,0),G1+1)=0,"",INDEX('MorningStar Data'!$A$1:$M$150,MATCH(Analysis!$A$85,'MorningStar Data'!$A$1:$A$150,0),G1+1)) ->  | H85: =IF(INDEX('MorningStar Data'!$A$1:$M$150,MATCH(Analysis!$A$85,'MorningStar Data'!$A$1:$A$150,0),H1+1)=0,"",INDEX('MorningStar Data'!$A$1:$M$150,MATCH(Analysis!$A$85,'MorningStar Data'!$A$1:$A$150,0),H1+1)) ->  | I85: =IF(INDEX('MorningStar Data'!$A$1:$M$150,MATCH(Analysis!$A$85,'MorningStar Data'!$A$1:$A$150,0),I1+1)=0,"",INDEX('MorningStar Data'!$A$1:$M$150,MATCH(Analysis!$A$85,'MorningStar Data'!$A$1:$A$150,0),I1+1)) -> 0.14 | J85: =IF(INDEX('MorningStar Data'!$A$1:$M$150,MATCH(Analysis!$A$85,'MorningStar Data'!$A$1:$A$150,0),J1+1)=0,"",INDEX('MorningStar Data'!$A$1:$M$150,MATCH(Analysis!$A$85,'MorningStar Data'!$A$1:$A$150,0),J1+1)) -> 0.26 | K85: =IF(INDEX('MorningStar Data'!$A$1:$M$150,MATCH(Analysis!$A$85,'MorningStar Data'!$A$1:$A$150,0),K1+1)=0,"",INDEX('MorningStar Data'!$A$1:$M$150,MATCH(Analysis!$A$85,'MorningStar Data'!$A$1:$A$150,0),K1+1)) -> 0.45 | L85: =IF(INDEX('MorningStar Data'!$A$1:$M$150,MATCH(Analysis!$A$85,'MorningStar Data'!$A$1:$A$150,0),L1+1)=0,"",INDEX('MorningStar Data'!$A$1:$M$150,MATCH(Analysis!$A$85,'MorningStar Data'!$A$1:$A$150,0),L1+1)) -> 0.59
A86: Total liabilities | C86: =IF(INDEX('MorningStar Data'!$A$1:$M$150,MATCH(Analysis!$A$86,'MorningStar Data'!$A$1:$A$150,0),C1+1)=0,"",INDEX('MorningStar Data'!$A$1:$M$150,MATCH(Analysis!$A$86,'MorningStar Data'!$A$1:$A$150,0),C1+1)) -> 42.67 | D86: =IF(INDEX('MorningStar Data'!$A$1:$M$150,MATCH(Analysis!$A$86,'MorningStar Data'!$A$1:$A$150,0),D1+1)=0,"",INDEX('MorningStar Data'!$A$1:$M$150,MATCH(Analysis!$A$86,'MorningStar Data'!$A$1:$A$150,0),D1+1)) -> 46.86 | E86: =IF(INDEX('MorningStar Data'!$A$1:$M$150,MATCH(Analysis!$A$86,'MorningStar Data'!$A$1:$A$150,0),E1+1)=0,"",INDEX('MorningStar Data'!$A$1:$M$150,MATCH(Analysis!$A$86,'MorningStar Data'!$A$1:$A$150,0),E1+1)) -> 33.39 | F86: =IF(INDEX('MorningStar Data'!$A$1:$M$150,MATCH(Analysis!$A$86,'MorningStar Data'!$A$1:$A$150,0),F1+1)=0,"",INDEX('MorningStar Data'!$A$1:$M$150,MATCH(Analysis!$A$86,'MorningStar Data'!$A$1:$A$150,0),F1+1)) -> 36.43 | G86: =IF(INDEX('MorningStar Data'!$A$1:$M$150,MATCH(Analysis!$A$86,'MorningStar Data'!$A$1:$A$150,0),G1+1)=0,"",INDEX('MorningStar Data'!$A$1:$M$150,MATCH(Analysis!$A$86,'MorningStar Data'!$A$1:$A$150,0),G1+1)) -> 34.16 | H86: =IF(INDEX('MorningStar Data'!$A$1:$M$150,MATCH(Analysis!$A$86,'MorningStar Data'!$A$1:$A$150,0),H1+1)=0,"",INDEX('MorningStar Data'!$A$1:$M$150,MATCH(Analysis!$A$86,'MorningStar Data'!$A$1:$A$150,0),H1+1)) -> 32.86 | I86: =IF(INDEX('MorningStar Data'!$A$1:$M$150,MATCH(Analysis!$A$86,'MorningStar Data'!$A$1:$A$150,0),I1+1)=0,"",INDEX('MorningStar Data'!$A$1:$M$150,MATCH(Analysis!$A$86,'MorningStar Data'!$A$1:$A$150,0),I1+1)) -> 40.31 | J86: =IF(INDEX('MorningStar Data'!$A$1:$M$150,MATCH(Analysis!$A$86,'MorningStar Data'!$A$1:$A$150,0),J1+1)=0,"",INDEX('MorningStar Data'!$A$1:$M$150,MATCH(Analysis!$A$86,'MorningStar Data'!$A$1:$A$150,0),J1+1)) -> 51.89 | K86: =IF(INDEX('MorningStar Data'!$A$1:$M$150,MATCH(Analysis!$A$86,'MorningStar Data'!$A$1:$A$150,0),K1+1)=0,"",INDEX('MorningStar Data'!$A$1:$M$150,MATCH(Analysis!$A$86,'MorningStar Data'!$A$1:$A$150,0),K1+1)) -> 58.91 | L86: =IF(INDEX('MorningStar Data'!$A$1:$M$150,MATCH(Analysis!$A$86,'MorningStar Data'!$A$1:$A$150,0),L1+1)=0,"",INDEX('MorningStar Data'!$A$1:$M$150,MATCH(Analysis!$A$86,'MorningStar Data'!$A$1:$A$150,0),L1+1)) -> 60.13
A87: Return on Assets % | C87: =IF(INDEX('MorningStar Data'!$A$1:$M$150,MATCH(Analysis!$A$87,'MorningStar Data'!$A$1:$A$150,0),C1+1)=0,"",INDEX('MorningStar Data'!$A$1:$M$150,MATCH(Analysis!$A$87,'MorningStar Data'!$A$1:$A$150,0),C1+1)) -> 16.43 | D87: =IF(INDEX('MorningStar Data'!$A$1:$M$150,MATCH(Analysis!$A$87,'MorningStar Data'!$A$1:$A$150,0),D1+1)=0,"",INDEX('MorningStar Data'!$A$1:$M$150,MATCH(Analysis!$A$87,'MorningStar Data'!$A$1:$A$150,0),D1+1)) -> 14.89 | E87: =IF(INDEX('MorningStar Data'!$A$1:$M$150,MATCH(Analysis!$A$87,'MorningStar Data'!$A$1:$A$150,0),E1+1)=0,"",INDEX('MorningStar Data'!$A$1:$M$150,MATCH(Analysis!$A$87,'MorningStar Data'!$A$1:$A$150,0),E1+1)) -> 18.92 | F87: =IF(INDEX('MorningStar Data'!$A$1:$M$150,MATCH(Analysis!$A$87,'MorningStar Data'!$A$1:$A$150,0),F1+1)=0,"",INDEX('MorningStar Data'!$A$1:$M$150,MATCH(Analysis!$A$87,'MorningStar Data'!$A$1:$A$150,0),F1+1)) -> 22.84 | G87: =IF(INDEX('MorningStar Data'!$A$1:$M$150,MATCH(Analysis!$A$87,'MorningStar Data'!$A$1:$A$150,0),G1+1)=0,"",INDEX('MorningStar Data'!$A$1:$M$150,MATCH(Analysis!$A$87,'MorningStar Data'!$A$1:$A$150,0),G1+1)) -> 27.07 | H87: =IF(INDEX('MorningStar Data'!$A$1:$M$150,MATCH(Analysis!$A$87,'MorningStar Data'!$A$1:$A$150,0),H1+1)=0,"",INDEX('MorningStar Data'!$A$1:$M$150,MATCH(Analysis!$A$87,'MorningStar Data'!$A$1:$A$150,0),H1+1)) -> 28.54 | I87: =IF(INDEX('MorningStar Data'!$A$1:$M$150,MATCH(Analysis!$A$87,'MorningStar Data'!$A$1:$A$150,0),I1+1)=0,"",INDEX('MorningStar Data'!$A$1:$M$150,MATCH(Analysis!$A$87,'MorningStar Data'!$A$1:$A$150,0),I1+1)) -> 19.34 | J87: =IF(INDEX('MorningStar Data'!$A$1:$M$150,MATCH(Analysis!$A$87,'MorningStar Data'!$A$1:$A$150,0),J1+1)=0,"",INDEX('MorningStar Data'!$A$1:$M$150,MATCH(Analysis!$A$87,'MorningStar Data'!$A$1:$A$150,0),J1+1)) -> 18.01 | K87: =IF(INDEX('MorningStar Data'!$A$1:$M$150,MATCH(Analysis!$A$87,'MorningStar Data'!$A$1:$A$150,0),K1+1)=0,"",INDEX('MorningStar Data'!$A$1:$M$150,MATCH(Analysis!$A$87,'MorningStar Data'!$A$1:$A$150,0),K1+1)) -> 20.45 | L87: =IF(INDEX('MorningStar Data'!$A$1:$M$150,MATCH(Analysis!$A$87,'MorningStar Data'!$A$1:$A$150,0),L1+1)=0,"",INDEX('MorningStar Data'!$A$1:$M$150,MATCH(Analysis!$A$87,'MorningStar Data'!$A$1:$A$150,0),L1+1)) -> 14.93
A88: Total assets (same currency as net income) | C88: =IF(ISERROR(C24/C87),"",C24/C87%) -> 21272.0633 | D88: =IF(ISERROR(D24/D87),"",D24/D87%) -> 41094.69443 | E88: 43525.36998 | F88: 61352.88967 | G88: 95759.14296 | H88: 146226.349 | I88: 191504.6536 | J88: 219378.1233 | K88: 261095.3545 | L88: 306008.0375 | N88: =C87 -> 16.43
A89: Total Liabilities | C89: =IF(ISERROR(C86*C88),"",C86%*C88) -> 9076.78941 | D89: =IF(ISERROR(D86*D88),"",D86%*D88) -> 19256.97381 | E89: 14533.12104 | F89: 22350.85771 | G89: 32711.32324 | H89: 48049.97828 | I89: 77195.52585 | J89: 113835.3082 | K89: 153811.2733 | L89: 184002.633 | N89: =C87% -> 0.1643
A90: Cash & Short-Term Investments | C90: =IF(INDEX('MorningStar Data'!$A$1:$M$150,MATCH(Analysis!$A$90,'MorningStar Data'!$A$1:$A$150,0),C1+1)=0,"",INDEX('MorningStar Data'!$A$1:$M$150,MATCH(Analysis!$A$90,'MorningStar Data'!$A$1:$A$150,0),C1+1)) -> 60.7 | D90: =IF(INDEX('MorningStar Data'!$A$1:$M$150,MATCH(Analysis!$A$90,'MorningStar Data'!$A$1:$A$150,0),D1+1)=0,"",INDEX('MorningStar Data'!$A$1:$M$150,MATCH(Analysis!$A$90,'MorningStar Data'!$A$1:$A$150,0),D1+1)) -> 61.89 | E90: =IF(INDEX('MorningStar Data'!$A$1:$M$150,MATCH(Analysis!$A$90,'MorningStar Data'!$A$1:$A$150,0),E1+1)=0,"",INDEX('MorningStar Data'!$A$1:$M$150,MATCH(Analysis!$A$90,'MorningStar Data'!$A$1:$A$150,0),E1+1)) -> 49.4 | F90: =IF(INDEX('MorningStar Data'!$A$1:$M$150,MATCH(Analysis!$A$90,'MorningStar Data'!$A$1:$A$150,0),F1+1)=0,"",INDEX('MorningStar Data'!$A$1:$M$150,MATCH(Analysis!$A$90,'MorningStar Data'!$A$1:$A$150,0),F1+1)) -> 34.08 | G90: =IF(INDEX('MorningStar Data'!$A$1:$M$150,MATCH(Analysis!$A$90,'MorningStar Data'!$A$1:$A$150,0),G1+1)=0,"",INDEX('MorningStar Data'!$A$1:$M$150,MATCH(Analysis!$A$90,'MorningStar Data'!$A$1:$A$150,0),G1+1)) -> 22.3 | H90: =IF(INDEX('MorningStar Data'!$A$1:$M$150,MATCH(Analysis!$A$90,'MorningStar Data'!$A$1:$A$150,0),H1+1)=0,"",INDEX('MorningStar Data'!$A$1:$M$150,MATCH(Analysis!$A$90,'MorningStar Data'!$A$1:$A$150,0),H1+1)) -> 16.54 | I90: =IF(INDEX('MorningStar Data'!$A$1:$M$150,MATCH(Analysis!$A$90,'MorningStar Data'!$A$1:$A$150,0),I1+1)=0,"",INDEX('MorningStar Data'!$A$1:$M$150,MATCH(Analysis!$A$90,'MorningStar Data'!$A$1:$A$150,0),I1+1)) -> 19.59 | J90: =IF(INDEX('MorningStar Data'!$A$1:$M$150,MATCH(Analysis!$A$90,'MorningStar Data'!$A$1:$A$150,0),J1+1)=0,"",INDEX('MorningStar Data'!$A$1:$M$150,MATCH(Analysis!$A$90,'MorningStar Data'!$A$1:$A$150,0),J1+1)) -> 10.82 | K90: =IF(INDEX('MorningStar Data'!$A$1:$M$150,MATCH(Analysis!$A$90,'MorningStar Data'!$A$1:$A$150,0),K1+1)=0,"",INDEX('MorningStar Data'!$A$1:$M$150,MATCH(Analysis!$A$90,'MorningStar Data'!$A$1:$A$150,0),K1+1)) -> 14.32 | L90: =IF(INDEX('MorningStar Data'!$A$1:$M$150,MATCH(Analysis!$A$90,'MorningStar Data'!$A$1:$A$150,0),L1+1)=0,"",INDEX('MorningStar Data'!$A$1:$M$150,MATCH(Analysis!$A$90,'MorningStar Data'!$A$1:$A$150,0),L1+1)) -> 20.88
A91: Cash & Short-Term Investments | C91: =IF(ISERROR(C90*C88),"",C90%*C88) -> 12912.14242 | D91: =IF(ISERROR(D90*D88),"",D90%*D88) -> 25433.50638 | E91: 21501.53277 | F91: 20909.0648 | G91: 21354.28888 | H91: 24185.83812 | I91: 37515.76163 | J91: 23736.71294 | K91: 37388.85477 | L91: 63894.47823
A92: Short-Term Debt | C92: =IF(INDEX('MorningStar Data'!$A$1:$M$150,MATCH(Analysis!$A$92,'MorningStar Data'!$A$1:$A$150,0),C1+1)=0,0,INDEX('MorningStar Data'!$A$1:$M$150,MATCH(Analysis!$A$92,'MorningStar Data'!$A$1:$A$150,0),C1+1))%*IF(C88="",0,C88) -> 0 | D92: =IF(INDEX('MorningStar Data'!$A$1:$M$150,MATCH(Analysis!$A$92,'MorningStar Data'!$A$1:$A$150,0),D1+1)=0,0,INDEX('MorningStar Data'!$A$1:$M$150,MATCH(Analysis!$A$92,'MorningStar Data'!$A$1:$A$150,0),D1+1))%*IF(D88="",0,D88) -> 0 | E92: =IF(INDEX('MorningStar Data'!$A$1:$M$150,MATCH(Analysis!$A$92,'MorningStar Data'!$A$1:$A$150,0),E1+1)=0,0,INDEX('MorningStar Data'!$A$1:$M$150,MATCH(Analysis!$A$92,'MorningStar Data'!$A$1:$A$150,0),E1+1))%*IF(E88="",0,E88) -> 0 | F92: =IF(INDEX('MorningStar Data'!$A$1:$M$150,MATCH(Analysis!$A$92,'MorningStar Data'!$A$1:$A$150,0),F1+1)=0,0,INDEX('MorningStar Data'!$A$1:$M$150,MATCH(Analysis!$A$92,'MorningStar Data'!$A$1:$A$150,0),F1+1))%*IF(F88="",0,F88) -> 0 | G92: =IF(INDEX('MorningStar Data'!$A$1:$M$150,MATCH(Analysis!$A$92,'MorningStar Data'!$A$1:$A$150,0),G1+1)=0,0,INDEX('MorningStar Data'!$A$1:$M$150,MATCH(Analysis!$A$92,'MorningStar Data'!$A$1:$A$150,0),G1+1))%*IF(G88="",0,G88) -> 0 | H92: =IF(INDEX('MorningStar Data'!$A$1:$M$150,MATCH(Analysis!$A$92,'MorningStar Data'!$A$1:$A$150,0),H1+1)=0,0,INDEX('MorningStar Data'!$A$1:$M$150,MATCH(Analysis!$A$92,'MorningStar Data'!$A$1:$A$150,0),H1+1))%*IF(H88="",0,H88) -> 0 | I92: =IF(INDEX('MorningStar Data'!$A$1:$M$150,MATCH(Analysis!$A$92,'MorningStar Data'!$A$1:$A$150,0),I1+1)=0,0,INDEX('MorningStar Data'!$A$1:$M$150,MATCH(Analysis!$A$92,'MorningStar Data'!$A$1:$A$150,0),I1+1))%*IF(I88="",0,I88) -> 0 | J92: =IF(INDEX('MorningStar Data'!$A$1:$M$150,MATCH(Analysis!$A$92,'MorningStar Data'!$A$1:$A$150,0),J1+1)=0,0,INDEX('MorningStar Data'!$A$1:$M$150,MATCH(Analysis!$A$92,'MorningStar Data'!$A$1:$A$150,0),J1+1))%*IF(J88="",0,J88) -> 5967.084953 | K92: =IF(INDEX('MorningStar Data'!$A$1:$M$150,MATCH(Analysis!$A$92,'MorningStar Data'!$A$1:$A$150,0),K1+1)=0,0,INDEX('MorningStar Data'!$A$1:$M$150,MATCH(Analysis!$A$92,'MorningStar Data'!$A$1:$A$150,0),K1+1))%*IF(K88="",0,K88) -> 9895.513936 | L92: =IF(INDEX('MorningStar Data'!$A$1:$M$150,MATCH(Analysis!$A$92,'MorningStar Data'!$A$1:$A$150,0),L1+1)=0,0,INDEX('MorningStar Data'!$A$1:$M$150,MATCH(Analysis!$A$92,'MorningStar Data'!$A$1:$A$150,0),L1+1))%*IF(L88="",0,L88) -> 11046.89015
A93: Long-Term Debt | C93: =IF(INDEX('MorningStar Data'!$A$1:$M$150,MATCH(Analysis!$A$93,'MorningStar Data'!$A$1:$A$150,0),C1+1)=0,0,INDEX('MorningStar Data'!$A$1:$M$150,MATCH(Analysis!$A$93,'MorningStar Data'!$A$1:$A$150,0),C1+1))%*IF(C88="",0,C88) -> 0 | D93: =IF(INDEX('MorningStar Data'!$A$1:$M$150,MATCH(Analysis!$A$93,'MorningStar Data'!$A$1:$A$150,0),D1+1)=0,0,INDEX('MorningStar Data'!$A$1:$M$150,MATCH(Analysis!$A$93,'MorningStar Data'!$A$1:$A$150,0),D1+1))%*IF(D88="",0,D88) -> 0 | E93: =IF(INDEX('MorningStar Data'!$A$1:$M$150,MATCH(Analysis!$A$93,'MorningStar Data'!$A$1:$A$150,0),E1+1)=0,0,INDEX('MorningStar Data'!$A$1:$M$150,MATCH(Analysis!$A$93,'MorningStar Data'!$A$1:$A$150,0),E1+1))%*IF(E88="",0,E88) -> 0 | F93: =IF(INDEX('MorningStar Data'!$A$1:$M$150,MATCH(Analysis!$A$93,'MorningStar Data'!$A$1:$A$150,0),F1+1)=0,0,INDEX('MorningStar Data'!$A$1:$M$150,MATCH(Analysis!$A$93,'MorningStar Data'!$A$1:$A$150,0),F1+1))%*IF(F88="",0,F88) -> 0 | G93: =IF(INDEX('MorningStar Data'!$A$1:$M$150,MATCH(Analysis!$A$93,'MorningStar Data'!$A$1:$A$150,0),G1+1)=0,0,INDEX('MorningStar Data'!$A$1:$M$150,MATCH(Analysis!$A$93,'MorningStar Data'!$A$1:$A$150,0),G1+1))%*IF(G88="",0,G88) -> 0 | H93: =IF(INDEX('MorningStar Data'!$A$1:$M$150,MATCH(Analysis!$A$93,'MorningStar Data'!$A$1:$A$150,0),H1+1)=0,0,INDEX('MorningStar Data'!$A$1:$M$150,MATCH(Analysis!$A$93,'MorningStar Data'!$A$1:$A$150,0),H1+1))%*IF(H88="",0,H88) -> 0 | I93: =IF(INDEX('MorningStar Data'!$A$1:$M$150,MATCH(Analysis!$A$93,'MorningStar Data'!$A$1:$A$150,0),I1+1)=0,0,INDEX('MorningStar Data'!$A$1:$M$150,MATCH(Analysis!$A$93,'MorningStar Data'!$A$1:$A$150,0),I1+1))%*IF(I88="",0,I88) -> 15684.23113 | J93: =IF(INDEX('MorningStar Data'!$A$1:$M$150,MATCH(Analysis!$A$93,'MorningStar Data'!$A$1:$A$150,0),J1+1)=0,0,INDEX('MorningStar Data'!$A$1:$M$150,MATCH(Analysis!$A$93,'MorningStar Data'!$A$1:$A$150,0),J1+1))%*IF(J88="",0,J88) -> 27422.26541 | K93: =IF(INDEX('MorningStar Data'!$A$1:$M$150,MATCH(Analysis!$A$93,'MorningStar Data'!$A$1:$A$150,0),K1+1)=0,0,INDEX('MorningStar Data'!$A$1:$M$150,MATCH(Analysis!$A$93,'MorningStar Data'!$A$1:$A$150,0),K1+1))%*IF(K88="",0,K88) -> 48067.65477 | L93: =IF(INDEX('MorningStar Data'!$A$1:$M$150,MATCH(Analysis!$A$93,'MorningStar Data'!$A$1:$A$150,0),L1+1)=0,0,INDEX('MorningStar Data'!$A$1:$M$150,MATCH(Analysis!$A$93,'MorningStar Data'!$A$1:$A$150,0),L1+1))%*IF(L88="",0,L88) -> 71758.8848
A94: Debt Level | C94: =C92+C93-IF(C91="",0,C91) -> -12912.14242 | D94: =D92+D93-IF(D91="",0,D91) -> -25433.50638 | E94: =E92+E93-IF(E91="",0,E91) -> -21501.53277 | F94: =F92+F93-IF(F91="",0,F91) -> -20909.0648 | G94: -21354.28888 | H94: -24185.83812 | I94: -21831.53051 | J94: 9652.637424 | K94: 20574.31394 | L94: 18911.29672
A95: Fixed Assets Turnover | C95: =IF(INDEX('MorningStar Data'!$A$1:$M$150,MATCH(Analysis!$A$95,'MorningStar Data'!$A$1:$A$150,0),C1+1)=0,"",INDEX('MorningStar Data'!$A$1:$M$150,MATCH(Analysis!$A$95,'MorningStar Data'!$A$1:$A$150,0),C1+1)) -> 15.42 | D95: =IF(INDEX('MorningStar Data'!$A$1:$M$150,MATCH(Analysis!$A$95,'MorningStar Data'!$A$1:$A$150,0),D1+1)=0,"",INDEX('MorningStar Data'!$A$1:$M$150,MATCH(Analysis!$A$95,'MorningStar Data'!$A$1:$A$150,0),D1+1)) -> 15.15 | E95: =IF(INDEX('MorningStar Data'!$A$1:$M$150,MATCH(Analysis!$A$95,'MorningStar Data'!$A$1:$A$150,0),E1+1)=0,"",INDEX('MorningStar Data'!$A$1:$M$150,MATCH(Analysis!$A$95,'MorningStar Data'!$A$1:$A$150,0),E1+1)) -> 15.86 | F95: =IF(INDEX('MorningStar Data'!$A$1:$M$150,MATCH(Analysis!$A$95,'MorningStar Data'!$A$1:$A$150,0),F1+1)=0,"",INDEX('MorningStar Data'!$A$1:$M$150,MATCH(Analysis!$A$95,'MorningStar Data'!$A$1:$A$150,0),F1+1)) -> 16.89 | G95: =IF(INDEX('MorningStar Data'!$A$1:$M$150,MATCH(Analysis!$A$95,'MorningStar Data'!$A$1:$A$150,0),G1+1)=0,"",INDEX('MorningStar Data'!$A$1:$M$150,MATCH(Analysis!$A$95,'MorningStar Data'!$A$1:$A$150,0),G1+1)) -> 17.26 | H95: =IF(INDEX('MorningStar Data'!$A$1:$M$150,MATCH(Analysis!$A$95,'MorningStar Data'!$A$1:$A$150,0),H1+1)=0,"",INDEX('MorningStar Data'!$A$1:$M$150,MATCH(Analysis!$A$95,'MorningStar Data'!$A$1:$A$150,0),H1+1)) -> 13.48 | I95: =IF(INDEX('MorningStar Data'!$A$1:$M$150,MATCH(Analysis!$A$95,'MorningStar Data'!$A$1:$A$150,0),I1+1)=0,"",INDEX('MorningStar Data'!$A$1:$M$150,MATCH(Analysis!$A$95,'MorningStar Data'!$A$1:$A$150,0),I1+1)) -> 10.67 | J95: =IF(INDEX('MorningStar Data'!$A$1:$M$150,MATCH(Analysis!$A$95,'MorningStar Data'!$A$1:$A$150,0),J1+1)=0,"",INDEX('MorningStar Data'!$A$1:$M$150,MATCH(Analysis!$A$95,'MorningStar Data'!$A$1:$A$150,0),J1+1)) -> 9.82 | K95: =IF(INDEX('MorningStar Data'!$A$1:$M$150,MATCH(Analysis!$A$95,'MorningStar Data'!$A$1:$A$150,0),K1+1)=0,"",INDEX('MorningStar Data'!$A$1:$M$150,MATCH(Analysis!$A$95,'MorningStar Data'!$A$1:$A$150,0),K1+1)) -> 10.85 | L95: =IF(INDEX('MorningStar Data'!$A$1:$M$150,MATCH(Analysis!$A$95,'MorningStar Data'!$A$1:$A$150,0),L1+1)=0,"",INDEX('MorningStar Data'!$A$1:$M$150,MATCH(Analysis!$A$95,'MorningStar Data'!$A$1:$A$150,0),L1+1)) -> 8.71
A96: Net PP&E | C96: =IF(INDEX('MorningStar Data'!$A$1:$M$150,MATCH(Analysis!$A$96,'MorningStar Data'!$A$1:$A$150,0),C1+1)=0,"",INDEX('MorningStar Data'!$A$1:$M$150,MATCH(Analysis!$A$96,'MorningStar Data'!$A$1:$A$150,0),C1+1)) -> 7.23 | D96: =IF(INDEX('MorningStar Data'!$A$1:$M$150,MATCH(Analysis!$A$96,'MorningStar Data'!$A$1:$A$150,0),D1+1)=0,"",INDEX('MorningStar Data'!$A$1:$M$150,MATCH(Analysis!$A$96,'MorningStar Data'!$A$1:$A$150,0),D1+1)) -> 6.2 | E96: =IF(INDEX('MorningStar Data'!$A$1:$M$150,MATCH(Analysis!$A$96,'MorningStar Data'!$A$1:$A$150,0),E1+1)=0,"",INDEX('MorningStar Data'!$A$1:$M$150,MATCH(Analysis!$A$96,'MorningStar Data'!$A$1:$A$150,0),E1+1)) -> 6.22 | F96: =IF(INDEX('MorningStar Data'!$A$1:$M$150,MATCH(Analysis!$A$96,'MorningStar Data'!$A$1:$A$150,0),F1+1)=0,"",INDEX('MorningStar Data'!$A$1:$M$150,MATCH(Analysis!$A$96,'MorningStar Data'!$A$1:$A$150,0),F1+1)) -> 6.34 | G96: =IF(INDEX('MorningStar Data'!$A$1:$M$150,MATCH(Analysis!$A$96,'MorningStar Data'!$A$1:$A$150,0),G1+1)=0,"",INDEX('MorningStar Data'!$A$1:$M$150,MATCH(Analysis!$A$96,'MorningStar Data'!$A$1:$A$150,0),G1+1)) -> 6.68 | H96: =IF(INDEX('MorningStar Data'!$A$1:$M$150,MATCH(Analysis!$A$96,'MorningStar Data'!$A$1:$A$150,0),H1+1)=0,"",INDEX('MorningStar Data'!$A$1:$M$150,MATCH(Analysis!$A$96,'MorningStar Data'!$A$1:$A$150,0),H1+1)) -> 8.78 | I96: =IF(INDEX('MorningStar Data'!$A$1:$M$150,MATCH(Analysis!$A$96,'MorningStar Data'!$A$1:$A$150,0),I1+1)=0,"",INDEX('MorningStar Data'!$A$1:$M$150,MATCH(Analysis!$A$96,'MorningStar Data'!$A$1:$A$150,0),I1+1)) -> 8.02 | J96: =IF(INDEX('MorningStar Data'!$A$1:$M$150,MATCH(Analysis!$A$96,'MorningStar Data'!$A$1:$A$150,0),J1+1)=0,"",INDEX('MorningStar Data'!$A$1:$M$150,MATCH(Analysis!$A$96,'MorningStar Data'!$A$1:$A$150,0),J1+1)) -> 8.9 | K96: =IF(INDEX('MorningStar Data'!$A$1:$M$150,MATCH(Analysis!$A$96,'MorningStar Data'!$A$1:$A$150,0),K1+1)=0,"",INDEX('MorningStar Data'!$A$1:$M$150,MATCH(Analysis!$A$96,'MorningStar Data'!$A$1:$A$150,0),K1+1)) -> 7.74 | L96: =IF(INDEX('MorningStar Data'!$A$1:$M$150,MATCH(Analysis!$A$96,'MorningStar Data'!$A$1:$A$150,0),L1+1)=0,"",INDEX('MorningStar Data'!$A$1:$M$150,MATCH(Analysis!$A$96,'MorningStar Data'!$A$1:$A$150,0),L1+1)) -> 8.4

Sheet Notes
A1: Diluted Earnings per share | B1: Used a version of the formula foud here | C1: http://www.financeformulas.net/Diluted-EPS.html
B2: Please let me know if the formula used in the sheet is wrong. I think it is!
A3: Inconsistency Measure | B3: I have used the difference between arithmetic average and geometric average as a measure of
B4: inconsistency or volatility. Lower the better!
A5: Geometric average | B5: Using the form of the CAGR or Compounded annualized growth rate.
B6: Not always relevant. Used only for calculating inconsistency
A7: Debt Level | B7: Here this is calculated as total liabilities - Cash/short-term investments
B8: The actual formula is
B9: Short term debt + long term debt - Cash & Cash equivalents
B10: http://www.investopedia.com/terms/n/netdebt.asp
B11: I have calculated this from the total assets.

Sheet Graph
A1: Choose 'none' if you want to get rid of a plot | V1: None | Z1: 2 | AA1: =Z1+1 -> 3 | AB1: =AA1+1 -> 4 | AC1: 5 | AD1: 6 | AE1: 7 | AF1: 8 | AG1: 9 | AH1: 10 | AI1: 11
A2: Choose property (left y-axis) | B2: Earnings before taxes | V2: =Analysis!A3 -> Tax Rate % | Z2: =VALUE(Analysis!C2) -> 2007 | AA2: =VALUE(Analysis!D2) -> 2008 | AB2: =VALUE(Analysis!E2) -> 2009 | AC2: =VALUE(Analysis!F2) -> 2010 | AD2: =VALUE(Analysis!G2) -> 2011 | AE2: =VALUE(Analysis!H2) -> 2012 | AF2: =VALUE(Analysis!I2) -> 2013 | AG2: =VALUE(Analysis!J2) -> 2014 | AH2: =VALUE(Analysis!K2) -> 2015 | AI2: =VALUE(Analysis!L2) -> 2016
A3: Choose property (left y-axis) | B3: Shares Mil | V3: =Analysis!A4 -> Gross Margin % | Z3: =IF(INDEX(Analysis!$B$3:$L$170,MATCH(Graph!$B$2,Analysis!$A$3:$A$170,0),Z1)="",NA(),INDEX(Analysis!$B$3:$L$170,MATCH(Graph!$B$2,Analysis!$A$3:$A$170,0),Z1)) -> 5006.7256 | AA3: =IF(INDEX(Analysis!$B$3:$L$170,MATCH(Graph!$B$2,Analysis!$A$3:$A$170,0),AA1)="",NA(),INDEX(Analysis!$B$3:$L$170,MATCH(Graph!$B$2,Analysis!$A$3:$A$170,0),AA1)) -> 8945.619991 | AB3: =IF(INDEX(Analysis!$B$3:$L$170,MATCH(Graph!$B$2,Analysis!$A$3:$A$170,0),AB1)="",NA(),INDEX(Analysis!$B$3:$L$170,MATCH(Graph!$B$2,Analysis!$A$3:$A$170,0),AB1)) -> 12066.11111 | AC3: =IF(INDEX(Analysis!$B$3:$L$170,MATCH(Graph!$B$2,Analysis!$A$3:$A$170,0),AC1)="",NA(),INDEX(Analysis!$B$3:$L$170,MATCH(Graph!$B$2,Analysis!$A$3:$A$170,0),AC1)) -> 18535.00177 | AD3: =IF(INDEX(Analysis!$B$3:$L$170,MATCH(Graph!$B$2,Analysis!$A$3:$A$170,0),AD1)="",NA(),INDEX(Analysis!$B$3:$L$170,MATCH(Graph!$B$2,Analysis!$A$3:$A$170,0),AD1)) -> 34201.28123 | AE3: =IF(INDEX(Analysis!$B$3:$L$170,MATCH(Graph!$B$2,Analysis!$A$3:$A$170,0),AE1)="",NA(),INDEX(Analysis!$B$3:$L$170,MATCH(Graph!$B$2,Analysis!$A$3:$A$170,0),AE1)) -> 55757.41728 | AF3: =IF(INDEX(Analysis!$B$3:$L$170,MATCH(Graph!$B$2,Analysis!$A$3:$A$170,0),AF1)="",NA(),INDEX(Analysis!$B$3:$L$170,MATCH(Graph!$B$2,Analysis!$A$3:$A$170,0),AF1)) -> 50161.16672 | AG3: =IF(INDEX(Analysis!$B$3:$L$170,MATCH(Graph!$B$2,Analysis!$A$3:$A$170,0),AG1)="",NA(),INDEX(Analysis!$B$3:$L$170,MATCH(Graph!$B$2,Analysis!$A$3:$A$170,0),AG1)) -> 53490.1734 | AH3: =IF(INDEX(Analysis!$B$3:$L$170,MATCH(Graph!$B$2,Analysis!$A$3:$A$170,0),AH1)="",NA(),INDEX(Analysis!$B$3:$L$170,MATCH(Graph!$B$2,Analysis!$A$3:$A$170,0),AH1)) -> 72515.31824 | AI3: =IF(INDEX(Analysis!$B$3:$L$170,MATCH(Graph!$B$2,Analysis!$A$3:$A$170,0),AI1)="",NA(),INDEX(Analysis!$B$3:$L$170,MATCH(Graph!$B$2,Analysis!$A$3:$A$170,0),AI1)) -> 61360.74138
A4: Choose property (right y-axis) | B4: None | V4: =Analysis!A5 -> EBT Margin | Z4: =IF(INDEX(Analysis!$B$3:$L$70,MATCH(Graph!$B$3,Analysis!$A$3:$A$70,0),Z1)="",NA(),INDEX(Analysis!$B$3:$L$70,MATCH(Graph!$B$3,Analysis!$A$3:$A$70,0),Z1)) -> 6225 | AA4: =IF(INDEX(Analysis!$B$3:$L$70,MATCH(Graph!$B$3,Analysis!$A$3:$A$70,0),AA1)="",NA(),INDEX(Analysis!$B$3:$L$70,MATCH(Graph!$B$3,Analysis!$A$3:$A$70,0),AA1)) -> 6315 | AB4: =IF(INDEX(Analysis!$B$3:$L$70,MATCH(Graph!$B$3,Analysis!$A$3:$A$70,0),AB1)="",NA(),INDEX(Analysis!$B$3:$L$70,MATCH(Graph!$B$3,Analysis!$A$3:$A$70,0),AB1)) -> 6349 | AC4: =IF(INDEX(Analysis!$B$3:$L$70,MATCH(Graph!$B$3,Analysis!$A$3:$A$70,0),AC1)="",NA(),INDEX(Analysis!$B$3:$L$70,MATCH(Graph!$B$3,Analysis!$A$3:$A$70,0),AC1)) -> 6473 | AD4: =IF(INDEX(Analysis!$B$3:$L$70,MATCH(Graph!$B$3,Analysis!$A$3:$A$70,0),AD1)="",NA(),INDEX(Analysis!$B$3:$L$70,MATCH(Graph!$B$3,Analysis!$A$3:$A$70,0),AD1)) -> 6557 | AE4: =IF(INDEX(Analysis!$B$3:$L$70,MATCH(Graph!$B$3,Analysis!$A$3:$A$70,0),AE1)="",NA(),INDEX(Analysis!$B$3:$L$70,MATCH(Graph!$B$3,Analysis!$A$3:$A$70,0),AE1)) -> 6617 | AF4: =IF(INDEX(Analysis!$B$3:$L$70,MATCH(Graph!$B$3,Analysis!$A$3:$A$70,0),AF1)="",NA(),INDEX(Analysis!$B$3:$L$70,MATCH(Graph!$B$3,Analysis!$A$3:$A$70,0),AF1)) -> 6522 | AG4: =IF(INDEX(Analysis!$B$3:$L$70,MATCH(Graph!$B$3,Analysis!$A$3:$A$70,0),AG1)="",NA(),INDEX(Analysis!$B$3:$L$70,MATCH(Graph!$B$3,Analysis!$A$3:$A$70,0),AG1)) -> 6123 | AH4: =IF(INDEX(Analysis!$B$3:$L$70,MATCH(Graph!$B$3,Analysis!$A$3:$A$70,0),AH1)="",NA(),INDEX(Analysis!$B$3:$L$70,MATCH(Graph!$B$3,Analysis!$A$3:$A$70,0),AH1)) -> 5793 | AI4: =IF(INDEX(Analysis!$B$3:$L$70,MATCH(Graph!$B$3,Analysis!$A$3:$A$70,0),AI1)="",NA(),INDEX(Analysis!$B$3:$L$70,MATCH(Graph!$B$3,Analysis!$A$3:$A$70,0),AI1)) -> 5500
A5: Choose property (right y-axis) | B5: None | V5: =Analysis!A6 -> Operating Margin % | Z5: =IF(INDEX(Analysis!$B$3:$L$170,MATCH(Graph!$B$4,Analysis!$A$3:$A$170,0),Z1)="",NA(),INDEX(Analysis!$B$5:$L$170,MATCH(Graph!$B$4,Analysis!$A$3:$A$170,0),Z1)) ->  | AA5: =IF(INDEX(Analysis!$B$3:$L$170,MATCH(Graph!$B$4,Analysis!$A$3:$A$170,0),AA1)="",NA(),INDEX(Analysis!$B$5:$L$170,MATCH(Graph!$B$4,Analysis!$A$3:$A$170,0),AA1)) ->  | AB5: =IF(INDEX(Analysis!$B$3:$L$170,MATCH(Graph!$B$4,Analysis!$A$3:$A$170,0),AB1)="",NA(),INDEX(Analysis!$B$5:$L$170,MATCH(Graph!$B$4,Analysis!$A$3:$A$170,0),AB1)) ->  | AC5: =IF(INDEX(Analysis!$B$3:$L$170,MATCH(Graph!$B$4,Analysis!$A$3:$A$170,0),AC1)="",NA(),INDEX(Analysis!$B$5:$L$170,MATCH(Graph!$B$4,Analysis!$A$3:$A$170,0),AC1)) ->  | AD5: =IF(INDEX(Analysis!$B$3:$L$170,MATCH(Graph!$B$4,Analysis!$A$3:$A$170,0),AD1)="",NA(),INDEX(Analysis!$B$5:$L$170,MATCH(Graph!$B$4,Analysis!$A$3:$A$170,0),AD1)) ->  | AE5: =IF(INDEX(Analysis!$B$3:$L$170,MATCH(Graph!$B$4,Analysis!$A$3:$A$170,0),AE1)="",NA(),INDEX(Analysis!$B$5:$L$170,MATCH(Graph!$B$4,Analysis!$A$3:$A$170,0),AE1)) ->  | AF5: =IF(INDEX(Analysis!$B$3:$L$170,MATCH(Graph!$B$4,Analysis!$A$3:$A$170,0),AF1)="",NA(),INDEX(Analysis!$B$5:$L$170,MATCH(Graph!$B$4,Analysis!$A$3:$A$170,0),AF1)) ->  | AG5: =IF(INDEX(Analysis!$B$3:$L$170,MATCH(Graph!$B$4,Analysis!$A$3:$A$170,0),AG1)="",NA(),INDEX(Analysis!$B$5:$L$170,MATCH(Graph!$B$4,Analysis!$A$3:$A$170,0),AG1)) ->  | AH5: =IF(INDEX(Analysis!$B$3:$L$170,MATCH(Graph!$B$4,Analysis!$A$3:$A$170,0),AH1)="",NA(),INDEX(Analysis!$B$5:$L$170,MATCH(Graph!$B$4,Analysis!$A$3:$A$170,0),AH1)) ->  | AI5: =IF(INDEX(Analysis!$B$3:$L$170,MATCH(Graph!$B$4,Analysis!$A$3:$A$170,0),AI1)="",NA(),INDEX(Analysis!$B$5:$L$170,MATCH(Graph!$B$4,Analysis!$A$3:$A$170,0),AI1)) -> 
V6: =Analysis!A7 -> 1Y rolling growth growth in op margin | Z6: =IF(INDEX(Analysis!$B$3:$L$170,MATCH(Graph!$B$5,Analysis!$A$3:$A$170,0),Z1)="",NA(),INDEX(Analysis!$B$5:$L$170,MATCH(Graph!$B$5,Analysis!$A$3:$A$170,0),Z1)) ->  | AA6: =IF(INDEX(Analysis!$B$3:$L$170,MATCH(Graph!$B$5,Analysis!$A$3:$A$170,0),AA1)="",NA(),INDEX(Analysis!$B$5:$L$170,MATCH(Graph!$B$5,Analysis!$A$3:$A$170,0),AA1)) ->  | AB6: =IF(INDEX(Analysis!$B$3:$L$170,MATCH(Graph!$B$5,Analysis!$A$3:$A$170,0),AB1)="",NA(),INDEX(Analysis!$B$5:$L$170,MATCH(Graph!$B$5,Analysis!$A$3:$A$170,0),AB1)) ->  | AC6: =IF(INDEX(Analysis!$B$3:$L$170,MATCH(Graph!$B$5,Analysis!$A$3:$A$170,0),AC1)="",NA(),INDEX(Analysis!$B$5:$L$170,MATCH(Graph!$B$5,Analysis!$A$3:$A$170,0),AC1)) ->  | AD6: =IF(INDEX(Analysis!$B$3:$L$170,MATCH(Graph!$B$5,Analysis!$A$3:$A$170,0),AD1)="",NA(),INDEX(Analysis!$B$5:$L$170,MATCH(Graph!$B$5,Analysis!$A$3:$A$170,0),AD1)) ->  | AE6: =IF(INDEX(Analysis!$B$3:$L$170,MATCH(Graph!$B$5,Analysis!$A$3:$A$170,0),AE1)="",NA(),INDEX(Analysis!$B$5:$L$170,MATCH(Graph!$B$5,Analysis!$A$3:$A$170,0),AE1)) ->  | AF6: =IF(INDEX(Analysis!$B$3:$L$170,MATCH(Graph!$B$5,Analysis!$A$3:$A$170,0),AF1)="",NA(),INDEX(Analysis!$B$5:$L$170,MATCH(Graph!$B$5,Analysis!$A$3:$A$170,0),AF1)) ->  | AG6: =IF(INDEX(Analysis!$B$3:$L$170,MATCH(Graph!$B$5,Analysis!$A$3:$A$170,0),AG1)="",NA(),INDEX(Analysis!$B$5:$L$170,MATCH(Graph!$B$5,Analysis!$A$3:$A$170,0),AG1)) ->  | AH6: =IF(INDEX(Analysis!$B$3:$L$170,MATCH(Graph!$B$5,Analysis!$A$3:$A$170,0),AH1)="",NA(),INDEX(Analysis!$B$5:$L$170,MATCH(Graph!$B$5,Analysis!$A$3:$A$170,0),AH1)) ->  | AI6: =IF(INDEX(Analysis!$B$3:$L$170,MATCH(Graph!$B$5,Analysis!$A$3:$A$170,0),AI1)="",NA(),INDEX(Analysis!$B$5:$L$170,MATCH(Graph!$B$5,Analysis!$A$3:$A$170,0),AI1)) -> 
V7: =Analysis!A8 -> 3Y rolling growth op margin
V8: =Analysis!A9 -> 5Y rolling growth op margin
V9: =Analysis!A10 -> 7Y rolling growth op margin
V10: =Analysis!A11 -> Return on Equity %
V11: =Analysis!A12 -> 1Y rolling growth growth in RoE
V12: =Analysis!A13 -> 3Y rolling growth RoE
V13: =Analysis!A14 -> 5Y rolling growth RoE
V14: =Analysis!A15 -> 7Y rolling growth RoE
V15: =Analysis!A16 -> Return on Invested Capital %
V16: =Analysis!A17 -> 1Y rolling growth growth in RoIC
V17: =Analysis!A18 -> 3Y rolling growth ROIC
V18: =Analysis!A19 -> 5Y rolling growth ROIC
V19: =Analysis!A20 -> 7Y rolling growth ROIC
B20: Projected Earnings Per Share (crude and approximate and as on Mar 31st of that year) | V20: =Analysis!A21 -> Return on Assets %
B21: Year | C21: =Z2 -> 2007 | D21: =AA2 -> 2008 | E21: 2009 | F21: 2010 | G21: 2011 | H21: 2012 | I21: 2013 | J21: 2014 | K21: 2015 | L21: 2016 | M21: =L21+1 -> 2017 | N21: =M21+1 -> 2018 | V21: =Analysis!A23 -> Shares Mil
B22: ='MorningStar Data'!A9 -> Earnings Per Share USD | C22: ='MorningStar Data'!B9 -> 0.56 | D22: ='MorningStar Data'!C9 -> 0.97 | E22: ='MorningStar Data'!D9 -> 1.3 | F22: ='MorningStar Data'!E9 -> 2.16 | G22: ='MorningStar Data'!F9 -> 3.95 | H22: ='MorningStar Data'!G9 -> 6.31 | I22: ='MorningStar Data'!H9 -> 5.68 | J22: ='MorningStar Data'!I9 -> 6.45 | K22: ='MorningStar Data'!J9 -> 9.22 | L22: ='MorningStar Data'!K9 -> 8.31 | V22: =Analysis!A24 -> Net Income USD Mil
B23: Projected EPS in yellow | C23: =SLOPE($C$22:$L$22,$C$21:$L$21)*C21+INTERCEPT($C$22:$L$22,$C$21:$L$21) -> -0.04090909091 | D23: =SLOPE($C$22:$L$22,$C$21:$L$21)*D21+INTERCEPT($C$22:$L$22,$C$21:$L$21) -> 0.9661818182 | E23: 1.973272727 | F23: 2.980363636 | G23: 3.987454545 | H23: 4.994545455 | I23: 6.001636364 | J23: 7.008727273 | K23: 8.015818182 | L23: 9.022909091 | M23: 10.03 | N23: 11.03709091 | V23: =Analysis!A25 -> Earnings Per Share USD
B24: Projection from Log(EPS) fit | C24: =LOG(C22) -> -0.251811973 | D24: =LOG(D22) -> -0.01322826573 | E24: 0.1139433523 | F24: 0.3344537512 | G24: 0.5965970956 | H24: 0.8000293592 | I24: 0.7543483357 | J24: 0.8095597146 | K24: 0.9647309211 | L24: 0.9196010238 | M24: =10^M25 -> 17.66620646 | N24: =10^N25 -> 24.12539247 | V24: =Analysis!A26 -> Dividends USD
C25: =SLOPE($C$24:$L$24,$C$21:$L$21)*C21+INTERCEPT($C$24:$L$24,$C$21:$L$21) -> -0.1061675533 | D25: =SLOPE($C$24:$L$24,$C$21:$L$21)*D21+INTERCEPT($C$24:$L$24,$C$21:$L$21) -> 0.02916353223 | E25: 0.1644946177 | F25: 0.2998257032 | G25: 0.4351567887 | H25: 0.5704878742 | I25: 0.7058189597 | J25: 0.8411500452 | K25: 0.9764811307 | L25: 1.111812216 | M25: =SLOPE($C$24:$L$24,$C$21:$L$21)*M21+INTERCEPT($C$24:$L$24,$C$21:$L$21) -> 1.247143302 | N25: =SLOPE($C$24:$L$24,$C$21:$L$21)*N21+INTERCEPT($C$24:$L$24,$C$21:$L$21) -> 1.382474387 | V25: =Analysis!A31 -> Payout Ratio % *
V26: =Analysis!A32 -> Diluted Earnings Per Share*
V27: =Analysis!A33 -> 1Y rolling growth growth in Diluted EPS
V28: =Analysis!A34 -> 3Y rolling growth diluted EPS
V29: =Analysis!A35 -> 5Y rolling growth diluted EPS
V30: =Analysis!A36 -> 7Y rolling growth diluted EPS
V31: =Analysis!A37 -> Book Value Per Share * USD
V32: =Analysis!A38 -> 1Y rolling growth growth in BV per share
V33: =Analysis!A39 -> 3Y rolling growth BV per share
V34: =Analysis!A40 -> 5Y rolling growth BV per share
V35: =Analysis!A41 -> 7Y rolling growth BV per share
V36: =Analysis!A43 -> EBT Margin
V37: =Analysis!A44 -> 1Y rolling growth growth in EBT margin
V38: =Analysis!A45 -> 3Y rolling growth EBT margin
V39: =Analysis!A46 -> 5Y rolling growth EBT margin
V40: =Analysis!A47 -> 7Y rolling growth EBT margin
V41: =Analysis!A48 -> Debt/Equity
V42: =Analysis!A49 -> Free Cash Flow USD Mil
V43: =Analysis!A50 -> 1Y rolling growth growth in cash flow
V44: =Analysis!A51 -> 3Y rolling growth free cash flow
V45: =Analysis!A52 -> 5Y rolling growth free cash flow
V46: =Analysis!A53 -> 7Y rolling growth free cash flow
V47: =Analysis!A54 -> Return on Assets %
V48: =Analysis!A55 -> 1Y rolling growth growth in RoA
V49: =Analysis!A56 -> 3Y rolling growth RoA
V50: =Analysis!A57 -> 5Y rolling growth RoA
V51: =Analysis!A58 -> 7Y rolling growth RoA
V52: =Analysis!A60 -> Operating Cash Flow Growth % YOY
V53: =Analysis!A61 -> 3Y rolling growth OCF
V54: =Analysis!A62 -> 5Y rolling growth OCF
V55: =Analysis!A63 -> 7Y rolling growth OCF
V56: =Analysis!A64 -> Free Cash Flow/Sales %
V57: =Analysis!A65 -> 1Y rolling growth growth in FCF/Sales
V58: =Analysis!A66 -> 3Y rolling growth FCF/Sales
V59: =Analysis!A67 -> 5Y rolling growth FCF/Sales
V60: =Analysis!A68 -> 7Y rolling growth FCF/Sales
V61: =Analysis!A69 -> Revenue USD Mil
V62: =Analysis!A70 -> 1Y rolling growth growth in Revenue
V63: =Analysis!A71 -> 3Y rolling growth in revenue
V64: =Analysis!A72 -> 5Y rolling growth in revenue
V65: =Analysis!A73 -> 7Y rolling growth in revenue
V66: =Analysis!A74 -> Total Stockholders' Equity
V67: =Analysis!A75 -> Working Capital USD Mil
V68: =Analysis!A76 -> 1Y rolling growth growth in Work. Cap.
V69: =Analysis!A77 -> 3Y rolling growth in Work. Cap.
V70: =Analysis!A78 -> 5Y rolling growth in Work. Cap.
V71: =Analysis!A79 -> 7Y rolling growth in Work. Cap.
V72: =Analysis!A80 -> Operating Income USD Mil
V73: =Analysis!A81 -> Operating Margin
V74: =Analysis!A82 -> EBT Margin
V75: =Analysis!A83 -> Net Sales (same currency as op. income)
V76: =Analysis!A84 -> Earnings before taxes
V77: =Analysis!A85 -> Debt/Equity
V78: =Analysis!A86 -> Total liabilities
V79: =Analysis!A87 -> Return on Assets %
V80: =Analysis!A88 -> Total assets (same currency as net income)
V81: =Analysis!A89 -> Total Liabilities
V82: =Analysis!A90 -> Cash & Short-Term Investments
V83: =Analysis!A91 -> Cash & Short-Term Investments
V84: =Analysis!A92 -> Short-Term Debt
V85: =Analysis!A93 -> Long-Term Debt
V86: =Analysis!A94 -> Debt Level
V87: =Analysis!A95 -> Fixed Assets Turnover
V88: =Analysis!A96 -> Net PP&E
V89: =Analysis!A97 -> 0
V90: =Analysis!A98 -> 0
V91: =Analysis!A99 -> 0
V92: =Analysis!A100 -> 0
V93: =Analysis!A101 -> 0
V94: =Analysis!A102 -> 0
V95: =Analysis!A103 -> 0
V96: =Analysis!A104 -> 0
V97: =Analysis!A105 -> 0
V98: =Analysis!A106 -> 0
V99: =Analysis!A107 -> 0
V100: =Analysis!A108 -> 0

Sheet temp (hidden)
A1: Date | B1: Open | C1: High | D1: Low | E1: Close | F1: Volume | G1: - SPREAD -
G2: (High-Low) | H2: (Open-Close)
A3: No data to display.

Sheet GoogleFinance
A1: Obtain stock price history from Google Finance* | F1: Note: current | N1: =INDEX(L2:N9000,MATCH(A5,L2:L9000,0),2) -> AAPL | O1: =ROUND((250*(O3-O2)/365)/500,0)+2 -> 11 | Q1: =E8 -> 2017 | X1: =IF(ISERROR(INDEX(AD1:AD31,MATCH(Z1,AD1:AD31,0),1)),INDEX(AD1:AD31,MATCH(CONCATENATE(0,Z1),AD1:AD31,0),1),INDEX(AD1:AD31,MATCH(Z1,AD1:AD31,0),1)) -> 28 | Y1: =YEAR(TODAY()) -> 2017 | Z1: =DAY(TODAY()) -> 28 | AA1: =MONTH(TODAY()) -> 6 | AC1: =CONCATENATE(0,1) -> 01 | AD1: =CONCATENATE(0,1) -> 01 | AE1: 2000
A2: Step 1: Type the first few letters of this stock | C2: Step 4: select date range | F2: Morning Star financials is for: | K2: =IF(ISNUMBER(SEARCH($A$3,L2)),MAX($K$1:K1)+1,0) -> 0 | L2: 1-800-Flowers.Com Inc | M2: FLWS | N2: NASDAQ | O2: =DATE(E5,D5,C5) -> 2000-01-01 | Q2: =D8 -> 06 | Y2: =IFERROR(VLOOKUP(ROWS($Z$2:Z2),K2:$L$8000,2,0),"") -> Apple Inc. | AA2: =IFERROR(VLOOKUP(ROWS($AA$2:AA2),K2:$M$6000,3,0),"") -> AAPL | AB2: B | AC2: =CONCATENATE(0,2) -> 02 | AD2: =CONCATENATE(0,2) -> 02 | AE2: =AE1+1 -> 2001
A3: Apple | C3: Price history start date | F3: =MID('MorningStar Data'!A1,47,15) -> Apple Inc | K3: =IF(ISNUMBER(SEARCH($A$3,L3)),MAX($K$1:K2)+1,0) -> 0 | L3: 1347 Property Insurance Holdings Inc | M3: PIH | N3: NASDAQ | O3: =DATE(E8,D8,C8) -> 2017-06-28 | Q3: =C8 -> 28 | Y3: =IFERROR(VLOOKUP(ROWS($Z$2:Z3),K3:$L$8000,2,0),"") -> Apple Hospitality REIT Inc | AB3: N | AC3: =CONCATENATE(0,3) -> 03 | AD3: =CONCATENATE(0,3) -> 03 | AE3: =AE2+1 -> 2002
A4: Step 2: Select the stock | C4: Day | D4: Month | E4: Year | K4: =IF(ISNUMBER(SEARCH($A$3,L4)),MAX($K$1:K3)+1,0) -> 0 | L4: 180 Degree Capital Corp | M4: TURN | N4: NASDAQ | O4: =CONCATENATE(E5,"-",D5,"-",C5) -> 2000-01-01 | P4: =TEXT(MONTH(O4),"mmm") -> Jan | Q4: =DAY(O4) -> 1 | R4: =YEAR(O4) -> 2000 | Y4: =IFERROR(VLOOKUP(ROWS($Z$2:Z4),K4:$L$8000,2,0),"") -> Dr Pepper Snapple Group Inc. | AC4: =CONCATENATE(0,4) -> 04 | AD4: =CONCATENATE(0,4) -> 04 | AE4: 2003
A5: Apple Inc. | C5: 01 | D5: 01 | E5: 2000 | K5: =IF(ISNUMBER(SEARCH($A$3,L5)),MAX($K$1:K4)+1,0) -> 0 | L5: 1st Century Bancshares, Inc. | M5: FCTY | N5: NASDAQ | O5: =CONCATENATE(E8,"-",D8,"-",C8) -> 2017-06-28 | P5: =TEXT(MONTH(O5),"mmm") -> Jan | Q5: =DAY(O5) -> 28 | R5: =YEAR(O5) -> 2017 | Y5: =IFERROR(VLOOKUP(ROWS($Z$2:Z5),K5:$L$8000,2,0),"") -> Maui Land & Pineapple Co. | AC5: =CONCATENATE(0,5) -> 05 | AD5: =CONCATENATE(0,5) -> 05 | AE5: 2004
A6: Exchange in which this is listed | C6: Price history start date | K6: =IF(ISNUMBER(SEARCH($A$3,L6)),MAX($K$1:K5)+1,0) -> 0 | L6: 1st Constitution Bancorp | M6: FCCY | N6: NASDAQ | O6: =CONCATENATE("https://www.google.com/finance/historical?output=csv&q=SRCE&startdate=",P4,"+",Q4,"%2C+",R4,"&enddate=",P5,Q5,"%2C+",R5) -> https://www.google.com/finance/historical?output=csv&q=SRCE&startdate=Jan+1%2C+2000&enddate=Jan28%2C+2017 | Y6: =IFERROR(VLOOKUP(ROWS($Z$2:Z6),K6:$L$8000,2,0),"") ->  | AC6: =CONCATENATE(0,6) -> 06 | AD6: =CONCATENATE(0,6) -> 06 | AE6: 2005
A7: =INDEX(L2:N9000,MATCH(A5,L2:L9000,0),3) -> NASDAQ | C7: Day | D7: Month | E7: Year | K7: =IF(ISNUMBER(SEARCH($A$3,L7)),MAX($K$1:K6)+1,0) -> 0 | L7: 1st Source Corporation | M7: SRCE | N7: NASDAQ | O7: =CONCATENATE("https://www.google.com/finance/historical?output=csv&q=SRCE&startdate=",P4,"+",Q4,"%2C+",R4,"&enddate=",P5,Q5,"%2C+",R5) -> https://www.google.com/finance/historical?output=csv&q=SRCE&startdate=Jan+1%2C+2000&enddate=Jan28%2C+2017 | Y7: =IFERROR(VLOOKUP(ROWS($Z$2:Z7),K7:$L$8000,2,0),"") ->  | AC7: =CONCATENATE(0,7) -> 07 | AD7: =CONCATENATE(0,7) -> 07 | AE7: 2006
C8: =IF(ISERROR(INDEX(AD1:AD31,MATCH(Z1,AD1:AD31,0),1)),INDEX(AD1:AD31,MATCH(CONCATENATE(0,Z1),AD1:AD31,0),1),INDEX(AD1:AD31,MATCH(Z1,AD1:AD31,0),1)) -> 28 | D8: =IF(ISERROR(INDEX(AC1:AC12,MATCH(AA1,AC1:AC12,0),1)),INDEX(AC1:AC12,MATCH(CONCATENATE(0,AA1),AC1:AC12,0),1),INDEX(AC1:AC12,MATCH(AA1,AC1:AC12,0),1)) -> 06 | E8: =IF(ISERROR(INDEX(AE1:AE111,MATCH(Y1,AE1:AE111,0),1)),INDEX(AE1:AE111,MATCH(CONCATENATE(0,Y1),AE1:AE111,0),1),INDEX(AE1:AE111,MATCH(Y1,AE1:AE111,0),1)) -> 2017 | K8: =IF(ISNUMBER(SEARCH($A$3,L8)),MAX($K$1:K7)+1,0) -> 0 | L8: 1st United Bancorp Inc (Florida) | M8: FUBC | N8: NASDAQ | Y8: =IFERROR(VLOOKUP(ROWS($Z$2:Z8),K8:$L$8000,2,0),"") ->  | AC8: =CONCATENATE(0,8) -> 08 | AD8: =CONCATENATE(0,8) -> 08 | AE8: 2007
A9: Step 3: | K9: =IF(ISNUMBER(SEARCH($A$3,L9)),MAX($K$1:K8)+1,0) -> 0 | L9: 21Vianet Group Inc | M9: VNET | N9: NASDAQ | O9: https://www.google.com/finance/historical?output=csv&q=SRCE&startdate=May+22%2C+2015&enddate=May+21%2C+2017 | Y9: =IFERROR(VLOOKUP(ROWS($Z$2:Z9),K9:$L$8000,2,0),"") ->  | AC9: =CONCATENATE(0,9) -> 09 | AD9: =CONCATENATE(0,9) -> 09 | AE9: 2008
K10: =IF(ISNUMBER(SEARCH($A$3,L10)),MAX($K$1:K9)+1,0) -> 0 | L10: 2U Inc | M10: TWOU | N10: NASDAQ | Y10: =IFERROR(VLOOKUP(ROWS($Z$2:Z10),K10:$L$8000,2,0),"") ->  | AC10: 10 | AD10: 10 | AE10: 2009
A11: * Google Finance does not adjust for dividends. It does handle splits but there are complaints that it does not do so right | K11: =IF(ISNUMBER(SEARCH($A$3,L11)),MAX($K$1:K10)+1,0) -> 0 | L11: 3SBio Inc | M11: SSRX | N11: NASDAQ | Y11: =IFERROR(VLOOKUP(ROWS($Z$2:Z11),K11:$L$8000,2,0),"") ->  | AC11: 11 | AD11: 11 | AE11: 2010
A12: I think if the split is recent, then it may not reflect right and it takes times to display correctly | K12: =IF(ISNUMBER(SEARCH($A$3,L12)),MAX($K$1:K11)+1,0) -> 0 | L12: 51job, Inc. (ADR) | M12: JOBS | N12: NASDAQ | Y12: =IFERROR(VLOOKUP(ROWS($Z$2:Z12),K12:$L$8000,2,0),"") ->  | AC12: 12 | AD12: 12 | AE12: 2011
K13: =IF(ISNUMBER(SEARCH($A$3,L13)),MAX($K$1:K12)+1,0) -> 0 | L13: 8Point3 Energy Partners LP | M13: CAFD | N13: NASDAQ | Y13: =IFERROR(VLOOKUP(ROWS($Z$2:Z13),K13:$L$8000,2,0),"") ->  | AD13: =AD12+1 -> 13 | AE13: 2012
K14: =IF(ISNUMBER(SEARCH($A$3,L14)),MAX($K$1:K13)+1,0) -> 0 | L14: 8x8, Inc. | M14: EGHT | N14: NASDAQ | Y14: =IFERROR(VLOOKUP(ROWS($Z$2:Z14),K14:$L$8000,2,0),"") ->  | AD14: =AD13+1 -> 14 | AE14: 2013
K15: =IF(ISNUMBER(SEARCH($A$3,L15)),MAX($K$1:K14)+1,0) -> 0 | L15: A C MOORE ARTS & CRAFTS | M15: ACMR | N15: NASDAQ | Y15: =IFERROR(VLOOKUP(ROWS($Z$2:Z15),K15:$L$8000,2,0),"") ->  | AD15: 15 | AE15: 2014
K16: =IF(ISNUMBER(SEARCH($A$3,L16)),MAX($K$1:K15)+1,0) -> 0 | L16: A Schulman Inc | M16: SHLM | N16: NASDAQ | Y16: =IFERROR(VLOOKUP(ROWS($Z$2:Z16),K16:$L$8000,2,0),"") ->  | AD16: 16 | AE16: 2015
K17: =IF(ISNUMBER(SEARCH($A$3,L17)),MAX($K$1:K16)+1,0) -> 0 | L17: A-Mark Precious Metals Inc | M17: AMRK | N17: NASDAQ | Y17: =IFERROR(VLOOKUP(ROWS($Z$2:Z17),K17:$L$8000,2,0),"") ->  | AD17: 17 | AE17: 2016
K18: =IF(ISNUMBER(SEARCH($A$3,L18)),MAX($K$1:K17)+1,0) -> 0 | L18: AAON, Inc. | M18: AAON | N18: NASDAQ | Y18: =IFERROR(VLOOKUP(ROWS($Z$2:Z18),K18:$L$8000,2,0),"") ->  | AD18: 18 | AE18: 2017
K19: =IF(ISNUMBER(SEARCH($A$3,L19)),MAX($K$1:K18)+1,0) -> 0 | L19: ABIOMED, Inc. | M19: ABMD | N19: NASDAQ | Y19: =IFERROR(VLOOKUP(ROWS($Z$2:Z19),K19:$L$8000,2,0),"") ->  | AD19: 19 | AE19: 2018
K20: =IF(ISNUMBER(SEARCH($A$3,L20)),MAX($K$1:K19)+1,0) -> 0 | L20: AC Immune Ltd | M20: ACIU | N20: NASDAQ | Y20: =IFERROR(VLOOKUP(ROWS($Z$2:Z20),K20:$L$8000,2,0),"") ->  | AD20: 20 | AE20: 2019
K21: =IF(ISNUMBER(SEARCH($A$3,L21)),MAX($K$1:K20)+1,0) -> 0 | L21: ACADIA Pharmaceuticals Inc. | M21: ACAD | N21: NASDAQ | Y21: =IFERROR(VLOOKUP(ROWS($Z$2:Z21),K21:$L$8000,2,0),"") ->  | AD21: 21 | AE21: 2020
K22: =IF(ISNUMBER(SEARCH($A$3,L22)),MAX($K$1:K21)+1,0) -> 0 | L22: ACI Worldwide Inc | M22: ACIW | N22: NASDAQ | Y22: =IFERROR(VLOOKUP(ROWS($Z$2:Z22),K22:$L$8000,2,0),"") ->  | AD22: 22 | AE22: 2021
K23: =IF(ISNUMBER(SEARCH($A$3,L23)),MAX($K$1:K22)+1,0) -> 0 | L23: ACNB Corporation | M23: ACNB | N23: NASDAQ | Y23: =IFERROR(VLOOKUP(ROWS($Z$2:Z23),K23:$L$8000,2,0),"") ->  | AD23: 23 | AE23: 2022
K24: =IF(ISNUMBER(SEARCH($A$3,L24)),MAX($K$1:K23)+1,0) -> 0 | L24: ADDvantage Technologies Group, Inc. | M24: AEY | N24: NASDAQ | Y24: =IFERROR(VLOOKUP(ROWS($Z$2:Z24),K24:$L$8000,2,0),"") ->  | AD24: 24 | AE24: 2023
K25: =IF(ISNUMBER(SEARCH($A$3,L25)),MAX($K$1:K24)+1,0) -> 0 | L25: ADMA Biologics Inc | M25: ADMA | N25: NASDAQ | Y25: =IFERROR(VLOOKUP(ROWS($Z$2:Z25),K25:$L$8000,2,0),"") ->  | AD25: 25 | AE25: 2024
K26: =IF(ISNUMBER(SEARCH($A$3,L26)),MAX($K$1:K25)+1,0) -> 0 | L26: ADTRAN, Inc. | M26: ADTN | N26: NASDAQ | Y26: =IFERROR(VLOOKUP(ROWS($Z$2:Z26),K26:$L$8000,2,0),"") ->  | AD26: 26 | AE26: 2025
K27: =IF(ISNUMBER(SEARCH($A$3,L27)),MAX($K$1:K26)+1,0) -> 0 | L27: AEP Industries Inc | M27: AEPI | N27: NASDAQ | Y27: =IFERROR(VLOOKUP(ROWS($Z$2:Z27),K27:$L$8000,2,0),"") ->  | AD27: 27 | AE27: 2026
K28: =IF(ISNUMBER(SEARCH($A$3,L28)),MAX($K$1:K27)+1,0) -> 0 | L28: AEterna Zentaris Inc. (USA) | M28: AEZS | N28: NASDAQ | Y28: =IFERROR(VLOOKUP(ROWS($Z$2:Z28),K28:$L$8000,2,0),"") ->  | AD28: 28 | AE28: 2027
K29: =IF(ISNUMBER(SEARCH($A$3,L29)),MAX($K$1:K28)+1,0) -> 0 | L29: AGNC Investment Corp | M29: AGNCP | N29: NASDAQ | Y29: =IFERROR(VLOOKUP(ROWS($Z$2:Z29),K29:$L$8000,2,0),"") ->  | AD29: 29 | AE29: 2028
K30: =IF(ISNUMBER(SEARCH($A$3,L30)),MAX($K$1:K29)+1,0) -> 0 | L30: AGNC Investment Corp | M30: AGNC | N30: NASDAQ | Y30: =IFERROR(VLOOKUP(ROWS($Z$2:Z30),K30:$L$8000,2,0),"") ->  | AD30: 30 | AE30: 2029
K31: =IF(ISNUMBER(SEARCH($A$3,L31)),MAX($K$1:K30)+1,0) -> 0 | L31: AGNC Investment Corp. - Depositary Shares representing 1/1000th Series B Preferred Stock | M31: AGNCB | N31: NASDAQ | Y31: =IFERROR(VLOOKUP(ROWS($Z$2:Z31),K31:$L$8000,2,0),"") ->  | AD31: 31 | AE31: 2030
K32: =IF(ISNUMBER(SEARCH($A$3,L32)),MAX($K$1:K31)+1,0) -> 0 | L32: ALJ Regional Holdings, Inc. | M32: ALJJ | N32: NASDAQ | Y32: =IFERROR(VLOOKUP(ROWS($Z$2:Z32),K32:$L$8000,2,0),"") ->  | AE32: 2031
K33: =IF(ISNUMBER(SEARCH($A$3,L33)),MAX($K$1:K32)+1,0) -> 0 | L33: ALPS ETF Trust | M33: EMDR | N33: NASDAQ | Y33: =IFERROR(VLOOKUP(ROWS($Z$2:Z33),K33:$L$8000,2,0),"") ->  | AE33: 2032
K34: =IF(ISNUMBER(SEARCH($A$3,L34)),MAX($K$1:K33)+1,0) -> 0 | L34: ALPS ETF Trust | M34: RUDR | N34: NASDAQ | Y34: =IFERROR(VLOOKUP(ROWS($Z$2:Z34),K34:$L$8000,2,0),"") ->  | AE34: 2033
K35: =IF(ISNUMBER(SEARCH($A$3,L35)),MAX($K$1:K34)+1,0) -> 0 | L35: ALPS ETF Trust | M35: ASDR | N35: NASDAQ | Y35: =IFERROR(VLOOKUP(ROWS($Z$2:Z35),K35:$L$8000,2,0),"") ->  | AE35: 2034
K36: =IF(ISNUMBER(SEARCH($A$3,L36)),MAX($K$1:K35)+1,0) -> 0 | L36: ALPS/Dorsey Wright Sector Momentum ETF | M36: SWIN | N36: NASDAQ | Y36: =IFERROR(VLOOKUP(ROWS($Z$2:Z36),K36:$L$8000,2,0),"") ->  | AE36: 2035
K37: =IF(ISNUMBER(SEARCH($A$3,L37)),MAX($K$1:K36)+1,0) -> 0 | L37: AMAG Pharmaceuticals, Inc. | M37: AMAG | N37: NASDAQ | Y37: =IFERROR(VLOOKUP(ROWS($Z$2:Z37),K37:$L$8000,2,0),"") ->  | AE37: 2036
K38: =IF(ISNUMBER(SEARCH($A$3,L38)),MAX($K$1:K37)+1,0) -> 0 | L38: AMC Networks Inc | M38: AMCX | N38: NASDAQ | Y38: =IFERROR(VLOOKUP(ROWS($Z$2:Z38),K38:$L$8000,2,0),"") ->  | AE38: 2037
K39: =IF(ISNUMBER(SEARCH($A$3,L39)),MAX($K$1:K38)+1,0) -> 0 | L39: AMERCO | M39: UHAL | N39: NASDAQ | Y39: =IFERROR(VLOOKUP(ROWS($Z$2:Z39),K39:$L$8000,2,0),"") ->  | AE39: 2038
K40: =IF(ISNUMBER(SEARCH($A$3,L40)),MAX($K$1:K39)+1,0) -> 0 | L40: ANADIGICS, Inc. | M40: ANAD | N40: NASDAQ | Y40: =IFERROR(VLOOKUP(ROWS($Z$2:Z40),K40:$L$8000,2,0),"") ->  | AE40: 2039
K41: =IF(ISNUMBER(SEARCH($A$3,L41)),MAX($K$1:K40)+1,0) -> 0 | L41: ANI Pharmaceuticals Inc | M41: ANIP | N41: NASDAQ | Y41: =IFERROR(VLOOKUP(ROWS($Z$2:Z41),K41:$L$8000,2,0),"") ->  | AE41: 2040
K42: =IF(ISNUMBER(SEARCH($A$3,L42)),MAX($K$1:K41)+1,0) -> 0 | L42: ANSYS, Inc. | M42: ANSS | N42: NASDAQ | Y42: =IFERROR(VLOOKUP(ROWS($Z$2:Z42),K42:$L$8000,2,0),"") ->  | AE42: 2041
K43: =IF(ISNUMBER(SEARCH($A$3,L43)),MAX($K$1:K42)+1,0) -> 0 | L43: API Technologies Corp | M43: ATNY | N43: NASDAQ | Y43: =IFERROR(VLOOKUP(ROWS($Z$2:Z43),K43:$L$8000,2,0),"") ->  | AE43: 2042
K44: =IF(ISNUMBER(SEARCH($A$3,L44)),MAX($K$1:K43)+1,0) -> 0 | L44: ARC Group WorldWide Inc | M44: ARCW | N44: NASDAQ | Y44: =IFERROR(VLOOKUP(ROWS($Z$2:Z44),K44:$L$8000,2,0),"") ->  | AE44: 2043
K45: =IF(ISNUMBER(SEARCH($A$3,L45)),MAX($K$1:K44)+1,0) -> 0 | L45: ARI Network Services, Inc. | M45: ARIS | N45: NASDAQ | Y45: =IFERROR(VLOOKUP(ROWS($Z$2:Z45),K45:$L$8000,2,0),"") ->  | AE45: 2044
K46: =IF(ISNUMBER(SEARCH($A$3,L46)),MAX($K$1:K45)+1,0) -> 0 | L46: ARM Holdings plc (ADR) | M46: ARMH | N46: NASDAQ | Y46: =IFERROR(VLOOKUP(ROWS($Z$2:Z46),K46:$L$8000,2,0),"") ->  | AE46: 2045
K47: =IF(ISNUMBER(SEARCH($A$3,L47)),MAX($K$1:K46)+1,0) -> 0 | L47: ARRIS International plc | M47: ARRS | N47: NASDAQ | Y47: =IFERROR(VLOOKUP(ROWS($Z$2:Z47),K47:$L$8000,2,0),"") ->  | AE47: 2046
K48: =IF(ISNUMBER(SEARCH($A$3,L48)),MAX($K$1:K47)+1,0) -> 0 | L48: ASB Bancorp Inc | M48: ASBB | N48: NASDAQ | Y48: =IFERROR(VLOOKUP(ROWS($Z$2:Z48),K48:$L$8000,2,0),"") ->  | AE48: 2047
K49: =IF(ISNUMBER(SEARCH($A$3,L49)),MAX($K$1:K48)+1,0) -> 0 | L49: ASML Holding NV (ADR) | M49: ASML | N49: NASDAQ | Y49: =IFERROR(VLOOKUP(ROWS($Z$2:Z49),K49:$L$8000,2,0),"") ->  | AE49: 2048
K50: =IF(ISNUMBER(SEARCH($A$3,L50)),MAX($K$1:K49)+1,0) -> 0 | L50: ASV LLC | M50: ASV | N50: NASDAQ | Y50: =IFERROR(VLOOKUP(ROWS($Z$2:Z50),K50:$L$8000,2,0),"") ->  | AE50: 2049
K51: =IF(ISNUMBER(SEARCH($A$3,L51)),MAX($K$1:K50)+1,0) -> 0 | L51: ATA Inc.(ADR) | M51: ATAI | N51: NASDAQ | Y51: =IFERROR(VLOOKUP(ROWS($Z$2:Z51),K51:$L$8000,2,0),"") ->  | AE51: 2050
K52: =IF(ISNUMBER(SEARCH($A$3,L52)),MAX($K$1:K51)+1,0) -> 0 | L52: ATMI Incÿ(Inactive) | M52: ATMI | N52: NASDAQ | Y52: =IFERROR(VLOOKUP(ROWS($Z$2:Z52),K52:$L$8000,2,0),"") ->  | AE52: 2051
K53: =IF(ISNUMBER(SEARCH($A$3,L53)),MAX($K$1:K52)+1,0) -> 0 | L53: ATN International Inc | M53: ATNI | N53: NASDAQ | Y53: =IFERROR(VLOOKUP(ROWS($Z$2:Z53),K53:$L$8000,2,0),"") ->  | AE53: 2052
K54: =IF(ISNUMBER(SEARCH($A$3,L54)),MAX($K$1:K53)+1,0) -> 0 | L54: AV Homes Inc | M54: AVHI | N54: NASDAQ | Y54: =IFERROR(VLOOKUP(ROWS($Z$2:Z54),K54:$L$8000,2,0),"") ->  | AE54: 2053
K55: =IF(ISNUMBER(SEARCH($A$3,L55)),MAX($K$1:K54)+1,0) -> 0 | L55: AVEO Pharmaceuticals, Inc. | M55: AVEO | N55: NASDAQ | Y55: =IFERROR(VLOOKUP(ROWS($Z$2:Z55),K55:$L$8000,2,0),"") ->  | AE55: 2054
K56: =IF(ISNUMBER(SEARCH($A$3,L56)),MAX($K$1:K55)+1,0) -> 0 | L56: AXT Inc | M56: AXTI | N56: NASDAQ | Y56: =IFERROR(VLOOKUP(ROWS($Z$2:Z56),K56:$L$8000,2,0),"") ->  | AE56: 2055
K57: =IF(ISNUMBER(SEARCH($A$3,L57)),MAX($K$1:K56)+1,0) -> 0 | L57: Abaxis Inc | M57: ABAX | N57: NASDAQ | Y57: =IFERROR(VLOOKUP(ROWS($Z$2:Z57),K57:$L$8000,2,0),"") ->  | AE57: 2056
K58: =IF(ISNUMBER(SEARCH($A$3,L58)),MAX($K$1:K57)+1,0) -> 0 | L58: Abeona Therapeutics Inc | M58: ABEO | N58: NASDAQ | Y58: =IFERROR(VLOOKUP(ROWS($Z$2:Z58),K58:$L$8000,2,0),"") ->  | AE58: 2057
K59: =IF(ISNUMBER(SEARCH($A$3,L59)),MAX($K$1:K58)+1,0) -> 0 | L59: Ability Inc | M59: ABIL | N59: NASDAQ | Y59: =IFERROR(VLOOKUP(ROWS($Z$2:Z59),K59:$L$8000,2,0),"") ->  | AE59: 2058
K60: =IF(ISNUMBER(SEARCH($A$3,L60)),MAX($K$1:K59)+1,0) -> 0 | L60: Abraxas Petroleum Corp. | M60: AXAS | N60: NASDAQ | Y60: =IFERROR(VLOOKUP(ROWS($Z$2:Z60),K60:$L$8000,2,0),"") ->  | AE60: 2059
K61: =IF(ISNUMBER(SEARCH($A$3,L61)),MAX($K$1:K60)+1,0) -> 0 | L61: Acacia Communications, Inc. | M61: ACIA | N61: NASDAQ | Y61: =IFERROR(VLOOKUP(ROWS($Z$2:Z61),K61:$L$8000,2,0),"") ->  | AE61: 2060
K62: =IF(ISNUMBER(SEARCH($A$3,L62)),MAX($K$1:K61)+1,0) -> 0 | L62: Acacia Research Corp | M62: ACTG | N62: NASDAQ | Y62: =IFERROR(VLOOKUP(ROWS($Z$2:Z62),K62:$L$8000,2,0),"") ->  | AE62: 2061
K63: =IF(ISNUMBER(SEARCH($A$3,L63)),MAX($K$1:K62)+1,0) -> 0 | L63: Acadia Healthcare Company Inc | M63: ACHC | N63: NASDAQ | Y63: =IFERROR(VLOOKUP(ROWS($Z$2:Z63),K63:$L$8000,2,0),"") ->  | AE63: 2062
K64: =IF(ISNUMBER(SEARCH($A$3,L64)),MAX($K$1:K63)+1,0) -> 0 | L64: Acasti Pharma Inc | M64: ACST | N64: NASDAQ | Y64: =IFERROR(VLOOKUP(ROWS($Z$2:Z64),K64:$L$8000,2,0),"") ->  | AE64: 2063
K65: =IF(ISNUMBER(SEARCH($A$3,L65)),MAX($K$1:K64)+1,0) -> 0 | L65: Accelerate Diagnostics Inc | M65: AXDX | N65: NASDAQ | Y65: =IFERROR(VLOOKUP(ROWS($Z$2:Z65),K65:$L$8000,2,0),"") ->  | AE65: 2064
K66: =IF(ISNUMBER(SEARCH($A$3,L66)),MAX($K$1:K65)+1,0) -> 0 | L66: Accelerated Pharma Inc | M66: ACCP | N66: NASDAQ | Y66: =IFERROR(VLOOKUP(ROWS($Z$2:Z66),K66:$L$8000,2,0),"") ->  | AE66: 2065
K67: =IF(ISNUMBER(SEARCH($A$3,L67)),MAX($K$1:K66)+1,0) -> 0 | L67: Acceleron Pharma Inc | M67: XLRN | N67: NASDAQ | Y67: =IFERROR(VLOOKUP(ROWS($Z$2:Z67),K67:$L$8000,2,0),"") ->  | AE67: =AE66+1 -> 2066
K68: =IF(ISNUMBER(SEARCH($A$3,L68)),MAX($K$1:K67)+1,0) -> 0 | L68: Accelrys Incÿ(Inactive) | M68: ACCL | N68: NASDAQ | Y68: =IFERROR(VLOOKUP(ROWS($Z$2:Z68),K68:$L$8000,2,0),"") ->  | AE68: 2067
K69: =IF(ISNUMBER(SEARCH($A$3,L69)),MAX($K$1:K68)+1,0) -> 0 | L69: Access National Corporation | M69: ANCX | N69: NASDAQ | Y69: =IFERROR(VLOOKUP(ROWS($Z$2:Z69),K69:$L$8000,2,0),"") ->  | AE69: 2068
K70: =IF(ISNUMBER(SEARCH($A$3,L70)),MAX($K$1:K69)+1,0) -> 0 | L70: AccuShares S&P GSCI Crude Oil Excess Return Down Shares | M70: OILD | N70: NASDAQ | Y70: =IFERROR(VLOOKUP(ROWS($Z$2:Z70),K70:$L$8000,2,0),"") ->  | AE70: 2069
K71: =IF(ISNUMBER(SEARCH($A$3,L71)),MAX($K$1:K70)+1,0) -> 0 | L71: AccuShares S&P GSCI Crude Oil Excess Return Up Shares | M71: OILU | N71: NASDAQ | Y71: =IFERROR(VLOOKUP(ROWS($Z$2:Z71),K71:$L$8000,2,0),"") ->  | AE71: 2070
K72: =IF(ISNUMBER(SEARCH($A$3,L72)),MAX($K$1:K71)+1,0) -> 0 | L72: AccuShares Spot CBOE VIX Down Shares | M72: VXDN | N72: NASDAQ | Y72: =IFERROR(VLOOKUP(ROWS($Z$2:Z72),K72:$L$8000,2,0),"") ->  | AE72: 2071
K73: =IF(ISNUMBER(SEARCH($A$3,L73)),MAX($K$1:K72)+1,0) -> 0 | L73: AccuShares Spot CBOE VIX Up Shares | M73: VXUP | N73: NASDAQ | Y73: =IFERROR(VLOOKUP(ROWS($Z$2:Z73),K73:$L$8000,2,0),"") ->  | AE73: 2072
K74: =IF(ISNUMBER(SEARCH($A$3,L74)),MAX($K$1:K73)+1,0) -> 0 | L74: Accuray Incorporated | M74: ARAY | N74: NASDAQ | Y74: =IFERROR(VLOOKUP(ROWS($Z$2:Z74),K74:$L$8000,2,0),"") ->  | AE74: 2073
K75: =IF(ISNUMBER(SEARCH($A$3,L75)),MAX($K$1:K74)+1,0) -> 0 | L75: AcelRx Pharmaceuticals Inc | M75: ACRX | N75: NASDAQ | Y75: =IFERROR(VLOOKUP(ROWS($Z$2:Z75),K75:$L$8000,2,0),"") ->  | AE75: 2074
K76: =IF(ISNUMBER(SEARCH($A$3,L76)),MAX($K$1:K75)+1,0) -> 0 | L76: Aceto Corporation | M76: ACET | N76: NASDAQ | Y76: =IFERROR(VLOOKUP(ROWS($Z$2:Z76),K76:$L$8000,2,0),"") ->  | AE76: 2075
K77: =IF(ISNUMBER(SEARCH($A$3,L77)),MAX($K$1:K76)+1,0) -> 0 | L77: Achaogen Inc | M77: AKAO | N77: NASDAQ | Y77: =IFERROR(VLOOKUP(ROWS($Z$2:Z77),K77:$L$8000,2,0),"") ->  | AE77: 2076
K78: =IF(ISNUMBER(SEARCH($A$3,L78)),MAX($K$1:K77)+1,0) -> 0 | L78: Achillion Pharmaceuticals, Inc. | M78: ACHN | N78: NASDAQ | Y78: =IFERROR(VLOOKUP(ROWS($Z$2:Z78),K78:$L$8000,2,0),"") ->  | AE78: 2077
K79: =IF(ISNUMBER(SEARCH($A$3,L79)),MAX($K$1:K78)+1,0) -> 0 | L79: Aclaris Therapeutics Inc | M79: ACRS | N79: NASDAQ | Y79: =IFERROR(VLOOKUP(ROWS($Z$2:Z79),K79:$L$8000,2,0),"") ->  | AE79: 2078
K80: =IF(ISNUMBER(SEARCH($A$3,L80)),MAX($K$1:K79)+1,0) -> 0 | L80: Acme Packet, Inc. | M80: APKT | N80: NASDAQ | Y80: =IFERROR(VLOOKUP(ROWS($Z$2:Z80),K80:$L$8000,2,0),"") ->  | AE80: 2079
K81: =IF(ISNUMBER(SEARCH($A$3,L81)),MAX($K$1:K80)+1,0) -> 0 | L81: Acorda Therapeutics Inc | M81: ACOR | N81: NASDAQ | Y81: =IFERROR(VLOOKUP(ROWS($Z$2:Z81),K81:$L$8000,2,0),"") ->  | AE81: 2080
K82: =IF(ISNUMBER(SEARCH($A$3,L82)),MAX($K$1:K81)+1,0) -> 0 | L82: Actions Semiconductor Co., Ltd. (ADR) | M82: ACTS | N82: NASDAQ | Y82: =IFERROR(VLOOKUP(ROWS($Z$2:Z82),K82:$L$8000,2,0),"") ->  | AE82: 2081
K83: =IF(ISNUMBER(SEARCH($A$3,L83)),MAX($K$1:K82)+1,0) -> 0 | L83: Active Alts Contrarian ETF | M83: SQZZ | N83: NASDAQ | Y83: =IFERROR(VLOOKUP(ROWS($Z$2:Z83),K83:$L$8000,2,0),"") ->  | AE83: 2082
K84: =IF(ISNUMBER(SEARCH($A$3,L84)),MAX($K$1:K83)+1,0) -> 0 | L84: Activision Blizzard, Inc. | M84: ATVI | N84: NASDAQ | Y84: =IFERROR(VLOOKUP(ROWS($Z$2:Z84),K84:$L$8000,2,0),"") ->  | AE84: 2083
K85: =IF(ISNUMBER(SEARCH($A$3,L85)),MAX($K$1:K84)+1,0) -> 0 | L85: Actua Corp | M85: ACTA | N85: NASDAQ | Y85: =IFERROR(VLOOKUP(ROWS($Z$2:Z85),K85:$L$8000,2,0),"") ->  | AE85: 2084
K86: =IF(ISNUMBER(SEARCH($A$3,L86)),MAX($K$1:K85)+1,0) -> 0 | L86: Actuate Corpÿ(Inactive) | M86: BIRT | N86: NASDAQ | Y86: =IFERROR(VLOOKUP(ROWS($Z$2:Z86),K86:$L$8000,2,0),"") ->  | AE86: 2085
K87: =IF(ISNUMBER(SEARCH($A$3,L87)),MAX($K$1:K86)+1,0) -> 0 | L87: Acxiom Corporation | M87: ACXM | N87: NASDAQ | Y87: =IFERROR(VLOOKUP(ROWS($Z$2:Z87),K87:$L$8000,2,0),"") ->  | AE87: 2086
K88: =IF(ISNUMBER(SEARCH($A$3,L88)),MAX($K$1:K87)+1,0) -> 0 | L88: Adamas Pharmaceuticals Inc | M88: ADMS | N88: NASDAQ | Y88: =IFERROR(VLOOKUP(ROWS($Z$2:Z88),K88:$L$8000,2,0),"") ->  | AE88: 2087
K89: =IF(ISNUMBER(SEARCH($A$3,L89)),MAX($K$1:K88)+1,0) -> 0 | L89: Adamis Pharmaceuticals Corp | M89: ADMP | N89: NASDAQ | Y89: =IFERROR(VLOOKUP(ROWS($Z$2:Z89),K89:$L$8000,2,0),"") ->  | AE89: 2088
K90: =IF(ISNUMBER(SEARCH($A$3,L90)),MAX($K$1:K89)+1,0) -> 0 | L90: Adams Golf, Inc.ÿ(Inactive) | M90: ADGF | N90: NASDAQ | Y90: =IFERROR(VLOOKUP(ROWS($Z$2:Z90),K90:$L$8000,2,0),"") ->  | AE90: 2089
K91: =IF(ISNUMBER(SEARCH($A$3,L91)),MAX($K$1:K90)+1,0) -> 0 | L91: Adaptimmune Therapeutics PLC - ADR | M91: ADAP | N91: NASDAQ | Y91: =IFERROR(VLOOKUP(ROWS($Z$2:Z91),K91:$L$8000,2,0),"") ->  | AE91: 2090
K92: =IF(ISNUMBER(SEARCH($A$3,L92)),MAX($K$1:K91)+1,0) -> 0 | L92: Addus Homecare Corporation | M92: ADUS | N92: NASDAQ | Y92: =IFERROR(VLOOKUP(ROWS($Z$2:Z92),K92:$L$8000,2,0),"") ->  | AE92: 2091
K93: =IF(ISNUMBER(SEARCH($A$3,L93)),MAX($K$1:K92)+1,0) -> 0 | L93: Adept Technology Inc | M93: ADEP | N93: NASDAQ | Y93: =IFERROR(VLOOKUP(ROWS($Z$2:Z93),K93:$L$8000,2,0),"") ->  | AE93: 2092
K94: =IF(ISNUMBER(SEARCH($A$3,L94)),MAX($K$1:K93)+1,0) -> 0 | L94: Adesto Technologies Corp | M94: IOTS | N94: NASDAQ | Y94: =IFERROR(VLOOKUP(ROWS($Z$2:Z94),K94:$L$8000,2,0),"") ->  | AE94: 2093
K95: =IF(ISNUMBER(SEARCH($A$3,L95)),MAX($K$1:K94)+1,0) -> 0 | L95: Adobe Systems Incorporated | M95: ADBE | N95: NASDAQ | Y95: =IFERROR(VLOOKUP(ROWS($Z$2:Z95),K95:$L$8000,2,0),"") ->  | AE95: 2094
K96: =IF(ISNUMBER(SEARCH($A$3,L96)),MAX($K$1:K95)+1,0) -> 0 | L96: Adolor Corporationÿ(Inactive) | M96: ADLR | N96: NASDAQ | Y96: =IFERROR(VLOOKUP(ROWS($Z$2:Z96),K96:$L$8000,2,0),"") ->  | AE96: 2095
K97: =IF(ISNUMBER(SEARCH($A$3,L97)),MAX($K$1:K96)+1,0) -> 0 | L97: Adomani Inc | M97: ADOM | N97: NASDAQ | Y97: =IFERROR(VLOOKUP(ROWS($Z$2:Z97),K97:$L$8000,2,0),"") ->  | AE97: 2096
K98: =IF(ISNUMBER(SEARCH($A$3,L98)),MAX($K$1:K97)+1,0) -> 0 | L98: Aduro BioTech Inc | M98: ADRO | N98: NASDAQ | Y98: =IFERROR(VLOOKUP(ROWS($Z$2:Z98),K98:$L$8000,2,0),"") ->  | AE98: 2097
K99: =IF(ISNUMBER(SEARCH($A$3,L99)),MAX($K$1:K98)+1,0) -> 0 | L99: Advanced Accelerator Application SA(ADR) | M99: AAAP | N99: NASDAQ | Y99: =IFERROR(VLOOKUP(ROWS($Z$2:Z99),K99:$L$8000,2,0),"") ->  | AE99: 2098
K100: =IF(ISNUMBER(SEARCH($A$3,L100)),MAX($K$1:K99)+1,0) -> 0 | L100: Advanced Analogic Technologies Incorp.ÿ(Inactive) | M100: AATI | N100: NASDAQ | Y100: =IFERROR(VLOOKUP(ROWS($Z$2:Z100),K100:$L$8000,2,0),"") ->  | AE100: 2099
K101: =IF(ISNUMBER(SEARCH($A$3,L101)),MAX($K$1:K100)+1,0) -> 0 | L101: Advanced Emissions Solutions, Inc. | M101: ADES | N101: NASDAQ | Y101: =IFERROR(VLOOKUP(ROWS($Z$2:Z101),K101:$L$8000,2,0),"") ->  | AE101: 2100
K102: =IF(ISNUMBER(SEARCH($A$3,L102)),MAX($K$1:K101)+1,0) -> 0 | L102: Advanced Energy Industries, Inc. | M102: AEIS | N102: NASDAQ | Y102: =IFERROR(VLOOKUP(ROWS($Z$2:Z102),K102:$L$8000,2,0),"") ->  | AE102: 2101
K103: =IF(ISNUMBER(SEARCH($A$3,L103)),MAX($K$1:K102)+1,0) -> 0 | L103: Advanced Inhalation Therapies AIT Ltd | M103: AITP | N103: NASDAQ | Y103: =IFERROR(VLOOKUP(ROWS($Z$2:Z103),K103:$L$8000,2,0),"") ->  | AE103: 2102
K104: =IF(ISNUMBER(SEARCH($A$3,L104)),MAX($K$1:K103)+1,0) -> 0 | L104: Advanced Micro Devices, Inc. | M104: AMD | N104: NASDAQ | Y104: =IFERROR(VLOOKUP(ROWS($Z$2:Z104),K104:$L$8000,2,0),"") ->  | AE104: 2103
K105: =IF(ISNUMBER(SEARCH($A$3,L105)),MAX($K$1:K104)+1,0) -> 0 | L105: Advaxis, Inc. | M105: ADXS | N105: NASDAQ | Y105: =IFERROR(VLOOKUP(ROWS($Z$2:Z105),K105:$L$8000,2,0),"") ->  | AE105: 2104
K106: =IF(ISNUMBER(SEARCH($A$3,L106)),MAX($K$1:K105)+1,0) -> 0 | L106: Advent Software, Inc. | M106: ADVS | N106: NASDAQ | Y106: =IFERROR(VLOOKUP(ROWS($Z$2:Z106),K106:$L$8000,2,0),"") ->  | AE106: 2105
K107: =IF(ISNUMBER(SEARCH($A$3,L107)),MAX($K$1:K106)+1,0) -> 0 | L107: Adverum Biotechnologies Inc | M107: ADVM | N107: NASDAQ | Y107: =IFERROR(VLOOKUP(ROWS($Z$2:Z107),K107:$L$8000,2,0),"") ->  | AE107: 2106
K108: =IF(ISNUMBER(SEARCH($A$3,L108)),MAX($K$1:K107)+1,0) -> 0 | L108: AdvisorShares Trust | M108: MAUI | N108: NASDAQ | Y108: =IFERROR(VLOOKUP(ROWS($Z$2:Z108),K108:$L$8000,2,0),"") ->  | AE108: 2107
K109: =IF(ISNUMBER(SEARCH($A$3,L109)),MAX($K$1:K108)+1,0) -> 0 | L109: AdvisorShares Trust | M109: YPRO | N109: NASDAQ | Y109: =IFERROR(VLOOKUP(ROWS($Z$2:Z109),K109:$L$8000,2,0),"") ->  | AE109: 2108
K110: =IF(ISNUMBER(SEARCH($A$3,L110)),MAX($K$1:K109)+1,0) -> 0 | L110: Aegerion Pharmaceuticals, Inc. | M110: AEGR | N110: NASDAQ | Y110: =IFERROR(VLOOKUP(ROWS($Z$2:Z110),K110:$L$8000,2,0),"") ->  | AE110: 2109
K111: =IF(ISNUMBER(SEARCH($A$3,L111)),MAX($K$1:K110)+1,0) -> 0 | L111: Aegion Corp | M111: AEGN | N111: NASDAQ | Y111: =IFERROR(VLOOKUP(ROWS($Z$2:Z111),K111:$L$8000,2,0),"") ->  | AE111: 2110
K112: =IF(ISNUMBER(SEARCH($A$3,L112)),MAX($K$1:K111)+1,0) -> 0 | L112: Aeglea Bio Therapeutics Inc | M112: AGLE | N112: NASDAQ | Y112: =IFERROR(VLOOKUP(ROWS($Z$2:Z112),K112:$L$8000,2,0),"") -> 
K113: =IF(ISNUMBER(SEARCH($A$3,L113)),MAX($K$1:K112)+1,0) -> 0 | L113: Aehr Test Systems | M113: AEHR | N113: NASDAQ | Y113: =IFERROR(VLOOKUP(ROWS($Z$2:Z113),K113:$L$8000,2,0),"") -> 
K114: =IF(ISNUMBER(SEARCH($A$3,L114)),MAX($K$1:K113)+1,0) -> 0 | L114: Aemetis Inc | M114: AMTX | N114: NASDAQ | Y114: =IFERROR(VLOOKUP(ROWS($Z$2:Z114),K114:$L$8000,2,0),"") -> 
K115: =IF(ISNUMBER(SEARCH($A$3,L115)),MAX($K$1:K114)+1,0) -> 0 | L115: Aerie Pharmaceuticals Inc | M115: AERI | N115: NASDAQ | Y115: =IFERROR(VLOOKUP(ROWS($Z$2:Z115),K115:$L$8000,2,0),"") -> 
K116: =IF(ISNUMBER(SEARCH($A$3,L116)),MAX($K$1:K115)+1,0) -> 0 | L116: AeroVironment, Inc. | M116: AVAV | N116: NASDAQ | Y116: =IFERROR(VLOOKUP(ROWS($Z$2:Z116),K116:$L$8000,2,0),"") -> 
K117: =IF(ISNUMBER(SEARCH($A$3,L117)),MAX($K$1:K116)+1,0) -> 0 | L117: Aethlon Medical, Inc. | M117: AEMD | N117: NASDAQ | Y117: =IFERROR(VLOOKUP(ROWS($Z$2:Z117),K117:$L$8000,2,0),"") -> 
K118: =IF(ISNUMBER(SEARCH($A$3,L118)),MAX($K$1:K117)+1,0) -> 0 | L118: Affimed NV | M118: AFMD | N118: NASDAQ | Y118: =IFERROR(VLOOKUP(ROWS($Z$2:Z118),K118:$L$8000,2,0),"") -> 
K119: =IF(ISNUMBER(SEARCH($A$3,L119)),MAX($K$1:K118)+1,0) -> 0 | L119: Affymetrix, Inc. | M119: AFFX | N119: NASDAQ | Y119: =IFERROR(VLOOKUP(ROWS($Z$2:Z119),K119:$L$8000,2,0),"") -> 
K120: =IF(ISNUMBER(SEARCH($A$3,L120)),MAX($K$1:K119)+1,0) -> 0 | L120: AgEagle Aerial Systems Inc | M120: UAVS | N120: NASDAQ | Y120: =IFERROR(VLOOKUP(ROWS($Z$2:Z120),K120:$L$8000,2,0),"") -> 
K121: =IF(ISNUMBER(SEARCH($A$3,L121)),MAX($K$1:K120)+1,0) -> 0 | L121: Agenus Inc | M121: AGEN | N121: NASDAQ | Y121: =IFERROR(VLOOKUP(ROWS($Z$2:Z121),K121:$L$8000,2,0),"") -> 
K122: =IF(ISNUMBER(SEARCH($A$3,L122)),MAX($K$1:K121)+1,0) -> 0 | L122: Agile Therapeutics Inc | M122: AGRX | N122: NASDAQ | Y122: =IFERROR(VLOOKUP(ROWS($Z$2:Z122),K122:$L$8000,2,0),"") -> 
K123: =IF(ISNUMBER(SEARCH($A$3,L123)),MAX($K$1:K122)+1,0) -> 0 | L123: Agilysys, Inc. | M123: AGYS | N123: NASDAQ | Y123: =IFERROR(VLOOKUP(ROWS($Z$2:Z123),K123:$L$8000,2,0),"") -> 
K124: =IF(ISNUMBER(SEARCH($A$3,L124)),MAX($K$1:K123)+1,0) -> 0 | L124: Agios Pharmaceuticals Inc | M124: AGIO | N124: NASDAQ | Y124: =IFERROR(VLOOKUP(ROWS($Z$2:Z124),K124:$L$8000,2,0),"") -> 
K125: =IF(ISNUMBER(SEARCH($A$3,L125)),MAX($K$1:K124)+1,0) -> 0 | L125: AgroFresh Solutions Inc | M125: AGFS | N125: NASDAQ | Y125: =IFERROR(VLOOKUP(ROWS($Z$2:Z125),K125:$L$8000,2,0),"") -> 
K126: =IF(ISNUMBER(SEARCH($A$3,L126)),MAX($K$1:K125)+1,0) -> 0 | L126: Aimmune Therapeutics Inc | M126: AIMT | N126: NASDAQ | Y126: =IFERROR(VLOOKUP(ROWS($Z$2:Z126),K126:$L$8000,2,0),"") -> 
K127: =IF(ISNUMBER(SEARCH($A$3,L127)),MAX($K$1:K126)+1,0) -> 0 | L127: Aina Le'a Inc | M127: AIZY | N127: NASDAQ | Y127: =IFERROR(VLOOKUP(ROWS($Z$2:Z127),K127:$L$8000,2,0),"") -> 
K128: =IF(ISNUMBER(SEARCH($A$3,L128)),MAX($K$1:K127)+1,0) -> 0 | L128: Air Methods Corp | M128: AIRM | N128: NASDAQ | Y128: =IFERROR(VLOOKUP(ROWS($Z$2:Z128),K128:$L$8000,2,0),"") -> 
K129: =IF(ISNUMBER(SEARCH($A$3,L129)),MAX($K$1:K128)+1,0) -> 0 | L129: Air T, Inc. | M129: AIRT | N129: NASDAQ | Y129: =IFERROR(VLOOKUP(ROWS($Z$2:Z129),K129:$L$8000,2,0),"") -> 
K130: =IF(ISNUMBER(SEARCH($A$3,L130)),MAX($K$1:K129)+1,0) -> 0 | L130: Air Transport Services Group Inc. | M130: ATSG | N130: NASDAQ | Y130: =IFERROR(VLOOKUP(ROWS($Z$2:Z130),K130:$L$8000,2,0),"") -> 
K131: =IF(ISNUMBER(SEARCH($A$3,L131)),MAX($K$1:K130)+1,0) -> 0 | L131: AirMedia Group Inc (ADR) | M131: AMCN | N131: NASDAQ | Y131: =IFERROR(VLOOKUP(ROWS($Z$2:Z131),K131:$L$8000,2,0),"") -> 
K132: =IF(ISNUMBER(SEARCH($A$3,L132)),MAX($K$1:K131)+1,0) -> 0 | L132: Airgain Inc | M132: AIRG | N132: NASDAQ | Y132: =IFERROR(VLOOKUP(ROWS($Z$2:Z132),K132:$L$8000,2,0),"") -> 
K133: =IF(ISNUMBER(SEARCH($A$3,L133)),MAX($K$1:K132)+1,0) -> 0 | L133: Akamai Technologies, Inc. | M133: AKAM | N133: NASDAQ | Y133: =IFERROR(VLOOKUP(ROWS($Z$2:Z133),K133:$L$8000,2,0),"") -> 
K134: =IF(ISNUMBER(SEARCH($A$3,L134)),MAX($K$1:K133)+1,0) -> 0 | L134: Akari Therapeutics PLC (ADR) | M134: AKTX | N134: NASDAQ | Y134: =IFERROR(VLOOKUP(ROWS($Z$2:Z134),K134:$L$8000,2,0),"") -> 
K135: =IF(ISNUMBER(SEARCH($A$3,L135)),MAX($K$1:K134)+1,0) -> 0 | L135: Akebia Therapeutics Inc | M135: AKBA | N135: NASDAQ | Y135: =IFERROR(VLOOKUP(ROWS($Z$2:Z135),K135:$L$8000,2,0),"") -> 
K136: =IF(ISNUMBER(SEARCH($A$3,L136)),MAX($K$1:K135)+1,0) -> 0 | L136: Akers Biosciences Inc | M136: AKER | N136: NASDAQ | Y136: =IFERROR(VLOOKUP(ROWS($Z$2:Z136),K136:$L$8000,2,0),"") -> 
K137: =IF(ISNUMBER(SEARCH($A$3,L137)),MAX($K$1:K136)+1,0) -> 0 | L137: Akorn, Inc. | M137: AKRX | N137: NASDAQ | Y137: =IFERROR(VLOOKUP(ROWS($Z$2:Z137),K137:$L$8000,2,0),"") -> 
K138: =IF(ISNUMBER(SEARCH($A$3,L138)),MAX($K$1:K137)+1,0) -> 0 | L138: Akoustis Technologies Inc | M138: AKTS | N138: NASDAQ | Y138: =IFERROR(VLOOKUP(ROWS($Z$2:Z138),K138:$L$8000,2,0),"") -> 
K139: =IF(ISNUMBER(SEARCH($A$3,L139)),MAX($K$1:K138)+1,0) -> 0 | L139: AlarmCom Hldg Inc | M139: ALRM | N139: NASDAQ | Y139: =IFERROR(VLOOKUP(ROWS($Z$2:Z139),K139:$L$8000,2,0),"") -> 
K140: =IF(ISNUMBER(SEARCH($A$3,L140)),MAX($K$1:K139)+1,0) -> 0 | L140: Alaska Communications Systems Group Inc | M140: ALSK | N140: NASDAQ | Y140: =IFERROR(VLOOKUP(ROWS($Z$2:Z140),K140:$L$8000,2,0),"") -> 
K141: =IF(ISNUMBER(SEARCH($A$3,L141)),MAX($K$1:K140)+1,0) -> 0 | L141: Albany Molecular Research, Inc. | M141: AMRI | N141: NASDAQ | Y141: =IFERROR(VLOOKUP(ROWS($Z$2:Z141),K141:$L$8000,2,0),"") -> 
K142: =IF(ISNUMBER(SEARCH($A$3,L142)),MAX($K$1:K141)+1,0) -> 0 | L142: Albireo Pharma Inc | M142: BIOD | N142: NASDAQ | Y142: =IFERROR(VLOOKUP(ROWS($Z$2:Z142),K142:$L$8000,2,0),"") -> 
K143: =IF(ISNUMBER(SEARCH($A$3,L143)),MAX($K$1:K142)+1,0) -> 0 | L143: Albireo Pharma, Inc. | M143: ALBO | N143: NASDAQ | Y143: =IFERROR(VLOOKUP(ROWS($Z$2:Z143),K143:$L$8000,2,0),"") -> 
K144: =IF(ISNUMBER(SEARCH($A$3,L144)),MAX($K$1:K143)+1,0) -> 0 | L144: Alcentra Capital Corp | M144: ABDC | N144: NASDAQ | Y144: =IFERROR(VLOOKUP(ROWS($Z$2:Z144),K144:$L$8000,2,0),"") -> 
K145: =IF(ISNUMBER(SEARCH($A$3,L145)),MAX($K$1:K144)+1,0) -> 0 | L145: Alcobra Ltd | M145: ADHD | N145: NASDAQ | Y145: =IFERROR(VLOOKUP(ROWS($Z$2:Z145),K145:$L$8000,2,0),"") -> 
K146: =IF(ISNUMBER(SEARCH($A$3,L146)),MAX($K$1:K145)+1,0) -> 0 | L146: Alder Biopharmaceuticals Inc | M146: ALDR | N146: NASDAQ | Y146: =IFERROR(VLOOKUP(ROWS($Z$2:Z146),K146:$L$8000,2,0),"") -> 
K147: =IF(ISNUMBER(SEARCH($A$3,L147)),MAX($K$1:K146)+1,0) -> 0 | L147: Aldeyra Therapeutics Inc | M147: ALDX | N147: NASDAQ | Y147: =IFERROR(VLOOKUP(ROWS($Z$2:Z147),K147:$L$8000,2,0),"") -> 
K148: =IF(ISNUMBER(SEARCH($A$3,L148)),MAX($K$1:K147)+1,0) -> 0 | L148: Alexion Pharmaceuticals, Inc. | M148: ALXN | N148: NASDAQ | Y148: =IFERROR(VLOOKUP(ROWS($Z$2:Z148),K148:$L$8000,2,0),"") -> 
K149: =IF(ISNUMBER(SEARCH($A$3,L149)),MAX($K$1:K148)+1,0) -> 0 | L149: Alico, Inc. | M149: ALCO | N149: NASDAQ | Y149: =IFERROR(VLOOKUP(ROWS($Z$2:Z149),K149:$L$8000,2,0),"") -> 
K150: =IF(ISNUMBER(SEARCH($A$3,L150)),MAX($K$1:K149)+1,0) -> 0 | L150: Align Technology, Inc. | M150: ALGN | N150: NASDAQ | Y150: =IFERROR(VLOOKUP(ROWS($Z$2:Z150),K150:$L$8000,2,0),"") -> 
K151: =IF(ISNUMBER(SEARCH($A$3,L151)),MAX($K$1:K150)+1,0) -> 0 | L151: Alimera Sciences Inc | M151: ALIM | N151: NASDAQ | Y151: =IFERROR(VLOOKUP(ROWS($Z$2:Z151),K151:$L$8000,2,0),"") -> 
K152: =IF(ISNUMBER(SEARCH($A$3,L152)),MAX($K$1:K151)+1,0) -> 0 | L152: Alkermes Plc | M152: ALKS | N152: NASDAQ | Y152: =IFERROR(VLOOKUP(ROWS($Z$2:Z152),K152:$L$8000,2,0),"") -> 
K153: =IF(ISNUMBER(SEARCH($A$3,L153)),MAX($K$1:K152)+1,0) -> 0 | L153: Allegiance Bancshares Inc | M153: ABTX | N153: NASDAQ | Y153: =IFERROR(VLOOKUP(ROWS($Z$2:Z153),K153:$L$8000,2,0),"") -> 
K154: =IF(ISNUMBER(SEARCH($A$3,L154)),MAX($K$1:K153)+1,0) -> 0 | L154: Allegiant Travel Company | M154: ALGT | N154: NASDAQ | Y154: =IFERROR(VLOOKUP(ROWS($Z$2:Z154),K154:$L$8000,2,0),"") -> 
K155: =IF(ISNUMBER(SEARCH($A$3,L155)),MAX($K$1:K154)+1,0) -> 0 | L155: Alliance Bancorp Inc of Pennsylvania | M155: ALLB | N155: NASDAQ | Y155: =IFERROR(VLOOKUP(ROWS($Z$2:Z155),K155:$L$8000,2,0),"") -> 
K156: =IF(ISNUMBER(SEARCH($A$3,L156)),MAX($K$1:K155)+1,0) -> 0 | L156: Alliance Bankshares Corporationÿ(Inactive) | M156: ABVA | N156: NASDAQ | Y156: =IFERROR(VLOOKUP(ROWS($Z$2:Z156),K156:$L$8000,2,0),"") -> 
K157: =IF(ISNUMBER(SEARCH($A$3,L157)),MAX($K$1:K156)+1,0) -> 0 | L157: Alliance Fiber Optic Products Inc | M157: AFOP | N157: NASDAQ | Y157: =IFERROR(VLOOKUP(ROWS($Z$2:Z157),K157:$L$8000,2,0),"") -> 
K158: =IF(ISNUMBER(SEARCH($A$3,L158)),MAX($K$1:K157)+1,0) -> 0 | L158: Alliance Financial Corporationÿ(Inactive) | M158: ALNC | N158: NASDAQ | Y158: =IFERROR(VLOOKUP(ROWS($Z$2:Z158),K158:$L$8000,2,0),"") -> 
K159: =IF(ISNUMBER(SEARCH($A$3,L159)),MAX($K$1:K158)+1,0) -> 0 | L159: Alliance HealthCare Services, Inc. | M159: AIQ | N159: NASDAQ | Y159: =IFERROR(VLOOKUP(ROWS($Z$2:Z159),K159:$L$8000,2,0),"") -> 
K160: =IF(ISNUMBER(SEARCH($A$3,L160)),MAX($K$1:K159)+1,0) -> 0 | L160: Alliance Holdings GP, L.P. | M160: AHGP | N160: NASDAQ | Y160: =IFERROR(VLOOKUP(ROWS($Z$2:Z160),K160:$L$8000,2,0),"") -> 
K161: =IF(ISNUMBER(SEARCH($A$3,L161)),MAX($K$1:K160)+1,0) -> 0 | L161: Alliance MMA Inc | M161: AMMA | N161: NASDAQ | Y161: =IFERROR(VLOOKUP(ROWS($Z$2:Z161),K161:$L$8000,2,0),"") -> 
K162: =IF(ISNUMBER(SEARCH($A$3,L162)),MAX($K$1:K161)+1,0) -> 0 | L162: Alliance Resource Partners, L.P. | M162: ARLP | N162: NASDAQ | Y162: =IFERROR(VLOOKUP(ROWS($Z$2:Z162),K162:$L$8000,2,0),"") -> 
K163: =IF(ISNUMBER(SEARCH($A$3,L163)),MAX($K$1:K162)+1,0) -> 0 | L163: Allied Healthcare Products Inc | M163: AHPI | N163: NASDAQ | Y163: =IFERROR(VLOOKUP(ROWS($Z$2:Z163),K163:$L$8000,2,0),"") -> 
K164: =IF(ISNUMBER(SEARCH($A$3,L164)),MAX($K$1:K163)+1,0) -> 0 | L164: Allied Motion Technologies, Inc. | M164: AMOT | N164: NASDAQ | Y164: =IFERROR(VLOOKUP(ROWS($Z$2:Z164),K164:$L$8000,2,0),"") -> 
K165: =IF(ISNUMBER(SEARCH($A$3,L165)),MAX($K$1:K164)+1,0) -> 0 | L165: Alliqua Biomedical Inc | M165: ALQA | N165: NASDAQ | Y165: =IFERROR(VLOOKUP(ROWS($Z$2:Z165),K165:$L$8000,2,0),"") -> 
K166: =IF(ISNUMBER(SEARCH($A$3,L166)),MAX($K$1:K165)+1,0) -> 0 | L166: Allos Therapeutics, Inc.ÿ(Inactive) | M166: ALTH | N166: NASDAQ | Y166: =IFERROR(VLOOKUP(ROWS($Z$2:Z166),K166:$L$8000,2,0),"") -> 
K167: =IF(ISNUMBER(SEARCH($A$3,L167)),MAX($K$1:K166)+1,0) -> 0 | L167: Allot Communications Ltd | M167: ALLT | N167: NASDAQ | Y167: =IFERROR(VLOOKUP(ROWS($Z$2:Z167),K167:$L$8000,2,0),"") -> 
K168: =IF(ISNUMBER(SEARCH($A$3,L168)),MAX($K$1:K167)+1,0) -> 0 | L168: Allscripts Healthcare Solutions Inc | M168: MDRX | N168: NASDAQ | Y168: =IFERROR(VLOOKUP(ROWS($Z$2:Z168),K168:$L$8000,2,0),"") -> 
K169: =IF(ISNUMBER(SEARCH($A$3,L169)),MAX($K$1:K168)+1,0) -> 0 | L169: Almost Family Inc | M169: AFAM | N169: NASDAQ | Y169: =IFERROR(VLOOKUP(ROWS($Z$2:Z169),K169:$L$8000,2,0),"") -> 
K170: =IF(ISNUMBER(SEARCH($A$3,L170)),MAX($K$1:K169)+1,0) -> 0 | L170: Alnylam Pharmaceuticals, Inc. | M170: ALNY | N170: NASDAQ | Y170: =IFERROR(VLOOKUP(ROWS($Z$2:Z170),K170:$L$8000,2,0),"") -> 
K171: =IF(ISNUMBER(SEARCH($A$3,L171)),MAX($K$1:K170)+1,0) -> 0 | L171: Alpha and Omega Semiconductor Ltd | M171: AOSL | N171: NASDAQ | Y171: =IFERROR(VLOOKUP(ROWS($Z$2:Z171),K171:$L$8000,2,0),"") -> 
K172: =IF(ISNUMBER(SEARCH($A$3,L172)),MAX($K$1:K171)+1,0) -> 0 | L172: AlphaMark Actively Managed Small Cap ETF | M172: SMCP | N172: NASDAQ | Y172: =IFERROR(VLOOKUP(ROWS($Z$2:Z172),K172:$L$8000,2,0),"") -> 
K173: =IF(ISNUMBER(SEARCH($A$3,L173)),MAX($K$1:K172)+1,0) -> 0 | L173: Alphabet Inc | M173: GOOG | N173: NASDAQ | Y173: =IFERROR(VLOOKUP(ROWS($Z$2:Z173),K173:$L$8000,2,0),"") -> 
K174: =IF(ISNUMBER(SEARCH($A$3,L174)),MAX($K$1:K173)+1,0) -> 0 | L174: Alphabet Inc | M174: GOOGL | N174: NASDAQ | Y174: =IFERROR(VLOOKUP(ROWS($Z$2:Z174),K174:$L$8000,2,0),"") -> 
K175: =IF(ISNUMBER(SEARCH($A$3,L175)),MAX($K$1:K174)+1,0) -> 0 | L175: Alphatec Holdings Inc | M175: ATEC | N175: NASDAQ | Y175: =IFERROR(VLOOKUP(ROWS($Z$2:Z175),K175:$L$8000,2,0),"") -> 
K176: =IF(ISNUMBER(SEARCH($A$3,L176)),MAX($K$1:K175)+1,0) -> 0 | L176: Altera Corporation | M176: ALTR | N176: NASDAQ | Y176: =IFERROR(VLOOKUP(ROWS($Z$2:Z176),K176:$L$8000,2,0),"") -> 
K177: =IF(ISNUMBER(SEARCH($A$3,L177)),MAX($K$1:K176)+1,0) -> 0 | L177: Alterra Capital Holdings Ltd | M177: ALTE | N177: NASDAQ | Y177: =IFERROR(VLOOKUP(ROWS($Z$2:Z177),K177:$L$8000,2,0),"") -> 
K178: =IF(ISNUMBER(SEARCH($A$3,L178)),MAX($K$1:K177)+1,0) -> 0 | L178: AltheaDx Inc | M178: IDGX | N178: NASDAQ | Y178: =IFERROR(VLOOKUP(ROWS($Z$2:Z178),K178:$L$8000,2,0),"") -> 
K179: =IF(ISNUMBER(SEARCH($A$3,L179)),MAX($K$1:K178)+1,0) -> 0 | L179: Altimmune Inc | M179: ALT | N179: NASDAQ | Y179: =IFERROR(VLOOKUP(ROWS($Z$2:Z179),K179:$L$8000,2,0),"") -> 
K180: =IF(ISNUMBER(SEARCH($A$3,L180)),MAX($K$1:K179)+1,0) -> 0 | L180: Altisource Portfolio Solutions S.A. | M180: ASPS | N180: NASDAQ | Y180: =IFERROR(VLOOKUP(ROWS($Z$2:Z180),K180:$L$8000,2,0),"") -> 
K181: =IF(ISNUMBER(SEARCH($A$3,L181)),MAX($K$1:K180)+1,0) -> 0 | L181: Altra Industrial Motion Corp | M181: AIMC | N181: NASDAQ | Y181: =IFERROR(VLOOKUP(ROWS($Z$2:Z181),K181:$L$8000,2,0),"") -> 
K182: =IF(ISNUMBER(SEARCH($A$3,L182)),MAX($K$1:K181)+1,0) -> 0 | L182: AmTrust Financial Services Inc | M182: AFSI | N182: NASDAQ | Y182: =IFERROR(VLOOKUP(ROWS($Z$2:Z182),K182:$L$8000,2,0),"") -> 
K183: =IF(ISNUMBER(SEARCH($A$3,L183)),MAX($K$1:K182)+1,0) -> 0 | L183: Amarin Corporation plc (ADR) | M183: AMRN | N183: NASDAQ | Y183: =IFERROR(VLOOKUP(ROWS($Z$2:Z183),K183:$L$8000,2,0),"") -> 
K184: =IF(ISNUMBER(SEARCH($A$3,L184)),MAX($K$1:K183)+1,0) -> 0 | L184: Amaya Inc. | M184: AYA | N184: NASDAQ | Y184: =IFERROR(VLOOKUP(ROWS($Z$2:Z184),K184:$L$8000,2,0),"") -> 
K185: =IF(ISNUMBER(SEARCH($A$3,L185)),MAX($K$1:K184)+1,0) -> 0 | L185: Amazon.com, Inc. | M185: AMZN | N185: NASDAQ | Y185: =IFERROR(VLOOKUP(ROWS($Z$2:Z185),K185:$L$8000,2,0),"") -> 
K186: =IF(ISNUMBER(SEARCH($A$3,L186)),MAX($K$1:K185)+1,0) -> 0 | L186: Ambac Financial Group, Inc. | M186: AMBC | N186: NASDAQ | Y186: =IFERROR(VLOOKUP(ROWS($Z$2:Z186),K186:$L$8000,2,0),"") -> 
K187: =IF(ISNUMBER(SEARCH($A$3,L187)),MAX($K$1:K186)+1,0) -> 0 | L187: Ambarella Inc | M187: AMBA | N187: NASDAQ | Y187: =IFERROR(VLOOKUP(ROWS($Z$2:Z187),K187:$L$8000,2,0),"") -> 
K188: =IF(ISNUMBER(SEARCH($A$3,L188)),MAX($K$1:K187)+1,0) -> 0 | L188: Ambit Biosciences Corp | M188: AMBI | N188: NASDAQ | Y188: =IFERROR(VLOOKUP(ROWS($Z$2:Z188),K188:$L$8000,2,0),"") -> 
K189: =IF(ISNUMBER(SEARCH($A$3,L189)),MAX($K$1:K188)+1,0) -> 0 | L189: Ambrx Inc | M189: AMBX | N189: NASDAQ | Y189: =IFERROR(VLOOKUP(ROWS($Z$2:Z189),K189:$L$8000,2,0),"") -> 
K190: =IF(ISNUMBER(SEARCH($A$3,L190)),MAX($K$1:K189)+1,0) -> 0 | L190: Amdocs Limited | M190: DOX | N190: NASDAQ | Y190: =IFERROR(VLOOKUP(ROWS($Z$2:Z190),K190:$L$8000,2,0),"") -> 
K191: =IF(ISNUMBER(SEARCH($A$3,L191)),MAX($K$1:K190)+1,0) -> 0 | L191: Amedica Corporation | M191: AMDA | N191: NASDAQ | Y191: =IFERROR(VLOOKUP(ROWS($Z$2:Z191),K191:$L$8000,2,0),"") -> 
K192: =IF(ISNUMBER(SEARCH($A$3,L192)),MAX($K$1:K191)+1,0) -> 0 | L192: Amedisys Inc | M192: AMED | N192: NASDAQ | Y192: =IFERROR(VLOOKUP(ROWS($Z$2:Z192),K192:$L$8000,2,0),"") -> 
K193: =IF(ISNUMBER(SEARCH($A$3,L193)),MAX($K$1:K192)+1,0) -> 0 | L193: AmeriServ Financial Inc. - AmeriServ Financial Trust I - 8.45% Beneficial Unsecured Securities, Series A | M193: ASRVP | N193: NASDAQ | Y193: =IFERROR(VLOOKUP(ROWS($Z$2:Z193),K193:$L$8000,2,0),"") -> 
K194: =IF(ISNUMBER(SEARCH($A$3,L194)),MAX($K$1:K193)+1,0) -> 0 | L194: AmeriServ Financial, Inc. | M194: ASRV | N194: NASDAQ | Y194: =IFERROR(VLOOKUP(ROWS($Z$2:Z194),K194:$L$8000,2,0),"") -> 
K195: =IF(ISNUMBER(SEARCH($A$3,L195)),MAX($K$1:K194)+1,0) -> 0 | L195: Ameriana Bancorp | M195: ASBI | N195: NASDAQ | Y195: =IFERROR(VLOOKUP(ROWS($Z$2:Z195),K195:$L$8000,2,0),"") -> 
K196: =IF(ISNUMBER(SEARCH($A$3,L196)),MAX($K$1:K195)+1,0) -> 0 | L196: America First Multifamily Investors LP | M196: ATAX | N196: NASDAQ | Y196: =IFERROR(VLOOKUP(ROWS($Z$2:Z196),K196:$L$8000,2,0),"") -> 
K197: =IF(ISNUMBER(SEARCH($A$3,L197)),MAX($K$1:K196)+1,0) -> 0 | L197: America's Car-Mart, Inc. | M197: CRMT | N197: NASDAQ | Y197: =IFERROR(VLOOKUP(ROWS($Z$2:Z197),K197:$L$8000,2,0),"") -> 
K198: =IF(ISNUMBER(SEARCH($A$3,L198)),MAX($K$1:K197)+1,0) -> 0 | L198: American Airlines Group Inc | M198: AAL | N198: NASDAQ | Y198: =IFERROR(VLOOKUP(ROWS($Z$2:Z198),K198:$L$8000,2,0),"") -> 
K199: =IF(ISNUMBER(SEARCH($A$3,L199)),MAX($K$1:K198)+1,0) -> 0 | L199: American Airlines Group, Inc. - Series A Convertible Preferred Stock | M199: AALCP | N199: NASDAQ | Y199: =IFERROR(VLOOKUP(ROWS($Z$2:Z199),K199:$L$8000,2,0),"") -> 
K200: =IF(ISNUMBER(SEARCH($A$3,L200)),MAX($K$1:K199)+1,0) -> 0 | L200: American Capital Ltd. | M200: ACAS | N200: NASDAQ | Y200: =IFERROR(VLOOKUP(ROWS($Z$2:Z200),K200:$L$8000,2,0),"") -> 
... 2050 more rows

Sheet StockPriceData
A1: Date | B1: Open | C1: High | D1: Low | E1: Close | F1: Volume | H1: =GoogleFinance!A5 -> Apple Inc. | J1: =COUNT(A:A) -> 4000 | K1: =COUNT(temp!A3:A502) -> 0 | L1: Please click this link to check if the data corresonds to the stock you want | S1: =E3 -> 49 | U1: =SKEW(U4:U5300) -> 0.4201629091 | V1: =SKEW(V25:V5300) -> 0.7003698087 | W1: =CONCATENATE("https://www.google.com/finance?q=",GoogleFinance!A7,":",GoogleFinance!N1) -> https://www.google.com/finance?q=NASDAQ:AAPL
L2: Click to view Stock Page at Google Finance | U2: =KURT(U4:U5300) -> 14.58657883 | V2: =KURT(V4:V5300) -> 3.107134135
A3: 2017-06-16 | B3: 48.46 | C3: 49.01 | D3: 48.14 | E3: 49 | F3: 107302
A4: 2017-06-15 | B4: 48.45 | C4: 49.03 | D4: 48.23 | E4: 48.79 | F4: 42088 | U4: =IF(A4="","",(E4-E3)/E3) -> -0.004285714286
A5: 2017-06-14 | B5: 48.39 | C5: 49.06 | D5: 47.44 | E5: 49.01 | F5: 64897 | U5: =IF(A5="","",(E5-E4)/E4) -> 0.004509120721
A6: 2017-06-13 | B6: 48.47 | C6: 48.94 | D6: 48.11 | E6: 48.64 | F6: 32447 | U6: -0.007549479698
A7: 2017-06-12 | B7: 48.82 | C7: 49.6 | D7: 47.84 | E7: 48.36 | F7: 58379 | U7: -0.005756578947
A8: 2017-06-09 | B8: 47.85 | C8: 48.93 | D8: 47.85 | E8: 48.93 | F8: 74314 | U8: 0.0117866005
A9: 2017-06-08 | B9: 46.36 | C9: 48.14 | D9: 46.36 | E9: 47.56 | F9: 49439 | U9: -0.02799918251
A10: 2017-06-07 | B10: 44.76 | C10: 46.15 | D10: 44.76 | E10: 46.11 | F10: 65003 | U10: -0.03048780488
A11: 2017-06-06 | B11: 45.25 | C11: 45.25 | D11: 44.33 | E11: 44.69 | F11: 82090 | U11: -0.03079592279
A12: 2017-06-05 | B12: 46.22 | C12: 46.38 | D12: 45.52 | E12: 45.6 | F12: 49626 | U12: 0.0203624972
A13: 2017-06-02 | B13: 46.58 | C13: 47.24 | D13: 46.01 | E13: 46.13 | F13: 99986 | U13: 0.01162280702
A14: 2017-06-01 | B14: 45.67 | C14: 46.85 | D14: 45.5 | E14: 46.8 | F14: 56801 | U14: 0.01452417082
A15: 2017-05-31 | B15: 45.77 | C15: 46.05 | D15: 44.48 | E15: 45.55 | F15: 64109 | U15: -0.02670940171
A16: 2017-05-30 | B16: 46.33 | C16: 46.47 | D16: 45.53 | E16: 45.73 | F16: 82968 | U16: 0.003951701427
A17: 2017-05-26 | B17: 46.46 | C17: 46.88 | D17: 46.26 | E17: 46.35 | F17: 48505 | U17: 0.01355783949
A18: 2017-05-25 | B18: 46.96 | C18: 47.2 | D18: 46.33 | E18: 46.7 | F18: 49467 | U18: 0.007551240561
A19: 2017-05-24 | B19: 46.73 | C19: 47.38 | D19: 46.21 | E19: 46.56 | F19: 66569 | U19: -0.002997858672
A20: 2017-05-23 | B20: 46.19 | C20: 46.8 | D20: 45.93 | E20: 46.69 | F20: 51644 | J20: Skewness of daily returns | M20: =U1 -> 0.4201629091 | U20: 0.00279209622
A21: 2017-05-22 | B21: 45.66 | C21: 46.28 | D21: 45.48 | E21: 46.14 | F21: 36163 | J21: Skewness of monthy returns | M21: =V1 -> 0.7003698087 | U21: -0.01177982437
A22: 2017-05-19 | B22: 45.98 | C22: 46.35 | D22: 45.44 | E22: 45.52 | F22: 55757 | U22: -0.01343736454
A23: 2017-05-18 | B23: 45.96 | C23: 46.6 | D23: 45.66 | E23: 45.92 | F23: 65560 | U23: 0.008787346221
A24: 2017-05-17 | B24: 46.81 | C24: 47.45 | D24: 45.72 | E24: 46.14 | F24: 75514 | U24: 0.004790940767
A25: 2017-05-16 | B25: 47.48 | C25: 47.64 | D25: 46.88 | E25: 47.56 | F25: 21511 | U25: 0.03077589944 | V25: =IF(A25="","",(E25-E3)/E3) -> -0.0293877551
A26: 2017-05-15 | B26: 47.33 | C26: 47.96 | D26: 47.2 | E26: 47.45 | F26: 24169 | U26: -0.002312867956 | V26: =IF(A26="","",(E26-E4)/E4) -> -0.02746464439
A27: 2017-05-12 | B27: 47.07 | C27: 47.41 | D27: 46.43 | E27: 47.3 | F27: 49573 | U27: -0.003161222339 | V27: -0.0348908386
A28: 2017-05-11 | B28: 48.17 | C28: 48.19 | D28: 47.24 | E28: 47.24 | F28: 56702 | U28: -0.001268498943 | V28: -0.02878289474
A29: 2017-05-10 | B29: 48.44 | C29: 48.65 | D29: 48.01 | E29: 48.34 | F29: 54601 | U29: 0.0232853514 | V29: -0.0004135649297
A30: 2017-05-09 | B30: 49.01 | C30: 49.33 | D30: 46.42 | E30: 48.55 | F30: 46193 | U30: 0.004344228382 | V30: -0.007766196607
A31: 2017-05-08 | B31: 48.64 | C31: 49.31 | D31: 48.55 | E31: 48.95 | F31: 32838 | U31: 0.008238928939 | V31: 0.02922624054
A32: 2017-05-05 | B32: 48.8 | C32: 48.89 | D32: 48.29 | E32: 48.7 | F32: 39632 | U32: -0.005107252298 | V32: 0.05617002819
A33: 2017-05-04 | B33: 48.85 | C33: 49.1 | D33: 48.3 | E33: 48.71 | F33: 35481 | U33: 0.000205338809 | V33: 0.08995300962
A34: 2017-05-03 | B34: 48.09 | C34: 48.81 | D34: 47.2 | E34: 48.56 | F34: 39719 | U34: -0.003079449805 | V34: 0.0649122807
A35: 2017-05-02 | B35: 48.15 | C35: 48.46 | D35: 47.97 | E35: 48.35 | F35: 38985 | U35: -0.004324546952 | V35: 0.04812486451
A36: 2017-05-01 | B36: 48.5 | C36: 48.83 | D36: 48.1 | E36: 48.48 | F36: 32713 | U36: 0.002688728025 | V36: 0.0358974359
A37: 2017-04-28 | B37: 49.08 | C37: 49.66 | D37: 48.28 | E37: 48.31 | F37: 76948 | U37: -0.00350660066 | V37: 0.06059275521
A38: 2017-04-27 | B38: 50 | C38: 50 | D38: 49.1 | E38: 49.36 | F38: 56546 | U38: 0.02173463051 | V38: 0.07937896348
A39: 2017-04-26 | B39: 49.96 | C39: 50.58 | D39: 49.75 | E39: 49.77 | F39: 131064 | U39: 0.008306320908 | V39: 0.07378640777
A40: 2017-04-25 | B40: 50.05 | C40: 50.25 | D40: 49.68 | E40: 49.97 | F40: 95148 | U40: 0.004018485031 | V40: 0.07002141328
A41: 2017-04-24 | B41: 49 | C41: 50.78 | D41: 49 | E41: 49.78 | F41: 139954 | U41: -0.003802281369 | V41: 0.0691580756
A42: 2017-04-21 | B42: 46.67 | C42: 48.9 | D42: 46.57 | E42: 48.65 | F42: 129416 | U42: -0.02269987947 | V42: 0.04197901049
A43: 2017-04-20 | B43: 45 | C43: 46.7 | D43: 44.12 | E43: 46.55 | F43: 115567 | U43: -0.04316546763 | V43: 0.008885999133
A44: 2017-04-19 | B44: 44.67 | C44: 44.95 | D44: 44.35 | E44: 44.67 | F44: 50797 | U44: -0.04038668099 | V44: -0.01867311072
A45: 2017-04-18 | B45: 44.24 | C45: 44.58 | D45: 43.95 | E45: 44.48 | F45: 30737 | U45: -0.004253413924 | V45: -0.03135888502
A46: 2017-04-17 | B46: 43.9 | C46: 44.56 | D46: 43.58 | E46: 44.55 | F46: 33494 | U46: 0.001573741007 | V46: -0.0344603381
A47: 2017-04-13 | B47: 44.63 | C47: 44.78 | D47: 43.74 | E47: 43.81 | F47: 34517 | U47: -0.01661054994 | V47: -0.07884777124
A48: 2017-04-12 | B48: 45.35 | C48: 45.58 | D48: 44.56 | E48: 44.73 | F48: 68247 | U48: 0.02099977174 | V48: -0.05732349842
A49: 2017-04-11 | B49: 45.17 | C49: 45.63 | D49: 44.94 | E49: 45.5 | F49: 115688 | U49: 0.0172143975 | V49: -0.03805496829
A50: 2017-04-10 | B50: 46.08 | C50: 46.34 | D50: 45.06 | E50: 45.33 | F50: 52611 | U50: -0.003736263736 | V50: -0.04043183743
A51: 2017-04-07 | B51: 46.28 | C51: 46.68 | D51: 45.84 | E51: 45.91 | F51: 74913 | U51: 0.01279505846 | V51: -0.05026892842
A52: 2017-04-06 | B52: 46.15 | C52: 46.61 | D52: 45.95 | E52: 46.51 | F52: 97520 | U52: 0.01306904814 | V52: -0.04201853759
A53: 2017-04-05 | B53: 46.75 | C53: 46.8 | D53: 46.07 | E53: 46.08 | F53: 113313 | U53: -0.009245323586 | V53: -0.05863125638
A54: 2017-04-04 | B54: 46.29 | C54: 46.88 | D54: 46.28 | E54: 46.56 | F54: 65466 | U54: 0.01041666667 | V54: -0.04394250513
A55: 2017-04-03 | B55: 46.96 | C55: 47.03 | D55: 45.7 | E55: 46.6 | F55: 130622 | U55: 0.0008591065292 | V55: -0.04331759392
A56: 2017-03-31 | B56: 46.74 | C56: 47.3 | D56: 46.55 | E56: 46.95 | F56: 139151 | U56: 0.007510729614 | V56: -0.03315485997
A57: 2017-03-30 | B57: 45.9 | C57: 47.14 | D57: 45.55 | E57: 47.01 | F57: 66522 | U57: 0.001277955272 | V57: -0.02771458118
A58: 2017-03-29 | B58: 45.78 | C58: 45.98 | D58: 45.6 | E58: 45.85 | F58: 55756 | U58: -0.02467560094 | V58: -0.05424917492
A59: 2017-03-28 | B59: 44.84 | C59: 45.74 | D59: 44.66 | E59: 45.7 | F59: 74329 | U59: -0.003271537623 | V59: -0.05402608156
A60: 2017-03-27 | B60: 45.18 | C60: 45.18 | D60: 44.54 | E60: 44.89 | F60: 95116 | U60: -0.01772428884 | V60: -0.09055915721
A61: 2017-03-24 | B61: 45.67 | C61: 46.01 | D61: 45.3 | E61: 46 | F61: 127271 | U61: 0.02472711072 | V61: -0.07574844284
A62: 2017-03-23 | B62: 44.85 | C62: 45.68 | D62: 44.8 | E62: 45.6 | F62: 103068 | U62: -0.008695652174 | V62: -0.08745247148
A63: 2017-03-22 | B63: 45.2 | C63: 45.41 | D63: 44.84 | E63: 45.05 | F63: 156897 | U63: -0.01206140351 | V63: -0.09501807955
A64: 2017-03-21 | B64: 47.07 | C64: 47.19 | D64: 44.57 | E64: 45 | F64: 127384 | U64: -0.001109877913 | V64: -0.07502569373
A65: 2017-03-20 | B65: 47.04 | C65: 47.07 | D65: 46.73 | E65: 47.03 | F65: 82524 | U65: 0.04511111111 | V65: 0.01031149302
A66: 2017-03-17 | B66: 46.95 | C66: 47.19 | D66: 46.58 | E66: 47 | F66: 215916 | U66: -0.0006378907081 | V66: 0.05216028655
A67: 2017-03-16 | B67: 47.15 | C67: 47.6 | D67: 46.8 | E67: 47.15 | F67: 43265 | U67: 0.003191489362 | V67: 0.06002697842
A68: 2017-03-15 | B68: 46.91 | C68: 47.37 | D68: 46.66 | E68: 47 | F68: 128418 | U68: -0.003181336161 | V68: 0.05499438833
A69: 2017-03-14 | B69: 46.96 | C69: 47.31 | D69: 46.76 | E69: 47.14 | F69: 46209 | U69: =IF(A69="","",(E69-E68)/E68) -> 0.002978723404 | V69: 0.07601004337
A70: 2017-03-13 | B70: 46.84 | C70: 47.24 | D70: 46.73 | E70: 47.05 | F70: 49428 | U70: -0.001909206619 | V70: 0.05186675609
A71: 2017-03-10 | B71: 47.25 | C71: 47.25 | D71: 46.52 | E71: 47.02 | F71: 81438 | U71: -0.0006376195537 | V71: 0.03340659341
A72: 2017-03-09 | B72: 47.01 | C72: 47.18 | D72: 46.84 | E72: 47.04 | F72: 74092 | U72: 0.0004253509145 | V72: 0.03772336201
A73: 2017-03-08 | B73: 47.25 | C73: 47.5 | D73: 46.71 | E73: 47.01 | F73: 95115 | U73: -0.000637755102 | V73: 0.02395992159
A74: 2017-03-07 | B74: 47.14 | C74: 47.14 | D74: 46.71 | E74: 47 | F74: 53468 | U74: -0.0002127206977 | V74: 0.01053536874
A75: 2017-03-06 | B75: 46.92 | C75: 47.3 | D75: 46.54 | E75: 47.12 | F75: 53327 | U75: 0.002553191489 | V75: 0.02256944444
A76: 2017-03-03 | B76: 46.97 | C76: 47.2 | D76: 46.68 | E76: 47.08 | F76: 65371 | U76: -0.0008488964346 | V76: 0.01116838488
A77: 2017-03-02 | B77: 47.44 | C77: 47.47 | D77: 46.64 | E77: 47 | F77: 92250 | U77: -0.001699235344 | V77: 0.008583690987
A78: 2017-03-01 | B78: 47.2 | C78: 47.88 | D78: 46.5 | E78: 47.63 | F78: 60917 | U78: 0.01340425532 | V78: 0.01448349308
A79: 2017-02-28 | B79: 47 | C79: 47.15 | D79: 46.13 | E79: 46.71 | F79: 118028 | U79: -0.01931555742 | V79: -0.006381620932
A80: 2017-02-27 | B80: 47.04 | C80: 47.18 | D80: 46.85 | E80: 47.09 | F80: 53299 | U80: 0.008135302933 | V80: 0.02704471101
A81: 2017-02-24 | B81: 46.59 | C81: 47.13 | D81: 46.59 | E81: 47.06 | F81: 67210 | U81: -0.0006370779359 | V81: 0.02975929978
A82: 2017-02-23 | B82: 47 | C82: 47.24 | D82: 46.49 | E82: 47.08 | F82: 76713 | U82: 0.0004249893753 | V82: 0.04878592114
A83: 2017-02-22 | B83: 46.36 | C83: 46.89 | D83: 46.22 | E83: 46.75 | F83: 33440 | U83: -0.007009345794 | V83: 0.01630434783
A84: 2017-02-21 | B84: 46.88 | C84: 46.88 | D84: 46.12 | E84: 46.49 | F84: 51886 | U84: -0.005561497326 | V84: 0.01951754386
A85: 2017-02-17 | B85: 46.34 | C85: 46.83 | D85: 46.02 | E85: 46.8 | F85: 110050 | U85: 0.006668100667 | V85: 0.03884572697
A86: 2017-02-16 | B86: 46.16 | C86: 46.5 | D86: 45.84 | E86: 46.41 | F86: 57373 | U86: -0.008333333333 | V86: 0.03133333333
A87: 2017-02-15 | B87: 45.47 | C87: 46.18 | D87: 44.93 | E87: 46.15 | F87: 95643 | U87: -0.005602240896 | V87: -0.01871146077
A88: 2017-02-14 | B88: 44.43 | C88: 45.51 | D88: 44.1 | E88: 45.3 | F88: 56729 | U88: -0.01841820152 | V88: -0.03617021277
A89: 2017-02-13 | B89: 43.68 | C89: 44.63 | D89: 43.57 | E89: 44.45 | F89: 108444 | U89: -0.01876379691 | V89: -0.0572640509
A90: 2017-02-10 | B90: 43.58 | C90: 44.4 | D90: 43.34 | E90: 43.49 | F90: 34871 | U90: -0.02159730034 | V90: =IF(A90="","",(E90-E68)/E68) -> -0.07468085106
A91: 2017-02-09 | B91: 42.79 | C91: 43.58 | D91: 42.15 | E91: 43.33 | F91: 58713 | U91: -0.003679006668 | V91: -0.08082308019
A92: 2017-02-08 | B92: 43.26 | C92: 44.25 | D92: 42.64 | E92: 43.04 | F92: 43494 | U92: -0.006692822525 | V92: -0.08522848034
A93: 2017-02-07 | B93: 44.36 | C93: 44.57 | D93: 43.53 | E93: 43.58 | F93: 38852 | U93: 0.0125464684 | V93: -0.07316035729
A94: 2017-02-06 | B94: 44.82 | C94: 45.09 | D94: 44.11 | E94: 44.11 | F94: 42212 | U94: 0.01216154199 | V94: -0.06228741497
A95: 2017-02-03 | B95: 44.56 | C95: 45.12 | D95: 44.34 | E95: 44.82 | F95: 35204 | U95: 0.01609612333 | V95: -0.0465858328
A96: 2017-02-02 | B96: 44.5 | C96: 44.8 | D96: 43.81 | E96: 44.05 | F96: 32321 | U96: -0.01717983043 | V96: -0.06276595745
A97: 2017-02-01 | B97: 45.58 | C97: 45.86 | D97: 44.55 | E97: 44.71 | F97: 69125 | U97: 0.01498297389 | V97: -0.05114601019
A98: 2017-01-31 | B98: 45.15 | C98: 45.54 | D98: 44.84 | E98: 45.11 | F98: 101411 | U98: 0.008946544397 | V98: -0.04184367035
A99: 2017-01-30 | B99: 46 | C99: 46 | D99: 45.06 | E99: 45.39 | F99: 57927 | U99: 0.006207049435 | V99: -0.03425531915
A100: 2017-01-27 | B100: 46.42 | C100: 46.6 | D100: 46.04 | E100: 46.36 | F100: 37417 | U100: 0.02137034589 | V100: -0.02666386731
A101: 2017-01-26 | B101: 47 | C101: 47 | D101: 45.9 | E101: 46.62 | F101: 41952 | U101: 0.005608283003 | V101: -0.001926782274
A102: 2017-01-25 | B102: 46.93 | C102: 47 | D102: 46.59 | E102: 46.69 | F102: 56906 | U102: 0.001501501502 | V102: -0.008494372478
A103: 2017-01-24 | B103: 45.79 | C103: 46.52 | D103: 45.15 | E103: 46.37 | F103: 42770 | U103: -0.006853715999 | V103: -0.01466213345
A104: 2017-01-23 | B104: 46.75 | C104: 46.9 | D104: 45.68 | E104: 45.69 | F104: 44548 | U104: -0.01466465387 | V104: -0.0295242141
A105: 2017-01-20 | B105: 43.81 | C105: 49.11 | D105: 43.81 | E105: 46.79 | F105: 99246 | U105: 0.02407529 | V105: 0.0008556149733
A106: 2017-01-19 | B106: 43.7 | C106: 43.86 | D106: 43.3 | E106: 43.71 | F106: 45577 | U106: -0.0658260312 | V106: -0.05979780598
A107: 2017-01-18 | B107: 43.15 | C107: 44.02 | D107: 42.85 | E107: 43.7 | F107: 56874 | U107: -0.0002287805994 | V107: -0.06623931624
A108: 2017-01-17 | B108: 43.82 | C108: 43.82 | D108: 42.6 | E108: 42.94 | F108: 56623 | U108: -0.01739130435 | V108: -0.07476836889
A109: 2017-01-13 | B109: 43.96 | C109: 44.71 | D109: 43.96 | E109: 44.09 | F109: 30022 | U109: 0.02678155566 | V109: -0.04463705309
A110: 2017-01-12 | B110: 43.91 | C110: 44.1 | D110: 43.16 | E110: 43.77 | F110: 43575 | U110: -0.007257881606 | V110: -0.03377483444
A111: 2017-01-11 | B111: 43.32 | C111: 43.88 | D111: 43.25 | E111: 43.81 | F111: 35511 | U111: 0.0009138679461 | V111: -0.01439820022
A112: 2017-01-10 | B112: 42.55 | C112: 43.77 | D112: 42.46 | E112: 43.5 | F112: 47627 | U112: -0.007076010043 | V112: 0.0002299379168
A113: 2017-01-09 | B113: 43.38 | C113: 43.44 | D113: 42.7 | E113: 42.77 | F113: 47130 | U113: -0.0167816092 | V113: -0.01292407108
A114: 2017-01-06 | B114: 44.2 | C114: 44.2 | D114: 43.69 | E114: 43.72 | F114: 33873 | U114: 0.02221183072 | V114: 0.01579925651
A115: 2017-01-05 | B115: 44.81 | C115: 44.81 | D115: 43.56 | E115: 44.06 | F115: 45388 | U115: 0.007776761208 | V115: 0.01101422671
A116: 2017-01-04 | B116: 44.78 | C116: 45.34 | D116: 44.47 | E116: 44.87 | F116: 34984 | U116: 0.01838402179 | V116: 0.01722965314
A117: 2017-01-03 | B117: 45.14 | C117: 45.85 | D117: 44.35 | E117: 44.51 | F117: 52148 | U117: -0.00802317807 | V117: -0.006916555109
A118: 2016-12-30 | B118: 45.61 | C118: 45.61 | D118: 44.56 | E118: 44.66 | F118: 28010 | U118: 0.003370029207 | V118: 0.01384790011
A119: 2016-12-29 | B119: 44.91 | C119: 45.52 | D119: 44.34 | E119: 45.33 | F119: 73013 | U119: 0.01500223914 | V119: 0.01386714382
A120: 2016-12-28 | B120: 44.91 | C120: 45.07 | D120: 44.49 | E120: 44.7 | F120: 58706 | U120: -0.01389808074 | V120: -0.009088893815
A121: 2016-12-27 | B121: 44.38 | C121: 44.86 | D121: 44.18 | E121: 44.74 | F121: 41104 | U121: 0.0008948545861 | V121: -0.01432033488
A122: 2016-12-23 | B122: 44.38 | C122: 44.75 | D122: 44.07 | E122: 44.2 | F122: 31197 | U122: -0.01206973625 | V122: -0.04659188956
A123: 2016-12-22 | B123: 44.42 | C123: 44.84 | D123: 44.23 | E123: 44.4 | F123: 41781 | U123: 0.004524886878 | V123: -0.04761904762
A124: 2016-12-21 | B124: 45.06 | C124: 45.1 | D124: 44.44 | E124: 44.44 | F124: 46659 | U124: 0.0009009009009 | V124: -0.04819019062
A125: 2016-12-20 | B125: 44.58 | C125: 45.03 | D125: 43.43 | E125: 45 | F125: 39759 | U125: 0.01260126013 | V125: -0.02954496442
A126: 2016-12-19 | B126: 43.78 | C126: 44.27 | D126: 43.09 | E126: 44.19 | F126: 37887 | U126: -0.018 | V126: -0.03282994091
A127: 2016-12-16 | B127: 44.05 | C127: 44.11 | D127: 43.39 | E127: 43.74 | F127: 315248 | U127: -0.01018329939 | V127: -0.06518486856
A128: 2016-12-15 | B128: 44 | C128: 45.02 | D128: 44 | E128: 44.18 | F128: 120542 | U128: 0.01005944216 | V128: 0.01075268817
A129: 2016-12-14 | B129: 43.75 | C129: 44.18 | D129: 43.28 | E129: 43.79 | F129: 51502 | U129: -0.008827523766 | V129: 0.002059496568
A130: 2016-12-13 | B130: 43.62 | C130: 44.36 | D130: 43.48 | E130: 44 | F130: 59767 | U130: 0.004795615437 | V130: 0.02468560782
A131: 2016-12-12 | B131: 43.31 | C131: 43.72 | D131: 42.88 | E131: 43.69 | F131: 127111 | U131: -0.007045454545 | V131: -0.009072352007
A132: 2016-12-09 | B132: 42.32 | C132: 43.4 | D132: 40.91 | E132: 43.34 | F132: 73428 | U132: -0.008010986496 | V132: -0.00982408042
A133: 2016-12-08 | B133: 41.48 | C133: 42.69 | D133: 41.17 | E133: 42.38 | F133: 191884 | U133: =IF(A133="","",(E133-E132)/E132) -> -0.02215043839 | V133: -0.03264094955
A134: 2016-12-07 | B134: 41 | C134: 41.4 | D134: 40.83 | E134: 41.19 | F134: 75023 | U134: -0.02807928268 | V134: -0.05310344828
A135: 2016-12-06 | B135: 40.48 | C135: 40.93 | D135: 39.84 | E135: 40.87 | F135: 66929 | U135: -0.007768875941 | V135: -0.04442366144
A136: 2016-12-05 | B136: 39.6 | C136: 40.38 | D136: 39.58 | E136: 40.18 | F136: 79976 | U136: -0.01688279912 | V136: -0.08096980787
A137: 2016-12-02 | B137: 39.3 | C137: 39.59 | D137: 38.87 | E137: 39.36 | F137: 54375 | U137: -0.02040816327 | V137: -0.106672719
A138: 2016-12-01 | B138: 39.55 | C138: 39.65 | D138: 39.32 | E138: 39.57 | F138: 68282 | U138: 0.005335365854 | V138: -0.1181190105
A139: 2016-11-30 | B139: 39.6 | C139: 39.6 | D139: 39.06 | E139: 39.36 | F139: 60447 | U139: -0.005307050796 | V139: -0.1157043361
A140: 2016-11-29 | B140: 39.18 | C140: 39.78 | D140: 39.06 | E140: 39.3 | F140: 68250 | U140: -0.001524390244 | V140: -0.1200179131
A141: 2016-11-28 | B141: 39.42 | C141: 39.42 | D141: 38.76 | E141: 38.88 | F141: 28275 | U141: -0.0106870229 | V141: -0.1422898743
A142: 2016-11-25 | B142: 39.6 | C142: 39.6 | D142: 39.15 | E142: 39.51 | F142: 11645 | U142: 0.0162037037 | V142: -0.1161073826
A143: 2016-11-23 | B143: 39.42 | C143: 39.85 | D143: 39.42 | E143: 39.59 | F143: 64878 | U143: 0.002024803847 | V143: -0.1151095217
A144: 2016-11-22 | B144: 38.74 | C144: 39.6 | D144: 38.74 | E144: 39.45 | F144: 54361 | U144: -0.003536246527 | V144: -0.1074660633
A145: 2016-11-21 | B145: 39.61 | C145: 39.65 | D145: 38.29 | E145: 38.58 | F145: 90305 | U145: -0.02205323194 | V145: -0.1310810811
A146: 2016-11-18 | B146: 39.6 | C146: 40.17 | D146: 39.34 | E146: 39.54 | F146: 66921 | U146: 0.02488335925 | V146: -0.1102610261
A147: 2016-11-17 | B147: 39.14 | C147: 39.9 | D147: 38.9 | E147: 39.51 | F147: 56721 | U147: -0.0007587253414 | V147: -0.122
A148: 2016-11-16 | B148: 39.69 | C148: 39.69 | D148: 38.69 | E148: 39.09 | F148: 85491 | U148: -0.0106302202 | V148: -0.1154107264
A149: 2016-11-15 | B149: 39.65 | C149: 40.02 | D149: 38.79 | E149: 39.9 | F149: 55432 | U149: 0.02072141213 | V149: -0.0877914952
A150: 2016-11-14 | B150: 40.47 | C150: 41.64 | D150: 36.29 | E150: 39.92 | F150: 79779 | U150: 0.0005012531328 | V150: -0.09642372114
A151: 2016-11-11 | B151: 37.65 | C151: 40.9 | D151: 37.26 | E151: 39.9 | F151: 98146 | U151: -0.000501002004 | V151: -0.08883306691
A152: 2016-11-10 | B152: 36.9 | C152: 38.21 | D152: 35.43 | E152: 37.75 | F152: 64173 | U152: -0.05388471178 | V152: -0.1420454545
A153: 2016-11-09 | B153: 34.63 | C153: 36.72 | D153: 34.63 | E153: 36.72 | F153: 54466 | U153: -0.02728476821 | V153: -0.1595330739
A154: 2016-11-08 | B154: 34.49 | C154: 34.68 | D154: 34.35 | E154: 34.54 | F154: 26108 | U154: -0.05936819172 | V154: =IF(A154="","",(E154-E132)/E132) -> -0.2030456853
A155: 2016-11-07 | B155: 34.21 | C155: 34.75 | D155: 34.04 | E155: 34.62 | F155: 26413 | U155: 0.002316155182 | V155: -0.1831052383
A156: 2016-11-04 | B156: 34.09 | C156: 34.09 | D156: 33.58 | E156: 33.63 | F156: 33288 | U156: -0.02859618718 | V156: -0.1835396941
A157: 2016-11-03 | B157: 33.72 | C157: 34.25 | D157: 33.27 | E157: 33.93 | F157: 24207 | U157: 0.008920606601 | V157: -0.1698067042
A158: 2016-11-02 | B158: 34.42 | C158: 34.42 | D158: 33.69 | E158: 33.76 | F158: 15626 | U158: -0.005010315355 | V158: -0.1597809856
A159: 2016-11-01 | B159: 34.65 | C159: 34.68 | D159: 34.28 | E159: 34.37 | F159: 36915 | U159: 0.01806872038 | V159: -0.1267784553
A160: 2016-10-31 | B160: 34.56 | C160: 34.78 | D160: 34.38 | E160: 34.56 | F160: 41708 | U160: 0.005528076811 | V160: -0.126611069
A161: 2016-10-28 | B161: 34.6 | C161: 34.6 | D161: 34.38 | E161: 34.5 | F161: 30897 | U161: -0.001736111111 | V161: -0.1234756098
A162: 2016-10-27 | B162: 34.75 | C162: 35.22 | D162: 34.61 | E162: 34.73 | F162: 45160 | U162: 0.006666666667 | V162: -0.1162849873
A163: 2016-10-26 | B163: 34.34 | C163: 34.98 | D163: 34.34 | E163: 34.61 | F163: 39410 | U163: -0.003455226029 | V163: -0.1098251029
A164: 2016-10-25 | B164: 34.59 | C164: 34.77 | D164: 34.14 | E164: 34.46 | F164: 50383 | U164: -0.004334007512 | V164: -0.1278157428
A165: 2016-10-24 | B165: 34.31 | C165: 34.67 | D165: 34.08 | E165: 34.61 | F165: 38836 | U165: 0.004352872896 | V165: -0.1257893407
A166: 2016-10-21 | B166: 34.9 | C166: 35.12 | D166: 33.85 | E166: 33.98 | F166: 38034 | U166: -0.01820283155 | V166: -0.1386565272
A167: 2016-10-20 | B167: 35.5 | C167: 35.55 | D167: 35.15 | E167: 35.47 | F167: 24431 | U167: 0.04384932313 | V167: -0.08061171591
A168: 2016-10-19 | B168: 35.02 | C168: 35.49 | D168: 34.62 | E168: 35.28 | F168: 17076 | U168: -0.005356639414 | V168: -0.1077389985
A169: 2016-10-18 | B169: 34.57 | C169: 35.03 | D169: 34.57 | E169: 34.88 | F169: 15891 | U169: -0.01133786848 | V169: -0.1171855227
A170: 2016-10-17 | B170: 35.1 | C170: 35.1 | D170: 34.26 | E170: 34.7 | F170: 13632 | U170: -0.005160550459 | V170: -0.1123049373
A171: 2016-10-14 | B171: 35.1 | C171: 35.2 | D171: 34.81 | E171: 34.95 | F171: 32712 | U171: 0.007204610951 | V171: -0.1240601504
A172: 2016-10-13 | B172: 35.18 | C172: 35.18 | D172: 34.59 | E172: 34.79 | F172: 22329 | U172: -0.004577968526 | V172: -0.128507014
A173: 2016-10-12 | B173: 35.04 | C173: 35.51 | D173: 35.01 | E173: 35.28 | F173: 18982 | U173: 0.01408450704 | V173: -0.1157894737
A174: 2016-10-11 | B174: 35.64 | C174: 35.84 | D174: 35.16 | E174: 35.24 | F174: 27432 | U174: -0.001133786848 | V174: -0.06649006623
A175: 2016-10-10 | B175: 35.51 | C175: 35.7 | D175: 35.35 | E175: 35.61 | F175: 50984 | U175: 0.01049943246 | V175: -0.03022875817
A176: 2016-10-07 | B176: 35.18 | C176: 35.6 | D176: 34.93 | E176: 35.25 | F176: 56300 | U176: -0.0101095198 | V176: 0.02055587724
A177: 2016-10-06 | B177: 35.1 | C177: 35.74 | D177: 35.08 | E177: 35.39 | F177: 67772 | U177: 0.003971631206 | V177: 0.02224147891
A178: 2016-10-05 | B178: 35.52 | C178: 35.88 | D178: 35.37 | E178: 35.42 | F178: 37906 | U178: 0.0008476970896 | V178: 0.05322628605
A179: 2016-10-04 | B179: 35.08 | C179: 35.5 | D179: 35.05 | E179: 35.3 | F179: 36742 | U179: -0.003387916431 | V179: 0.04037724727
A180: 2016-10-03 | B180: 35.43 | C180: 35.46 | D180: 34.6 | E180: 35.04 | F180: 30192 | U180: -0.007365439093 | V180: 0.03791469194
A181: 2016-09-30 | B181: 35.25 | C181: 35.99 | D181: 35.17 | E181: 35.7 | F181: 38876 | U181: 0.01883561644 | V181: 0.03869653768
A182: 2016-09-29 | B182: 35.81 | C182: 35.98 | D182: 35.06 | E182: 35.1 | F182: 39308 | U182: -0.01680672269 | V182: 0.015625
A183: 2016-09-28 | B183: 35.79 | C183: 35.87 | D183: 35.14 | E183: 35.74 | F183: 29007 | U183: 0.01823361823 | V183: 0.03594202899
A184: 2016-09-27 | B184: 35.64 | C184: 35.81 | D184: 35.42 | E184: 35.57 | F184: 66963 | U184: -0.004756575266 | V184: 0.02418658221
A185: 2016-09-26 | B185: 35.49 | C185: 35.59 | D185: 35.29 | E185: 35.37 | F185: 67531 | U185: -0.005622715772 | V185: 0.0219589714
A186: 2016-09-23 | B186: 35.63 | C186: 35.68 | D186: 35.31 | E186: 35.5 | F186: 26442 | U186: 0.003675431156 | V186: 0.03017991875
A187: 2016-09-22 | B187: 35.23 | C187: 35.84 | D187: 35.23 | E187: 35.82 | F187: 34523 | U187: 0.009014084507 | V187: 0.03496099393
A188: 2016-09-21 | B188: 35.22 | C188: 35.29 | D188: 35 | E188: 35.21 | F188: 18492 | U188: -0.01702959241 | V188: 0.03619776339
A189: 2016-09-20 | B189: 34.98 | C189: 35.15 | D189: 34.62 | E189: 34.99 | F189: 18540 | U189: -0.006248224936 | V189: -0.01353256273
A190: 2016-09-19 | B190: 34.48 | C190: 35.04 | D190: 34.48 | E190: 34.89 | F190: 26523 | U190: -0.002857959417 | V190: -0.01105442177
A191: 2016-09-16 | B191: 34.38 | C191: 34.7 | D191: 34.13 | E191: 34.32 | F191: 109574 | U191: -0.01633705933 | V191: -0.01605504587
A192: 2016-09-15 | B192: 34.14 | C192: 34.62 | D192: 34.04 | E192: 34.3 | F192: 46169 | U192: -0.0005827505828 | V192: -0.01152737752
A193: 2016-09-14 | B193: 34.45 | C193: 34.59 | D193: 34.06 | E193: 34.07 | F193: 17013 | U193: -0.006705539359 | V193: -0.0251788269
A194: 2016-09-13 | B194: 34.67 | C194: 34.82 | D194: 34.2 | E194: 34.53 | F194: 31794 | U194: 0.01350161432 | V194: -0.0074734119
A195: 2016-09-12 | B195: 34.84 | C195: 35.05 | D195: 34.45 | E195: 35.03 | F195: 24906 | U195: 0.01448016218 | V195: -0.0070861678
A196: 2016-09-09 | B196: 35.02 | C196: 35.27 | D196: 34.78 | E196: 34.79 | F196: 28801 | U196: -0.00685127034 | V196: -0.01276958002
A197: 2016-09-08 | B197: 35.35 | C197: 35.35 | D197: 35.05 | E197: 35.28 | F197: 21228 | U197: =IF(A197="","",(E197-E196)/E196) -> 0.01408450704 | V197: -0.009267059815
A198: 2016-09-07 | B198: 34.86 | C198: 35.44 | D198: 34.79 | E198: 35.41 | F198: 29825 | U198: 0.003684807256 | V198: 0.004539007092
A199: 2016-09-06 | B199: 35.34 | C199: 35.34 | D199: 34.43 | E199: 34.86 | F199: 30022 | U199: -0.0155323355 | V199: -0.01497598192
A200: 2016-09-02 | B200: 35.08 | C200: 35.34 | D200: 34.85 | E200: 35.34 | F200: 23061 | U200: 0.01376936317 | V200: -0.002258610954
... 3263 more rows

Sheet Earnings Power Box
A1: =IF(OR(ISERROR(SUM(B51:K51)),ISERROR(SUM(C53:K53))),"Data is not available for all financial years. So the earnings power box is incorrect. You can look at the data bellow and replot it manually","") ->  | B1: ='MorningStar Data'!A1 -> Growth Profitability and Financial Ratios for Apple Inc
H2: Rescale if necessary
M31: =ABS(M32) -> 0.1538692082 | N31: =ABS(N32) -> 3.970064613
M32: =MIN(B52:K52) -> -0.1538692082 | N32: =MAX(B52:K52) -> 3.970064613 | O32: =MAX(M31:N31) -> 3.970064613
M33: =ABS(M34) -> 1.348915663 | N33: =ABS(N34) -> 11.39604769
M34: =MIN(B54:K54) -> 1.348915663 | N34: =MAX(B54:K54) -> 11.39604769 | O34: =MAX(M33:N33) -> 11.39604769
A42: WACC Expectation | B42: 0.15 | C42: 0.15 | D42: 0.15 | E42: 0.15 | F42: 0.15 | G42: 0.15 | H42: 0.15 | I42: 0.15 | J42: 0.15 | K42: 0.15
A43: Year | B43: =Analysis!C2 -> 2007 | C43: =Analysis!D2 -> 2008 | D43: =Analysis!E2 -> 2009 | E43: =Analysis!F2 -> 2010 | F43: =Analysis!G2 -> 2011 | G43: =Analysis!H2 -> 2012 | H43: =Analysis!I2 -> 2013 | I43: =Analysis!J2 -> 2014 | J43: =Analysis!K2 -> 2015 | K43: =Analysis!L2 -> 2016
A44: Date | B44: =DATE(Analysis!C2,3,31) -> 2007-03-31 | C44: =DATE(Analysis!D2,3,31) -> 2008-03-31 | D44: =DATE(Analysis!E2,3,31) -> 2009-03-31 | E44: =DATE(Analysis!F2,3,31) -> 2010-03-31 | F44: =DATE(Analysis!G2,3,31) -> 2011-03-31 | G44: =DATE(Analysis!H2,3,31) -> 2012-03-31 | H44: =DATE(Analysis!I2,3,31) -> 2013-03-31 | I44: =DATE(Analysis!J2,3,31) -> 2014-03-31 | J44: =DATE(Analysis!K2,3,31) -> 2015-03-31 | K44: =DATE(Analysis!L2,3,31) -> 2016-03-31
A45: BALANCE SHEET TOTAL IN MILLIONS | B45: =Analysis!C88 -> 21272.0633 | C45: =Analysis!D88 -> 41094.69443 | D45: =Analysis!E88 -> 43525.36998 | E45: =Analysis!F88 -> 61352.88967 | F45: =Analysis!G88 -> 95759.14296 | G45: =Analysis!H88 -> 146226.349 | H45: =Analysis!I88 -> 191504.6536 | I45: =Analysis!J88 -> 219378.1233 | J45: =Analysis!K88 -> 261095.3545 | K45: =Analysis!L88 -> 306008.0375
A46: Debt in millions | B46: =(Analysis!C93+Analysis!C92) -> 0 | C46: =(Analysis!D93+Analysis!D92) -> 0 | D46: =(Analysis!E93+Analysis!E92) -> 0 | E46: =(Analysis!F93+Analysis!F92) -> 0 | F46: =(Analysis!G93+Analysis!G92) -> 0 | G46: =(Analysis!H93+Analysis!H92) -> 0 | H46: =(Analysis!I93+Analysis!I92) -> 15684.23113 | I46: =(Analysis!J93+Analysis!J92) -> 33389.35036 | J46: =(Analysis!K93+Analysis!K92) -> 57963.1687 | K46: =(Analysis!L93+Analysis!L92) -> 82805.77495
A47: Cash + investments Mill | B47: =Analysis!C90%*B45 -> 12912.14242 | C47: =Analysis!D90%*C45 -> 25433.50638 | D47: =Analysis!E90%*D45 -> 21501.53277 | E47: =Analysis!F90%*E45 -> 20909.0648 | F47: =Analysis!G90%*F45 -> 21354.28888 | G47: =Analysis!H90%*G45 -> 24185.83812 | H47: =Analysis!I90%*H45 -> 37515.76163 | I47: =Analysis!J90%*I45 -> 23736.71294 | J47: =Analysis!K90%*J45 -> 37388.85477 | K47: =Analysis!L90%*K45 -> 63894.47823
A48: Equity capital mill | B48: =Analysis!C74%*B45 -> 12195.27389 | C48: =Analysis!D74%*C45 -> 21837.72062 | D48: =Analysis!E74%*D45 -> 28992.24894 | E48: =Analysis!F74%*E45 -> 39002.03196 | F48: =Analysis!G74%*F45 -> 63047.81973 | G48: =Analysis!H74%*G45 -> 98176.37071 | H48: =Analysis!I74%*H45 -> 114309.1277 | I48: =Analysis!J74%*I45 -> 105542.8151 | J48: =Analysis!K74%*J45 -> 107284.0812 | K48: =Analysis!L74%*K45 -> 122005.4046
A49: Total capital mill | B49: =SUM(B46:B48) -> 25107.41631 | C49: =SUM(C46:C48) -> 47271.227 | D49: 50493.78171 | E49: 59911.09676 | F49: 84402.10861 | G49: 122362.2088 | H49: 167509.1205 | I49: 162668.8784 | J49: 202636.1046 | K49: 268705.6577
A50: Enterprise interest mill | B50: =B42*B49 -> 3766.112447 | C50: =C42*C49 -> 7090.68405 | D50: =D42*D49 -> 7574.067257 | E50: 8986.664514 | F50: 12660.31629 | G50: 18354.33132 | H50: 25126.36807 | I50: 24400.33176 | J50: 30395.4157 | K50: 40305.84866
A51: Enterprise income mill | B51: =Analysis!C24-B50 -> -271.1124467 | C51: =Analysis!D24-C50 -> -971.6840497 | D51: =Analysis!E24-D50 -> 660.9327431 | E51: =Analysis!F24-E50 -> 5026.335486 | F51: =Analysis!G24-F50 -> 13261.68371 | G51: =Analysis!H24-G50 -> 23378.66868 | H51: =Analysis!I24-H50 -> 11910.63193 | I51: =Analysis!J24-I50 -> 15109.66824 | J51: =Analysis!K24-J50 -> 22998.5843 | K51: =Analysis!L24-K50 -> 5381.15134
A52: Enterprise EPS | B52: =IF(ISERROR(B51/Analysis!C23),"",B51/Analysis!C23) -> -0.04355220028 | C52: =IF(ISERROR(C51/Analysis!D23),"",C51/Analysis!D23) -> -0.1538692082 | D52: =IF(ISERROR(D51/Analysis!E23),"",D51/Analysis!E23) -> 0.1041002903 | E52: =IF(ISERROR(E51/Analysis!F23),"",E51/Analysis!F23) -> 0.7765078767 | F52: =IF(ISERROR(F51/Analysis!G23),"",F51/Analysis!G23) -> 2.022523061 | G52: =IF(ISERROR(G51/Analysis!H23),"",G51/Analysis!H23) -> 3.533122061 | H52: =IF(ISERROR(H51/Analysis!I23),"",H51/Analysis!I23) -> 1.826223847 | I52: =IF(ISERROR(I51/Analysis!J23),"",I51/Analysis!J23) -> 2.467690387 | J52: =IF(ISERROR(J51/Analysis!K23),"",J51/Analysis!K23) -> 3.970064613 | K52: =IF(ISERROR(K51/Analysis!L23),"",K51/Analysis!L23) -> 0.9783911527
A53: Defensive income mill | C53: =Analysis!D49 -> 8397 | D53: =Analysis!E49 -> 8946 | E53: =Analysis!F49 -> 16474 | F53: =Analysis!G49 -> 30077 | G53: =Analysis!H49 -> 41454 | H53: =Analysis!I49 -> 44590 | I53: =Analysis!J49 -> 49900 | J53: =Analysis!K49 -> 69778 | K53: =Analysis!L49 -> 52276
A54: Defensive EPS | C54: =IF(ISERROR(C53/Analysis!C23),"",C53/Analysis!C23) -> 1.348915663 | D54: =IF(ISERROR(D53/Analysis!D23),"",D53/Analysis!D23) -> 1.416627078 | E54: =IF(ISERROR(E53/Analysis!E23),"",E53/Analysis!E23) -> 2.594739329 | F54: =IF(ISERROR(F53/Analysis!F23),"",F53/Analysis!F23) -> 4.646531747 | G54: =IF(ISERROR(G53/Analysis!G23),"",G53/Analysis!G23) -> 6.322098521 | H54: =IF(ISERROR(H53/Analysis!H23),"",H53/Analysis!H23) -> 6.73870334 | I54: =IF(ISERROR(I53/Analysis!I23),"",I53/Analysis!I23) -> 7.651027292 | J54: =IF(ISERROR(J53/Analysis!J23),"",J53/Analysis!J23) -> 11.39604769 | K54: =IF(ISERROR(K53/Analysis!K23),"",K53/Analysis!K23) -> 9.023994476
A55: EPS | B55: =Analysis!C25 -> 0.56 | C55: =Analysis!D25 -> 0.97 | D55: =Analysis!E25 -> 1.3 | E55: =Analysis!F25 -> 2.16 | F55: =Analysis!G25 -> 3.95 | G55: =Analysis!H25 -> 6.31 | H55: =Analysis!I25 -> 5.68 | I55: =Analysis!J25 -> 6.45 | J55: =Analysis!K25 -> 9.22 | K55: =Analysis!L25 -> 8.31

Sheet Altman Z-score
A1: Altman Z-score is a measure of how close a firm is to bankruptcy
B5: =Analysis!C2 -> 2007 | C5: =Analysis!D2 -> 2008 | D5: =Analysis!E2 -> 2009 | E5: =Analysis!F2 -> 2010 | F5: =Analysis!G2 -> 2011 | G5: =Analysis!H2 -> 2012 | H5: =Analysis!I2 -> 2013 | I5: =Analysis!J2 -> 2014 | J5: =Analysis!K2 -> 2015 | K5: =Analysis!L2 -> 2016 | M5: ='MorningStar Data'!A1 -> Growth Profitability and Financial Ratios for Apple Inc
A6: =Analysis!A75 -> Working Capital USD Mil | B6: =Analysis!C75 -> 12657 | C6: =Analysis!D75 -> 20598 | D6: =Analysis!E75 -> 20049 | E6: =Analysis!F75 -> 20956 | F6: =Analysis!G75 -> 17018 | G6: =Analysis!H75 -> 19111 | H6: =Analysis!I75 -> 29628 | I6: =Analysis!J75 -> 5083 | J6: =Analysis!K75 -> 8768 | K6: =Analysis!L75 -> 27863
A7: ='Dupont ROE Analysis'!A12 -> Asset Turnover (Average) | B7: ='Dupont ROE Analysis'!B12 -> 1.13 | C7: ='Dupont ROE Analysis'!C12 -> 1 | D7: ='Dupont ROE Analysis'!D12 -> 0.99 | E7: ='Dupont ROE Analysis'!E12 -> 1.06 | F7: ='Dupont ROE Analysis'!F12 -> 1.13 | G7: ='Dupont ROE Analysis'!G12 -> 1.07 | H7: ='Dupont ROE Analysis'!H12 -> 0.89 | I7: ='Dupont ROE Analysis'!I12 -> 0.83 | J7: ='Dupont ROE Analysis'!J12 -> 0.89 | K7: ='Dupont ROE Analysis'!K12 -> 0.7
A8: =Analysis!A69 -> Revenue USD Mil | B8: =Analysis!C69 -> 24578 | C8: =Analysis!D69 -> 37491 | D8: =Analysis!E69 -> 42905 | E8: =Analysis!F69 -> 65225 | F8: =Analysis!G69 -> 108249 | G8: =Analysis!H69 -> 156508 | H8: =Analysis!I69 -> 170910 | I8: =Analysis!J69 -> 182795 | J8: =Analysis!K69 -> 233715 | K8: =Analysis!L69 -> 215639
A9: Average total assests* | B9: =B8/B7 -> 21750.44248 | C9: =C8/C7 -> 37491 | D9: 43338.38384 | E9: 61533.01887 | F9: 95795.57522 | G9: 146269.1589 | H9: 192033.7079 | I9: 220234.9398 | J9: 262601.1236 | K9: 308055.7143
A10: Total liabilities* | B10: =Analysis!C86%*B9 -> 9280.913805 | C10: =Analysis!D86%*C9 -> 17568.2826 | D10: =Analysis!E86%*D9 -> 14470.68636 | E10: =Analysis!F86%*E9 -> 22416.47877 | F10: =Analysis!G86%*F9 -> 32723.7685 | G10: =Analysis!H86%*G9 -> 48064.04561 | H10: =Analysis!I86%*H9 -> 77408.78764 | I10: =Analysis!J86%*I9 -> 114279.9102 | J10: =Analysis!K86%*J9 -> 154698.3219 | K10: =Analysis!L86%*K9 -> 185233.901
A11: Net Sales* | B11: =Analysis!C83 -> 245.7891801 | C11: =Analysis!D83 -> 374.9212067 | D11: =Analysis!E83 -> 429.0935673 | E11: =Analysis!F83 -> 652.1816247 | F11: =Analysis!G83 -> 1082.319026 | G11: =Analysis!H83 -> 1564.90085 | H11: =Analysis!I83 -> 1709.068713 | I11: =Analysis!J83 -> 1828.098886 | J11: =Analysis!K83 -> 2336.942257 | K11: =Analysis!L83 -> 2156.034483
A12: ='Piotroski Score'!A14 -> Shares outstanding Mil | B12: =Analysis!C23 -> 6225 | C12: =Analysis!D23 -> 6315 | D12: =Analysis!E23 -> 6349 | E12: =Analysis!F23 -> 6473 | F12: =Analysis!G23 -> 6557 | G12: =Analysis!H23 -> 6617 | H12: =Analysis!I23 -> 6522 | I12: =Analysis!J23 -> 6123 | J12: =Analysis!K23 -> 5793 | K12: =Analysis!L23 -> 5500
A13: Avg of max and min share price | B13: =('Valuation-4'!L8+'Valuation-4'!M8)/2 -> 26.135 | C13: =('Valuation-4'!L9+'Valuation-4'!M9)/2 -> 21.07 | D13: =('Valuation-4'!L10+'Valuation-4'!M10)/2 -> 18.925 | E13: =('Valuation-4'!L11+'Valuation-4'!M11)/2 -> 16.995 | F13: =('Valuation-4'!L12+'Valuation-4'!M12)/2 -> 20.515 | G13: =('Valuation-4'!L13+'Valuation-4'!M13)/2 -> 23.27 | H13: =('Valuation-4'!L14+'Valuation-4'!M14)/2 -> 23.87 | I13: =('Valuation-4'!L15+'Valuation-4'!M15)/2 -> 29.53 | J13: =('Valuation-4'!L16+'Valuation-4'!M16)/2 -> 31.695 | K13: =('Valuation-4'!L17+'Valuation-4'!M17)/2 -> 31.695 | M13: Note stock price data is for | P13: =StockPriceData!H1 -> Apple Inc.
A14: Market Cap* | B14: =B12*B13 -> 162690.375 | C14: =C12*C13 -> 133057.05 | D14: 120154.825 | E14: 110008.635 | F14: 134516.855 | G14: 153977.59 | H14: 155680.14 | I14: 180812.19 | J14: 183609.135 | K14: 174322.5
A15: ='Dupont ROE Analysis'!A7 -> Operating Income USD Mil (EBIT) | B15: ='Dupont ROE Analysis'!B7 -> 4407 | C15: ='Dupont ROE Analysis'!C7 -> 8327 | D15: ='Dupont ROE Analysis'!D7 -> 11740 | E15: ='Dupont ROE Analysis'!E7 -> 18385 | F15: ='Dupont ROE Analysis'!F7 -> 33790 | G15: ='Dupont ROE Analysis'!G7 -> 55241 | H15: ='Dupont ROE Analysis'!H7 -> 48999 | I15: ='Dupont ROE Analysis'!I7 -> 52503 | J15: ='Dupont ROE Analysis'!J7 -> 71230 | K15: ='Dupont ROE Analysis'!K7 -> 60024
A16: =Analysis!A24 -> Net Income USD Mil | B16: =Analysis!C24 -> 3495 | C16: =Analysis!D24 -> 6119 | D16: =Analysis!E24 -> 8235 | E16: =Analysis!F24 -> 14013 | F16: =Analysis!G24 -> 25922 | G16: =Analysis!H24 -> 41733 | H16: =Analysis!I24 -> 37037 | I16: =Analysis!J24 -> 39510 | J16: =Analysis!K24 -> 53394 | K16: =Analysis!L24 -> 45687
A17: =CONCATENATE(Analysis!A26," per share") -> Dividends USD per share | B17: =Analysis!C26 ->  | C17: =Analysis!D26 ->  | D17: =Analysis!E26 ->  | E17: =Analysis!F26 ->  | F17: =Analysis!G26 ->  | G17: =Analysis!H26 -> 0.38 | H17: =Analysis!I26 -> 1.63 | I17: =Analysis!J26 -> 1.81 | J17: =Analysis!K26 -> 1.98 | K17: =Analysis!L26 -> 2.18 | M17: * Same units and denomination as Revenue
A18: Retained earnings | B18: =B16-(B17*B12) ->  | C18: =C16-(C17*C12) ->  | G18: 39218.54 | H18: 26406.14 | I18: 28427.37 | J18: 41923.86 | K18: 33697 | M18: retained earnings from the previous year are not taken into account
A20: Working Capital/avg total assets | B20: =B6/B9 -> 0.581919196 | C20: =C6/C9 -> 0.5494118588 | D20: 0.4626153129 | E20: 0.3405651207 | F20: 0.1776491238 | G20: 0.1306563882 | H20: 0.1542854134 | I20: 0.02307989825 | J20: 0.03338904221 | K20: 0.09044792454
A21: Retained earnings/avg total assets | B21: =B18/B9 ->  | C21: =C18/C9 ->  | G21: 0.2681258325 | H21: 0.137507838 | I21: 0.1290774753 | J21: 0.159648441 | K21: 0.1093860573
A22: EBIT/avg total assets | B22: =B15/B9 -> 0.2026165677 | C22: =C15/C9 -> 0.2221066389 | D22: 0.2708915045 | E22: 0.2987826754 | F22: 0.3527302793 | G22: 0.3776667646 | H22: 0.2551583289 | I22: 0.2383954156 | J22: 0.2712478874 | K22: 0.1948478707
A23: Market Cap/Total liabilities | B23: =B14/B10 -> 17.52956427 | C23: =C14/C10 -> 7.573708428 | D23: 8.303325909 | E23: 4.907489535 | F23: 4.110677382 | G23: 3.203591958 | H23: 2.011142982 | I23: 1.582187014 | J23: 1.186885111 | K23: 0.9410939307
A24: Net Sales/avg total assets | B24: =B11/B9 -> 0.01130042207 | C24: =C11/C9 -> 0.01000029892 | D24: 0.009901005281 | E24: 0.0105988888 | F24: 0.01129821522 | G24: 0.0106987752 | H24: 0.008899837075 | I24: 0.008300676032 | J24: 0.008899208904 | K24: 0.006998845932
A26: Altman Z-score (1968 formula) | B26: =(1.2*B20) + (1.4*B21) + (3.3*B22) + (0.6*B23) + (1*B24) ->  | C26: =(1.2*C20) + (1.4*C21) + (3.3*C22) + (0.6*C23) + (1*C24) ->  | G26: 3.711318105 | H26: 2.435261581 | I26: 1.9527221 | J26: 1.879722972 | K26: 1.476331167 | M26: >3 Safe from bankruptcy; Less than 3 but > 1.8 = Grey zone; Less than 1.8 = distress

Sheet Dupont ROE Analysis
B1: =L1+1 -> 11 | C1: 1 | D1: =C1+1 -> 2 | E1: =D1+1 -> 3 | F1: 4 | G1: 5 | H1: 6 | I1: 7 | J1: 8 | K1: 9 | L1: 10
A2: Dupont 5-step ROE Analysis with | B2: ='MorningStar Data'!A1 -> Growth Profitability and Financial Ratios for Apple Inc
A3: Inputs | B3: =Analysis!C2 -> 2007 | C3: =Analysis!D2 -> 2008 | D3: =Analysis!E2 -> 2009 | E3: =Analysis!F2 -> 2010 | F3: =Analysis!G2 -> 2011 | G3: =Analysis!H2 -> 2012 | H3: =Analysis!I2 -> 2013 | I3: =Analysis!J2 -> 2014 | J3: =Analysis!K2 -> 2015 | K3: =Analysis!L2 -> 2016
A4: =Analysis!A24 -> Net Income USD Mil | B4: =Analysis!C24 -> 3495 | C4: =Analysis!D24 -> 6119 | D4: =Analysis!E24 -> 8235 | E4: =Analysis!F24 -> 14013 | F4: =Analysis!G24 -> 25922 | G4: =Analysis!H24 -> 41733 | H4: =Analysis!I24 -> 37037 | I4: =Analysis!J24 -> 39510 | J4: =Analysis!K24 -> 53394 | K4: =Analysis!L24 -> 45687
A5: =INDEX('MorningStar Data'!A1:A250,MATCH("Tax Rate %"& "*",'MorningStar Data'!A1:A250,0),1) -> Tax Rate % | B5: =IF(INDEX('MorningStar Data'!$A$1:$M$150,MATCH($A$5,'MorningStar Data'!$A$1:$A$150,0),C1+1)=0,0,INDEX('MorningStar Data'!$A$1:$M$150,MATCH($A$5,'MorningStar Data'!$A$1:$A$150,0),C1+1))/100 -> 0.3019 | C5: =IF(INDEX('MorningStar Data'!$A$1:$M$150,MATCH($A$5,'MorningStar Data'!$A$1:$A$150,0),D1+1)=0,0,INDEX('MorningStar Data'!$A$1:$M$150,MATCH($A$5,'MorningStar Data'!$A$1:$A$150,0),D1+1))/100 -> 0.2989 | D5: =IF(INDEX('MorningStar Data'!$A$1:$M$150,MATCH($A$5,'MorningStar Data'!$A$1:$A$150,0),E1+1)=0,0,INDEX('MorningStar Data'!$A$1:$M$150,MATCH($A$5,'MorningStar Data'!$A$1:$A$150,0),E1+1))/100 -> 0.3175 | E5: =IF(INDEX('MorningStar Data'!$A$1:$M$150,MATCH($A$5,'MorningStar Data'!$A$1:$A$150,0),F1+1)=0,0,INDEX('MorningStar Data'!$A$1:$M$150,MATCH($A$5,'MorningStar Data'!$A$1:$A$150,0),F1+1))/100 -> 0.2442 | F5: =IF(INDEX('MorningStar Data'!$A$1:$M$150,MATCH($A$5,'MorningStar Data'!$A$1:$A$150,0),G1+1)=0,0,INDEX('MorningStar Data'!$A$1:$M$150,MATCH($A$5,'MorningStar Data'!$A$1:$A$150,0),G1+1))/100 -> 0.2422 | G5: =IF(INDEX('MorningStar Data'!$A$1:$M$150,MATCH($A$5,'MorningStar Data'!$A$1:$A$150,0),H1+1)=0,0,INDEX('MorningStar Data'!$A$1:$M$150,MATCH($A$5,'MorningStar Data'!$A$1:$A$150,0),H1+1))/100 -> 0.2516 | H5: =IF(INDEX('MorningStar Data'!$A$1:$M$150,MATCH($A$5,'MorningStar Data'!$A$1:$A$150,0),I1+1)=0,0,INDEX('MorningStar Data'!$A$1:$M$150,MATCH($A$5,'MorningStar Data'!$A$1:$A$150,0),I1+1))/100 -> 0.2615 | I5: =IF(INDEX('MorningStar Data'!$A$1:$M$150,MATCH($A$5,'MorningStar Data'!$A$1:$A$150,0),J1+1)=0,0,INDEX('MorningStar Data'!$A$1:$M$150,MATCH($A$5,'MorningStar Data'!$A$1:$A$150,0),J1+1))/100 -> 0.2613 | J5: =IF(INDEX('MorningStar Data'!$A$1:$M$150,MATCH($A$5,'MorningStar Data'!$A$1:$A$150,0),K1+1)=0,0,INDEX('MorningStar Data'!$A$1:$M$150,MATCH($A$5,'MorningStar Data'!$A$1:$A$150,0),K1+1))/100 -> 0.2637 | K5: =IF(INDEX('MorningStar Data'!$A$1:$M$150,MATCH($A$5,'MorningStar Data'!$A$1:$A$150,0),L1+1)=0,0,INDEX('MorningStar Data'!$A$1:$M$150,MATCH($A$5,'MorningStar Data'!$A$1:$A$150,0),L1+1))/100 -> 0.2556
A6: =CONCATENATE("Pre-tax income (EBT) ",RIGHT(A4,7)) -> Pre-tax income (EBT) USD Mil | B6: =B4/(1-B5) -> 5006.446068 | C6: 8727.713593 | D6: 12065.93407 | E6: 18540.61921 | F6: 34206.91475 | G6: 55762.96098 | H6: 50151.65877 | I6: 53485.85353 | J6: 72516.63724 | K6: 61374.26115
A7: =CONCATENATE(Analysis!A80," (EBIT)") -> Operating Income USD Mil (EBIT) | B7: =IF(Analysis!C80="",NA(),Analysis!C80) -> 4407 | C7: =IF(Analysis!D80="",NA(),Analysis!D80) -> 8327 | D7: =IF(Analysis!E80="",NA(),Analysis!E80) -> 11740 | E7: =IF(Analysis!F80="",NA(),Analysis!F80) -> 18385 | F7: =IF(Analysis!G80="",NA(),Analysis!G80) -> 33790 | G7: =IF(Analysis!H80="",NA(),Analysis!H80) -> 55241 | H7: =IF(Analysis!I80="",NA(),Analysis!I80) -> 48999 | I7: =IF(Analysis!J80="",NA(),Analysis!J80) -> 52503 | J7: =IF(Analysis!K80="",NA(),Analysis!K80) -> 71230 | K7: =IF(Analysis!L80="",NA(),Analysis!L80) -> 60024
A9: Tax burden | B9: =B4/B6 -> 0.6981 | C9: 0.7011 | D9: 0.6825 | E9: 0.7558 | F9: 0.7578 | G9: 0.7484 | H9: 0.7385 | I9: 0.7387 | J9: 0.7363 | K9: 0.7444
A10: Interest burden | B10: =B6/B7 -> 1.136021345 | C10: 1.048122204 | D10: 1.027762697 | E10: 1.008464466 | F10: 1.012338406 | G10: 1.009448797 | H10: 1.023524128 | I10: 1.01871995 | J10: 1.018063137 | K10: 1.022495354
A11: =Analysis!A81 -> Operating Margin | B11: =IF(Analysis!C81="",NA(),Analysis!C81) -> 17.93 | C11: =IF(Analysis!D81="",NA(),Analysis!D81) -> 22.21 | D11: =IF(Analysis!E81="",NA(),Analysis!E81) -> 27.36 | E11: =IF(Analysis!F81="",NA(),Analysis!F81) -> 28.19 | F11: =IF(Analysis!G81="",NA(),Analysis!G81) -> 31.22 | G11: =IF(Analysis!H81="",NA(),Analysis!H81) -> 35.3 | H11: =IF(Analysis!I81="",NA(),Analysis!I81) -> 28.67 | I11: =IF(Analysis!J81="",NA(),Analysis!J81) -> 28.72 | J11: =IF(Analysis!K81="",NA(),Analysis!K81) -> 30.48 | K11: =IF(Analysis!L81="",NA(),Analysis!L81) -> 27.84
A12: =INDEX('MorningStar Data'!A1:A250,MATCH("Asset Turnover (Average)",'MorningStar Data'!A1:A250,0),1) -> Asset Turnover (Average) | B12: =IF(INDEX('MorningStar Data'!$A$1:$M$150,MATCH($A$12,'MorningStar Data'!$A$1:$A$150,0),C1+1)=0,"",INDEX('MorningStar Data'!$A$1:$M$150,MATCH($A$12,'MorningStar Data'!$A$1:$A$150,0),C1+1)) -> 1.13 | C12: =IF(INDEX('MorningStar Data'!$A$1:$M$150,MATCH($A$12,'MorningStar Data'!$A$1:$A$150,0),D1+1)=0,"",INDEX('MorningStar Data'!$A$1:$M$150,MATCH($A$12,'MorningStar Data'!$A$1:$A$150,0),D1+1)) -> 1 | D12: =IF(INDEX('MorningStar Data'!$A$1:$M$150,MATCH($A$12,'MorningStar Data'!$A$1:$A$150,0),E1+1)=0,"",INDEX('MorningStar Data'!$A$1:$M$150,MATCH($A$12,'MorningStar Data'!$A$1:$A$150,0),E1+1)) -> 0.99 | E12: =IF(INDEX('MorningStar Data'!$A$1:$M$150,MATCH($A$12,'MorningStar Data'!$A$1:$A$150,0),F1+1)=0,"",INDEX('MorningStar Data'!$A$1:$M$150,MATCH($A$12,'MorningStar Data'!$A$1:$A$150,0),F1+1)) -> 1.06 | F12: =IF(INDEX('MorningStar Data'!$A$1:$M$150,MATCH($A$12,'MorningStar Data'!$A$1:$A$150,0),G1+1)=0,"",INDEX('MorningStar Data'!$A$1:$M$150,MATCH($A$12,'MorningStar Data'!$A$1:$A$150,0),G1+1)) -> 1.13 | G12: =IF(INDEX('MorningStar Data'!$A$1:$M$150,MATCH($A$12,'MorningStar Data'!$A$1:$A$150,0),H1+1)=0,"",INDEX('MorningStar Data'!$A$1:$M$150,MATCH($A$12,'MorningStar Data'!$A$1:$A$150,0),H1+1)) -> 1.07 | H12: =IF(INDEX('MorningStar Data'!$A$1:$M$150,MATCH($A$12,'MorningStar Data'!$A$1:$A$150,0),I1+1)=0,"",INDEX('MorningStar Data'!$A$1:$M$150,MATCH($A$12,'MorningStar Data'!$A$1:$A$150,0),I1+1)) -> 0.89 | I12: =IF(INDEX('MorningStar Data'!$A$1:$M$150,MATCH($A$12,'MorningStar Data'!$A$1:$A$150,0),J1+1)=0,"",INDEX('MorningStar Data'!$A$1:$M$150,MATCH($A$12,'MorningStar Data'!$A$1:$A$150,0),J1+1)) -> 0.83 | J12: =IF(INDEX('MorningStar Data'!$A$1:$M$150,MATCH($A$12,'MorningStar Data'!$A$1:$A$150,0),K1+1)=0,"",INDEX('MorningStar Data'!$A$1:$M$150,MATCH($A$12,'MorningStar Data'!$A$1:$A$150,0),K1+1)) -> 0.89 | K12: =IF(INDEX('MorningStar Data'!$A$1:$M$150,MATCH($A$12,'MorningStar Data'!$A$1:$A$150,0),L1+1)=0,"",INDEX('MorningStar Data'!$A$1:$M$150,MATCH($A$12,'MorningStar Data'!$A$1:$A$150,0),L1+1)) -> 0.7
A13: Financial Leverage | B13: =IF(INDEX('MorningStar Data'!$A$1:$M$150,MATCH($A$13,'MorningStar Data'!$A$1:$A$150,0),C1+1)=0,"",INDEX('MorningStar Data'!$A$1:$M$150,MATCH($A$13,'MorningStar Data'!$A$1:$A$150,0),C1+1)) -> 1.74 | C13: =IF(INDEX('MorningStar Data'!$A$1:$M$150,MATCH($A$13,'MorningStar Data'!$A$1:$A$150,0),D1+1)=0,"",INDEX('MorningStar Data'!$A$1:$M$150,MATCH($A$13,'MorningStar Data'!$A$1:$A$150,0),D1+1)) -> 1.88 | D13: =IF(INDEX('MorningStar Data'!$A$1:$M$150,MATCH($A$13,'MorningStar Data'!$A$1:$A$150,0),E1+1)=0,"",INDEX('MorningStar Data'!$A$1:$M$150,MATCH($A$13,'MorningStar Data'!$A$1:$A$150,0),E1+1)) -> 1.5 | E13: =IF(INDEX('MorningStar Data'!$A$1:$M$150,MATCH($A$13,'MorningStar Data'!$A$1:$A$150,0),F1+1)=0,"",INDEX('MorningStar Data'!$A$1:$M$150,MATCH($A$13,'MorningStar Data'!$A$1:$A$150,0),F1+1)) -> 1.57 | F13: =IF(INDEX('MorningStar Data'!$A$1:$M$150,MATCH($A$13,'MorningStar Data'!$A$1:$A$150,0),G1+1)=0,"",INDEX('MorningStar Data'!$A$1:$M$150,MATCH($A$13,'MorningStar Data'!$A$1:$A$150,0),G1+1)) -> 1.52 | G13: =IF(INDEX('MorningStar Data'!$A$1:$M$150,MATCH($A$13,'MorningStar Data'!$A$1:$A$150,0),H1+1)=0,"",INDEX('MorningStar Data'!$A$1:$M$150,MATCH($A$13,'MorningStar Data'!$A$1:$A$150,0),H1+1)) -> 1.49 | H13: =IF(INDEX('MorningStar Data'!$A$1:$M$150,MATCH($A$13,'MorningStar Data'!$A$1:$A$150,0),I1+1)=0,"",INDEX('MorningStar Data'!$A$1:$M$150,MATCH($A$13,'MorningStar Data'!$A$1:$A$150,0),I1+1)) -> 1.68 | I13: =IF(INDEX('MorningStar Data'!$A$1:$M$150,MATCH($A$13,'MorningStar Data'!$A$1:$A$150,0),J1+1)=0,"",INDEX('MorningStar Data'!$A$1:$M$150,MATCH($A$13,'MorningStar Data'!$A$1:$A$150,0),J1+1)) -> 2.08 | J13: =IF(INDEX('MorningStar Data'!$A$1:$M$150,MATCH($A$13,'MorningStar Data'!$A$1:$A$150,0),K1+1)=0,"",INDEX('MorningStar Data'!$A$1:$M$150,MATCH($A$13,'MorningStar Data'!$A$1:$A$150,0),K1+1)) -> 2.43 | K13: =IF(INDEX('MorningStar Data'!$A$1:$M$150,MATCH($A$13,'MorningStar Data'!$A$1:$A$150,0),L1+1)=0,"",INDEX('MorningStar Data'!$A$1:$M$150,MATCH($A$13,'MorningStar Data'!$A$1:$A$150,0),L1+1)) -> 2.51
A15: =CONCATENATE(Analysis!A11," (as per Morning Star)") -> Return on Equity % (as per Morning Star) | B15: =Analysis!C11 -> 0.2852 | C15: =Analysis!D11 -> 0.2719 | D15: =Analysis!E11 -> 0.3127 | E15: =Analysis!F11 -> 0.3528 | F15: =Analysis!G11 -> 0.4167 | G15: =Analysis!H11 -> 0.4284 | H15: =Analysis!I11 -> 0.3064 | I15: =Analysis!J11 -> 0.3361 | J15: =Analysis!K11 -> 0.4625 | K15: =Analysis!L11 -> 0.369
A16: Calculated Return on Equity | B16: =IF(ISERROR((B4/B6)*(B6/B7)*B11*B12*B13/100),NA(),(B4/B6)*(B6/B7)*B11*B12*B13/100) -> 0.2795838692 | C16: 0.3068303365 | D16: 0.2849955332 | E16: 0.357575769 | F16: 0.4113724893 | G16: 0.4251702075 | H16: 0.3240227966 | I16: 0.3731202099 | J16: 0.4941294696 | K16: 0.3723134284

Sheet Piotroski Score
B1: 2 | D1: =B1+1 -> 3 | F1: =D1+1 -> 4 | H1: =F1+1 -> 5 | J1: =H1+1 -> 6 | L1: =J1+1 -> 7 | N1: =L1+1 -> 8 | P1: =N1+1 -> 9 | R1: =P1+1 -> 10 | T1: =R1+1 -> 11
A2: Data as on March of year | B2: =Analysis!C59 -> 2007 | D2: =Analysis!D59 -> 2008 | F2: =Analysis!E59 -> 2009 | H2: =Analysis!F59 -> 2010 | J2: =Analysis!G59 -> 2011 | L2: =Analysis!H59 -> 2012 | N2: =Analysis!I59 -> 2013 | P2: =Analysis!J59 -> 2014 | R2: =Analysis!K59 -> 2015 | T2: =Analysis!L59 -> 2016 | AC2: ='MorningStar Data'!A1 -> Growth Profitability and Financial Ratios for Apple Inc
A3: =Analysis!A24 -> Net Income USD Mil | B3: =Analysis!C24 -> 3495 | D3: =Analysis!D24 -> 6119 | F3: =Analysis!E24 -> 8235 | H3: =Analysis!F24 -> 14013 | J3: =Analysis!G24 -> 25922 | L3: =Analysis!H24 -> 41733 | N3: =Analysis!I24 -> 37037 | P3: =Analysis!J24 -> 39510 | R3: =Analysis!K24 -> 53394 | T3: =Analysis!L24 -> 45687 | AC3: =LEN(AC2)-46 -> 9
A4: =CONCATENATE("Total assets ",RIGHT(Analysis!A24,7)) -> Total assets USD Mil | B4: =Analysis!C88 -> 21272.0633 | D4: =Analysis!D88 -> 41094.69443 | F4: =Analysis!E88 -> 43525.36998 | H4: =Analysis!F88 -> 61352.88967 | J4: =Analysis!G88 -> 95759.14296 | L4: =Analysis!H88 -> 146226.349 | N4: =Analysis!I88 -> 191504.6536 | P4: =Analysis!J88 -> 219378.1233 | R4: =Analysis!K88 -> 261095.3545 | T4: =Analysis!L88 -> 306008.0375
A5: Return on assets | B5: =IF(ISERROR(B3/B4),"",B3/B4) -> 0.1643 | C5: =IF(ISERROR(IF(B5>0,1,0)),"",IF(B5>0,1,0)) -> 1 | D5: =IF(ISERROR(D3/D4),"",D3/D4) -> 0.1489 | E5: =IF(ISERROR(IF(D5>0,1,0)),"",IF(D5>0,1,0)) -> 1 | F5: =IF(ISERROR(F3/F4),"",F3/F4) -> 0.1892 | G5: =IF(ISERROR(IF(F5>0,1,0)),"",IF(F5>0,1,0)) -> 1 | H5: =IF(ISERROR(H3/H4),"",H3/H4) -> 0.2284 | I5: =IF(ISERROR(IF(H5>0,1,0)),"",IF(H5>0,1,0)) -> 1 | J5: =IF(ISERROR(J3/J4),"",J3/J4) -> 0.2707 | K5: =IF(ISERROR(IF(J5>0,1,0)),"",IF(J5>0,1,0)) -> 1 | L5: =IF(ISERROR(L3/L4),"",L3/L4) -> 0.2854 | M5: =IF(ISERROR(IF(L5>0,1,0)),"",IF(L5>0,1,0)) -> 1 | N5: =IF(ISERROR(N3/N4),"",N3/N4) -> 0.1934 | O5: =IF(ISERROR(IF(N5>0,1,0)),"",IF(N5>0,1,0)) -> 1 | P5: =IF(ISERROR(P3/P4),"",P3/P4) -> 0.1801 | Q5: =IF(ISERROR(IF(P5>0,1,0)),"",IF(P5>0,1,0)) -> 1 | R5: =IF(ISERROR(R3/R4),"",R3/R4) -> 0.2045 | S5: =IF(ISERROR(IF(R5>0,1,0)),"",IF(R5>0,1,0)) -> 1 | T5: =IF(ISERROR(T3/T4),"",T3/T4) -> 0.1493 | U5: =IF(ISERROR(IF(T5>0,1,0)),"",IF(T5>0,1,0)) -> 1
C6: =IF(ISERROR(IF(B5>#REF!,1,0)),"",IF(B5>#REF!,1,0)) ->  | E6: =IF(ISERROR(IF(D5>B5,1,0)),"",IF(D5>B5,1,0)) -> 0 | G6: =IF(ISERROR(IF(F5>D5,1,0)),"",IF(F5>D5,1,0)) -> 1 | I6: =IF(ISERROR(IF(H5>F5,1,0)),"",IF(H5>F5,1,0)) -> 1 | K6: =IF(ISERROR(IF(J5>H5,1,0)),"",IF(J5>H5,1,0)) -> 1 | M6: =IF(ISERROR(IF(L5>J5,1,0)),"",IF(L5>J5,1,0)) -> 1 | O6: =IF(ISERROR(IF(N5>L5,1,0)),"",IF(N5>L5,1,0)) -> 0 | Q6: =IF(ISERROR(IF(P5>N5,1,0)),"",IF(P5>N5,1,0)) -> 0 | S6: =IF(ISERROR(IF(R5>P5,1,0)),"",IF(R5>P5,1,0)) -> 1 | U6: =IF(ISERROR(IF(T5>R5,1,0)),"",IF(T5>R5,1,0)) -> 0
A7: =INDEX('MorningStar Data'!A1:A250,MATCH("Operating Cash Flow"& "*",'MorningStar Data'!A1:A250,0),1) -> Operating Cash Flow USD Mil | B7: =IF(INDEX('MorningStar Data'!$A$1:$M$150,MATCH($A$7,'MorningStar Data'!$A$1:$A$150,0),B1)="","",INDEX('MorningStar Data'!$A$1:$M$150,MATCH($A$7,'MorningStar Data'!$A$1:$A$150,0),B1)) -> 5470 | D7: =IF(INDEX('MorningStar Data'!$A$1:$M$150,MATCH($A$7,'MorningStar Data'!$A$1:$A$150,0),D1)="","",INDEX('MorningStar Data'!$A$1:$M$150,MATCH($A$7,'MorningStar Data'!$A$1:$A$150,0),D1)) -> 9596 | F7: =IF(INDEX('MorningStar Data'!$A$1:$M$150,MATCH($A$7,'MorningStar Data'!$A$1:$A$150,0),F1)="","",INDEX('MorningStar Data'!$A$1:$M$150,MATCH($A$7,'MorningStar Data'!$A$1:$A$150,0),F1)) -> 10159 | H7: =IF(INDEX('MorningStar Data'!$A$1:$M$150,MATCH($A$7,'MorningStar Data'!$A$1:$A$150,0),H1)="","",INDEX('MorningStar Data'!$A$1:$M$150,MATCH($A$7,'MorningStar Data'!$A$1:$A$150,0),H1)) -> 18595 | J7: =IF(INDEX('MorningStar Data'!$A$1:$M$150,MATCH($A$7,'MorningStar Data'!$A$1:$A$150,0),J1)="","",INDEX('MorningStar Data'!$A$1:$M$150,MATCH($A$7,'MorningStar Data'!$A$1:$A$150,0),J1)) -> 37529 | L7: =IF(INDEX('MorningStar Data'!$A$1:$M$150,MATCH($A$7,'MorningStar Data'!$A$1:$A$150,0),L1)="","",INDEX('MorningStar Data'!$A$1:$M$150,MATCH($A$7,'MorningStar Data'!$A$1:$A$150,0),L1)) -> 50856 | N7: =IF(INDEX('MorningStar Data'!$A$1:$M$150,MATCH($A$7,'MorningStar Data'!$A$1:$A$150,0),N1)="","",INDEX('MorningStar Data'!$A$1:$M$150,MATCH($A$7,'MorningStar Data'!$A$1:$A$150,0),N1)) -> 53666 | P7: =IF(INDEX('MorningStar Data'!$A$1:$M$150,MATCH($A$7,'MorningStar Data'!$A$1:$A$150,0),P1)="","",INDEX('MorningStar Data'!$A$1:$M$150,MATCH($A$7,'MorningStar Data'!$A$1:$A$150,0),P1)) -> 59713 | R7: =IF(INDEX('MorningStar Data'!$A$1:$M$150,MATCH($A$7,'MorningStar Data'!$A$1:$A$150,0),R1)="","",INDEX('MorningStar Data'!$A$1:$M$150,MATCH($A$7,'MorningStar Data'!$A$1:$A$150,0),R1)) -> 81266 | T7: =IF(INDEX('MorningStar Data'!$A$1:$M$150,MATCH($A$7,'MorningStar Data'!$A$1:$A$150,0),T1)="","",INDEX('MorningStar Data'!$A$1:$M$150,MATCH($A$7,'MorningStar Data'!$A$1:$A$150,0),T1)) -> 65824
A8: Operating Cash Flow/ Total Assets* | B8: =IF(ISERROR(B7/B4),"",B7/B4) -> 0.2571447783 | C8: =IF(ISERROR(IF(B8>0,1,0)),"",IF(B8>0,1,0)) -> 1 | D8: =IF(ISERROR(D7/D4),"",D7/D4) -> 0.2335094623 | E8: =IF(ISERROR(IF(D8>0,1,0)),"",IF(D8>0,1,0)) -> 1 | F8: =IF(ISERROR(F7/F4),"",F7/F4) -> 0.2334041044 | G8: =IF(ISERROR(IF(F8>0,1,0)),"",IF(F8>0,1,0)) -> 1 | H8: =IF(ISERROR(H7/H4),"",H7/H4) -> 0.3030827089 | I8: =IF(ISERROR(IF(H8>0,1,0)),"",IF(H8>0,1,0)) -> 1 | J8: =IF(ISERROR(J7/J4),"",J7/J4) -> 0.391910358 | K8: =IF(ISERROR(IF(J8>0,1,0)),"",IF(J8>0,1,0)) -> 1 | L8: =IF(ISERROR(L7/L4),"",L7/L4) -> 0.3477895766 | M8: =IF(ISERROR(IF(L8>0,1,0)),"",IF(L8>0,1,0)) -> 1 | N8: =IF(ISERROR(N7/N4),"",N7/N4) -> 0.280233399 | O8: =IF(ISERROR(IF(N8>0,1,0)),"",IF(N8>0,1,0)) -> 1 | P8: =IF(ISERROR(P7/P4),"",P7/P4) -> 0.2721921362 | Q8: =IF(ISERROR(IF(P8>0,1,0)),"",IF(P8>0,1,0)) -> 1 | R8: =IF(ISERROR(R7/R4),"",R7/R4) -> 0.3112502716 | S8: =IF(ISERROR(IF(R8>0,1,0)),"",IF(R8>0,1,0)) -> 1 | T8: =IF(ISERROR(T7/T4),"",T7/T4) -> 0.2151054611 | U8: =IF(ISERROR(IF(T8>0,1,0)),"",IF(T8>0,1,0)) -> 1
A9: * Cash flow return on assests | C9: =IF(ISERROR(IF(B8>B5,1,0)),"",IF(B8>B5,1,0)) -> 1 | E9: =IF(ISERROR(IF(D8>D5,1,0)),"",IF(D8>D5,1,0)) -> 1 | G9: =IF(ISERROR(IF(F8>F5,1,0)),"",IF(F8>F5,1,0)) -> 1 | I9: =IF(ISERROR(IF(H8>H5,1,0)),"",IF(H8>H5,1,0)) -> 1 | K9: =IF(ISERROR(IF(J8>J5,1,0)),"",IF(J8>J5,1,0)) -> 1 | M9: =IF(ISERROR(IF(L8>L5,1,0)),"",IF(L8>L5,1,0)) -> 1 | O9: =IF(ISERROR(IF(N8>N5,1,0)),"",IF(N8>N5,1,0)) -> 1 | Q9: =IF(ISERROR(IF(P8>P5,1,0)),"",IF(P8>P5,1,0)) -> 1 | S9: =IF(ISERROR(IF(R8>R5,1,0)),"",IF(R8>R5,1,0)) -> 1 | U9: =IF(ISERROR(IF(T8>T5,1,0)),"",IF(T8>T5,1,0)) -> 1
A10: =Analysis!A93 -> Long-Term Debt | B10: =Analysis!C93 -> 0 | D10: =Analysis!D93 -> 0 | F10: =Analysis!E93 -> 0 | H10: =Analysis!F93 -> 0 | J10: =Analysis!G93 -> 0 | L10: =Analysis!H93 -> 0 | N10: =Analysis!I93 -> 15684.23113 | P10: =Analysis!J93 -> 27422.26541 | R10: =Analysis!K93 -> 48067.65477 | T10: =Analysis!L93 -> 71758.8848
A11: Long-term Debt/ Total Assets | B11: =B10/B4 -> 0 | C11: =IF(ISERROR(IF(B11<#REF!,1,0)),"",IF(B11<#REF!,1,0)) ->  | D11: =D10/D4 -> 0 | E11: =IF(ISERROR(IF(D11<B11,1,0)),"",IF(D11<B11,1,0)) -> 0 | F11: 0 | G11: =IF(ISERROR(IF(F11<D11,1,0)),"",IF(F11<D11,1,0)) -> 0 | H11: 0 | I11: =IF(ISERROR(IF(H11<F11,1,0)),"",IF(H11<F11,1,0)) -> 0 | J11: 0 | K11: =IF(ISERROR(IF(J11<H11,1,0)),"",IF(J11<H11,1,0)) -> 0 | L11: 0 | M11: =IF(ISERROR(IF(L11<J11,1,0)),"",IF(L11<J11,1,0)) -> 0 | N11: 0.0819 | O11: =IF(ISERROR(IF(N11<L11,1,0)),"",IF(N11<L11,1,0)) -> 0 | P11: 0.125 | Q11: =IF(ISERROR(IF(P11<N11,1,0)),"",IF(P11<N11,1,0)) -> 0 | R11: 0.1841 | S11: =IF(ISERROR(IF(R11<P11,1,0)),"",IF(R11<P11,1,0)) -> 0 | T11: 0.2345 | U11: =IF(ISERROR(IF(T11<R11,1,0)),"",IF(T11<R11,1,0)) -> 0
A12: Current Ratio | B12: =IF(INDEX('MorningStar Data'!$A$1:$M$150,MATCH($A$12,'MorningStar Data'!$A$1:$A$150,0),B1)="","",INDEX('MorningStar Data'!$A$1:$M$150,MATCH($A$12,'MorningStar Data'!$A$1:$A$150,0),B1)) -> 2.36 | C12: =IF(ISERROR(IF(B12>#REF!,1,0)),"",IF(B12>#REF!,1,0)) ->  | D12: =IF(INDEX('MorningStar Data'!$A$1:$M$150,MATCH($A$12,'MorningStar Data'!$A$1:$A$150,0),D1)="","",INDEX('MorningStar Data'!$A$1:$M$150,MATCH($A$12,'MorningStar Data'!$A$1:$A$150,0),D1)) -> 2.46 | E12: =IF(ISERROR(IF(D12>B12,1,0)),"",IF(D12>B12,1,0)) -> 1 | F12: =IF(INDEX('MorningStar Data'!$A$1:$M$150,MATCH($A$12,'MorningStar Data'!$A$1:$A$150,0),F1)="","",INDEX('MorningStar Data'!$A$1:$M$150,MATCH($A$12,'MorningStar Data'!$A$1:$A$150,0),F1)) -> 2.74 | G12: =IF(ISERROR(IF(F12>D12,1,0)),"",IF(F12>D12,1,0)) -> 1 | H12: =IF(INDEX('MorningStar Data'!$A$1:$M$150,MATCH($A$12,'MorningStar Data'!$A$1:$A$150,0),H1)="","",INDEX('MorningStar Data'!$A$1:$M$150,MATCH($A$12,'MorningStar Data'!$A$1:$A$150,0),H1)) -> 2.01 | I12: =IF(ISERROR(IF(H12>F12,1,0)),"",IF(H12>F12,1,0)) -> 0 | J12: =IF(INDEX('MorningStar Data'!$A$1:$M$150,MATCH($A$12,'MorningStar Data'!$A$1:$A$150,0),J1)="","",INDEX('MorningStar Data'!$A$1:$M$150,MATCH($A$12,'MorningStar Data'!$A$1:$A$150,0),J1)) -> 1.61 | K12: =IF(ISERROR(IF(J12>H12,1,0)),"",IF(J12>H12,1,0)) -> 0 | L12: =IF(INDEX('MorningStar Data'!$A$1:$M$150,MATCH($A$12,'MorningStar Data'!$A$1:$A$150,0),L1)="","",INDEX('MorningStar Data'!$A$1:$M$150,MATCH($A$12,'MorningStar Data'!$A$1:$A$150,0),L1)) -> 1.5 | M12: =IF(ISERROR(IF(L12>J12,1,0)),"",IF(L12>J12,1,0)) -> 0 | N12: =IF(INDEX('MorningStar Data'!$A$1:$M$150,MATCH($A$12,'MorningStar Data'!$A$1:$A$150,0),N1)="","",INDEX('MorningStar Data'!$A$1:$M$150,MATCH($A$12,'MorningStar Data'!$A$1:$A$150,0),N1)) -> 1.68 | O12: =IF(ISERROR(IF(N12>L12,1,0)),"",IF(N12>L12,1,0)) -> 1 | P12: =IF(INDEX('MorningStar Data'!$A$1:$M$150,MATCH($A$12,'MorningStar Data'!$A$1:$A$150,0),P1)="","",INDEX('MorningStar Data'!$A$1:$M$150,MATCH($A$12,'MorningStar Data'!$A$1:$A$150,0),P1)) -> 1.08 | Q12: =IF(ISERROR(IF(P12>N12,1,0)),"",IF(P12>N12,1,0)) -> 0 | R12: =IF(INDEX('MorningStar Data'!$A$1:$M$150,MATCH($A$12,'MorningStar Data'!$A$1:$A$150,0),R1)="","",INDEX('MorningStar Data'!$A$1:$M$150,MATCH($A$12,'MorningStar Data'!$A$1:$A$150,0),R1)) -> 1.11 | S12: =IF(ISERROR(IF(R12>P12,1,0)),"",IF(R12>P12,1,0)) -> 1 | T12: =IF(INDEX('MorningStar Data'!$A$1:$M$150,MATCH($A$12,'MorningStar Data'!$A$1:$A$150,0),T1)="","",INDEX('MorningStar Data'!$A$1:$M$150,MATCH($A$12,'MorningStar Data'!$A$1:$A$150,0),T1)) -> 1.35 | U12: =IF(ISERROR(IF(T12>R12,1,0)),"",IF(T12>R12,1,0)) -> 1
A13: =Analysis!A4 -> Gross Margin % | B13: =Analysis!C4 -> 0.332 | C13: =IF(ISERROR(IF(B13>#REF!,1,0)),"",IF(B13>#REF!,1,0)) ->  | D13: =Analysis!D4 -> 0.352 | E13: =IF(ISERROR(IF(D13>B13,1,0)),"",IF(D13>B13,1,0)) -> 1 | F13: =Analysis!E4 -> 0.401 | G13: =IF(ISERROR(IF(F13>D13,1,0)),"",IF(F13>D13,1,0)) -> 1 | H13: =Analysis!F4 -> 0.394 | I13: =IF(ISERROR(IF(H13>F13,1,0)),"",IF(H13>F13,1,0)) -> 0 | J13: =Analysis!G4 -> 0.405 | K13: =IF(ISERROR(IF(J13>H13,1,0)),"",IF(J13>H13,1,0)) -> 1 | L13: =Analysis!H4 -> 0.439 | M13: =IF(ISERROR(IF(L13>J13,1,0)),"",IF(L13>J13,1,0)) -> 1 | N13: =Analysis!I4 -> 0.376 | O13: =IF(ISERROR(IF(N13>L13,1,0)),"",IF(N13>L13,1,0)) -> 0 | P13: =Analysis!J4 -> 0.386 | Q13: =IF(ISERROR(IF(P13>N13,1,0)),"",IF(P13>N13,1,0)) -> 1 | R13: =Analysis!K4 -> 0.401 | S13: =IF(ISERROR(IF(R13>P13,1,0)),"",IF(R13>P13,1,0)) -> 1 | T13: =Analysis!L4 -> 0.391 | U13: =IF(ISERROR(IF(T13>R13,1,0)),"",IF(T13>R13,1,0)) -> 0
A14: Shares outstanding Mil | B14: =Analysis!C23 -> 6225 | C14: =IF(ISERROR(IF(B14-#REF!>0,0,1)),"",IF(B14-#REF!>0,0,1)) ->  | D14: =Analysis!D23 -> 6315 | E14: =IF(ISERROR(IF(D14-B14>0,0,1)),"",IF(D14-B14>0,0,1)) -> 0 | F14: =Analysis!E23 -> 6349 | G14: =IF(ISERROR(IF(F14-D14>0,0,1)),"",IF(F14-D14>0,0,1)) -> 0 | H14: =Analysis!F23 -> 6473 | I14: =IF(ISERROR(IF(H14-F14>0,0,1)),"",IF(H14-F14>0,0,1)) -> 0 | J14: =Analysis!G23 -> 6557 | K14: =IF(ISERROR(IF(J14-H14>0,0,1)),"",IF(J14-H14>0,0,1)) -> 0 | L14: =Analysis!H23 -> 6617 | M14: =IF(ISERROR(IF(L14-J14>0,0,1)),"",IF(L14-J14>0,0,1)) -> 0 | N14: =Analysis!I23 -> 6522 | O14: =IF(ISERROR(IF(N14-L14>0,0,1)),"",IF(N14-L14>0,0,1)) -> 1 | P14: =Analysis!J23 -> 6123 | Q14: =IF(ISERROR(IF(P14-N14>0,0,1)),"",IF(P14-N14>0,0,1)) -> 1 | R14: =Analysis!K23 -> 5793 | S14: =IF(ISERROR(IF(R14-P14>0,0,1)),"",IF(R14-P14>0,0,1)) -> 1 | T14: =Analysis!L23 -> 5500 | U14: =IF(ISERROR(IF(T14-R14>0,0,1)),"",IF(T14-R14>0,0,1)) -> 1
A15: Asset Turnover | B15: =IF(INDEX('MorningStar Data'!$A$1:$M$150,MATCH($A$15,'MorningStar Data'!$A$1:$A$150,0),B1)="","",INDEX('MorningStar Data'!$A$1:$M$150,MATCH($A$15,'MorningStar Data'!$A$1:$A$150,0),B1)) -> 1.13 | C15: =IF(ISERROR(IF(B15>#REF!,1,0)),"",IF(B15>#REF!,1,0)) ->  | D15: =IF(INDEX('MorningStar Data'!$A$1:$M$150,MATCH($A$15,'MorningStar Data'!$A$1:$A$150,0),D1)="","",INDEX('MorningStar Data'!$A$1:$M$150,MATCH($A$15,'MorningStar Data'!$A$1:$A$150,0),D1)) -> 1 | E15: =IF(ISERROR(IF(D15>B15,1,0)),"",IF(D15>B15,1,0)) -> 0 | F15: =IF(INDEX('MorningStar Data'!$A$1:$M$150,MATCH($A$15,'MorningStar Data'!$A$1:$A$150,0),F1)="","",INDEX('MorningStar Data'!$A$1:$M$150,MATCH($A$15,'MorningStar Data'!$A$1:$A$150,0),F1)) -> 0.99 | G15: =IF(ISERROR(IF(F15>D15,1,0)),"",IF(F15>D15,1,0)) -> 0 | H15: =IF(INDEX('MorningStar Data'!$A$1:$M$150,MATCH($A$15,'MorningStar Data'!$A$1:$A$150,0),H1)="","",INDEX('MorningStar Data'!$A$1:$M$150,MATCH($A$15,'MorningStar Data'!$A$1:$A$150,0),H1)) -> 1.06 | I15: =IF(ISERROR(IF(H15>F15,1,0)),"",IF(H15>F15,1,0)) -> 1 | J15: =IF(INDEX('MorningStar Data'!$A$1:$M$150,MATCH($A$15,'MorningStar Data'!$A$1:$A$150,0),J1)="","",INDEX('MorningStar Data'!$A$1:$M$150,MATCH($A$15,'MorningStar Data'!$A$1:$A$150,0),J1)) -> 1.13 | K15: =IF(ISERROR(IF(J15>H15,1,0)),"",IF(J15>H15,1,0)) -> 1 | L15: =IF(INDEX('MorningStar Data'!$A$1:$M$150,MATCH($A$15,'MorningStar Data'!$A$1:$A$150,0),L1)="","",INDEX('MorningStar Data'!$A$1:$M$150,MATCH($A$15,'MorningStar Data'!$A$1:$A$150,0),L1)) -> 1.07 | M15: =IF(ISERROR(IF(L15>J15,1,0)),"",IF(L15>J15,1,0)) -> 0 | N15: =IF(INDEX('MorningStar Data'!$A$1:$M$150,MATCH($A$15,'MorningStar Data'!$A$1:$A$150,0),N1)="","",INDEX('MorningStar Data'!$A$1:$M$150,MATCH($A$15,'MorningStar Data'!$A$1:$A$150,0),N1)) -> 0.89 | O15: =IF(ISERROR(IF(N15>L15,1,0)),"",IF(N15>L15,1,0)) -> 0 | P15: =IF(INDEX('MorningStar Data'!$A$1:$M$150,MATCH($A$15,'MorningStar Data'!$A$1:$A$150,0),P1)="","",INDEX('MorningStar Data'!$A$1:$M$150,MATCH($A$15,'MorningStar Data'!$A$1:$A$150,0),P1)) -> 0.83 | Q15: =IF(ISERROR(IF(P15>N15,1,0)),"",IF(P15>N15,1,0)) -> 0 | R15: =IF(INDEX('MorningStar Data'!$A$1:$M$150,MATCH($A$15,'MorningStar Data'!$A$1:$A$150,0),R1)="","",INDEX('MorningStar Data'!$A$1:$M$150,MATCH($A$15,'MorningStar Data'!$A$1:$A$150,0),R1)) -> 0.89 | S15: =IF(ISERROR(IF(R15>P15,1,0)),"",IF(R15>P15,1,0)) -> 1 | T15: =IF(INDEX('MorningStar Data'!$A$1:$M$150,MATCH($A$15,'MorningStar Data'!$A$1:$A$150,0),T1)="","",INDEX('MorningStar Data'!$A$1:$M$150,MATCH($A$15,'MorningStar Data'!$A$1:$A$150,0),T1)) -> 0.7 | U15: =IF(ISERROR(IF(T15>R15,1,0)),"",IF(T15>R15,1,0)) -> 0
A18: =RIGHT(AC2,AC3) -> Apple Inc | D18: =CONCATENATE(SUM(E5:E15),"/",COUNT(E5:E15)) -> 5/9 | F18: =CONCATENATE(SUM(G5:G15),"/",COUNT(G5:G15)) -> 6/9 | H18: =CONCATENATE(SUM(I5:I15),"/",COUNT(I5:I15)) -> 5/9 | J18: =CONCATENATE(SUM(K5:K15),"/",COUNT(K5:K15)) -> 6/9 | L18: =CONCATENATE(SUM(M5:M15),"/",COUNT(M5:M15)) -> 5/9 | N18: =CONCATENATE(SUM(O5:O15),"/",COUNT(O5:O15)) -> 5/9 | P18: =CONCATENATE(SUM(Q5:Q15),"/",COUNT(Q5:Q15)) -> 5/9 | R18: =CONCATENATE(SUM(S5:S15),"/",COUNT(S5:S15)) -> 8/9 | T18: =CONCATENATE(SUM(U5:U15),"/",COUNT(U5:U15)) -> 5/9
B19: =SUM(C5:C15)/COUNT(C5:C15) -> 1 | D19: =SUM(E5:E15)/COUNT(E5:E15) -> 0.5555555556 | F19: =SUM(G5:G15)/COUNT(G5:G15) -> 0.6666666667 | H19: =SUM(I5:I15)/COUNT(I5:I15) -> 0.5555555556 | J19: =SUM(K5:K15)/COUNT(K5:K15) -> 0.6666666667 | L19: =SUM(M5:M15)/COUNT(M5:M15) -> 0.5555555556 | N19: =SUM(O5:O15)/COUNT(O5:O15) -> 0.5555555556 | P19: =SUM(Q5:Q15)/COUNT(Q5:Q15) -> 0.5555555556 | R19: =SUM(S5:S15)/COUNT(S5:S15) -> 0.8888888889 | T19: =SUM(U5:U15)/COUNT(U5:U15) -> 0.5555555556

Sheet Graham Valuation
B1: In this sheet you can value the stock using the Graham number and Graham formula (scroll down)
A3: Graham Number
B4: The Graham number or Benjamin Graham number is a figure used in securities investing that measures a stock's so-called fair value
B5: Source | C5: https://en.wikipedia.org/wiki/Graham_number
A7: Data derived from | B7: ='MorningStar Data'!A1 -> Growth Profitability and Financial Ratios for Apple Inc
B8: =Analysis!C2 -> 2007 | C8: =Analysis!D2 -> 2008 | D8: =Analysis!E2 -> 2009 | E8: =Analysis!F2 -> 2010 | F8: =Analysis!G2 -> 2011 | G8: =Analysis!H2 -> 2012 | H8: =Analysis!I2 -> 2013 | I8: =Analysis!J2 -> 2014 | J8: =Analysis!K2 -> 2015 | K8: =Analysis!L2 -> 2016 | L8: TTM | M8: 10Y Average | N8: Last 5Y average | O8: Last 3Y average
A9: Diluted Earnings Per Share* | B9: =Analysis!C32 -> 0.5614457831 | C9: =Analysis!D32 -> 0.968962787 | D9: =Analysis!E32 -> 1.297054654 | E9: =Analysis!F32 -> 2.16483856 | F9: =Analysis!G32 -> 3.953332317 | G9: =Analysis!H32 -> 6.306936678 | H9: =Analysis!I32 -> 5.678779515 | I9: =Analysis!J32 -> 6.452719255 | J9: =Analysis!K32 -> 9.216986018 | K9: =Analysis!L32 -> 8.306727273 | L9: =IF(Analysis!B32="","",Analysis!B32) ->  | M9: =IF(COUNT(B9:K9)=10,SUM(B9:K9)/10,0) -> 4.490778284 | N9: =IF(COUNT(G9:K9)=5,AVERAGE(G9:K9),0) -> 7.192429748 | O9: =IF(COUNT(I9:K9)=3,AVERAGE(I9:K9),0) -> 7.992144182
A11: Book Value Per Share INR (last reported) | B11: =IF(Analysis!B37="",Analysis!L37,Analysis!B37) -> 25.72
A12: EPS TTM | B12: =Analysis!B25 -> 8.58
A13: =CONCATENATE("Current market price for ",StockPriceData!H1) -> Current market price for Apple Inc. | B13: =StockPriceData!S1 -> 49 | C13: Ensure market price and financials are for the same stock!!
A14: Graham Number | C14: Stock is | E14: Margin of safety
A15: Using 3Y average of Diluted EPS | B15: =SQRT(15*1.5*B11*O9) -> 68.00774837 | C15: =IF($B$13<B15,"Undervalued","Overvalued") -> Undervalued | E15: =(B15-$B$13)/B15 -> 0.2794938639
A16: Using 5Y average of Diluted EPS | B16: =SQRT(15*1.5*B11*N9) -> 64.5155725 | C16: =IF($B$13<B16,"Undervalued","Overvalued") -> Undervalued | E16: =(B16-$B$13)/B16 -> 0.2404934483
A17: Using 10Y average of Diluted EPS | B17: =SQRT(15*1.5*B11*M9) -> 50.97855817 | C17: =IF($B$13<B17,"Undervalued","Overvalued") -> Undervalued | E17: 0.03881157569
A18: Using TTM EPS | B18: =SQRT(15*1.5*B11*B12) -> 70.4645017 | C18: =IF($B$13<B18,"Undervalued","Overvalued") -> Undervalued | E18: 0.3046143971
A19: Reference | B19: https://en.wikipedia.org/wiki/Graham_number
B20: Current price should not be more than 1½ times the book value last reported.
B21: However a multiplier of earnings below 15 could justify a correspondingly higher multiplier of assets.
B22: As a rule of thumb we suggest that the product of the multiplier times the ratio of price to book value should not exceed 22.5.
B23: (This figure corresponds to 15 times earnings and 1½ times book value. It would admit an issue selling at only 9 times earnings and 2.5 times asset value, etc.)
B25: — Benjamin Graham, The Intelligent Investor, chapter 14
A27: Graham Formula
B28: The Benjamin Graham formula is an intrinsic value formula proposed by investor and professor, Benjamin Graham, often referred to as the "father of value investing".
B29: Published in his book, The Intelligent Investor, Graham devised the formula for investors to be able to quickly determine how rationally priced their stocks were.
B30: As with any valuation formula, the final number is not designed to give a true value of a stock, but only to approximate its range of possible values
B31: Source | C31: https://en.wikipedia.org/wiki/Benjamin_Graham_formula
B35: =Analysis!C22 -> 2007 | C35: =Analysis!D22 -> 2008 | D35: =Analysis!E22 -> 2009 | E35: =Analysis!F22 -> 2010 | F35: =Analysis!G22 -> 2011 | G35: =Analysis!H22 -> 2012 | H35: =Analysis!I22 -> 2013 | I35: =Analysis!J22 -> 2014 | J35: =Analysis!K22 -> 2015 | K35: =Analysis!L22 -> 2016
A36: =Analysis!A33 -> 1Y rolling growth growth in Diluted EPS | B36: =IF(Analysis!C33="","",Analysis!C33) ->  | C36: =IF(Analysis!D33="","",Analysis!D33) -> 0.7258350069 | D36: =IF(Analysis!E33="","",Analysis!E33) -> 0.3386011018 | E36: =IF(Analysis!F33="","",Analysis!F33) -> 0.6690418966 | F36: =IF(Analysis!G33="","",Analysis!G33) -> 0.8261557186 | G36: =IF(Analysis!H33="","",Analysis!H33) -> 0.5953469562 | H36: =IF(Analysis!I33="","",Analysis!I33) -> -0.09959782297 | I36: =IF(Analysis!J33="","",Analysis!J33) -> 0.1362862808 | J36: =IF(Analysis!K33="","",Analysis!K33) -> 0.4283878863 | K36: =IF(Analysis!L33="","",Analysis!L33) -> -0.09875882888
A37: =Analysis!A34 -> 3Y rolling growth diluted EPS | B37: =IF(Analysis!C34="","",Analysis!C34) ->  | C37: =IF(Analysis!D34="","",Analysis!D34) ->  | D37: =IF(Analysis!E34="","",Analysis!E34) ->  | E37: =IF(Analysis!F34="","",Analysis!F34) -> 0.5680956987 | F37: =IF(Analysis!G34="","",Analysis!G34) -> 0.5979091174 | G37: =IF(Analysis!H34="","",Analysis!H34) -> 0.6941559995 | H37: =IF(Analysis!I34="","",Analysis!I34) -> 0.379144687 | I37: =IF(Analysis!J34="","",Analysis!J34) -> 0.177406645 | J37: =IF(Analysis!K34="","",Analysis!K34) -> 0.1348108671 | K37: =IF(Analysis!L34="","",Analysis!L34) -> 0.1351632296
A38: =Analysis!A35 -> 5Y rolling growth diluted EPS | B38: =IF(Analysis!C35="","",Analysis!C35) ->  | C38: =IF(Analysis!D35="","",Analysis!D35) ->  | D38: =IF(Analysis!E35="","",Analysis!E35) ->  | E38: =IF(Analysis!F35="","",Analysis!F35) ->  | F38: =IF(Analysis!G35="","",Analysis!G35) ->  | G38: =IF(Analysis!H35="","",Analysis!H35) -> 0.6221915293 | H38: =IF(Analysis!I35="","",Analysis!I35) -> 0.4242609981 | I38: =IF(Analysis!J35="","",Analysis!J35) -> 0.3783417107 | J38: =IF(Analysis!K35="","",Analysis!K35) -> 0.3360806759 | K38: =IF(Analysis!L35="","",Analysis!L35) -> 0.1600943879
A39: =Analysis!A36 -> 7Y rolling growth diluted EPS | B39: =IF(Analysis!C36="","",Analysis!C36) ->  | C39: =IF(Analysis!D36="","",Analysis!D36) ->  | D39: =IF(Analysis!E36="","",Analysis!E36) ->  | E39: =IF(Analysis!F36="","",Analysis!F36) ->  | F39: =IF(Analysis!G36="","",Analysis!G36) ->  | G39: =IF(Analysis!H36="","",Analysis!H36) ->  | H39: =IF(Analysis!I36="","",Analysis!I36) ->  | I39: =IF(Analysis!J36="","",Analysis!J36) -> 0.4173943804 | J39: =IF(Analysis!K36="","",Analysis!K36) -> 0.379604325 | K39: =IF(Analysis!L36="","",Analysis!L36) -> 0.3037977864
A41: Use the above data to enter the projected EPS growth rate for the next 5 years | F41: 7 | G41: percentage
A42: EPS TTM | B42: =B12 -> 8.58
A43: No-growth PE of a company | B43: 7 | C43: PE ratio of a company with 0% growth. | G43: Ben Graham used 8.5.
C44: This guy (OSV) uses 7. | E44: http://www.oldschoolvalue.com/blog/valuation-methods/value-stocks-benjamin-graham-formula/
C45: I don’t know what applies to Indian Stocks.
C46: This VR article says 7 is fine: | F46: https://www.valueresearchonline.com/story/h2_storyView.asp?str=27759
A48: Multiplier to be used for the EPS growth rate | B48: 1 | C48: Ben Grram used 2. That is | F48: =CONCATENATE(2," x ",F41*100,"%") -> 2 x 700%
C49: OSV uses 1.5
C50: VR articles uses 1
A52: High Grade corporae bond yield | B52: 0.08 | C52: Ben Graham used 4.4% in 1974!
C53: VR article suggests setting to FD rate as a risk-free return
A55: Current yield on long-term corporate bonds | B55: 0.085 | C55: I am still searching for a reliable source of this. If not known, set it a bit above the risk-free rate
A57: Graham formula (intrisic value) | B57: =B42*(B43+(B48*F41))*B52/B55 -> 113.0541176
A59: =A13 -> Current market price for Apple Inc. | B59: =B13 -> 49
A60: Margin of safety | B60: =(B57-B59)/B57 -> 0.5665792541

Sheet Valuation-1
A1: Price Multiple Model
A2: Calculate if the stock is overvalued or undervalued
A3: Source: | B3: http://investexcel.net/how-to-calculate-if-a-stock-is-undervalued-or-overvalued/
A5: Current price | B5: =StockPriceData!S1 -> 49 | C5: =StockPriceData!H1 -> Apple Inc.
A6: Average annual Diluted EPS Growth over last 10Y | B6: =Analysis!M33 -> 0.391255355
A7: Standard Deviation | B7: =Analysis!N33 -> 0.3482297878 | C7: If the standard deviation is as high than the average, the average is useless!
A8: Expected conservative EPS growth | B8: 0.15
D9: Forward PE from | E9: ='MorningStar Data'!A1 -> Growth Profitability and Financial Ratios for Apple Inc
A10: Forward PE (get from Morningstar or use projection) | B10: 23.4 | C10: Choose from | D10: =B5/Graph!M23 -> 4.885343968 | E10: From linear fit of EPS
A11: Current EPS (TTM) | B11: =Analysis!B25 -> 8.58 | D11: =B5/Graph!M24 -> 2.773657157 | E11: From linear fit of log(EPS)
A12: Current Dividend per share (TTM) | B12: =Analysis!B26 -> 2.28 | D12: 22.7 | E12: From morning star. You need to get this manually
A13: Expected conservative rate of return | B13: 0.15 | E13: Morning star estimate can be quite different
A15: Expected EPS Growth | E15: Expected EPS Growth
A16: Year 0 | B16: =B11 -> 8.58 | E16: Year 0 | F16: =B16 -> 8.58
A17: Year 1 | B17: =B16*(1+$B$8) -> 9.867 | E17: Year 1 | F17: =F16*(1+$B$8) -> 9.867
A18: Year 2 | B18: =B17*(1+$B$8) -> 11.34705 | E18: Year 2 | F18: =F17*(1+$B$8) -> 11.34705
A19: Year 3 | B19: =B18*(1+$B$8) -> 13.0491075 | E19: Year 3 | F19: =F18*(1+$B$8) -> 13.0491075
A20: Total 3Y EPS | B20: =SUM(B17:B19) -> 34.2631575 | E20: Year 4 | F20: =F19*(1+$B$8) -> 15.00647362
E21: Year 5 | F21: =F20*(1+$B$8) -> 17.25744467
E22: Total 5Y EPS | F22: =SUM(F17:F21) -> 66.52707579
A24: Expected Share Price in 3 Years | B24: =B10*B19 -> 305.3491155 | E24: Expected Share Price in 5 Years | F24: =B10*F21 -> 403.8242052
A25: Dividend Payout Ratio | B25: =B12/B19 -> 0.1747245932 | E25: Dividend Payout Ratio | F25: =B12/F21 -> 0.1321168947
A26: Total Dividends Per Share Over 3 Years | B26: =B25*B20 -> 5.986616257 | E26: Total Dividends Per Share Over 5 Years | F26: =F25*F22 -> 8.789350667
A27: Expected Share Value at End of 3 Years | B27: =B26+B24 -> 311.3357318 | E27: Expected Share Value at End of 5 Years | F27: =F26+F24 -> 412.6135559
A28: Present Share Value for Good Value | B28: =B27/(1+B13)^3 -> 204.7082974 | C28: =IF(B28>B5, "Stock is undervalued", "Stock is overvalued") -> Stock is undervalued | E28: Present Share Value for Good Value | F28: =F27/(1+B13)^5 -> 205.1418607 | G28: =IF(F28>B5, "Stock is undervalued", "Stock is overvalued") -> Stock is undervalued
A29: Undervaluation could mean trouble too!
A30: "Analysis is purely quantitative, and does not incorporate qualitative aspects that may lead to investors prefering the over valued stock"
A31: Thanks to Raghavendre Shenoy for suggesting this disclaimer.

Sheet Valuation-2
A1: Valuation using sustainable growth rate | F1: Source: | G1: http://www.aaii.com/computerized-investing/article/valuing-stocks-the-warren-buffett-way.touch
A3: Before using please ensure both | B3: ='MorningStar Data'!A1 -> Growth Profitability and Financial Ratios for Apple Inc | G3: Current price | H3: ='Valuation-1'!B5 -> 49
A4: morning star and Google finance | B4: Google Finance Data is for | E4: =GoogleFinance!A5 -> Apple Inc.
A5: data is for the same stock!
A7: Year | B7: Price Max | C7: Price Min | D7: =Analysis!A23 -> Shares Mil | E7: =Analysis!A25 -> Earnings Per Share USD | F7: =Analysis!A26 -> Dividends USD | G7: =Analysis!A37 -> Book Value Per Share * USD | H7: PE high | I7: PE low | J7: ROE% | K7: Payout Ratio% | L7: =Analysis!A69 -> Revenue USD Mil | M7: =Analysis!A24 -> Net Income USD Mil | N7: =Analysis!A74 -> Total Stockholders' Equity | O7: Growth Rate
A8: ='Stock price FY high and low'!A1 -> 2007 | B8: =IF('Stock price FY high and low'!C1=0,NA(),'Stock price FY high and low'!C1) -> 33.28 | C8: =IF('Stock price FY high and low'!C2=0,NA(),'Stock price FY high and low'!C2) -> 18.99 | D8: =Analysis!C23 -> 6225 | E8: =Analysis!C25 -> 0.56 | F8: =Analysis!C26 ->  | G8: =Analysis!C37 -> 2.2 | H8: =IF(ISERROR(B8/$E8),"",B8/$E8) -> 59.42857143 | I8: 33.91071429 | J8: =Analysis!C11 -> 0.2852 | K8: =Analysis!C31 ->  | L8: =Analysis!C69 -> 24578 | M8: =Analysis!C24 -> 3495
A9: ='Stock price FY high and low'!D1 -> 2008 | B9: =IF('Stock price FY high and low'!F1=0,NA(),'Stock price FY high and low'!F1) -> 27 | C9: =IF('Stock price FY high and low'!F2=0,NA(),'Stock price FY high and low'!F2) -> 15.14 | D9: =Analysis!D23 -> 6315 | E9: =Analysis!D25 -> 0.97 | F9: =Analysis!D26 ->  | G9: =Analysis!D37 -> 3.39 | H9: 27.83505155 | I9: 15.60824742 | J9: =Analysis!D11 -> 0.2719 | K9: =Analysis!D31 ->  | L9: =Analysis!D69 -> 37491 | M9: =Analysis!D24 -> 6119
A10: 2007 | B10: =IF('Stock price FY high and low'!I1=0,NA(),'Stock price FY high and low'!I1) -> 23.63 | C10: =IF('Stock price FY high and low'!I2=0,NA(),'Stock price FY high and low'!I2) -> 14.22 | D10: =Analysis!E23 -> 6349 | E10: =Analysis!E25 -> 1.3 | F10: =Analysis!E26 ->  | G10: =Analysis!E37 -> 5.02 | H10: 18.17692308 | I10: 10.93846154 | J10: =Analysis!E11 -> 0.3127 | K10: =Analysis!E31 ->  | L10: =Analysis!E69 -> 42905 | M10: =Analysis!E24 -> 8235
A11: ='Stock price FY high and low'!J1 -> 2010 | B11: =IF('Stock price FY high and low'!L1=0,NA(),'Stock price FY high and low'!L1) -> 20.11 | C11: =IF('Stock price FY high and low'!L2=0,NA(),'Stock price FY high and low'!L2) -> 13.88 | D11: =Analysis!F23 -> 6473 | E11: =Analysis!F25 -> 2.16 | F11: =Analysis!F26 ->  | G11: =Analysis!F37 -> 7.45 | H11: =IF(ISERROR(B11/$E11),"",B11/$E11) -> 9.310185185 | I11: =IF(ISERROR(C11/$E11),"",C11/$E11) -> 6.425925926 | J11: =Analysis!F11 -> 0.3528 | K11: =Analysis!F31 ->  | L11: =Analysis!F69 -> 65225 | M11: =Analysis!F24 -> 14013
A12: ='Stock price FY high and low'!M1 -> 2011 | B12: =IF('Stock price FY high and low'!O1=0,NA(),'Stock price FY high and low'!O1) -> 23.85 | C12: =IF('Stock price FY high and low'!O2=0,NA(),'Stock price FY high and low'!O2) -> 17.18 | D12: =Analysis!G23 -> 6557 | E12: =Analysis!G25 -> 3.95 | F12: =Analysis!G26 ->  | G12: =Analysis!G37 -> 11.78 | H12: 6.037974684 | I12: 4.349367089 | J12: =Analysis!G11 -> 0.4167 | K12: =Analysis!G31 ->  | L12: =Analysis!G69 -> 108249 | M12: =Analysis!G24 -> 25922
A13: ='Stock price FY high and low'!P1 -> 2012 | B13: =IF('Stock price FY high and low'!R1=0,NA(),'Stock price FY high and low'!R1) -> 26.49 | C13: =IF('Stock price FY high and low'!R2=0,NA(),'Stock price FY high and low'!R2) -> 20.05 | D13: =Analysis!H23 -> 6617 | E13: =Analysis!H25 -> 6.31 | F13: =Analysis!H26 -> 0.38 | G13: =Analysis!H37 -> 16.99 | H13: 4.198098257 | I13: 3.177496038 | J13: =Analysis!H11 -> 0.4284 | K13: =Analysis!H31 ->  | L13: =Analysis!H69 -> 156508 | M13: =Analysis!H24 -> 41733
A14: ='Stock price FY high and low'!S1 -> 2013 | B14: =IF('Stock price FY high and low'!U1=0,NA(),'Stock price FY high and low'!U1) -> 27.88 | C14: =IF('Stock price FY high and low'!U2=0,NA(),'Stock price FY high and low'!U2) -> 19.86 | D14: =Analysis!I23 -> 6522 | E14: =Analysis!I25 -> 5.68 | F14: =Analysis!I26 -> 1.63 | G14: =Analysis!I37 -> 19.6 | H14: 4.908450704 | I14: 3.496478873 | J14: =Analysis!I11 -> 0.3064 | K14: =Analysis!I31 -> 0.274 | L14: =Analysis!I69 -> 170910 | M14: =Analysis!I24 -> 37037
A15: ='Stock price FY high and low'!V1 -> 2014 | B15: =IF('Stock price FY high and low'!X1=0,NA(),'Stock price FY high and low'!X1) -> 33.01 | C15: =IF('Stock price FY high and low'!X2=0,NA(),'Stock price FY high and low'!X2) -> 26.05 | D15: =Analysis!J23 -> 6123 | E15: =Analysis!J25 -> 6.45 | F15: =Analysis!J26 -> 1.81 | G15: =Analysis!J37 -> 20.62 | H15: 5.117829457 | I15: 4.03875969 | J15: =Analysis!J11 -> 0.3361 | K15: =Analysis!J31 -> 0.285 | L15: =Analysis!J69 -> 182795 | M15: =Analysis!J24 -> 39510
A16: ='Stock price FY high and low'!Y1 -> 2015 | B16: =IF('Stock price FY high and low'!AA1=0,NA(),'Stock price FY high and low'!AA1) -> 35.1 | C16: =IF('Stock price FY high and low'!AA2=0,NA(),'Stock price FY high and low'!AA2) -> 28.29 | D16: =Analysis!K23 -> 5793 | E16: =Analysis!K25 -> 9.22 | F16: =Analysis!K26 -> 1.98 | G16: =Analysis!K37 -> 22.53 | H16: 3.806941432 | I16: 3.068329718 | J16: =Analysis!K11 -> 0.4625 | K16: =Analysis!K31 -> 0.223 | L16: =Analysis!K69 -> 233715 | M16: =Analysis!K24 -> 53394
A17: ='Stock price FY high and low'!AB1 -> 2016 | B17: =IF('Stock price FY high and low'!AD1=0,NA(),'Stock price FY high and low'!AD1) -> 35.82 | C17: =IF('Stock price FY high and low'!AD2=0,NA(),'Stock price FY high and low'!AD2) -> 27.57 | D17: =Analysis!L23 -> 5500 | E17: =Analysis!L25 -> 8.31 | F17: =Analysis!L26 -> 2.18 | G17: =Analysis!L37 -> 23.71 | H17: 4.310469314 | I17: 3.317689531 | J17: =Analysis!L11 -> 0.369 | K17: =Analysis!L31 -> 0.248 | L17: =Analysis!L69 -> 215639 | M17: =Analysis!L24 -> 45687
A18: Average | H18: =AVERAGE(H8:H17) -> 14.31304951 | I18: =AVERAGE(I8:I17) -> 8.833147011 | J18: =AVERAGE(J8:J17) -> 0.35417 | K18: =AVERAGE(K8:K17) -> 0.2575
A19: Average Sustainable Growth rate | B19: =J18*(1-K18) -> 0.262971225
A20: CAGR 3Y | B20: =IF(ISERROR((B17/B14)^(1/3)-1),"",(B17/B14)^(1/3)-1) -> 0.08712029637 | C20: 0.1155417806 | D20: -0.0552273808 | E20: 0.135230967 | F20: 0.1017666688 | G20: 0.06551236562 | H20: -0.04237963201 | I20: -0.01734377139 | J20: 0.06392872624
A21: CAGR 5Y | B21: =IF(ISERROR((B17/B12)^(1/5)-1),"",(B17/B12)^(1/5)-1) -> 0.08474445712 | C21: 0.09921519018 | D21: -0.03454618909 | E21: 0.1603814717 | G21: 0.1501573331 | H21: -0.06518288722 | I21: -0.05271221838 | J21: -0.02402077522
A22: CAGR 7Y | B22: =IF(ISERROR((B17/B10)^(1/7)-1),"",(B17/B10)^(1/7)-1) -> 0.06122833479 | C22: 0.09920004762 | D22: -0.02029819337 | E22: 0.3034487294 | G22: 0.2482979647 | H22: -0.1858303968 | I22: -0.1566986696 | J22: 0.02393222708
A23: CAGR 9Y | B23: =IF(ISERROR((B17/B8)^(1/10)-1),"",(B17/B8)^(1/10)-1) -> 0.007382092353 | C23: 0.03798524522 | D23: -0.01230618688 | E23: 0.3096079406 | G23: 0.2683843865 | H23: -0.2307758214 | I23: -0.2074076423 | J23: 0.02609526729
A25: Valuation with TTM EPS and DPS and their past CAGR's
E26: CAGR that will be use to project growth rates | K26: Average high PE | L26: Average low PE
A27: Select CAGR to be used | B27: CAGR 5Y | E27: =INDEX($A$20:$M$23,MATCH($B$27,$A$20:$A$23,0),5) -> 0.1603814717 | F27: =INDEX($A$20:$M$23,MATCH($B$27,$A$20:$A$23,0),6) ->  | K27: =AVERAGE(H8:H17) -> 14.31304951 | L27: =AVERAGE(I8:I17) -> 8.833147011
A28: =A18 -> Average | E28: =E7 -> Earnings Per Share USD | F28: =F7 -> Dividends USD
A29: Current(TTM) | E29: =Analysis!B25 -> 8.58 | F29: =Analysis!B26 -> 2.28
A30: 1Y from now | E30: =E29*(1+$E$27) -> 9.956073027 | F30: =F29*(1+$F$27) -> 
A31: 2Y from now | E31: =E30*(1+$E$27) -> 11.55284267 | F31: =F30*(1+$F$27) -> 
A32: 3Y from now | E32: 13.40570458
A33: 4Y from now | E33: 15.55573121
A34: 5Y from now | E34: 18.05058228
A35: 6Y from now | E35: 20.94556123
A36: 7Y from now | E36: 24.30484117
A37: 8Y from now | E37: 28.20288736
A38: 9Y from now | E38: 32.72610794
A39: 10Y from now | E39: 37.9747693
A41: Total Dividend over next 10Y | C41: =SUM(F29:F39) -> 
A42: EPS 10Y from now | C42: =E39 -> 37.9747693 | D42: This calculation is similar to that done in 'Valuation-1' sheet
A43: Proected price after 10Y with average PE | C43: =AVERAGE(H8:I17)*C42 -> 439.4857365 | D43: Projected price after 10Y with median PE | G43: =MEDIAN(H8:I17)*C42 -> 190.372838
A44: Total gain | C44: =C43+C41 ->  | D44: Total gain | G44: =C43+G41 -> 439.4857365
A45: Projected return | C45: =(C44/$H$3)^(1/10)-1 ->  | D45: Projected return | G45: =(G44/$H$3)^(1/10)-1 -> 0.2453025301
A47: Valuation with TTM BVS and projected EPS and DPS with average of past ROE and payout ratios
A48: =A28 -> Average | E48: =E28 -> Earnings Per Share USD | F48: =F28 -> Dividends USD | G48: =G7 -> Book Value Per Share * USD
A49: Current projected (BVS is TTM val) | E49: =G49*AVERAGE($J$8:$J$17) -> 9.1092524 | F49: =E49*AVERAGE($K$8:$K$17) -> 2.345632493 | G49: =Analysis!B37 -> 25.72
A50: 1Y from now | E50: =G50*AVERAGE($J$8:$J$17) -> 11.50472366 | F50: =E50*AVERAGE($K$8:$K$17) -> 2.962466343 | G50: =G49+E49-F49 -> 32.48361991
A51: 2Y from now | E51: =G51*AVERAGE($J$8:$J$17) -> 14.53013494 | F51: =E51*AVERAGE($K$8:$K$17) -> 3.741509746 | G51: =G50+E50-F50 -> 41.02587723
A52: 3Y from now | E52: 18.35114232 | F52: 4.725419148 | G52: 51.81450242
A53: 4Y from now | E53: 23.1769647 | F53: 5.96806841 | G53: 65.44022559
A54: 5Y from now | E54: 29.2718395 | F54: 7.53749867 | G54: 82.64912188
A55: 6Y from now | E55: 36.96949099 | F55: 9.519643929 | G55: 104.3834627
A56: 7Y from now | E56: 46.69140332 | F56: 12.02303635 | G56: 131.8333098
A57: 8Y from now | E57: 58.96989885 | F57: 15.18474895 | G57: 166.5016767
A58: 9Y from now | E58: 74.47728538 | F58: 19.17790099 | G58: 210.2868266
A59: 10Y from now | E59: 94.06266836 | F59: 24.2211371 | G59: 265.586211
E60: Projected CAGR
E61: =(E59/E49)^(1/10)-1 -> 0.262971225 | F61: =(F59/F49)^(1/10)-1 -> 0.262971225 | G61: =(G59/G49)^(1/10)-1 -> 0.262971225
A63: Total Dividend over next 10Y | C63: =SUM(F49:F59) -> 107.4070621
A64: Projected EPS 10Y from now | C64: =E59 -> 94.06266836
A65: Proected price after 10Y | C65: =AVERAGE($H$8:$I$17)*C64 -> 1088.596503 | D65: Projected price after 10Y with median PE | G65: =MEDIAN($H$8:$I$17)*C64 -> 471.5493328
A66: Total gain | C66: =C65+C63 -> 1196.003566 | D66: Total gain | G66: =G65+C63 -> 578.956395
A67: Projected return | C67: =(C66/$H$3)^(1/10)-1 -> 0.3764284461 | D67: Projected return | G67: =(G66/$H$3)^(1/10)-1 -> 0.2801031832
A69: To find the actual return on investment based on parameters that influence sustainable growth, go to valuation-3

Sheet Valuation-3
A1: Return on investment based on book value growth rate | D1: Source:
D2: http://gbr.pepperdine.edu/2010/08/the-buffett-approach-to-valuing-stocks/
D3: Source:
A4: Long-term Bond yield | B4: 0.07981 | D4: http://www.investing.com/rates-bonds/india-10-year-bond-yield-historical-data
A7: ='Valuation-2'!A7 -> Year | B7: Book Yield Per Share | C7: ='Valuation-2'!K7 -> Payout Ratio% | D7: Retention Ratio%
A8: ='Valuation-2'!A8 -> 2007 | B8: =IF(ISERROR('Valuation-2'!E8/'Valuation-2'!G8),"",'Valuation-2'!E8/'Valuation-2'!G8) -> 0.2545454545 | C8: ='Valuation-2'!K8 ->  | D8: =IF(C8="","",1-C8) -> 
A9: ='Valuation-2'!A9 -> 2008 | B9: =IF(ISERROR('Valuation-2'!E9/'Valuation-2'!G9),"",'Valuation-2'!E9/'Valuation-2'!G9) -> 0.2861356932 | C9: ='Valuation-2'!K9 ->  | D9: =IF(C9="","",1-C9) -> 
A10: ='Valuation-2'!A10 -> 2007 | B10: =IF(ISERROR('Valuation-2'!E10/'Valuation-2'!G10),"",'Valuation-2'!E10/'Valuation-2'!G10) -> 0.2589641434 | C10: ='Valuation-2'!K10 -> 
A11: ='Valuation-2'!A11 -> 2010 | B11: =IF(ISERROR('Valuation-2'!E11/'Valuation-2'!G11),"",'Valuation-2'!E11/'Valuation-2'!G11) -> 0.2899328859 | C11: ='Valuation-2'!K11 -> 
A12: ='Valuation-2'!A12 -> 2011 | B12: =IF(ISERROR('Valuation-2'!E12/'Valuation-2'!G12),"",'Valuation-2'!E12/'Valuation-2'!G12) -> 0.3353140917 | C12: ='Valuation-2'!K12 ->  | F12: Assumed Growth in Book Value
A13: ='Valuation-2'!A13 -> 2012 | B13: =IF(ISERROR('Valuation-2'!E13/'Valuation-2'!G13),"",'Valuation-2'!E13/'Valuation-2'!G13) -> 0.3713949382 | C13: ='Valuation-2'!K13 ->  | F13: with avg BYS and RR | G13: =B18*D18 -> 0.2345263018 | H13: Sustainable Growth rate
A14: ='Valuation-2'!A14 -> 2013 | B14: =IF(ISERROR('Valuation-2'!E14/'Valuation-2'!G14),"",'Valuation-2'!E14/'Valuation-2'!G14) -> 0.2897959184 | C14: ='Valuation-2'!K14 -> 0.274 | D14: 0.726 | F14: with median BYS and RR | G14: =B19*D19 -> 0.2227109482
A15: ='Valuation-2'!A15 -> 2014 | B15: =IF(ISERROR('Valuation-2'!E15/'Valuation-2'!G15),"",'Valuation-2'!E15/'Valuation-2'!G15) -> 0.3128031038 | C15: ='Valuation-2'!K15 -> 0.285 | D15: 0.715 | F15: historical 1Y average | G15: =Analysis!M38 -> 0.3199939568
A16: ='Valuation-2'!A16 -> 2015 | B16: =IF(ISERROR('Valuation-2'!E16/'Valuation-2'!G16),"",'Valuation-2'!E16/'Valuation-2'!G16) -> 0.4092321349 | C16: ='Valuation-2'!K16 -> 0.223 | D16: 0.777 | F16: lower limit (hist avg- std.dev) | G16: =Analysis!M38-Analysis!N38 -> 0.09428141725
A17: ='Valuation-2'!A17 -> 2016 | B17: =IF(ISERROR('Valuation-2'!E17/'Valuation-2'!G17),"",'Valuation-2'!E17/'Valuation-2'!G17) -> 0.3504850274 | C17: ='Valuation-2'!K17 -> 0.248 | D17: 0.752
A18: Average | B18: =AVERAGE(B8:B17) -> 0.3158603391 | C18: =AVERAGE(C8:C17) -> 0.2575 | D18: =AVERAGE(D8:D17) -> 0.7425
A19: Median | B19: =MEDIAN(B8:B17) -> 0.3013679948 | C19: =MEDIAN(C8:C17) -> 0.261 | D19: =MEDIAN(D8:D17) -> 0.739
A21: Choose Book value Growth rate | B21: 0.2345263018 | D21: =INDEX(F13:G16,MATCH(B21,G13:G16,0),1) -> with avg BYS and RR
D23: Projection with avg BYS and Payout Ratio | E23: Projection with median BYS and Payout Ratio
B24: ='Valuation-2'!G7 -> Book Value Per Share * USD | C24: ='Valuation-2'!E48 -> Earnings Per Share USD | D24: ='Valuation-2'!F48 -> Dividends USD | E24: =C24 -> Earnings Per Share USD | F24: =D24 -> Dividends USD
A25: ='Valuation-2'!A29 -> Current(TTM) | B25: =Analysis!B37 -> 25.72 | C25: =B25*$B$18 -> 8.123927923 | D25: =$C$18*C25 -> 2.09191144 | E25: =B25*$B$19 -> 7.751184827 | F25: =$C$19*E25 -> 2.02305924
A26: ='Valuation-2'!A30 -> 1Y from now | B26: =B25*(1+$B$21) -> 31.75201648 | C26: =B26*$B$18 -> 10.02920269 | D26: =$C$18*C26 -> 2.582519694 | E26: 9.56904154 | F26: =$C$19*E26 -> 2.497519842
A27: ='Valuation-2'!A31 -> 2Y from now | B27: =B26*(1+$B$21) -> 39.19869948 | C27: 12.38131451 | D27: 3.188188487 | E27: 11.81323346 | F27: 3.083253934
A28: ='Valuation-2'!A32 -> 3Y from now | B28: 48.39182551 | C28: 15.28505842 | D28: 3.935902542 | E28: 14.58374742 | F28: 3.806358077
A29: ='Valuation-2'!A33 -> 4Y from now | B29: 59.74098138 | C29: 18.86980664 | D29: 4.85897521 | E29: 18.00401977 | F29: 4.69904916
A30: ='Valuation-2'!A34 -> 5Y from now | B30: 73.75181282 | C30: 23.29527261 | D30: 5.998532697 | E30: 22.22643594 | F30: 5.801099781
A31: ='Valuation-2'!A35 -> 6Y from now | B31: 91.04855273 | C31: 28.75862674 | D31: 7.405346386 | E31: 27.43911977 | F31: 7.16161026
A32: ='Valuation-2'!A36 -> 7Y from now | B32: 112.4018331 | C32: 35.50328112 | D32: 9.142094888 | E32: 33.87431505 | F32: 8.841196229
A33: ='Valuation-2'!A37 -> 8Y from now | B33: 138.7630193 | C33: 43.82973434 | D33: 11.28615659 | E33: 41.81873289 | F33: 10.91468928
A34: ='Valuation-2'!A38 -> 9Y from now | B34: 171.3065971 | C34: 54.10895985 | D34: 13.93305716 | E34: 51.62632566 | F34: 13.474471
A35: ='Valuation-2'!A39 -> 10Y from now | B35: 211.4824997 | C35: 66.79893409 | D35: 17.20072553 | E35: 63.73405689 | F35: 16.63458885
A36: CAGR | B36: =(B35/B25)^(1/11)-1 -> 0.2111059387 | C36: =(C35/C25)^(1/11)-1 -> 0.2111059387 | D36: =(D35/D25)^(1/11)-1 -> 0.2111059387 | E36: =(E35/E25)^(1/11)-1 -> 0.2111059387 | F36: =(F35/F25)^(1/11)-1 -> 0.2111059387
A39: Estimated CAGR of investment with different PE values
A40: Choose | B40: Projection with median BYS and Payout Ratio | J40: 1 | K40: Projection with avg BYS and Payout Ratio
A41: Historical | B41: Lowest PE | C41: Highest PE | D41: Average PE | E41: Median PE | J41: 2 | K41: Projection with median BYS and Payout Ratio
B42: =MIN('Valuation-2'!H8:I17) -> 3.068329718 | C42: =MAX('Valuation-2'!H8:I17) -> 59.42857143 | D42: =AVERAGE('Valuation-2'!H8:I17) -> 11.57309826 | E42: =MEDIAN('Valuation-2'!H8:I17) -> 5.013140081 | J42: =INDEX(J40:K41,MATCH(B40,K40:K41,0),1) -> 2
A43: Projected CAGR with | B43: =B41 -> Lowest PE | C43: =C41 -> Highest PE | D43: =D41 -> Average PE | E43: =E41 -> Median PE
A44: Investment at today's price | B44: =-'Valuation-2'!H3 -> -49 | C44: =B44 -> -49 | D44: =C44 -> -49 | E44: =D44 -> -49 | F44: negative sign signifies investment (necessary for IRR calcualtion)
A45: =CONCATENATE("Dividend received ",A26) -> Dividend received 1Y from now | B45: =IF($J$42=1,$D26,$F26) -> 2.497519842 | C45: 2.497519842 | D45: 2.497519842 | E45: 2.497519842 | F45: These are the
A46: =CONCATENATE("Dividend received ",A27) -> Dividend received 2Y from now | B46: 3.083253934 | C46: 3.083253934 | D46: 3.083253934 | E46: 3.083253934 | F46: dividends which
A47: Dividend received 3Y from now | B47: =IF($J$42=1,$D28,$F28) -> 3.806358077 | C47: 3.806358077 | D47: 3.806358077 | E47: 3.806358077 | F47: are assumed to be
A48: Dividend received 4Y from now | B48: =IF($J$42=1,$D29,$F29) -> 4.69904916 | C48: 4.69904916 | D48: 4.69904916 | E48: 4.69904916 | F48: received and not
A49: Dividend received 5Y from now | B49: =IF($J$42=1,$D30,$F30) -> 5.801099781 | C49: 5.801099781 | D49: 5.801099781 | E49: 5.801099781 | F49: reinvested. Such as
A50: Dividend received 6Y from now | B50: =IF($J$42=1,$D31,$F31) -> 7.16161026 | C50: 7.16161026 | D50: 7.16161026 | E50: 7.16161026 | F50: assumption is incorrect,
A51: Dividend received 7Y from now | B51: =IF($J$42=1,$D32,$F32) -> 8.841196229 | C51: 8.841196229 | D51: 8.841196229 | E51: 8.841196229 | F51: but should suffice for
A52: Dividend received 8Y from now | B52: =IF($J$42=1,$D33,$F33) -> 10.91468928 | C52: 10.91468928 | D52: 10.91468928 | E52: 10.91468928 | F52: estimation purposes
A53: Dividend received 9Y from now | B53: =IF($J$42=1,$D34,$F34) -> 13.474471 | C53: 13.474471 | D53: 13.474471 | E53: 13.474471
A54: Future value (incl. Div) 10Y from now | B54: =IF($J$42=1,$D35,$F35)+(B42*IF($J$42=1,$C$35,$E$35)) -> 212.1916897 | C54: =IF($J$42=1,$D35,$F35)+(C42*IF($J$42=1,$C$35,$E$35)) -> 3804.258541 | D54: =IF($J$42=1,$D35,$F35)+(D42*IF($J$42=1,$C$35,$E$35)) -> 754.2350918 | E54: =IF($J$42=1,$D35,$F35)+(E42*IF($J$42=1,$C$35,$E$35)) -> 336.142344
A55: IRR | B55: =IRR(B44:B54) -> 0.2180555862 | C55: =IRR(C44:C54) -> 0.5678753948 | D55: =IRR(D44:D54) -> 0.3514857857 | E55: =IRR(E44:E54) -> 0.2624365321 | F55: Since entries are spaced an year apart, IRR = XIRR
A56: Sometimes IRR will give an error if ti cannot calculate the return

Sheet Valuation-4
A1: Valuation using the Discounted Cash Flow Model | E1: Source: | F1: http://www.focusinvestor.com/index.php/articles.html
F2: http://www.investopedia.com/university/dcf/
A4: Current price | B4: ='Valuation-2'!H3 -> 49
A5: =CONCATENATE(Analysis!A23," outstanding") -> Shares Mil outstanding | B5: =IF(Analysis!B23="",Analysis!L23,Analysis!B23) -> 5364
A6: Debt level in the last year | B6: =Analysis!L94 -> 18911.29672 | C6: (see Notes for definition) | E6: Negative implies more cash than debt
A7: ='Valuation-2'!A7 -> Year | B7: ='Valuation-2'!F7 -> Dividends USD | C7: ='Valuation-2'!J7 -> ROE% | D7: ='Valuation-2'!K7 -> Payout Ratio% | E7: Growth Rate | F7: =Analysis!A49 -> Free Cash Flow USD Mil | J7: =A7 -> Year | K7: average Dividends per share | L7: ='Valuation-2'!B7 -> Price Max | M7: ='Valuation-2'!C7 -> Price Min | N7: Max Cost of Equity | O7: Min Cost of Equity | P7: Avg Cost of Equity
A8: ='Valuation-2'!A8 -> 2007 | B8: ='Valuation-2'!F8 ->  | C8: ='Valuation-2'!J8 -> 0.2852 | D8: ='Valuation-2'!K8 ->  | E8: =IF(ISERROR((1-D8)*C8),"",(1-D8)*C8) ->  | F8: =Analysis!C49 -> 4484 | J8: =A8 -> 2007 | L8: ='Valuation-2'!B8 -> 33.28 | M8: ='Valuation-2'!C8 -> 18.99
A9: ='Valuation-2'!A9 -> 2008 | B9: ='Valuation-2'!F9 ->  | C9: ='Valuation-2'!J9 -> 0.2719 | D9: ='Valuation-2'!K9 ->  | E9: =IF(ISERROR((1-D9)*C9),"",(1-D9)*C9) ->  | F9: =Analysis!D49 -> 8397 | J9: 2008 | K9: =B9*(1+E9) ->  | L9: ='Valuation-2'!B9 -> 27 | M9: ='Valuation-2'!C9 -> 15.14 | N9: =(K9/L9)+E9 ->  | O9: =(K9/M9)+E9 ->  | P9: =(N9+O9)/2 -> 
A10: ='Valuation-2'!A10 -> 2007 | B10: ='Valuation-2'!F10 ->  | C10: ='Valuation-2'!J10 -> 0.3127 | D10: ='Valuation-2'!K10 ->  | F10: =Analysis!E49 -> 8946 | J10: 2007 | K10: =B10*(1+E10) ->  | L10: ='Valuation-2'!B10 -> 23.63 | M10: ='Valuation-2'!C10 -> 14.22 | N10: =(K10/L10)+E10 ->  | O10: =(K10/M10)+E10 ->  | P10: =(N10+O10)/2 -> 
A11: ='Valuation-2'!A11 -> 2010 | B11: ='Valuation-2'!F11 ->  | C11: ='Valuation-2'!J11 -> 0.3528 | D11: ='Valuation-2'!K11 ->  | F11: =Analysis!F49 -> 16474 | J11: 2010 | L11: ='Valuation-2'!B11 -> 20.11 | M11: ='Valuation-2'!C11 -> 13.88 | N11: =(K11/L11)+E11 ->  | O11: =(K11/M11)+E11 -> 
A12: ='Valuation-2'!A12 -> 2011 | B12: ='Valuation-2'!F12 ->  | C12: ='Valuation-2'!J12 -> 0.4167 | D12: ='Valuation-2'!K12 ->  | F12: =Analysis!G49 -> 30077 | J12: 2011 | L12: ='Valuation-2'!B12 -> 23.85 | M12: ='Valuation-2'!C12 -> 17.18
A13: ='Valuation-2'!A13 -> 2012 | B13: ='Valuation-2'!F13 -> 0.38 | C13: ='Valuation-2'!J13 -> 0.4284 | D13: ='Valuation-2'!K13 ->  | F13: =Analysis!H49 -> 41454 | J13: 2012 | L13: ='Valuation-2'!B13 -> 26.49 | M13: ='Valuation-2'!C13 -> 20.05
A14: ='Valuation-2'!A14 -> 2013 | B14: ='Valuation-2'!F14 -> 1.63 | C14: ='Valuation-2'!J14 -> 0.3064 | D14: ='Valuation-2'!K14 -> 0.274 | E14: 0.2224464 | F14: =Analysis!I49 -> 44590 | J14: 2013 | K14: 1.992587632 | L14: ='Valuation-2'!B14 -> 27.88 | M14: ='Valuation-2'!C14 -> 19.86 | N14: 0.2939165446 | O14: 0.3227781035 | P14: 0.3083473241
A15: ='Valuation-2'!A15 -> 2014 | B15: ='Valuation-2'!F15 -> 1.81 | C15: ='Valuation-2'!J15 -> 0.3361 | D15: ='Valuation-2'!K15 -> 0.285 | E15: 0.2403115 | F15: =Analysis!J49 -> 49900 | J15: 2014 | K15: 2.244963815 | L15: ='Valuation-2'!B15 -> 33.01 | M15: ='Valuation-2'!C15 -> 26.05 | N15: 0.3083200978 | O15: 0.3264905332 | P15: 0.3174053155
A16: ='Valuation-2'!A16 -> 2015 | B16: ='Valuation-2'!F16 -> 1.98 | C16: ='Valuation-2'!J16 -> 0.4625 | D16: ='Valuation-2'!K16 -> 0.223 | E16: 0.3593625 | F16: =Analysis!K49 -> 69778 | J16: 2015 | K16: 2.69153775 | L16: ='Valuation-2'!B16 -> 35.1 | M16: ='Valuation-2'!C16 -> 28.29 | N16: 0.4360444872 | O16: 0.4545034597 | P16: 0.4452739734
A17: ='Valuation-2'!A17 -> 2016 | B17: ='Valuation-2'!F17 -> 2.18 | C17: ='Valuation-2'!J17 -> 0.369 | D17: ='Valuation-2'!K17 -> 0.248 | E17: 0.277488 | F17: =Analysis!L49 -> 52276 | G17: Use this as reference for FCF growth rate | J17: 2016 | K17: 2.78492384 | L17: ='Valuation-2'!B17 -> 35.82 | M17: ='Valuation-2'!C17 -> 27.57 | N17: 0.3552357342 | O17: 0.3785008342 | P17: 0.3668682842
A18: 3Y Average | B18: =AVERAGE(B15:B17) -> 1.99 | C18: =AVERAGE(C15:C17) -> 0.3892 | D18: =AVERAGE(D15:D17) -> 0.252 | E18: 0.2911216 | F18: =AVERAGE(F15:F17) -> 57318 | G18: FCF Last 3Y growth rate | H18: =(F17/F14)^(1/3)-1 -> 0.05443940078
A19: 5Y Average | B19: =AVERAGE(B13:B17) -> 1.596 | C19: =AVERAGE(C13:C17) -> 0.38048 | D19: =AVERAGE(D13:D17) -> 0.2575 | E19: 0.2825064 | F19: =AVERAGE(F13:F17) -> 51599.6 | G19: FCF Last 5Y growth rate | H19: =(F17/F12)^(1/5)-1 -> 0.1168981374
A20: 7Y Average | B20: =AVERAGE(B11:B17) -> 1.596 | C20: =AVERAGE(C11:C17) -> 0.3817 | D20: =AVERAGE(D11:D17) -> 0.2575 | E20: 0.28341225 | F20: =AVERAGE(F11:F17) -> 43507 | G20: FCF Last 7Y growth rate | H20: =(F17/F10)^(1/7)-1 -> 0.2868406736
A21: 10Y Average | B21: =AVERAGE(B8:B17) -> 1.596 | C21: =AVERAGE(C8:C17) -> 0.35417 | D21: =AVERAGE(D8:D17) -> 0.2575 | E21: 0.262971225 | F21: =AVERAGE(F8:F17) -> 32637.6 | G21: FCF Last 9 growth rate | H21: =IF(ISERROR((F17/F8)^(1/10)-1),"",(F17/F8)^(1/10)-1) -> 0.2783909118
A23: Next 3Y average Dividends per share | B23: =B18*(1+E18) -> 2.569331984 | D23: Initial Cash Flow | E23: 57318 | F23: =INDEX(A18:F21,MATCH(E23,F18:F21,0),1) -> 3Y Average
A24: Next 5Y average Dividends per share | B24: =B19*(1+E19) -> 2.046880214
A25: Next 7Y average Dividends per share | B25: =B20*(1+E20) -> 2.048325951 | D25: What is the rate at which you would like to discount future cash flow to present values?
A26: Next 10Y average Dividends per share | B26: =B21*(1+E21) -> 2.015702075 | D26: Technically this should be equal to the weighted average cost of capital (WACC).
A27: 3Y Cost of Equity* | B27: =(B23/$B$4)+E18 -> 0.3435569466 | D27: This is (according to wikipedia), the minimum return that a company must earn
A28: 5Y Cost of Equity | B28: =(B24/$B$4)+E19 -> 0.3242794656 | D28: on an existing asset base to satisfy its creditors, owners, and other providers of
A29: 10Y Cost of Equity | B29: =(B25/$B$4)+E20 -> 0.3252148204 | D29: capital, or they will invest elsewhere. The WACC is difficult to compute.
A30: 10Y Cost of Equity | B30: =(B26/$B$4)+E21 -> 0.304108002 | D30: So you will need to guess the discount rate conservatively | G30: 0.12
A31: * Also known as required rate of return | D31: Margin of Safety | E31: 0.25
A33: Discounted Cash Flow projections (choose FCF growth rate in green cells) | E33: DCF projections beyond 10Y may not be of much use!
A34: Year | B34: FCF Growth Rate | C34: Free Cash Flow | D34: Present Value
A35: 1 | B35: 0.05 | C35: =E23*(1+B35) -> 60183.9 | D35: =C35/(1+$G$30)^A35 -> 53735.625
A36: =A35+1 -> 2 | B36: =B35 -> 0.05 | C36: =C35*(1+B36) -> 63193.095 | D36: =C36/(1+$G$30)^A36 -> 50377.14844 | F36: After 5Y, 10Y, 15Y or 20Y, if we assume the growth will saturate,
A37: =A36+1 -> 3 | B37: =B36 -> 0.05 | C37: =C36*(1+B37) -> 66352.74975 | D37: 47228.57666 | F37: the growth rate at this point is the terminal growth rate
A38: 4 | B38: =B37 -> 0.05 | C38: 69670.38724 | D38: 44276.79062 | M38: The price at or below which you can buy
A39: 5 | B39: =B38 -> 0.05 | C39: 73153.9066 | D39: 41509.49121 | G39: Growth rate in terminal year | H39: FCF in terminal year | I39: PV of Cash flow | J39: Terminal Value | K39: Total cash flow PV | L39: DCF value per share | M39: DCF value per share with margin of safety
A40: 6 | B40: 0.05 | C40: 76811.60193 | D40: 38915.148 | E40: Terminal year for 5Y projection | G40: 0.05 | H40: =C39*(1+G40) -> 76811.60193 | I40: =SUM(D35:D39) -> 237127.6319 | J40: =(H40/($G$30-G40))/(1+$G$30)^A39 -> 622642.3681 | K40: =I40+J40 -> 859770 | L40: =(K40-$B$6)/$B$5 -> 156.7596389 | M40: =L40*(1-$E$31) -> 117.5697292
A41: 7 | B41: =B40 -> 0.05 | C41: 80652.18203 | D41: 36482.95125
A42: 8 | B42: =B41 -> 0.05 | C42: 84684.79113 | D42: 34202.7668
A43: 9 | B43: =B42 -> 0.05 | C43: 88919.03068 | D43: 32065.09388
A44: 10 | B44: =B43 -> 0.05 | C44: 93364.98222 | D44: 30061.02551
A45: 11 | B45: 0.05 | C45: 98033.23133 | D45: 28182.21141 | E45: Terminal year for 10Y projection | G45: -0.1 | H45: =C44*(1+G45) -> 84028.484 | I45: =SUM(D35:D44) -> 408854.6174 | J45: =(H45/($G$30-G45))/(1+$G$30)^A44 -> 122976.9225 | K45: =I45+J45 -> 531831.5399 | L45: =(K45-$B$6)/$B$5 -> 95.62271499 | M45: =L45*(1-$E$31) -> 71.71703624
A46: 12 | B46: =B45 -> 0.05 | C46: 102934.8929 | D46: 26420.8232
A47: 13 | B47: =B46 -> 0.05 | C47: 108081.6375 | D47: 24769.52175
A48: 14 | B48: =B47 -> 0.05 | C48: 113485.7194 | D48: 23221.42664
A49: 15 | B49: =B48 -> 0.05 | C49: 119160.0054 | D49: 21770.08748
A50: 16 | B50: 0.05 | C50: 125118.0057 | D50: 20409.45701 | E50: Terminal year for 15Y projection | G50: -0.1 | H50: =C49*(1+G50) -> 107244.0048 | I50: =SUM(D35:D49) -> 533218.6879 | J50: =(H50/($G$30-G50))/(1+$G$30)^A49 -> 89059.44877 | K50: =I50+J50 -> 622278.1366 | L50: =(K50-$B$6)/$B$5 -> 112.4844966 | M50: =L50*(1-$E$31) -> 84.36337247
A51: 17 | B51: =B50 -> 0.05 | C51: 131373.9059 | D51: 19133.86595
A52: 18 | B52: =B51 -> 0.05 | C52: 137942.6012 | D52: 17937.99932
A53: 19 | B53: =B52 -> 0.05 | C53: 144839.7313 | D53: 16816.87437
A54: 20 | B54: =B53 -> 0.05 | C54: 152081.7179 | D54: 15765.81972
E55: Terminal year for 20Y projection | G55: 0 | H55: =C54*(1+G55) -> 152081.7179 | I55: =SUM(D35:D54) -> 623282.7042 | J55: =(H55/($G$30-G55))/(1+$G$30)^A54 -> 131381.831 | K55: =I55+J55 -> 754664.5352 | L55: =(K55-$B$6)/$B$5 -> 137.1650333 | M55: =L55*(1-$E$31) -> 102.873775

Sheet Valuation-5
A1: Valuation using the Reverse Discounted Cash Flow Model | E1: Source: | F1: http://www.investopedia.com/articles/fundamental-analysis/09/reverse-discount-cash-flow.asp
A4: Current price | B4: ='Valuation-2'!H3 -> 49
A5: =CONCATENATE(Analysis!A23," outstanding") -> Shares Mil outstanding | B5: =IF(Analysis!B23="",Analysis!L23,Analysis!B23) -> 5364
A6: Debt level in the last year | B6: =Analysis!L94 -> 18911.29672 | C6: (see Notes for definition) | E6: Negative implies more cash than debt
A7: ='Valuation-2'!A7 -> Year | B7: ='Valuation-2'!F7 -> Dividends USD | C7: ='Valuation-2'!J7 -> ROE% | D7: ='Valuation-2'!K7 -> Payout Ratio% | E7: Growth Rate | F7: =Analysis!A49 -> Free Cash Flow USD Mil
A8: ='Valuation-2'!A8 -> 2007 | B8: ='Valuation-2'!F8 ->  | C8: ='Valuation-2'!J8 -> 0.2852 | D8: ='Valuation-2'!K8 ->  | E8: =IF(ISERROR((1-D8)*C8),"",(1-D8)*C8) ->  | F8: =Analysis!C49 -> 4484
A9: ='Valuation-2'!A9 -> 2008 | B9: ='Valuation-2'!F9 ->  | C9: ='Valuation-2'!J9 -> 0.2719 | D9: ='Valuation-2'!K9 ->  | E9: =IF(ISERROR((1-D9)*C9),"",(1-D9)*C9) ->  | F9: =Analysis!D49 -> 8397
A10: ='Valuation-2'!A10 -> 2007 | B10: ='Valuation-2'!F10 ->  | C10: ='Valuation-2'!J10 -> 0.3127 | D10: ='Valuation-2'!K10 ->  | F10: =Analysis!E49 -> 8946
A11: ='Valuation-2'!A11 -> 2010 | B11: ='Valuation-2'!F11 ->  | C11: ='Valuation-2'!J11 -> 0.3528 | D11: ='Valuation-2'!K11 ->  | F11: =Analysis!F49 -> 16474
A12: ='Valuation-2'!A12 -> 2011 | B12: ='Valuation-2'!F12 ->  | C12: ='Valuation-2'!J12 -> 0.4167 | D12: ='Valuation-2'!K12 ->  | F12: =Analysis!G49 -> 30077
A13: ='Valuation-2'!A13 -> 2012 | B13: ='Valuation-2'!F13 -> 0.38 | C13: ='Valuation-2'!J13 -> 0.4284 | D13: ='Valuation-2'!K13 ->  | F13: =Analysis!H49 -> 41454
A14: ='Valuation-2'!A14 -> 2013 | B14: ='Valuation-2'!F14 -> 1.63 | C14: ='Valuation-2'!J14 -> 0.3064 | D14: ='Valuation-2'!K14 -> 0.274 | E14: 0.2224464 | F14: =Analysis!I49 -> 44590
A15: ='Valuation-2'!A15 -> 2014 | B15: ='Valuation-2'!F15 -> 1.81 | C15: ='Valuation-2'!J15 -> 0.3361 | D15: ='Valuation-2'!K15 -> 0.285 | E15: 0.2403115 | F15: =Analysis!J49 -> 49900
A16: ='Valuation-2'!A16 -> 2015 | B16: ='Valuation-2'!F16 -> 1.98 | C16: ='Valuation-2'!J16 -> 0.4625 | D16: ='Valuation-2'!K16 -> 0.223 | E16: 0.3593625 | F16: =Analysis!K49 -> 69778
A17: ='Valuation-2'!A17 -> 2016 | B17: ='Valuation-2'!F17 -> 2.18 | C17: ='Valuation-2'!J17 -> 0.369 | D17: ='Valuation-2'!K17 -> 0.248 | E17: 0.277488 | F17: =Analysis!L49 -> 52276 | G17: Use this as reference for FCF growth rate
A18: 3Y Average | B18: =AVERAGE(B15:B17) -> 1.99 | C18: =AVERAGE(C15:C17) -> 0.3892 | D18: =AVERAGE(D15:D17) -> 0.252 | E18: 0.2911216 | F18: =AVERAGE(F15:F17) -> 57318 | G18: FCF Last 3Y growth rate | H18: =(F17/F14)^(1/3)-1 -> 0.05443940078
A19: 5Y Average | B19: =AVERAGE(B13:B17) -> 1.596 | C19: =AVERAGE(C13:C17) -> 0.38048 | D19: =AVERAGE(D13:D17) -> 0.2575 | E19: 0.2825064 | F19: =AVERAGE(F13:F17) -> 51599.6 | G19: FCF Last 5Y growth rate | H19: =(F17/F12)^(1/5)-1 -> 0.1168981374
A20: 7Y Average | B20: =AVERAGE(B11:B17) -> 1.596 | C20: =AVERAGE(C11:C17) -> 0.3817 | D20: =AVERAGE(D11:D17) -> 0.2575 | E20: 0.28341225 | F20: =AVERAGE(F11:F17) -> 43507 | G20: FCF Last 7Y growth rate | H20: =(F17/F10)^(1/7)-1 -> 0.2868406736
A21: 10Y Average | B21: =AVERAGE(B8:B17) -> 1.596 | C21: =AVERAGE(C8:C17) -> 0.35417 | D21: =AVERAGE(D8:D17) -> 0.2575 | E21: 0.262971225 | F21: =AVERAGE(F8:F17) -> 32637.6 | G21: FCF Last 9 growth rate | H21: =IF(ISERROR((F17/F8)^(1/10)-1),"",(F17/F8)^(1/10)-1) -> 0.2783909118
A23: Next 3Y average Dividends per share | B23: =B18*(1+E18) -> 2.569331984 | D23: Initial Cash Flow | E23: 114.25 | F23: =INDEX(A18:F21,MATCH(E23,F18:F21,0),1) -> 
A24: Next 5Y average Dividends per share | B24: =B19*(1+E19) -> 2.046880214
A25: Next 7Y average Dividends per share | B25: =B20*(1+E20) -> 2.048325951 | D25: What is the rate at which you would like to discount future cash flow to present values?
A26: Next 10Y average Dividends per share | B26: =B21*(1+E21) -> 2.015702075 | D26: Technically this should be equal to the weighted average cost of capital (WACC).
A27: 3Y Cost of Equity* | B27: =(B23/$B$4)+E18 -> 0.3435569466 | D27: This is (according to wikipedia), the minimum return that a company must earn
A28: 5Y Cost of Equity | B28: =(B24/$B$4)+E19 -> 0.3242794656 | D28: on an existing asset base to satisfy its creditors, owners, and other providers of
A29: 10Y Cost of Equity | B29: =(B25/$B$4)+E20 -> 0.3252148204 | D29: capital, or they will invest elsewhere. The WACC is difficult to compute.
A30: 10Y Cost of Equity | B30: =(B26/$B$4)+E21 -> 0.304108002 | D30: So you will need to guess the discount rate conservatively | G30: 0.12
A31: * Also known as required rate of return | D31: Margin of Safety | E31: 0.25
A33: Discounted Cash Flow projections (choose FCF growth rate in green cells)
A34: Year | B34: FCF Growth Rate | C34: Free Cash Flow | D34: Present Value
A35: 1 | B35: 2.222500188 | C35: =E23*(1+B35) -> 368.1706465 | D35: =C35/(1+$G$30)^A35 -> 328.7237915
A36: =A35+1 -> 2 | B36: =B35 -> 2.222500188 | C36: =C35*(1+B36) -> 1186.429978 | D36: =C36/(1+$G$30)^A36 -> 945.8147143
A37: =A36+1 -> 3 | B37: =B36 -> 2.222500188 | C37: =C36*(1+B37) -> 3823.270826 | D37: 2721.328656
A38: 4 | B38: =B37 -> 2.222500188 | C38: 12320.49096 | D38: 7829.894737
A39: 5 | B39: =B38 -> 2.222500188 | C39: 39702.78442 | D39: 22528.42613
A41: After 5Y, if we assume the growth will saturate,
A42: the growth rate at this point is the terminal growth rate
B44: Growth rate in terminal year
A45: Terminal year for 5Y projection | B45: 0.04942735013
A46: FCF in terminal year | B46: =C39*(1+B45) -> 41665.18785
A47: PV of Cash flow | B47: =SUM(D35:D39) -> 34354.18803
A48: Terminal Value | B48: =(B46/($G$30-B45))/(1+$G$30)^A39 -> 335001.542
A49: Total cash flow PV | B49: =B47+B48 -> 369355.7301
A50: DCF value per share | B50: =(B49-$B$6)/$B$5 -> 65.33266841
A51: When you click on the black button,
A52: Current price will be equal to DCF value per share with margin of safety
A53: DCF value per share with margin of safety | B53: =B50*(1-$E$31) -> 48.99950131
A54: For this to happen, the FCF growth rate for next 5 years should be | C54: =B35 -> 2.222500188

Sheet Stock price FY high and low
A1: =Analysis!C2 -> 2007 | C1: =MAX(B2:B10000) -> 33.28 | D1: =Analysis!D2 -> 2008 | F1: =MAX(E2:E10000) -> 27 | G1: =Analysis!E2 -> 2009 | I1: =MAX(H2:H10000) -> 23.63 | J1: =Analysis!F2 -> 2010 | L1: =MAX(K2:K10000) -> 20.11 | M1: =Analysis!G2 -> 2011 | O1: =MAX(N2:N10000) -> 23.85 | P1: =Analysis!H2 -> 2012 | R1: =MAX(Q2:Q10000) -> 26.49 | S1: =Analysis!I2 -> 2013 | U1: =MAX(T2:T10000) -> 27.88 | V1: =Analysis!J2 -> 2014 | X1: =MAX(W2:W10000) -> 33.01 | Y1: =Analysis!K2 -> 2015 | AA1: =MAX(Z2:Z10000) -> 35.1 | AB1: =Analysis!L2 -> 2016 | AD1: =MAX(AC2:AC10000) -> 35.82
